Workbook

Sheet Control
A1: Sheets | B1: Text File Names | C1: Description | D1: considered | E1: Notes: 50 sheets maximum
A2: EPCat23_Dunka | B2: Concentrations\EPCat23_Dunka_Conc_Output.txt | C2: Project concentrations in the East Pit-Cat 2/3 flowpath at Dunka Road | D2: X | E2: Referenced text files must be in same root folder as this spreadsheet
A3: EPCat23_Prop | B3: Concentrations\EPCat23_Prop_Conc_Output.txt | C3: Project concentrations in the East Pit-Cat 2/3 flowpath at the Prop. Bdry. | D3: X
A4: EPCat23_Part | B4: Concentrations\EPCat23_Part_Conc_Output.txt | C4: Project concentrations in the East Pit-Cat 2/3 flowpath at the Partridge River
A5: EPbed_Cell1 | B5: Concentrations\EPbed_Cell1_Conc_Output.txt | C5: Project concentrations in the East Pit flowpath at Cell 1
A6: EPbed_Prop | B6: Concentrations\EPbed_Prop_Conc_Output.txt | C6: Project concentrations in the East Pit flowpath at the Property Boundary | D6: X | F6: Run Time Min: | G6: =MIN(EPCat23_Dunka!$B$5,EPCat23_Prop!$B$5,EPCat23_Part!$B$5,EPbed_Cell1!$B$5,EPbed_Prop!$B$5,EPbed_Part!$B$5,OSLA_Dunka!$B$5,OSLA_Prop!$B$5,OSLA_Part!$B$5,OSP_Dunka!$B$5,OSP_Part1!$B$5,OSP_Part2!$B$5,WWTF_Dunka!$B$5,WWTF_Prop!$B$5,WWTF_Part!$B$5,WPsurf_Dunka!$B$5,WPsurf_Prop!$B$5,WPsurf_Part!$B$5,WPbed4_Cell1!$B$5,WPbed4_Prop!$B$5,WPbed4_Part!$B$5,WPbed4a_Cell1!$B$5,WPbed4a_Prop!$B$5,WPbed4a_Part!$B$5) -> 2014-12-15T22:56:18 | I6: FEIS Outputs
A7: EPbed_Part | B7: Concentrations\EPbed_Part_Conc_Output.txt | C7: Project concentrations in the East Pit flowpath at the Partridge River | F7: Run Time Max: | G7: =MAX(EPCat23_Dunka!$B$5,EPCat23_Prop!$B$5,EPCat23_Part!$B$5,EPbed_Cell1!$B$5,EPbed_Prop!$B$5,EPbed_Part!$B$5,OSLA_Dunka!$B$5,OSLA_Prop!$B$5,OSLA_Part!$B$5,OSP_Dunka!$B$5,OSP_Part1!$B$5,OSP_Part2!$B$5,WWTF_Dunka!$B$5,WWTF_Prop!$B$5,WWTF_Part!$B$5,WPsurf_Dunka!$B$5,WPsurf_Prop!$B$5,WPsurf_Part!$B$5,WPbed4_Cell1!$B$5,WPbed4_Prop!$B$5,WPbed4_Part!$B$5,WPbed4a_Cell1!$B$5,WPbed4a_Prop!$B$5,WPbed4a_Part!$B$5) -> 2014-12-15T22:56:18
A8: OSLA_Dunka | B8: Concentrations\OSLA_Dunka_Conc_Output.txt | C8: Project concentrations in the OSLA flowpath at Dunka Road | D8: X
A9: OSLA_Prop | B9: Concentrations\OSLA_Prop_Conc_Output.txt | C9: Project concentrations in the OSLA flowpath at the Property Boundary | D9: X | F9: Run Time Min: | G9: =MIN(EPCat23_Dunka_SDEIS!$B$5,EPCat23_Prop_SDEIS!$B$5,EPCat23_Part_SDEIS!$B$5,EPbed_Cell1_SDEIS!$B$5,EPbed_Prop_SDEIS!$B$5,EPbed_Part_SDEIS!$B$5,OSLA_Dunka_SDEIS!$B$5,OSLA_Prop_SDEIS!$B$5,OSLA_Part_SDEIS!$B$5,OSP_Dunka_SDEIS!$B$5,OSP_Part1_SDEIS!$B$5,OSP_Part2_SDEIS!$B$5,WWTF_Dunka_SDEIS!$B$5,WWTF_Prop_SDEIS!$B$5,WWTF_Part_SDEIS!$B$5,WPsurf_Dunka_SDEIS!$B$5,WPsurf_Prop_SDEIS!$B$5,WPsurf_Part_SDEIS!$B$5,WPbed4_Cell1_SDEIS!$B$5,WPbed4_Prop_SDEIS!$B$5,WPbed4_Part_SDEIS!$B$5,WPbed4a_Cell1_SDEIS!$B$5,WPbed4a_Prop_SDEIS!$B$5,WPbed4a_Part_SDEIS!$B$5) -> 2013-01-28T18:20:45 | I9: SDEIS Outputs
A10: OSLA_Part | B10: Concentrations\OSLA_Part_Conc_Output.txt | C10: Project concentrations in the OSLA flowpath at the Partridge River | F10: Run Time Max: | G10: =MAX(EPCat23_Dunka_SDEIS!$B$5,EPCat23_Prop_SDEIS!$B$5,EPCat23_Part_SDEIS!$B$5,EPbed_Cell1_SDEIS!$B$5,EPbed_Prop_SDEIS!$B$5,EPbed_Part_SDEIS!$B$5,OSLA_Dunka_SDEIS!$B$5,OSLA_Prop_SDEIS!$B$5,OSLA_Part_SDEIS!$B$5,OSP_Dunka_SDEIS!$B$5,OSP_Part1_SDEIS!$B$5,OSP_Part2_SDEIS!$B$5,WWTF_Dunka_SDEIS!$B$5,WWTF_Prop_SDEIS!$B$5,WWTF_Part_SDEIS!$B$5,WPsurf_Dunka_SDEIS!$B$5,WPsurf_Prop_SDEIS!$B$5,WPsurf_Part_SDEIS!$B$5,WPbed4_Cell1_SDEIS!$B$5,WPbed4_Prop_SDEIS!$B$5,WPbed4_Part_SDEIS!$B$5,WPbed4a_Cell1_SDEIS!$B$5,WPbed4a_Prop_SDEIS!$B$5,WPbed4a_Part_SDEIS!$B$5) -> 2013-01-28T18:20:45
A11: OSP_Dunka | B11: Concentrations\OSP_Dunka_Conc_Output.txt | C11: Project concentrations in the Ore Surge Pile flowpath at Dunka Road | D11: X
A12: OSP_Part1 | B12: Concentrations\OSP_Part1_Conc_Output.txt | C12: Project concentrations in the Ore Surge Pile flowpath at the Partridge River1 | D12: X
A13: OSP_Part2 | B13: Concentrations\OSP_Part2_Conc_Output.txt | C13: Project concentrations in the Ore Surge Pile flowpath at the Partridge River2
A14: WWTF_Dunka | B14: Concentrations\WWTF_Dunka_Conc_Output.txt | C14: Project concentrations in the WWTF flowpath at Dunka Road | D14: X
A15: WWTF_Prop | B15: Concentrations\WWTF_Prop_Conc_Output.txt | C15: Project concentrations in the WWTF flowpath at the Property Boundary | D15: X
A16: WWTF_Part | B16: Concentrations\WWTF_Part_Conc_Output.txt | C16: Project concentrations in the WWTF flowpath at the Partridge River
A17: WPsurf_Dunka | B17: Concentrations\WPsurf_Dunka_Conc_Output.txt | C17: Project concentrations in the West Pit (surficial) flowpath at Dunka Road | D17: X
A18: WPsurf_Prop | B18: Concentrations\WPsurf_Prop_Conc_Output.txt | C18: Project concentrations in the West Pit (surficial) flowpath at the Property Boundary | D18: X
A19: WPsurf_Part | B19: Concentrations\WPsurf_Part_Conc_Output.txt | C19: Project concentrations in the West Pit (surficial) flowpath at the Partridge River
A20: WPbed4_Cell1 | B20: Concentrations\WPbed4_Cell1_Conc_Output.txt | C20: Project concentrations in the West Pit (bedrock to SW004) flowpath at Cell 1
A21: WPbed4_Prop | B21: Concentrations\WPbed4_Prop_Conc_Output.txt | C21: Project concentrations in the West Pit (bedrock to SW004) flowpath at the Property Boundary | D21: X
A22: WPbed4_Part | B22: Concentrations\WPbed4_Part_Conc_Output.txt | C22: Project concentrations in the West Pit (bedrock to SW004) flowpath at the Partridge River
A23: WPbed4a_Cell1 | B23: Concentrations\WPbed4a_Cell1_Conc_Output.txt | C23: Project concentrations in the West Pit (bedrock to SW004a) flowpath at Cell 1
A24: WPbed4a_Prop | B24: Concentrations\WPbed4a_Prop_Conc_Output.txt | C24: Project concentrations in the West Pit (bedrock to SW004a) flowpath at the Property Boundary | D24: X
A25: WPbed4a_Part | B25: Concentrations\WPbed4a_Part_Conc_Output.txt | C25: Project concentrations in the West Pit (bedrock to SW004a) flowpath at the Partridge River
A26: EPCat23_Dunka_SDEIS | B26: SDEIS\Concentrations\EPCat23_Dunka_Conc_Output.txt | C26: SDEIS Project concentrations in the East Pit-Cat 2/3 flowpath at Dunka Road | D26: X
A27: EPCat23_Prop_SDEIS | B27: SDEIS\Concentrations\EPCat23_Prop_Conc_Output.txt | C27: SDEIS Project concentrations in the East Pit-Cat 2/3 flowpath at the Prop. Bdry. | D27: X
A28: EPCat23_Part_SDEIS | B28: SDEIS\Concentrations\EPCat23_Part_Conc_Output.txt | C28: SDEIS Project concentrations in the East Pit-Cat 2/3 flowpath at the Partridge River
A29: EPbed_Cell1_SDEIS | B29: SDEIS\Concentrations\EPbed_Cell1_Conc_Output.txt | C29: SDEIS Project concentrations in the East Pit flowpath at Cell 1
A30: EPbed_Prop_SDEIS | B30: SDEIS\Concentrations\EPbed_Prop_Conc_Output.txt | C30: SDEIS Project concentrations in the East Pit flowpath at the Property Boundary | D30: X
A31: EPbed_Part_SDEIS | B31: SDEIS\Concentrations\EPbed_Part_Conc_Output.txt | C31: SDEIS Project concentrations in the East Pit flowpath at the Partridge River
A32: OSLA_Dunka_SDEIS | B32: SDEIS\Concentrations\OSLA_Dunka_Conc_Output.txt | C32: SDEIS Project concentrations in the OSLA flowpath at Dunka Road | D32: X
A33: OSLA_Prop_SDEIS | B33: SDEIS\Concentrations\OSLA_Prop_Conc_Output.txt | C33: SDEIS Project concentrations in the OSLA flowpath at the Property Boundary | D33: X
A34: OSLA_Part_SDEIS | B34: SDEIS\Concentrations\OSLA_Part_Conc_Output.txt | C34: SDEIS Project concentrations in the OSLA flowpath at the Partridge River
A35: OSP_Dunka_SDEIS | B35: SDEIS\Concentrations\OSP_Dunka_Conc_Output.txt | C35: SDEIS Project concentrations in the Ore Surge Pile flowpath at Dunka Road | D35: X
A36: OSP_Part1_SDEIS | B36: SDEIS\Concentrations\OSP_Part1_Conc_Output.txt | C36: SDEIS Project concentrations in the Ore Surge Pile flowpath at the Partridge River1 | D36: X
A37: OSP_Part2_SDEIS | B37: SDEIS\Concentrations\OSP_Part2_Conc_Output.txt | C37: SDEIS Project concentrations in the Ore Surge Pile flowpath at the Partridge River2
A38: WWTF_Dunka_SDEIS | B38: SDEIS\Concentrations\WWTF_Dunka_Conc_Output.txt | C38: SDEIS Project concentrations in the WWTF flowpath at Dunka Road | D38: X
A39: WWTF_Prop_SDEIS | B39: SDEIS\Concentrations\WWTF_Prop_Conc_Output.txt | C39: SDEIS Project concentrations in the WWTF flowpath at the Property Boundary | D39: X
A40: WWTF_Part_SDEIS | B40: SDEIS\Concentrations\WWTF_Part_Conc_Output.txt | C40: SDEIS Project concentrations in the WWTF flowpath at the Partridge River
A41: WPsurf_Dunka_SDEIS | B41: SDEIS\Concentrations\WPsurf_Dunka_Conc_Output.txt | C41: SDEIS Project concentrations in the West Pit (surficial) flowpath at Dunka Road | D41: X
A42: WPsurf_Prop_SDEIS | B42: SDEIS\Concentrations\WPsurf_Prop_Conc_Output.txt | C42: SDEIS Project concentrations in the West Pit (surficial) flowpath at the Property Boundary | D42: X
A43: WPsurf_Part_SDEIS | B43: SDEIS\Concentrations\WPsurf_Part_Conc_Output.txt | C43: SDEIS Project concentrations in the West Pit (surficial) flowpath at the Partridge River
A44: WPbed4_Cell1_SDEIS | B44: SDEIS\Concentrations\WPbed4_Cell1_Conc_Output.txt | C44: SDEIS Project concentrations in the West Pit (bedrock to SW004) flowpath at Cell 1
A45: WPbed4_Prop_SDEIS | B45: SDEIS\Concentrations\WPbed4_Prop_Conc_Output.txt | C45: SDEIS Project concentrations in the West Pit (bedrock to SW004) flowpath at the Property Boundary | D45: X
A46: WPbed4_Part_SDEIS | B46: SDEIS\Concentrations\WPbed4_Part_Conc_Output.txt | C46: SDEIS Project concentrations in the West Pit (bedrock to SW004) flowpath at the Partridge River
A47: WPbed4a_Cell1_SDEIS | B47: SDEIS\Concentrations\WPbed4a_Cell1_Conc_Output.txt | C47: SDEIS Project concentrations in the West Pit (bedrock to SW004a) flowpath at Cell 1
A48: WPbed4a_Prop_SDEIS | B48: SDEIS\Concentrations\WPbed4a_Prop_Conc_Output.txt | C48: SDEIS Project concentrations in the West Pit (bedrock to SW004a) flowpath at the Property Boundary | D48: X
A49: WPbed4a_Part_SDEIS | B49: SDEIS\Concentrations\WPbed4a_Part_Conc_Output.txt | C49: SDEIS Project concentrations in the West Pit (bedrock to SW004a) flowpath at the Partridge River

Sheet PlotControl
A2: Model Name: | B2: Mine Site Version 6.0 | C2: =B2 & " Model vs. SDEIS (v5.0) Annual Maximum of Concentration Statistics " & B4 & " in the " & B6 & " Flowpath at " & B8 -> Mine Site Version 6.0 Model vs. SDEIS (v5.0) Annual Maximum of Concentration Statistics SO4 in the East Pit - Cat 2/3 (surficial) Flowpath at Dunka Road
A4: Constituent to Plot (dropdown): | B4: SO4 | C4: =MATCH(B4,$A$23:$A$49,0) -> 24 | V4: Directory to save PDFs to: | W4: C:\Users\jem4\Desktop\temp
V5: Starting figure caption | W5: Figure J-08-27.2
A6: Flowpath to Plot (dropdown): | B6: East Pit - Cat 2/3 (surficial) | C6: =MATCH(B6,$A$13:$A$20,0) -> 1 | D6: =FIND("surficial",B6) -> 21
V7: Note: This loops through the flowpath, constituent, and location drop down menus.
A8: Evaluation Location (dropdown): | B8: Dunka Road | C8: =IF(B8=B12,1,IF(B8=C12,2,IF(B8=D12,3))) -> 1
B11: Evaluation Locations
A12: Flowpaths | B12: Dunka Road | C12: the Property Bdry. | D12: the Partridge River | E12: Number
A13: East Pit - Cat 2/3 (surficial) | B13: X | C13: X | E13: 1
A14: East Pit (bedrock) | C14: X | E14: 2
A15: OSP (surficial) | B15: X | D15: X | E15: 3
A16: WWTF (surficial) | B16: X | C16: X | E16: 4
A17: OSLA (surficial) | B17: X | C17: X | E17: 5 | F17: Plot orange highlighted location for each flowpath as ".1"
A18: West Pit (surficial) | B18: X | C18: X | E18: 6 | F18: Plot yellow highlighted location for each flowpath as ".2"
A19: West Pit (bedrock to SW004) | C19: X | E19: 7
A20: West Pit (bedrock to SW004a) | C20: X | E20: 8 | G20: ="FEIS Project, " & G22 -> FEIS Project, P10 | H20: ="FEIS Project, " & H22 -> FEIS Project, P50 | I20: FEIS Project, P90 | J20: ="SDEIS Project, " & J22 -> SDEIS Project, P10 | K20: ="SDEIS Project, " & K22 -> SDEIS Project, P50 | L20: SDEIS Project, P90
G21: Annual Project Results | J21: Annual No-Action Results
A22: Constituent | B22: Primary Standard (ug/L) | C22: Secondary Standard (ug/L) | F22: Time | G22: P10 | H22: P50 | I22: P90 | J22: P10 | K22: P50 | L22: P90 | M22: =IF(OR($B$4=$A$29,$B$4=$A$40,AND($B$4=A47,ISNUMBER(FIND("bedrock",$B$6)))),"Site Specific Evaluation Criteria","Primary Standard") -> Primary Standard | N22: Secondary Standard
A23: Ag | B23: 30 | C23: 100 | F23: 1 | G23: =IF($C$8=1,VLOOKUP($F23,P_All!$A$5:$Y$204,3*($C$6-1)+2),IF($C$8=2,VLOOKUP($F23,P_All!$AB$5:$AZ$204,3*($C$6-1)+2),VLOOKUP($F23,P_All!$BB$5:$BZ$204,3*($C$6-1)+2))) -> 9113.2 | H23: =IF($C$8=1,VLOOKUP($F23,P_All!$A$5:$Y204,3*($C$6-1)+3),IF($C$8=2,VLOOKUP($F23,P_All!$AB$5:$AZ$204,3*($C$6-1)+3),VLOOKUP($F23,P_All!$BB$5:$BZ$204,3*($C$6-1)+3))) -> 9583.4 | I23: =IF($C$8=1,VLOOKUP($F23,P_All!$A$5:$Y$204,3*($C$6-1)+4),IF($C$8=2,VLOOKUP($F23,P_All!$AB$5:$AZ$204,3*($C$6-1)+4),VLOOKUP($F23,P_All!$BB$5:$BZ$204,3*($C$6-1)+4))) -> 10078 | J23: =IF($C$8=1,VLOOKUP($F23,P_All_SDEIS!$A$5:$Y$204,3*($C$6-1)+2),IF($C$8=2,VLOOKUP($F23,P_All_SDEIS!$AB$5:$AZ$204,3*($C$6-1)+2),VLOOKUP($F23,P_All_SDEIS!$BB$5:$BZ$204,3*($C$6-1)+2))) -> 9524.3 | K23: =IF($C$8=1,VLOOKUP($F23,P_All_SDEIS!$A$5:$Y204,3*($C$6-1)+3),IF($C$8=2,VLOOKUP($F23,P_All_SDEIS!$AB$5:$AZ$204,3*($C$6-1)+3),VLOOKUP($F23,P_All_SDEIS!$BB$5:$BZ$204,3*($C$6-1)+3))) -> 10128 | L23: =IF($C$8=1,VLOOKUP($F23,P_All_SDEIS!$A$5:$Y$204,3*($C$6-1)+4),IF($C$8=2,VLOOKUP($F23,P_All_SDEIS!$AB$5:$AZ$204,3*($C$6-1)+4),VLOOKUP($F23,P_All_SDEIS!$BB$5:$BZ$204,3*($C$6-1)+4))) -> 10770 | M23: =IF(OR($B$4=$A$29,$B$4=$A$40,$B$4=$A$47),VLOOKUP($B$4,$A$58:$C$60,IF(ISNUMBER(FIND("bedrock",$B$6)),3,2)),VLOOKUP($B$4,$A$23:$C$49,2)) ->  | N23: =VLOOKUP($B$4,$A$23:$C$49,3) -> 250000
A24: Al | F24: 2 | G24: =IF($C$8=1,VLOOKUP($F24,P_All!$A$5:$Y$204,3*($C$6-1)+2),IF($C$8=2,VLOOKUP($F24,P_All!$AB$5:$AZ$204,3*($C$6-1)+2),VLOOKUP($F24,P_All!$BB$5:$BZ$204,3*($C$6-1)+2))) -> 9124.3 | H24: =IF($C$8=1,VLOOKUP($F24,P_All!$A$5:$Y204,3*($C$6-1)+3),IF($C$8=2,VLOOKUP($F24,P_All!$AB$5:$AZ$204,3*($C$6-1)+3),VLOOKUP($F24,P_All!$BB$5:$BZ$204,3*($C$6-1)+3))) -> 9594.4 | I24: =IF($C$8=1,VLOOKUP($F24,P_All!$A$5:$Y$204,3*($C$6-1)+4),IF($C$8=2,VLOOKUP($F24,P_All!$AB$5:$AZ$204,3*($C$6-1)+4),VLOOKUP($F24,P_All!$BB$5:$BZ$204,3*($C$6-1)+4))) -> 10096 | J24: =IF($C$8=1,VLOOKUP($F24,P_All_SDEIS!$A$5:$Y$204,3*($C$6-1)+2),IF($C$8=2,VLOOKUP($F24,P_All_SDEIS!$AB$5:$AZ$204,3*($C$6-1)+2),VLOOKUP($F24,P_All_SDEIS!$BB$5:$BZ$204,3*($C$6-1)+2))) -> 9535.3 | K24: =IF($C$8=1,VLOOKUP($F24,P_All_SDEIS!$A$5:$Y204,3*($C$6-1)+3),IF($C$8=2,VLOOKUP($F24,P_All_SDEIS!$AB$5:$AZ$204,3*($C$6-1)+3),VLOOKUP($F24,P_All_SDEIS!$BB$5:$BZ$204,3*($C$6-1)+3))) -> 10140 | L24: =IF($C$8=1,VLOOKUP($F24,P_All_SDEIS!$A$5:$Y$204,3*($C$6-1)+4),IF($C$8=2,VLOOKUP($F24,P_All_SDEIS!$AB$5:$AZ$204,3*($C$6-1)+4),VLOOKUP($F24,P_All_SDEIS!$BB$5:$BZ$204,3*($C$6-1)+4))) -> 10785 | M24: =IF(OR($B$4=$A$29,$B$4=$A$40,$B$4=$A$47),VLOOKUP($B$4,$A$58:$C$60,IF(ISNUMBER(FIND("bedrock",$B$6)),3,2)),VLOOKUP($B$4,$A$23:$C$49,2)) ->  | N24: =VLOOKUP($B$4,$A$23:$C$49,3) -> 250000
A25: Alkalinity | F25: 3 | G25: =IF($C$8=1,VLOOKUP($F25,P_All!$A$5:$Y$204,3*($C$6-1)+2),IF($C$8=2,VLOOKUP($F25,P_All!$AB$5:$AZ$204,3*($C$6-1)+2),VLOOKUP($F25,P_All!$BB$5:$BZ$204,3*($C$6-1)+2))) -> 9148.5 | H25: =IF($C$8=1,VLOOKUP($F25,P_All!$A$5:$Y204,3*($C$6-1)+3),IF($C$8=2,VLOOKUP($F25,P_All!$AB$5:$AZ$204,3*($C$6-1)+3),VLOOKUP($F25,P_All!$BB$5:$BZ$204,3*($C$6-1)+3))) -> 9613.6 | I25: =IF($C$8=1,VLOOKUP($F25,P_All!$A$5:$Y$204,3*($C$6-1)+4),IF($C$8=2,VLOOKUP($F25,P_All!$AB$5:$AZ$204,3*($C$6-1)+4),VLOOKUP($F25,P_All!$BB$5:$BZ$204,3*($C$6-1)+4))) -> 10115 | J25: =IF($C$8=1,VLOOKUP($F25,P_All_SDEIS!$A$5:$Y$204,3*($C$6-1)+2),IF($C$8=2,VLOOKUP($F25,P_All_SDEIS!$AB$5:$AZ$204,3*($C$6-1)+2),VLOOKUP($F25,P_All_SDEIS!$BB$5:$BZ$204,3*($C$6-1)+2))) -> 9560.1 | K25: =IF($C$8=1,VLOOKUP($F25,P_All_SDEIS!$A$5:$Y204,3*($C$6-1)+3),IF($C$8=2,VLOOKUP($F25,P_All_SDEIS!$AB$5:$AZ$204,3*($C$6-1)+3),VLOOKUP($F25,P_All_SDEIS!$BB$5:$BZ$204,3*($C$6-1)+3))) -> 10158 | L25: =IF($C$8=1,VLOOKUP($F25,P_All_SDEIS!$A$5:$Y$204,3*($C$6-1)+4),IF($C$8=2,VLOOKUP($F25,P_All_SDEIS!$AB$5:$AZ$204,3*($C$6-1)+4),VLOOKUP($F25,P_All_SDEIS!$BB$5:$BZ$204,3*($C$6-1)+4))) -> 10811 | N25: 250000
A26: As | B26: 10 | F26: 4 | G26: =IF($C$8=1,VLOOKUP($F26,P_All!$A$5:$Y$204,3*($C$6-1)+2),IF($C$8=2,VLOOKUP($F26,P_All!$AB$5:$AZ$204,3*($C$6-1)+2),VLOOKUP($F26,P_All!$BB$5:$BZ$204,3*($C$6-1)+2))) -> 9181.3 | H26: =IF($C$8=1,VLOOKUP($F26,P_All!$A$5:$Y204,3*($C$6-1)+3),IF($C$8=2,VLOOKUP($F26,P_All!$AB$5:$AZ$204,3*($C$6-1)+3),VLOOKUP($F26,P_All!$BB$5:$BZ$204,3*($C$6-1)+3))) -> 9645.7 | I26: =IF($C$8=1,VLOOKUP($F26,P_All!$A$5:$Y$204,3*($C$6-1)+4),IF($C$8=2,VLOOKUP($F26,P_All!$AB$5:$AZ$204,3*($C$6-1)+4),VLOOKUP($F26,P_All!$BB$5:$BZ$204,3*($C$6-1)+4))) -> 10160 | J26: =IF($C$8=1,VLOOKUP($F26,P_All_SDEIS!$A$5:$Y$204,3*($C$6-1)+2),IF($C$8=2,VLOOKUP($F26,P_All_SDEIS!$AB$5:$AZ$204,3*($C$6-1)+2),VLOOKUP($F26,P_All_SDEIS!$BB$5:$BZ$204,3*($C$6-1)+2))) -> 9594.9 | K26: =IF($C$8=1,VLOOKUP($F26,P_All_SDEIS!$A$5:$Y204,3*($C$6-1)+3),IF($C$8=2,VLOOKUP($F26,P_All_SDEIS!$AB$5:$AZ$204,3*($C$6-1)+3),VLOOKUP($F26,P_All_SDEIS!$BB$5:$BZ$204,3*($C$6-1)+3))) -> 10190 | L26: =IF($C$8=1,VLOOKUP($F26,P_All_SDEIS!$A$5:$Y$204,3*($C$6-1)+4),IF($C$8=2,VLOOKUP($F26,P_All_SDEIS!$AB$5:$AZ$204,3*($C$6-1)+4),VLOOKUP($F26,P_All_SDEIS!$BB$5:$BZ$204,3*($C$6-1)+4))) -> 10857 | N26: 250000
A27: B | B27: 1000 | F27: 5 | G27: =IF($C$8=1,VLOOKUP($F27,P_All!$A$5:$Y$204,3*($C$6-1)+2),IF($C$8=2,VLOOKUP($F27,P_All!$AB$5:$AZ$204,3*($C$6-1)+2),VLOOKUP($F27,P_All!$BB$5:$BZ$204,3*($C$6-1)+2))) -> 9223.2 | H27: =IF($C$8=1,VLOOKUP($F27,P_All!$A$5:$Y204,3*($C$6-1)+3),IF($C$8=2,VLOOKUP($F27,P_All!$AB$5:$AZ$204,3*($C$6-1)+3),VLOOKUP($F27,P_All!$BB$5:$BZ$204,3*($C$6-1)+3))) -> 9684.7 | I27: =IF($C$8=1,VLOOKUP($F27,P_All!$A$5:$Y$204,3*($C$6-1)+4),IF($C$8=2,VLOOKUP($F27,P_All!$AB$5:$AZ$204,3*($C$6-1)+4),VLOOKUP($F27,P_All!$BB$5:$BZ$204,3*($C$6-1)+4))) -> 10220 | J27: =IF($C$8=1,VLOOKUP($F27,P_All_SDEIS!$A$5:$Y$204,3*($C$6-1)+2),IF($C$8=2,VLOOKUP($F27,P_All_SDEIS!$AB$5:$AZ$204,3*($C$6-1)+2),VLOOKUP($F27,P_All_SDEIS!$BB$5:$BZ$204,3*($C$6-1)+2))) -> 9641.2 | K27: =IF($C$8=1,VLOOKUP($F27,P_All_SDEIS!$A$5:$Y204,3*($C$6-1)+3),IF($C$8=2,VLOOKUP($F27,P_All_SDEIS!$AB$5:$AZ$204,3*($C$6-1)+3),VLOOKUP($F27,P_All_SDEIS!$BB$5:$BZ$204,3*($C$6-1)+3))) -> 10232 | L27: =IF($C$8=1,VLOOKUP($F27,P_All_SDEIS!$A$5:$Y$204,3*($C$6-1)+4),IF($C$8=2,VLOOKUP($F27,P_All_SDEIS!$AB$5:$AZ$204,3*($C$6-1)+4),VLOOKUP($F27,P_All_SDEIS!$BB$5:$BZ$204,3*($C$6-1)+4))) -> 10893 | N27: 250000
A28: Ba | B28: 2000 | F28: 6 | G28: =IF($C$8=1,VLOOKUP($F28,P_All!$A$5:$Y$204,3*($C$6-1)+2),IF($C$8=2,VLOOKUP($F28,P_All!$AB$5:$AZ$204,3*($C$6-1)+2),VLOOKUP($F28,P_All!$BB$5:$BZ$204,3*($C$6-1)+2))) -> 9252.4 | H28: =IF($C$8=1,VLOOKUP($F28,P_All!$A$5:$Y204,3*($C$6-1)+3),IF($C$8=2,VLOOKUP($F28,P_All!$AB$5:$AZ$204,3*($C$6-1)+3),VLOOKUP($F28,P_All!$BB$5:$BZ$204,3*($C$6-1)+3))) -> 9736.6 | I28: =IF($C$8=1,VLOOKUP($F28,P_All!$A$5:$Y$204,3*($C$6-1)+4),IF($C$8=2,VLOOKUP($F28,P_All!$AB$5:$AZ$204,3*($C$6-1)+4),VLOOKUP($F28,P_All!$BB$5:$BZ$204,3*($C$6-1)+4))) -> 10311 | J28: =IF($C$8=1,VLOOKUP($F28,P_All_SDEIS!$A$5:$Y$204,3*($C$6-1)+2),IF($C$8=2,VLOOKUP($F28,P_All_SDEIS!$AB$5:$AZ$204,3*($C$6-1)+2),VLOOKUP($F28,P_All_SDEIS!$BB$5:$BZ$204,3*($C$6-1)+2))) -> 9677 | K28: =IF($C$8=1,VLOOKUP($F28,P_All_SDEIS!$A$5:$Y204,3*($C$6-1)+3),IF($C$8=2,VLOOKUP($F28,P_All_SDEIS!$AB$5:$AZ$204,3*($C$6-1)+3),VLOOKUP($F28,P_All_SDEIS!$BB$5:$BZ$204,3*($C$6-1)+3))) -> 10282 | L28: =IF($C$8=1,VLOOKUP($F28,P_All_SDEIS!$A$5:$Y$204,3*($C$6-1)+4),IF($C$8=2,VLOOKUP($F28,P_All_SDEIS!$AB$5:$AZ$204,3*($C$6-1)+4),VLOOKUP($F28,P_All_SDEIS!$BB$5:$BZ$204,3*($C$6-1)+4))) -> 10987 | N28: 250000
A29: Be | B29: 0.08 | F29: 7 | G29: =IF($C$8=1,VLOOKUP($F29,P_All!$A$5:$Y$204,3*($C$6-1)+2),IF($C$8=2,VLOOKUP($F29,P_All!$AB$5:$AZ$204,3*($C$6-1)+2),VLOOKUP($F29,P_All!$BB$5:$BZ$204,3*($C$6-1)+2))) -> 9298.5 | H29: =IF($C$8=1,VLOOKUP($F29,P_All!$A$5:$Y204,3*($C$6-1)+3),IF($C$8=2,VLOOKUP($F29,P_All!$AB$5:$AZ$204,3*($C$6-1)+3),VLOOKUP($F29,P_All!$BB$5:$BZ$204,3*($C$6-1)+3))) -> 9814.9 | I29: =IF($C$8=1,VLOOKUP($F29,P_All!$A$5:$Y$204,3*($C$6-1)+4),IF($C$8=2,VLOOKUP($F29,P_All!$AB$5:$AZ$204,3*($C$6-1)+4),VLOOKUP($F29,P_All!$BB$5:$BZ$204,3*($C$6-1)+4))) -> 10406 | J29: =IF($C$8=1,VLOOKUP($F29,P_All_SDEIS!$A$5:$Y$204,3*($C$6-1)+2),IF($C$8=2,VLOOKUP($F29,P_All_SDEIS!$AB$5:$AZ$204,3*($C$6-1)+2),VLOOKUP($F29,P_All_SDEIS!$BB$5:$BZ$204,3*($C$6-1)+2))) -> 9722.8 | K29: =IF($C$8=1,VLOOKUP($F29,P_All_SDEIS!$A$5:$Y204,3*($C$6-1)+3),IF($C$8=2,VLOOKUP($F29,P_All_SDEIS!$AB$5:$AZ$204,3*($C$6-1)+3),VLOOKUP($F29,P_All_SDEIS!$BB$5:$BZ$204,3*($C$6-1)+3))) -> 10359 | L29: =IF($C$8=1,VLOOKUP($F29,P_All_SDEIS!$A$5:$Y$204,3*($C$6-1)+4),IF($C$8=2,VLOOKUP($F29,P_All_SDEIS!$AB$5:$AZ$204,3*($C$6-1)+4),VLOOKUP($F29,P_All_SDEIS!$BB$5:$BZ$204,3*($C$6-1)+4))) -> 11104 | N29: 250000
A30: Ca | F30: 8 | G30: =IF($C$8=1,VLOOKUP($F30,P_All!$A$5:$Y$204,3*($C$6-1)+2),IF($C$8=2,VLOOKUP($F30,P_All!$AB$5:$AZ$204,3*($C$6-1)+2),VLOOKUP($F30,P_All!$BB$5:$BZ$204,3*($C$6-1)+2))) -> 9349.2 | H30: =IF($C$8=1,VLOOKUP($F30,P_All!$A$5:$Y204,3*($C$6-1)+3),IF($C$8=2,VLOOKUP($F30,P_All!$AB$5:$AZ$204,3*($C$6-1)+3),VLOOKUP($F30,P_All!$BB$5:$BZ$204,3*($C$6-1)+3))) -> 9899.5 | I30: =IF($C$8=1,VLOOKUP($F30,P_All!$A$5:$Y$204,3*($C$6-1)+4),IF($C$8=2,VLOOKUP($F30,P_All!$AB$5:$AZ$204,3*($C$6-1)+4),VLOOKUP($F30,P_All!$BB$5:$BZ$204,3*($C$6-1)+4))) -> 10582 | J30: =IF($C$8=1,VLOOKUP($F30,P_All_SDEIS!$A$5:$Y$204,3*($C$6-1)+2),IF($C$8=2,VLOOKUP($F30,P_All_SDEIS!$AB$5:$AZ$204,3*($C$6-1)+2),VLOOKUP($F30,P_All_SDEIS!$BB$5:$BZ$204,3*($C$6-1)+2))) -> 9781 | K30: =IF($C$8=1,VLOOKUP($F30,P_All_SDEIS!$A$5:$Y204,3*($C$6-1)+3),IF($C$8=2,VLOOKUP($F30,P_All_SDEIS!$AB$5:$AZ$204,3*($C$6-1)+3),VLOOKUP($F30,P_All_SDEIS!$BB$5:$BZ$204,3*($C$6-1)+3))) -> 10453 | L30: =IF($C$8=1,VLOOKUP($F30,P_All_SDEIS!$A$5:$Y$204,3*($C$6-1)+4),IF($C$8=2,VLOOKUP($F30,P_All_SDEIS!$AB$5:$AZ$204,3*($C$6-1)+4),VLOOKUP($F30,P_All_SDEIS!$BB$5:$BZ$204,3*($C$6-1)+4))) -> 11239 | N30: 250000
A31: Cd | B31: 4 | F31: 9 | G31: =IF($C$8=1,VLOOKUP($F31,P_All!$A$5:$Y$204,3*($C$6-1)+2),IF($C$8=2,VLOOKUP($F31,P_All!$AB$5:$AZ$204,3*($C$6-1)+2),VLOOKUP($F31,P_All!$BB$5:$BZ$204,3*($C$6-1)+2))) -> 9413 | H31: =IF($C$8=1,VLOOKUP($F31,P_All!$A$5:$Y204,3*($C$6-1)+3),IF($C$8=2,VLOOKUP($F31,P_All!$AB$5:$AZ$204,3*($C$6-1)+3),VLOOKUP($F31,P_All!$BB$5:$BZ$204,3*($C$6-1)+3))) -> 9985.1 | I31: =IF($C$8=1,VLOOKUP($F31,P_All!$A$5:$Y$204,3*($C$6-1)+4),IF($C$8=2,VLOOKUP($F31,P_All!$AB$5:$AZ$204,3*($C$6-1)+4),VLOOKUP($F31,P_All!$BB$5:$BZ$204,3*($C$6-1)+4))) -> 10826 | J31: =IF($C$8=1,VLOOKUP($F31,P_All_SDEIS!$A$5:$Y$204,3*($C$6-1)+2),IF($C$8=2,VLOOKUP($F31,P_All_SDEIS!$AB$5:$AZ$204,3*($C$6-1)+2),VLOOKUP($F31,P_All_SDEIS!$BB$5:$BZ$204,3*($C$6-1)+2))) -> 9841.6 | K31: =IF($C$8=1,VLOOKUP($F31,P_All_SDEIS!$A$5:$Y204,3*($C$6-1)+3),IF($C$8=2,VLOOKUP($F31,P_All_SDEIS!$AB$5:$AZ$204,3*($C$6-1)+3),VLOOKUP($F31,P_All_SDEIS!$BB$5:$BZ$204,3*($C$6-1)+3))) -> 10555 | L31: =IF($C$8=1,VLOOKUP($F31,P_All_SDEIS!$A$5:$Y$204,3*($C$6-1)+4),IF($C$8=2,VLOOKUP($F31,P_All_SDEIS!$AB$5:$AZ$204,3*($C$6-1)+4),VLOOKUP($F31,P_All_SDEIS!$BB$5:$BZ$204,3*($C$6-1)+4))) -> 11492 | N31: 250000
A32: Cl | C32: 250000 | F32: 10 | G32: =IF($C$8=1,VLOOKUP($F32,P_All!$A$5:$Y$204,3*($C$6-1)+2),IF($C$8=2,VLOOKUP($F32,P_All!$AB$5:$AZ$204,3*($C$6-1)+2),VLOOKUP($F32,P_All!$BB$5:$BZ$204,3*($C$6-1)+2))) -> 9505.4 | H32: =IF($C$8=1,VLOOKUP($F32,P_All!$A$5:$Y204,3*($C$6-1)+3),IF($C$8=2,VLOOKUP($F32,P_All!$AB$5:$AZ$204,3*($C$6-1)+3),VLOOKUP($F32,P_All!$BB$5:$BZ$204,3*($C$6-1)+3))) -> 10123 | I32: =IF($C$8=1,VLOOKUP($F32,P_All!$A$5:$Y$204,3*($C$6-1)+4),IF($C$8=2,VLOOKUP($F32,P_All!$AB$5:$AZ$204,3*($C$6-1)+4),VLOOKUP($F32,P_All!$BB$5:$BZ$204,3*($C$6-1)+4))) -> 11204 | J32: =IF($C$8=1,VLOOKUP($F32,P_All_SDEIS!$A$5:$Y$204,3*($C$6-1)+2),IF($C$8=2,VLOOKUP($F32,P_All_SDEIS!$AB$5:$AZ$204,3*($C$6-1)+2),VLOOKUP($F32,P_All_SDEIS!$BB$5:$BZ$204,3*($C$6-1)+2))) -> 9936.3 | K32: =IF($C$8=1,VLOOKUP($F32,P_All_SDEIS!$A$5:$Y204,3*($C$6-1)+3),IF($C$8=2,VLOOKUP($F32,P_All_SDEIS!$AB$5:$AZ$204,3*($C$6-1)+3),VLOOKUP($F32,P_All_SDEIS!$BB$5:$BZ$204,3*($C$6-1)+3))) -> 10686 | L32: =IF($C$8=1,VLOOKUP($F32,P_All_SDEIS!$A$5:$Y$204,3*($C$6-1)+4),IF($C$8=2,VLOOKUP($F32,P_All_SDEIS!$AB$5:$AZ$204,3*($C$6-1)+4),VLOOKUP($F32,P_All_SDEIS!$BB$5:$BZ$204,3*($C$6-1)+4))) -> 11812 | N32: 250000
A33: Co | F33: 11 | G33: =IF($C$8=1,VLOOKUP($F33,P_All!$A$5:$Y$204,3*($C$6-1)+2),IF($C$8=2,VLOOKUP($F33,P_All!$AB$5:$AZ$204,3*($C$6-1)+2),VLOOKUP($F33,P_All!$BB$5:$BZ$204,3*($C$6-1)+2))) -> 9590.2 | H33: =IF($C$8=1,VLOOKUP($F33,P_All!$A$5:$Y204,3*($C$6-1)+3),IF($C$8=2,VLOOKUP($F33,P_All!$AB$5:$AZ$204,3*($C$6-1)+3),VLOOKUP($F33,P_All!$BB$5:$BZ$204,3*($C$6-1)+3))) -> 10260 | I33: =IF($C$8=1,VLOOKUP($F33,P_All!$A$5:$Y$204,3*($C$6-1)+4),IF($C$8=2,VLOOKUP($F33,P_All!$AB$5:$AZ$204,3*($C$6-1)+4),VLOOKUP($F33,P_All!$BB$5:$BZ$204,3*($C$6-1)+4))) -> 11677 | J33: =IF($C$8=1,VLOOKUP($F33,P_All_SDEIS!$A$5:$Y$204,3*($C$6-1)+2),IF($C$8=2,VLOOKUP($F33,P_All_SDEIS!$AB$5:$AZ$204,3*($C$6-1)+2),VLOOKUP($F33,P_All_SDEIS!$BB$5:$BZ$204,3*($C$6-1)+2))) -> 10038 | K33: =IF($C$8=1,VLOOKUP($F33,P_All_SDEIS!$A$5:$Y204,3*($C$6-1)+3),IF($C$8=2,VLOOKUP($F33,P_All_SDEIS!$AB$5:$AZ$204,3*($C$6-1)+3),VLOOKUP($F33,P_All_SDEIS!$BB$5:$BZ$204,3*($C$6-1)+3))) -> 10846 | L33: =IF($C$8=1,VLOOKUP($F33,P_All_SDEIS!$A$5:$Y$204,3*($C$6-1)+4),IF($C$8=2,VLOOKUP($F33,P_All_SDEIS!$AB$5:$AZ$204,3*($C$6-1)+4),VLOOKUP($F33,P_All_SDEIS!$BB$5:$BZ$204,3*($C$6-1)+4))) -> 12269 | N33: 250000
A34: Cr | B34: 100 | F34: 12 | G34: =IF($C$8=1,VLOOKUP($F34,P_All!$A$5:$Y$204,3*($C$6-1)+2),IF($C$8=2,VLOOKUP($F34,P_All!$AB$5:$AZ$204,3*($C$6-1)+2),VLOOKUP($F34,P_All!$BB$5:$BZ$204,3*($C$6-1)+2))) -> 9697.5 | H34: =IF($C$8=1,VLOOKUP($F34,P_All!$A$5:$Y204,3*($C$6-1)+3),IF($C$8=2,VLOOKUP($F34,P_All!$AB$5:$AZ$204,3*($C$6-1)+3),VLOOKUP($F34,P_All!$BB$5:$BZ$204,3*($C$6-1)+3))) -> 10442 | I34: =IF($C$8=1,VLOOKUP($F34,P_All!$A$5:$Y$204,3*($C$6-1)+4),IF($C$8=2,VLOOKUP($F34,P_All!$AB$5:$AZ$204,3*($C$6-1)+4),VLOOKUP($F34,P_All!$BB$5:$BZ$204,3*($C$6-1)+4))) -> 12240 | J34: =IF($C$8=1,VLOOKUP($F34,P_All_SDEIS!$A$5:$Y$204,3*($C$6-1)+2),IF($C$8=2,VLOOKUP($F34,P_All_SDEIS!$AB$5:$AZ$204,3*($C$6-1)+2),VLOOKUP($F34,P_All_SDEIS!$BB$5:$BZ$204,3*($C$6-1)+2))) -> 10137 | K34: =IF($C$8=1,VLOOKUP($F34,P_All_SDEIS!$A$5:$Y204,3*($C$6-1)+3),IF($C$8=2,VLOOKUP($F34,P_All_SDEIS!$AB$5:$AZ$204,3*($C$6-1)+3),VLOOKUP($F34,P_All_SDEIS!$BB$5:$BZ$204,3*($C$6-1)+3))) -> 11010 | L34: =IF($C$8=1,VLOOKUP($F34,P_All_SDEIS!$A$5:$Y$204,3*($C$6-1)+4),IF($C$8=2,VLOOKUP($F34,P_All_SDEIS!$AB$5:$AZ$204,3*($C$6-1)+4),VLOOKUP($F34,P_All_SDEIS!$BB$5:$BZ$204,3*($C$6-1)+4))) -> 12800 | N34: 250000
A35: Cu | F35: 13 | G35: =IF($C$8=1,VLOOKUP($F35,P_All!$A$5:$Y$204,3*($C$6-1)+2),IF($C$8=2,VLOOKUP($F35,P_All!$AB$5:$AZ$204,3*($C$6-1)+2),VLOOKUP($F35,P_All!$BB$5:$BZ$204,3*($C$6-1)+2))) -> 9797.5 | H35: =IF($C$8=1,VLOOKUP($F35,P_All!$A$5:$Y204,3*($C$6-1)+3),IF($C$8=2,VLOOKUP($F35,P_All!$AB$5:$AZ$204,3*($C$6-1)+3),VLOOKUP($F35,P_All!$BB$5:$BZ$204,3*($C$6-1)+3))) -> 10618 | I35: =IF($C$8=1,VLOOKUP($F35,P_All!$A$5:$Y$204,3*($C$6-1)+4),IF($C$8=2,VLOOKUP($F35,P_All!$AB$5:$AZ$204,3*($C$6-1)+4),VLOOKUP($F35,P_All!$BB$5:$BZ$204,3*($C$6-1)+4))) -> 12860 | J35: =IF($C$8=1,VLOOKUP($F35,P_All_SDEIS!$A$5:$Y$204,3*($C$6-1)+2),IF($C$8=2,VLOOKUP($F35,P_All_SDEIS!$AB$5:$AZ$204,3*($C$6-1)+2),VLOOKUP($F35,P_All_SDEIS!$BB$5:$BZ$204,3*($C$6-1)+2))) -> 10256 | K35: =IF($C$8=1,VLOOKUP($F35,P_All_SDEIS!$A$5:$Y204,3*($C$6-1)+3),IF($C$8=2,VLOOKUP($F35,P_All_SDEIS!$AB$5:$AZ$204,3*($C$6-1)+3),VLOOKUP($F35,P_All_SDEIS!$BB$5:$BZ$204,3*($C$6-1)+3))) -> 11211 | L35: =IF($C$8=1,VLOOKUP($F35,P_All_SDEIS!$A$5:$Y$204,3*($C$6-1)+4),IF($C$8=2,VLOOKUP($F35,P_All_SDEIS!$AB$5:$AZ$204,3*($C$6-1)+4),VLOOKUP($F35,P_All_SDEIS!$BB$5:$BZ$204,3*($C$6-1)+4))) -> 13416 | N35: 250000
A36: F | B36: 4000 | C36: 2000 | F36: 14 | G36: =IF($C$8=1,VLOOKUP($F36,P_All!$A$5:$Y$204,3*($C$6-1)+2),IF($C$8=2,VLOOKUP($F36,P_All!$AB$5:$AZ$204,3*($C$6-1)+2),VLOOKUP($F36,P_All!$BB$5:$BZ$204,3*($C$6-1)+2))) -> 9870.2 | H36: =IF($C$8=1,VLOOKUP($F36,P_All!$A$5:$Y204,3*($C$6-1)+3),IF($C$8=2,VLOOKUP($F36,P_All!$AB$5:$AZ$204,3*($C$6-1)+3),VLOOKUP($F36,P_All!$BB$5:$BZ$204,3*($C$6-1)+3))) -> 10847 | I36: =IF($C$8=1,VLOOKUP($F36,P_All!$A$5:$Y$204,3*($C$6-1)+4),IF($C$8=2,VLOOKUP($F36,P_All!$AB$5:$AZ$204,3*($C$6-1)+4),VLOOKUP($F36,P_All!$BB$5:$BZ$204,3*($C$6-1)+4))) -> 13468 | J36: =IF($C$8=1,VLOOKUP($F36,P_All_SDEIS!$A$5:$Y$204,3*($C$6-1)+2),IF($C$8=2,VLOOKUP($F36,P_All_SDEIS!$AB$5:$AZ$204,3*($C$6-1)+2),VLOOKUP($F36,P_All_SDEIS!$BB$5:$BZ$204,3*($C$6-1)+2))) -> 10358 | K36: =IF($C$8=1,VLOOKUP($F36,P_All_SDEIS!$A$5:$Y204,3*($C$6-1)+3),IF($C$8=2,VLOOKUP($F36,P_All_SDEIS!$AB$5:$AZ$204,3*($C$6-1)+3),VLOOKUP($F36,P_All_SDEIS!$BB$5:$BZ$204,3*($C$6-1)+3))) -> 11398 | L36: =IF($C$8=1,VLOOKUP($F36,P_All_SDEIS!$A$5:$Y$204,3*($C$6-1)+4),IF($C$8=2,VLOOKUP($F36,P_All_SDEIS!$AB$5:$AZ$204,3*($C$6-1)+4),VLOOKUP($F36,P_All_SDEIS!$BB$5:$BZ$204,3*($C$6-1)+4))) -> 14085 | N36: 250000
A37: Fe | F37: 15 | G37: =IF($C$8=1,VLOOKUP($F37,P_All!$A$5:$Y$204,3*($C$6-1)+2),IF($C$8=2,VLOOKUP($F37,P_All!$AB$5:$AZ$204,3*($C$6-1)+2),VLOOKUP($F37,P_All!$BB$5:$BZ$204,3*($C$6-1)+2))) -> 9959.7 | H37: =IF($C$8=1,VLOOKUP($F37,P_All!$A$5:$Y204,3*($C$6-1)+3),IF($C$8=2,VLOOKUP($F37,P_All!$AB$5:$AZ$204,3*($C$6-1)+3),VLOOKUP($F37,P_All!$BB$5:$BZ$204,3*($C$6-1)+3))) -> 11042 | I37: =IF($C$8=1,VLOOKUP($F37,P_All!$A$5:$Y$204,3*($C$6-1)+4),IF($C$8=2,VLOOKUP($F37,P_All!$AB$5:$AZ$204,3*($C$6-1)+4),VLOOKUP($F37,P_All!$BB$5:$BZ$204,3*($C$6-1)+4))) -> 14225 | J37: =IF($C$8=1,VLOOKUP($F37,P_All_SDEIS!$A$5:$Y$204,3*($C$6-1)+2),IF($C$8=2,VLOOKUP($F37,P_All_SDEIS!$AB$5:$AZ$204,3*($C$6-1)+2),VLOOKUP($F37,P_All_SDEIS!$BB$5:$BZ$204,3*($C$6-1)+2))) -> 10431 | K37: =IF($C$8=1,VLOOKUP($F37,P_All_SDEIS!$A$5:$Y204,3*($C$6-1)+3),IF($C$8=2,VLOOKUP($F37,P_All_SDEIS!$AB$5:$AZ$204,3*($C$6-1)+3),VLOOKUP($F37,P_All_SDEIS!$BB$5:$BZ$204,3*($C$6-1)+3))) -> 11606 | L37: =IF($C$8=1,VLOOKUP($F37,P_All_SDEIS!$A$5:$Y$204,3*($C$6-1)+4),IF($C$8=2,VLOOKUP($F37,P_All_SDEIS!$AB$5:$AZ$204,3*($C$6-1)+4),VLOOKUP($F37,P_All_SDEIS!$BB$5:$BZ$204,3*($C$6-1)+4))) -> 14871 | N37: 250000
A38: K | F38: 16 | G38: =IF($C$8=1,VLOOKUP($F38,P_All!$A$5:$Y$204,3*($C$6-1)+2),IF($C$8=2,VLOOKUP($F38,P_All!$AB$5:$AZ$204,3*($C$6-1)+2),VLOOKUP($F38,P_All!$BB$5:$BZ$204,3*($C$6-1)+2))) -> 10041 | H38: =IF($C$8=1,VLOOKUP($F38,P_All!$A$5:$Y204,3*($C$6-1)+3),IF($C$8=2,VLOOKUP($F38,P_All!$AB$5:$AZ$204,3*($C$6-1)+3),VLOOKUP($F38,P_All!$BB$5:$BZ$204,3*($C$6-1)+3))) -> 11245 | I38: =IF($C$8=1,VLOOKUP($F38,P_All!$A$5:$Y$204,3*($C$6-1)+4),IF($C$8=2,VLOOKUP($F38,P_All!$AB$5:$AZ$204,3*($C$6-1)+4),VLOOKUP($F38,P_All!$BB$5:$BZ$204,3*($C$6-1)+4))) -> 15046 | J38: =IF($C$8=1,VLOOKUP($F38,P_All_SDEIS!$A$5:$Y$204,3*($C$6-1)+2),IF($C$8=2,VLOOKUP($F38,P_All_SDEIS!$AB$5:$AZ$204,3*($C$6-1)+2),VLOOKUP($F38,P_All_SDEIS!$BB$5:$BZ$204,3*($C$6-1)+2))) -> 10519 | K38: =IF($C$8=1,VLOOKUP($F38,P_All_SDEIS!$A$5:$Y204,3*($C$6-1)+3),IF($C$8=2,VLOOKUP($F38,P_All_SDEIS!$AB$5:$AZ$204,3*($C$6-1)+3),VLOOKUP($F38,P_All_SDEIS!$BB$5:$BZ$204,3*($C$6-1)+3))) -> 11791 | L38: =IF($C$8=1,VLOOKUP($F38,P_All_SDEIS!$A$5:$Y$204,3*($C$6-1)+4),IF($C$8=2,VLOOKUP($F38,P_All_SDEIS!$AB$5:$AZ$204,3*($C$6-1)+4),VLOOKUP($F38,P_All_SDEIS!$BB$5:$BZ$204,3*($C$6-1)+4))) -> 15693 | N38: 250000
A39: Mg | F39: 17 | G39: =IF($C$8=1,VLOOKUP($F39,P_All!$A$5:$Y$204,3*($C$6-1)+2),IF($C$8=2,VLOOKUP($F39,P_All!$AB$5:$AZ$204,3*($C$6-1)+2),VLOOKUP($F39,P_All!$BB$5:$BZ$204,3*($C$6-1)+2))) -> 10102 | H39: =IF($C$8=1,VLOOKUP($F39,P_All!$A$5:$Y204,3*($C$6-1)+3),IF($C$8=2,VLOOKUP($F39,P_All!$AB$5:$AZ$204,3*($C$6-1)+3),VLOOKUP($F39,P_All!$BB$5:$BZ$204,3*($C$6-1)+3))) -> 11419 | I39: =IF($C$8=1,VLOOKUP($F39,P_All!$A$5:$Y$204,3*($C$6-1)+4),IF($C$8=2,VLOOKUP($F39,P_All!$AB$5:$AZ$204,3*($C$6-1)+4),VLOOKUP($F39,P_All!$BB$5:$BZ$204,3*($C$6-1)+4))) -> 15723 | J39: =IF($C$8=1,VLOOKUP($F39,P_All_SDEIS!$A$5:$Y$204,3*($C$6-1)+2),IF($C$8=2,VLOOKUP($F39,P_All_SDEIS!$AB$5:$AZ$204,3*($C$6-1)+2),VLOOKUP($F39,P_All_SDEIS!$BB$5:$BZ$204,3*($C$6-1)+2))) -> 10614 | K39: =IF($C$8=1,VLOOKUP($F39,P_All_SDEIS!$A$5:$Y204,3*($C$6-1)+3),IF($C$8=2,VLOOKUP($F39,P_All_SDEIS!$AB$5:$AZ$204,3*($C$6-1)+3),VLOOKUP($F39,P_All_SDEIS!$BB$5:$BZ$204,3*($C$6-1)+3))) -> 12010 | L39: =IF($C$8=1,VLOOKUP($F39,P_All_SDEIS!$A$5:$Y$204,3*($C$6-1)+4),IF($C$8=2,VLOOKUP($F39,P_All_SDEIS!$AB$5:$AZ$204,3*($C$6-1)+4),VLOOKUP($F39,P_All_SDEIS!$BB$5:$BZ$204,3*($C$6-1)+4))) -> 16283 | N39: 250000
A40: Mn | B40: 100 | F40: 18 | G40: =IF($C$8=1,VLOOKUP($F40,P_All!$A$5:$Y$204,3*($C$6-1)+2),IF($C$8=2,VLOOKUP($F40,P_All!$AB$5:$AZ$204,3*($C$6-1)+2),VLOOKUP($F40,P_All!$BB$5:$BZ$204,3*($C$6-1)+2))) -> 10148 | H40: =IF($C$8=1,VLOOKUP($F40,P_All!$A$5:$Y204,3*($C$6-1)+3),IF($C$8=2,VLOOKUP($F40,P_All!$AB$5:$AZ$204,3*($C$6-1)+3),VLOOKUP($F40,P_All!$BB$5:$BZ$204,3*($C$6-1)+3))) -> 11590 | I40: =IF($C$8=1,VLOOKUP($F40,P_All!$A$5:$Y$204,3*($C$6-1)+4),IF($C$8=2,VLOOKUP($F40,P_All!$AB$5:$AZ$204,3*($C$6-1)+4),VLOOKUP($F40,P_All!$BB$5:$BZ$204,3*($C$6-1)+4))) -> 16296 | J40: =IF($C$8=1,VLOOKUP($F40,P_All_SDEIS!$A$5:$Y$204,3*($C$6-1)+2),IF($C$8=2,VLOOKUP($F40,P_All_SDEIS!$AB$5:$AZ$204,3*($C$6-1)+2),VLOOKUP($F40,P_All_SDEIS!$BB$5:$BZ$204,3*($C$6-1)+2))) -> 10661 | K40: =IF($C$8=1,VLOOKUP($F40,P_All_SDEIS!$A$5:$Y204,3*($C$6-1)+3),IF($C$8=2,VLOOKUP($F40,P_All_SDEIS!$AB$5:$AZ$204,3*($C$6-1)+3),VLOOKUP($F40,P_All_SDEIS!$BB$5:$BZ$204,3*($C$6-1)+3))) -> 12165 | L40: =IF($C$8=1,VLOOKUP($F40,P_All_SDEIS!$A$5:$Y$204,3*($C$6-1)+4),IF($C$8=2,VLOOKUP($F40,P_All_SDEIS!$AB$5:$AZ$204,3*($C$6-1)+4),VLOOKUP($F40,P_All_SDEIS!$BB$5:$BZ$204,3*($C$6-1)+4))) -> 16872 | N40: 250000
A41: Na | F41: 19 | G41: =IF($C$8=1,VLOOKUP($F41,P_All!$A$5:$Y$204,3*($C$6-1)+2),IF($C$8=2,VLOOKUP($F41,P_All!$AB$5:$AZ$204,3*($C$6-1)+2),VLOOKUP($F41,P_All!$BB$5:$BZ$204,3*($C$6-1)+2))) -> 10182 | H41: =IF($C$8=1,VLOOKUP($F41,P_All!$A$5:$Y204,3*($C$6-1)+3),IF($C$8=2,VLOOKUP($F41,P_All!$AB$5:$AZ$204,3*($C$6-1)+3),VLOOKUP($F41,P_All!$BB$5:$BZ$204,3*($C$6-1)+3))) -> 11738 | I41: =IF($C$8=1,VLOOKUP($F41,P_All!$A$5:$Y$204,3*($C$6-1)+4),IF($C$8=2,VLOOKUP($F41,P_All!$AB$5:$AZ$204,3*($C$6-1)+4),VLOOKUP($F41,P_All!$BB$5:$BZ$204,3*($C$6-1)+4))) -> 16943 | J41: =IF($C$8=1,VLOOKUP($F41,P_All_SDEIS!$A$5:$Y$204,3*($C$6-1)+2),IF($C$8=2,VLOOKUP($F41,P_All_SDEIS!$AB$5:$AZ$204,3*($C$6-1)+2),VLOOKUP($F41,P_All_SDEIS!$BB$5:$BZ$204,3*($C$6-1)+2))) -> 10693 | K41: =IF($C$8=1,VLOOKUP($F41,P_All_SDEIS!$A$5:$Y204,3*($C$6-1)+3),IF($C$8=2,VLOOKUP($F41,P_All_SDEIS!$AB$5:$AZ$204,3*($C$6-1)+3),VLOOKUP($F41,P_All_SDEIS!$BB$5:$BZ$204,3*($C$6-1)+3))) -> 12268 | L41: =IF($C$8=1,VLOOKUP($F41,P_All_SDEIS!$A$5:$Y$204,3*($C$6-1)+4),IF($C$8=2,VLOOKUP($F41,P_All_SDEIS!$AB$5:$AZ$204,3*($C$6-1)+4),VLOOKUP($F41,P_All_SDEIS!$BB$5:$BZ$204,3*($C$6-1)+4))) -> 17412 | N41: 250000
A42: Ni | B42: 100 | F42: 20 | G42: =IF($C$8=1,VLOOKUP($F42,P_All!$A$5:$Y$204,3*($C$6-1)+2),IF($C$8=2,VLOOKUP($F42,P_All!$AB$5:$AZ$204,3*($C$6-1)+2),VLOOKUP($F42,P_All!$BB$5:$BZ$204,3*($C$6-1)+2))) -> 10215 | H42: =IF($C$8=1,VLOOKUP($F42,P_All!$A$5:$Y204,3*($C$6-1)+3),IF($C$8=2,VLOOKUP($F42,P_All!$AB$5:$AZ$204,3*($C$6-1)+3),VLOOKUP($F42,P_All!$BB$5:$BZ$204,3*($C$6-1)+3))) -> 11868 | I42: =IF($C$8=1,VLOOKUP($F42,P_All!$A$5:$Y$204,3*($C$6-1)+4),IF($C$8=2,VLOOKUP($F42,P_All!$AB$5:$AZ$204,3*($C$6-1)+4),VLOOKUP($F42,P_All!$BB$5:$BZ$204,3*($C$6-1)+4))) -> 17441 | J42: =IF($C$8=1,VLOOKUP($F42,P_All_SDEIS!$A$5:$Y$204,3*($C$6-1)+2),IF($C$8=2,VLOOKUP($F42,P_All_SDEIS!$AB$5:$AZ$204,3*($C$6-1)+2),VLOOKUP($F42,P_All_SDEIS!$BB$5:$BZ$204,3*($C$6-1)+2))) -> 10720 | K42: =IF($C$8=1,VLOOKUP($F42,P_All_SDEIS!$A$5:$Y204,3*($C$6-1)+3),IF($C$8=2,VLOOKUP($F42,P_All_SDEIS!$AB$5:$AZ$204,3*($C$6-1)+3),VLOOKUP($F42,P_All_SDEIS!$BB$5:$BZ$204,3*($C$6-1)+3))) -> 12388 | L42: =IF($C$8=1,VLOOKUP($F42,P_All_SDEIS!$A$5:$Y$204,3*($C$6-1)+4),IF($C$8=2,VLOOKUP($F42,P_All_SDEIS!$AB$5:$AZ$204,3*($C$6-1)+4),VLOOKUP($F42,P_All_SDEIS!$BB$5:$BZ$204,3*($C$6-1)+4))) -> 17875 | N42: 250000
A43: Pb | F43: 21 | G43: =IF($C$8=1,VLOOKUP($F43,P_All!$A$5:$Y$204,3*($C$6-1)+2),IF($C$8=2,VLOOKUP($F43,P_All!$AB$5:$AZ$204,3*($C$6-1)+2),VLOOKUP($F43,P_All!$BB$5:$BZ$204,3*($C$6-1)+2))) -> 10250 | H43: =IF($C$8=1,VLOOKUP($F43,P_All!$A$5:$Y204,3*($C$6-1)+3),IF($C$8=2,VLOOKUP($F43,P_All!$AB$5:$AZ$204,3*($C$6-1)+3),VLOOKUP($F43,P_All!$BB$5:$BZ$204,3*($C$6-1)+3))) -> 11996 | I43: =IF($C$8=1,VLOOKUP($F43,P_All!$A$5:$Y$204,3*($C$6-1)+4),IF($C$8=2,VLOOKUP($F43,P_All!$AB$5:$AZ$204,3*($C$6-1)+4),VLOOKUP($F43,P_All!$BB$5:$BZ$204,3*($C$6-1)+4))) -> 17655 | J43: =IF($C$8=1,VLOOKUP($F43,P_All_SDEIS!$A$5:$Y$204,3*($C$6-1)+2),IF($C$8=2,VLOOKUP($F43,P_All_SDEIS!$AB$5:$AZ$204,3*($C$6-1)+2),VLOOKUP($F43,P_All_SDEIS!$BB$5:$BZ$204,3*($C$6-1)+2))) -> 10760 | K43: =IF($C$8=1,VLOOKUP($F43,P_All_SDEIS!$A$5:$Y204,3*($C$6-1)+3),IF($C$8=2,VLOOKUP($F43,P_All_SDEIS!$AB$5:$AZ$204,3*($C$6-1)+3),VLOOKUP($F43,P_All_SDEIS!$BB$5:$BZ$204,3*($C$6-1)+3))) -> 12475 | L43: =IF($C$8=1,VLOOKUP($F43,P_All_SDEIS!$A$5:$Y$204,3*($C$6-1)+4),IF($C$8=2,VLOOKUP($F43,P_All_SDEIS!$AB$5:$AZ$204,3*($C$6-1)+4),VLOOKUP($F43,P_All_SDEIS!$BB$5:$BZ$204,3*($C$6-1)+4))) -> 18152 | N43: 250000
A44: Sb | B44: 6 | F44: 22 | G44: =IF($C$8=1,VLOOKUP($F44,P_All!$A$5:$Y$204,3*($C$6-1)+2),IF($C$8=2,VLOOKUP($F44,P_All!$AB$5:$AZ$204,3*($C$6-1)+2),VLOOKUP($F44,P_All!$BB$5:$BZ$204,3*($C$6-1)+2))) -> 10273 | H44: =IF($C$8=1,VLOOKUP($F44,P_All!$A$5:$Y204,3*($C$6-1)+3),IF($C$8=2,VLOOKUP($F44,P_All!$AB$5:$AZ$204,3*($C$6-1)+3),VLOOKUP($F44,P_All!$BB$5:$BZ$204,3*($C$6-1)+3))) -> 12028 | I44: =IF($C$8=1,VLOOKUP($F44,P_All!$A$5:$Y$204,3*($C$6-1)+4),IF($C$8=2,VLOOKUP($F44,P_All!$AB$5:$AZ$204,3*($C$6-1)+4),VLOOKUP($F44,P_All!$BB$5:$BZ$204,3*($C$6-1)+4))) -> 17688 | J44: =IF($C$8=1,VLOOKUP($F44,P_All_SDEIS!$A$5:$Y$204,3*($C$6-1)+2),IF($C$8=2,VLOOKUP($F44,P_All_SDEIS!$AB$5:$AZ$204,3*($C$6-1)+2),VLOOKUP($F44,P_All_SDEIS!$BB$5:$BZ$204,3*($C$6-1)+2))) -> 10789 | K44: =IF($C$8=1,VLOOKUP($F44,P_All_SDEIS!$A$5:$Y204,3*($C$6-1)+3),IF($C$8=2,VLOOKUP($F44,P_All_SDEIS!$AB$5:$AZ$204,3*($C$6-1)+3),VLOOKUP($F44,P_All_SDEIS!$BB$5:$BZ$204,3*($C$6-1)+3))) -> 12558 | L44: =IF($C$8=1,VLOOKUP($F44,P_All_SDEIS!$A$5:$Y$204,3*($C$6-1)+4),IF($C$8=2,VLOOKUP($F44,P_All_SDEIS!$AB$5:$AZ$204,3*($C$6-1)+4),VLOOKUP($F44,P_All_SDEIS!$BB$5:$BZ$204,3*($C$6-1)+4))) -> 18211 | N44: 250000
A45: Se | B45: 30 | F45: 23 | G45: =IF($C$8=1,VLOOKUP($F45,P_All!$A$5:$Y$204,3*($C$6-1)+2),IF($C$8=2,VLOOKUP($F45,P_All!$AB$5:$AZ$204,3*($C$6-1)+2),VLOOKUP($F45,P_All!$BB$5:$BZ$204,3*($C$6-1)+2))) -> 10273 | H45: =IF($C$8=1,VLOOKUP($F45,P_All!$A$5:$Y204,3*($C$6-1)+3),IF($C$8=2,VLOOKUP($F45,P_All!$AB$5:$AZ$204,3*($C$6-1)+3),VLOOKUP($F45,P_All!$BB$5:$BZ$204,3*($C$6-1)+3))) -> 11994 | I45: =IF($C$8=1,VLOOKUP($F45,P_All!$A$5:$Y$204,3*($C$6-1)+4),IF($C$8=2,VLOOKUP($F45,P_All!$AB$5:$AZ$204,3*($C$6-1)+4),VLOOKUP($F45,P_All!$BB$5:$BZ$204,3*($C$6-1)+4))) -> 17650 | J45: =IF($C$8=1,VLOOKUP($F45,P_All_SDEIS!$A$5:$Y$204,3*($C$6-1)+2),IF($C$8=2,VLOOKUP($F45,P_All_SDEIS!$AB$5:$AZ$204,3*($C$6-1)+2),VLOOKUP($F45,P_All_SDEIS!$BB$5:$BZ$204,3*($C$6-1)+2))) -> 10788 | K45: =IF($C$8=1,VLOOKUP($F45,P_All_SDEIS!$A$5:$Y204,3*($C$6-1)+3),IF($C$8=2,VLOOKUP($F45,P_All_SDEIS!$AB$5:$AZ$204,3*($C$6-1)+3),VLOOKUP($F45,P_All_SDEIS!$BB$5:$BZ$204,3*($C$6-1)+3))) -> 12561 | L45: =IF($C$8=1,VLOOKUP($F45,P_All_SDEIS!$A$5:$Y$204,3*($C$6-1)+4),IF($C$8=2,VLOOKUP($F45,P_All_SDEIS!$AB$5:$AZ$204,3*($C$6-1)+4),VLOOKUP($F45,P_All_SDEIS!$BB$5:$BZ$204,3*($C$6-1)+4))) -> 18249 | N45: 250000
A46: SO4 | C46: 250000 | F46: 24 | G46: =IF($C$8=1,VLOOKUP($F46,P_All!$A$5:$Y$204,3*($C$6-1)+2),IF($C$8=2,VLOOKUP($F46,P_All!$AB$5:$AZ$204,3*($C$6-1)+2),VLOOKUP($F46,P_All!$BB$5:$BZ$204,3*($C$6-1)+2))) -> 10244 | H46: =IF($C$8=1,VLOOKUP($F46,P_All!$A$5:$Y204,3*($C$6-1)+3),IF($C$8=2,VLOOKUP($F46,P_All!$AB$5:$AZ$204,3*($C$6-1)+3),VLOOKUP($F46,P_All!$BB$5:$BZ$204,3*($C$6-1)+3))) -> 11957 | I46: =IF($C$8=1,VLOOKUP($F46,P_All!$A$5:$Y$204,3*($C$6-1)+4),IF($C$8=2,VLOOKUP($F46,P_All!$AB$5:$AZ$204,3*($C$6-1)+4),VLOOKUP($F46,P_All!$BB$5:$BZ$204,3*($C$6-1)+4))) -> 17561 | J46: =IF($C$8=1,VLOOKUP($F46,P_All_SDEIS!$A$5:$Y$204,3*($C$6-1)+2),IF($C$8=2,VLOOKUP($F46,P_All_SDEIS!$AB$5:$AZ$204,3*($C$6-1)+2),VLOOKUP($F46,P_All_SDEIS!$BB$5:$BZ$204,3*($C$6-1)+2))) -> 10756 | K46: =IF($C$8=1,VLOOKUP($F46,P_All_SDEIS!$A$5:$Y204,3*($C$6-1)+3),IF($C$8=2,VLOOKUP($F46,P_All_SDEIS!$AB$5:$AZ$204,3*($C$6-1)+3),VLOOKUP($F46,P_All_SDEIS!$BB$5:$BZ$204,3*($C$6-1)+3))) -> 12508 | L46: =IF($C$8=1,VLOOKUP($F46,P_All_SDEIS!$A$5:$Y$204,3*($C$6-1)+4),IF($C$8=2,VLOOKUP($F46,P_All_SDEIS!$AB$5:$AZ$204,3*($C$6-1)+4),VLOOKUP($F46,P_All_SDEIS!$BB$5:$BZ$204,3*($C$6-1)+4))) -> 18148 | N46: 250000
A47: Tl | B47: 0.6 | F47: 25 | G47: =IF($C$8=1,VLOOKUP($F47,P_All!$A$5:$Y$204,3*($C$6-1)+2),IF($C$8=2,VLOOKUP($F47,P_All!$AB$5:$AZ$204,3*($C$6-1)+2),VLOOKUP($F47,P_All!$BB$5:$BZ$204,3*($C$6-1)+2))) -> 10185 | H47: =IF($C$8=1,VLOOKUP($F47,P_All!$A$5:$Y204,3*($C$6-1)+3),IF($C$8=2,VLOOKUP($F47,P_All!$AB$5:$AZ$204,3*($C$6-1)+3),VLOOKUP($F47,P_All!$BB$5:$BZ$204,3*($C$6-1)+3))) -> 11876 | I47: =IF($C$8=1,VLOOKUP($F47,P_All!$A$5:$Y$204,3*($C$6-1)+4),IF($C$8=2,VLOOKUP($F47,P_All!$AB$5:$AZ$204,3*($C$6-1)+4),VLOOKUP($F47,P_All!$BB$5:$BZ$204,3*($C$6-1)+4))) -> 17375 | J47: =IF($C$8=1,VLOOKUP($F47,P_All_SDEIS!$A$5:$Y$204,3*($C$6-1)+2),IF($C$8=2,VLOOKUP($F47,P_All_SDEIS!$AB$5:$AZ$204,3*($C$6-1)+2),VLOOKUP($F47,P_All_SDEIS!$BB$5:$BZ$204,3*($C$6-1)+2))) -> 10720 | K47: =IF($C$8=1,VLOOKUP($F47,P_All_SDEIS!$A$5:$Y204,3*($C$6-1)+3),IF($C$8=2,VLOOKUP($F47,P_All_SDEIS!$AB$5:$AZ$204,3*($C$6-1)+3),VLOOKUP($F47,P_All_SDEIS!$BB$5:$BZ$204,3*($C$6-1)+3))) -> 12472 | L47: =IF($C$8=1,VLOOKUP($F47,P_All_SDEIS!$A$5:$Y$204,3*($C$6-1)+4),IF($C$8=2,VLOOKUP($F47,P_All_SDEIS!$AB$5:$AZ$204,3*($C$6-1)+4),VLOOKUP($F47,P_All_SDEIS!$BB$5:$BZ$204,3*($C$6-1)+4))) -> 18088 | N47: 250000
A48: V | B48: 50 | F48: 26 | G48: =IF($C$8=1,VLOOKUP($F48,P_All!$A$5:$Y$204,3*($C$6-1)+2),IF($C$8=2,VLOOKUP($F48,P_All!$AB$5:$AZ$204,3*($C$6-1)+2),VLOOKUP($F48,P_All!$BB$5:$BZ$204,3*($C$6-1)+2))) -> 10133 | H48: =IF($C$8=1,VLOOKUP($F48,P_All!$A$5:$Y204,3*($C$6-1)+3),IF($C$8=2,VLOOKUP($F48,P_All!$AB$5:$AZ$204,3*($C$6-1)+3),VLOOKUP($F48,P_All!$BB$5:$BZ$204,3*($C$6-1)+3))) -> 11771 | I48: =IF($C$8=1,VLOOKUP($F48,P_All!$A$5:$Y$204,3*($C$6-1)+4),IF($C$8=2,VLOOKUP($F48,P_All!$AB$5:$AZ$204,3*($C$6-1)+4),VLOOKUP($F48,P_All!$BB$5:$BZ$204,3*($C$6-1)+4))) -> 17153 | J48: =IF($C$8=1,VLOOKUP($F48,P_All_SDEIS!$A$5:$Y$204,3*($C$6-1)+2),IF($C$8=2,VLOOKUP($F48,P_All_SDEIS!$AB$5:$AZ$204,3*($C$6-1)+2),VLOOKUP($F48,P_All_SDEIS!$BB$5:$BZ$204,3*($C$6-1)+2))) -> 10685 | K48: =IF($C$8=1,VLOOKUP($F48,P_All_SDEIS!$A$5:$Y204,3*($C$6-1)+3),IF($C$8=2,VLOOKUP($F48,P_All_SDEIS!$AB$5:$AZ$204,3*($C$6-1)+3),VLOOKUP($F48,P_All_SDEIS!$BB$5:$BZ$204,3*($C$6-1)+3))) -> 12368 | L48: =IF($C$8=1,VLOOKUP($F48,P_All_SDEIS!$A$5:$Y$204,3*($C$6-1)+4),IF($C$8=2,VLOOKUP($F48,P_All_SDEIS!$AB$5:$AZ$204,3*($C$6-1)+4),VLOOKUP($F48,P_All_SDEIS!$BB$5:$BZ$204,3*($C$6-1)+4))) -> 17823 | N48: 250000
A49: Zn | B49: 2000 | C49: 5000 | F49: 27 | G49: =IF($C$8=1,VLOOKUP($F49,P_All!$A$5:$Y$204,3*($C$6-1)+2),IF($C$8=2,VLOOKUP($F49,P_All!$AB$5:$AZ$204,3*($C$6-1)+2),VLOOKUP($F49,P_All!$BB$5:$BZ$204,3*($C$6-1)+2))) -> 10101 | H49: =IF($C$8=1,VLOOKUP($F49,P_All!$A$5:$Y204,3*($C$6-1)+3),IF($C$8=2,VLOOKUP($F49,P_All!$AB$5:$AZ$204,3*($C$6-1)+3),VLOOKUP($F49,P_All!$BB$5:$BZ$204,3*($C$6-1)+3))) -> 11669 | I49: =IF($C$8=1,VLOOKUP($F49,P_All!$A$5:$Y$204,3*($C$6-1)+4),IF($C$8=2,VLOOKUP($F49,P_All!$AB$5:$AZ$204,3*($C$6-1)+4),VLOOKUP($F49,P_All!$BB$5:$BZ$204,3*($C$6-1)+4))) -> 16810 | J49: =IF($C$8=1,VLOOKUP($F49,P_All_SDEIS!$A$5:$Y$204,3*($C$6-1)+2),IF($C$8=2,VLOOKUP($F49,P_All_SDEIS!$AB$5:$AZ$204,3*($C$6-1)+2),VLOOKUP($F49,P_All_SDEIS!$BB$5:$BZ$204,3*($C$6-1)+2))) -> 10634 | K49: =IF($C$8=1,VLOOKUP($F49,P_All_SDEIS!$A$5:$Y204,3*($C$6-1)+3),IF($C$8=2,VLOOKUP($F49,P_All_SDEIS!$AB$5:$AZ$204,3*($C$6-1)+3),VLOOKUP($F49,P_All_SDEIS!$BB$5:$BZ$204,3*($C$6-1)+3))) -> 12265 | L49: =IF($C$8=1,VLOOKUP($F49,P_All_SDEIS!$A$5:$Y$204,3*($C$6-1)+4),IF($C$8=2,VLOOKUP($F49,P_All_SDEIS!$AB$5:$AZ$204,3*($C$6-1)+4),VLOOKUP($F49,P_All_SDEIS!$BB$5:$BZ$204,3*($C$6-1)+4))) -> 17461 | N49: 250000
F50: 28 | G50: =IF($C$8=1,VLOOKUP($F50,P_All!$A$5:$Y$204,3*($C$6-1)+2),IF($C$8=2,VLOOKUP($F50,P_All!$AB$5:$AZ$204,3*($C$6-1)+2),VLOOKUP($F50,P_All!$BB$5:$BZ$204,3*($C$6-1)+2))) -> 10078 | H50: =IF($C$8=1,VLOOKUP($F50,P_All!$A$5:$Y204,3*($C$6-1)+3),IF($C$8=2,VLOOKUP($F50,P_All!$AB$5:$AZ$204,3*($C$6-1)+3),VLOOKUP($F50,P_All!$BB$5:$BZ$204,3*($C$6-1)+3))) -> 11540 | I50: =IF($C$8=1,VLOOKUP($F50,P_All!$A$5:$Y$204,3*($C$6-1)+4),IF($C$8=2,VLOOKUP($F50,P_All!$AB$5:$AZ$204,3*($C$6-1)+4),VLOOKUP($F50,P_All!$BB$5:$BZ$204,3*($C$6-1)+4))) -> 16424 | J50: =IF($C$8=1,VLOOKUP($F50,P_All_SDEIS!$A$5:$Y$204,3*($C$6-1)+2),IF($C$8=2,VLOOKUP($F50,P_All_SDEIS!$AB$5:$AZ$204,3*($C$6-1)+2),VLOOKUP($F50,P_All_SDEIS!$BB$5:$BZ$204,3*($C$6-1)+2))) -> 10595 | K50: =IF($C$8=1,VLOOKUP($F50,P_All_SDEIS!$A$5:$Y204,3*($C$6-1)+3),IF($C$8=2,VLOOKUP($F50,P_All_SDEIS!$AB$5:$AZ$204,3*($C$6-1)+3),VLOOKUP($F50,P_All_SDEIS!$BB$5:$BZ$204,3*($C$6-1)+3))) -> 12151 | L50: =IF($C$8=1,VLOOKUP($F50,P_All_SDEIS!$A$5:$Y$204,3*($C$6-1)+4),IF($C$8=2,VLOOKUP($F50,P_All_SDEIS!$AB$5:$AZ$204,3*($C$6-1)+4),VLOOKUP($F50,P_All_SDEIS!$BB$5:$BZ$204,3*($C$6-1)+4))) -> 16927 | N50: 250000
F51: 29 | G51: =IF($C$8=1,VLOOKUP($F51,P_All!$A$5:$Y$204,3*($C$6-1)+2),IF($C$8=2,VLOOKUP($F51,P_All!$AB$5:$AZ$204,3*($C$6-1)+2),VLOOKUP($F51,P_All!$BB$5:$BZ$204,3*($C$6-1)+2))) -> 10022 | H51: =IF($C$8=1,VLOOKUP($F51,P_All!$A$5:$Y204,3*($C$6-1)+3),IF($C$8=2,VLOOKUP($F51,P_All!$AB$5:$AZ$204,3*($C$6-1)+3),VLOOKUP($F51,P_All!$BB$5:$BZ$204,3*($C$6-1)+3))) -> 11451 | I51: =IF($C$8=1,VLOOKUP($F51,P_All!$A$5:$Y$204,3*($C$6-1)+4),IF($C$8=2,VLOOKUP($F51,P_All!$AB$5:$AZ$204,3*($C$6-1)+4),VLOOKUP($F51,P_All!$BB$5:$BZ$204,3*($C$6-1)+4))) -> 16233 | J51: =IF($C$8=1,VLOOKUP($F51,P_All_SDEIS!$A$5:$Y$204,3*($C$6-1)+2),IF($C$8=2,VLOOKUP($F51,P_All_SDEIS!$AB$5:$AZ$204,3*($C$6-1)+2),VLOOKUP($F51,P_All_SDEIS!$BB$5:$BZ$204,3*($C$6-1)+2))) -> 10551 | K51: =IF($C$8=1,VLOOKUP($F51,P_All_SDEIS!$A$5:$Y204,3*($C$6-1)+3),IF($C$8=2,VLOOKUP($F51,P_All_SDEIS!$AB$5:$AZ$204,3*($C$6-1)+3),VLOOKUP($F51,P_All_SDEIS!$BB$5:$BZ$204,3*($C$6-1)+3))) -> 12035 | L51: =IF($C$8=1,VLOOKUP($F51,P_All_SDEIS!$A$5:$Y$204,3*($C$6-1)+4),IF($C$8=2,VLOOKUP($F51,P_All_SDEIS!$AB$5:$AZ$204,3*($C$6-1)+4),VLOOKUP($F51,P_All_SDEIS!$BB$5:$BZ$204,3*($C$6-1)+4))) -> 16698 | N51: 250000
A52: Evaluation Location | F52: 30 | G52: =IF($C$8=1,VLOOKUP($F52,P_All!$A$5:$Y$204,3*($C$6-1)+2),IF($C$8=2,VLOOKUP($F52,P_All!$AB$5:$AZ$204,3*($C$6-1)+2),VLOOKUP($F52,P_All!$BB$5:$BZ$204,3*($C$6-1)+2))) -> 9964.6 | H52: =IF($C$8=1,VLOOKUP($F52,P_All!$A$5:$Y204,3*($C$6-1)+3),IF($C$8=2,VLOOKUP($F52,P_All!$AB$5:$AZ$204,3*($C$6-1)+3),VLOOKUP($F52,P_All!$BB$5:$BZ$204,3*($C$6-1)+3))) -> 11304 | I52: =IF($C$8=1,VLOOKUP($F52,P_All!$A$5:$Y$204,3*($C$6-1)+4),IF($C$8=2,VLOOKUP($F52,P_All!$AB$5:$AZ$204,3*($C$6-1)+4),VLOOKUP($F52,P_All!$BB$5:$BZ$204,3*($C$6-1)+4))) -> 15934 | J52: =IF($C$8=1,VLOOKUP($F52,P_All_SDEIS!$A$5:$Y$204,3*($C$6-1)+2),IF($C$8=2,VLOOKUP($F52,P_All_SDEIS!$AB$5:$AZ$204,3*($C$6-1)+2),VLOOKUP($F52,P_All_SDEIS!$BB$5:$BZ$204,3*($C$6-1)+2))) -> 10484 | K52: =IF($C$8=1,VLOOKUP($F52,P_All_SDEIS!$A$5:$Y204,3*($C$6-1)+3),IF($C$8=2,VLOOKUP($F52,P_All_SDEIS!$AB$5:$AZ$204,3*($C$6-1)+3),VLOOKUP($F52,P_All_SDEIS!$BB$5:$BZ$204,3*($C$6-1)+3))) -> 11896 | L52: =IF($C$8=1,VLOOKUP($F52,P_All_SDEIS!$A$5:$Y$204,3*($C$6-1)+4),IF($C$8=2,VLOOKUP($F52,P_All_SDEIS!$AB$5:$AZ$204,3*($C$6-1)+4),VLOOKUP($F52,P_All_SDEIS!$BB$5:$BZ$204,3*($C$6-1)+4))) -> 16501 | N52: 250000
A53: Dunka Road | F53: 31 | G53: =IF($C$8=1,VLOOKUP($F53,P_All!$A$5:$Y$204,3*($C$6-1)+2),IF($C$8=2,VLOOKUP($F53,P_All!$AB$5:$AZ$204,3*($C$6-1)+2),VLOOKUP($F53,P_All!$BB$5:$BZ$204,3*($C$6-1)+2))) -> 9890.2 | H53: =IF($C$8=1,VLOOKUP($F53,P_All!$A$5:$Y204,3*($C$6-1)+3),IF($C$8=2,VLOOKUP($F53,P_All!$AB$5:$AZ$204,3*($C$6-1)+3),VLOOKUP($F53,P_All!$BB$5:$BZ$204,3*($C$6-1)+3))) -> 11177 | I53: =IF($C$8=1,VLOOKUP($F53,P_All!$A$5:$Y$204,3*($C$6-1)+4),IF($C$8=2,VLOOKUP($F53,P_All!$AB$5:$AZ$204,3*($C$6-1)+4),VLOOKUP($F53,P_All!$BB$5:$BZ$204,3*($C$6-1)+4))) -> 15576 | J53: =IF($C$8=1,VLOOKUP($F53,P_All_SDEIS!$A$5:$Y$204,3*($C$6-1)+2),IF($C$8=2,VLOOKUP($F53,P_All_SDEIS!$AB$5:$AZ$204,3*($C$6-1)+2),VLOOKUP($F53,P_All_SDEIS!$BB$5:$BZ$204,3*($C$6-1)+2))) -> 10423 | K53: =IF($C$8=1,VLOOKUP($F53,P_All_SDEIS!$A$5:$Y204,3*($C$6-1)+3),IF($C$8=2,VLOOKUP($F53,P_All_SDEIS!$AB$5:$AZ$204,3*($C$6-1)+3),VLOOKUP($F53,P_All_SDEIS!$BB$5:$BZ$204,3*($C$6-1)+3))) -> 11800 | L53: =IF($C$8=1,VLOOKUP($F53,P_All_SDEIS!$A$5:$Y$204,3*($C$6-1)+4),IF($C$8=2,VLOOKUP($F53,P_All_SDEIS!$AB$5:$AZ$204,3*($C$6-1)+4),VLOOKUP($F53,P_All_SDEIS!$BB$5:$BZ$204,3*($C$6-1)+4))) -> 16244 | N53: 250000
A54: the Property Bdry. | F54: 32 | G54: =IF($C$8=1,VLOOKUP($F54,P_All!$A$5:$Y$204,3*($C$6-1)+2),IF($C$8=2,VLOOKUP($F54,P_All!$AB$5:$AZ$204,3*($C$6-1)+2),VLOOKUP($F54,P_All!$BB$5:$BZ$204,3*($C$6-1)+2))) -> 9827.9 | H54: =IF($C$8=1,VLOOKUP($F54,P_All!$A$5:$Y204,3*($C$6-1)+3),IF($C$8=2,VLOOKUP($F54,P_All!$AB$5:$AZ$204,3*($C$6-1)+3),VLOOKUP($F54,P_All!$BB$5:$BZ$204,3*($C$6-1)+3))) -> 11054 | I54: =IF($C$8=1,VLOOKUP($F54,P_All!$A$5:$Y$204,3*($C$6-1)+4),IF($C$8=2,VLOOKUP($F54,P_All!$AB$5:$AZ$204,3*($C$6-1)+4),VLOOKUP($F54,P_All!$BB$5:$BZ$204,3*($C$6-1)+4))) -> 15192 | J54: =IF($C$8=1,VLOOKUP($F54,P_All_SDEIS!$A$5:$Y$204,3*($C$6-1)+2),IF($C$8=2,VLOOKUP($F54,P_All_SDEIS!$AB$5:$AZ$204,3*($C$6-1)+2),VLOOKUP($F54,P_All_SDEIS!$BB$5:$BZ$204,3*($C$6-1)+2))) -> 10344 | K54: =IF($C$8=1,VLOOKUP($F54,P_All_SDEIS!$A$5:$Y204,3*($C$6-1)+3),IF($C$8=2,VLOOKUP($F54,P_All_SDEIS!$AB$5:$AZ$204,3*($C$6-1)+3),VLOOKUP($F54,P_All_SDEIS!$BB$5:$BZ$204,3*($C$6-1)+3))) -> 11666 | L54: =IF($C$8=1,VLOOKUP($F54,P_All_SDEIS!$A$5:$Y$204,3*($C$6-1)+4),IF($C$8=2,VLOOKUP($F54,P_All_SDEIS!$AB$5:$AZ$204,3*($C$6-1)+4),VLOOKUP($F54,P_All_SDEIS!$BB$5:$BZ$204,3*($C$6-1)+4))) -> 15838 | N54: 250000
A55: Partridge River | F55: 33 | G55: =IF($C$8=1,VLOOKUP($F55,P_All!$A$5:$Y$204,3*($C$6-1)+2),IF($C$8=2,VLOOKUP($F55,P_All!$AB$5:$AZ$204,3*($C$6-1)+2),VLOOKUP($F55,P_All!$BB$5:$BZ$204,3*($C$6-1)+2))) -> 9767.7 | H55: =IF($C$8=1,VLOOKUP($F55,P_All!$A$5:$Y204,3*($C$6-1)+3),IF($C$8=2,VLOOKUP($F55,P_All!$AB$5:$AZ$204,3*($C$6-1)+3),VLOOKUP($F55,P_All!$BB$5:$BZ$204,3*($C$6-1)+3))) -> 10977 | I55: =IF($C$8=1,VLOOKUP($F55,P_All!$A$5:$Y$204,3*($C$6-1)+4),IF($C$8=2,VLOOKUP($F55,P_All!$AB$5:$AZ$204,3*($C$6-1)+4),VLOOKUP($F55,P_All!$BB$5:$BZ$204,3*($C$6-1)+4))) -> 14677 | J55: =IF($C$8=1,VLOOKUP($F55,P_All_SDEIS!$A$5:$Y$204,3*($C$6-1)+2),IF($C$8=2,VLOOKUP($F55,P_All_SDEIS!$AB$5:$AZ$204,3*($C$6-1)+2),VLOOKUP($F55,P_All_SDEIS!$BB$5:$BZ$204,3*($C$6-1)+2))) -> 10257 | K55: =IF($C$8=1,VLOOKUP($F55,P_All_SDEIS!$A$5:$Y204,3*($C$6-1)+3),IF($C$8=2,VLOOKUP($F55,P_All_SDEIS!$AB$5:$AZ$204,3*($C$6-1)+3),VLOOKUP($F55,P_All_SDEIS!$BB$5:$BZ$204,3*($C$6-1)+3))) -> 11579 | L55: =IF($C$8=1,VLOOKUP($F55,P_All_SDEIS!$A$5:$Y$204,3*($C$6-1)+4),IF($C$8=2,VLOOKUP($F55,P_All_SDEIS!$AB$5:$AZ$204,3*($C$6-1)+4),VLOOKUP($F55,P_All_SDEIS!$BB$5:$BZ$204,3*($C$6-1)+4))) -> 15437 | N55: 250000
F56: 34 | G56: =IF($C$8=1,VLOOKUP($F56,P_All!$A$5:$Y$204,3*($C$6-1)+2),IF($C$8=2,VLOOKUP($F56,P_All!$AB$5:$AZ$204,3*($C$6-1)+2),VLOOKUP($F56,P_All!$BB$5:$BZ$204,3*($C$6-1)+2))) -> 9684 | H56: =IF($C$8=1,VLOOKUP($F56,P_All!$A$5:$Y204,3*($C$6-1)+3),IF($C$8=2,VLOOKUP($F56,P_All!$AB$5:$AZ$204,3*($C$6-1)+3),VLOOKUP($F56,P_All!$BB$5:$BZ$204,3*($C$6-1)+3))) -> 10800 | I56: =IF($C$8=1,VLOOKUP($F56,P_All!$A$5:$Y$204,3*($C$6-1)+4),IF($C$8=2,VLOOKUP($F56,P_All!$AB$5:$AZ$204,3*($C$6-1)+4),VLOOKUP($F56,P_All!$BB$5:$BZ$204,3*($C$6-1)+4))) -> 14323 | J56: =IF($C$8=1,VLOOKUP($F56,P_All_SDEIS!$A$5:$Y$204,3*($C$6-1)+2),IF($C$8=2,VLOOKUP($F56,P_All_SDEIS!$AB$5:$AZ$204,3*($C$6-1)+2),VLOOKUP($F56,P_All_SDEIS!$BB$5:$BZ$204,3*($C$6-1)+2))) -> 10184 | K56: =IF($C$8=1,VLOOKUP($F56,P_All_SDEIS!$A$5:$Y204,3*($C$6-1)+3),IF($C$8=2,VLOOKUP($F56,P_All_SDEIS!$AB$5:$AZ$204,3*($C$6-1)+3),VLOOKUP($F56,P_All_SDEIS!$BB$5:$BZ$204,3*($C$6-1)+3))) -> 11441 | L56: =IF($C$8=1,VLOOKUP($F56,P_All_SDEIS!$A$5:$Y$204,3*($C$6-1)+4),IF($C$8=2,VLOOKUP($F56,P_All_SDEIS!$AB$5:$AZ$204,3*($C$6-1)+4),VLOOKUP($F56,P_All_SDEIS!$BB$5:$BZ$204,3*($C$6-1)+4))) -> 15091 | N56: 250000
A57: Site-Specific | B57: Surficial (ug/L) | C57: Bedrock (ug/L) | F57: 35 | G57: =IF($C$8=1,VLOOKUP($F57,P_All!$A$5:$Y$204,3*($C$6-1)+2),IF($C$8=2,VLOOKUP($F57,P_All!$AB$5:$AZ$204,3*($C$6-1)+2),VLOOKUP($F57,P_All!$BB$5:$BZ$204,3*($C$6-1)+2))) -> 9619.4 | H57: =IF($C$8=1,VLOOKUP($F57,P_All!$A$5:$Y204,3*($C$6-1)+3),IF($C$8=2,VLOOKUP($F57,P_All!$AB$5:$AZ$204,3*($C$6-1)+3),VLOOKUP($F57,P_All!$BB$5:$BZ$204,3*($C$6-1)+3))) -> 10717 | I57: =IF($C$8=1,VLOOKUP($F57,P_All!$A$5:$Y$204,3*($C$6-1)+4),IF($C$8=2,VLOOKUP($F57,P_All!$AB$5:$AZ$204,3*($C$6-1)+4),VLOOKUP($F57,P_All!$BB$5:$BZ$204,3*($C$6-1)+4))) -> 14038 | J57: =IF($C$8=1,VLOOKUP($F57,P_All_SDEIS!$A$5:$Y$204,3*($C$6-1)+2),IF($C$8=2,VLOOKUP($F57,P_All_SDEIS!$AB$5:$AZ$204,3*($C$6-1)+2),VLOOKUP($F57,P_All_SDEIS!$BB$5:$BZ$204,3*($C$6-1)+2))) -> 10111 | K57: =IF($C$8=1,VLOOKUP($F57,P_All_SDEIS!$A$5:$Y204,3*($C$6-1)+3),IF($C$8=2,VLOOKUP($F57,P_All_SDEIS!$AB$5:$AZ$204,3*($C$6-1)+3),VLOOKUP($F57,P_All_SDEIS!$BB$5:$BZ$204,3*($C$6-1)+3))) -> 11330 | L57: =IF($C$8=1,VLOOKUP($F57,P_All_SDEIS!$A$5:$Y$204,3*($C$6-1)+4),IF($C$8=2,VLOOKUP($F57,P_All_SDEIS!$AB$5:$AZ$204,3*($C$6-1)+4),VLOOKUP($F57,P_All_SDEIS!$BB$5:$BZ$204,3*($C$6-1)+4))) -> 14742 | N57: 250000
A58: Be | B58: 0.39 | C58: 0.2 | F58: 36 | G58: =IF($C$8=1,VLOOKUP($F58,P_All!$A$5:$Y$204,3*($C$6-1)+2),IF($C$8=2,VLOOKUP($F58,P_All!$AB$5:$AZ$204,3*($C$6-1)+2),VLOOKUP($F58,P_All!$BB$5:$BZ$204,3*($C$6-1)+2))) -> 9591.1 | H58: =IF($C$8=1,VLOOKUP($F58,P_All!$A$5:$Y204,3*($C$6-1)+3),IF($C$8=2,VLOOKUP($F58,P_All!$AB$5:$AZ$204,3*($C$6-1)+3),VLOOKUP($F58,P_All!$BB$5:$BZ$204,3*($C$6-1)+3))) -> 10603 | I58: =IF($C$8=1,VLOOKUP($F58,P_All!$A$5:$Y$204,3*($C$6-1)+4),IF($C$8=2,VLOOKUP($F58,P_All!$AB$5:$AZ$204,3*($C$6-1)+4),VLOOKUP($F58,P_All!$BB$5:$BZ$204,3*($C$6-1)+4))) -> 13846 | J58: =IF($C$8=1,VLOOKUP($F58,P_All_SDEIS!$A$5:$Y$204,3*($C$6-1)+2),IF($C$8=2,VLOOKUP($F58,P_All_SDEIS!$AB$5:$AZ$204,3*($C$6-1)+2),VLOOKUP($F58,P_All_SDEIS!$BB$5:$BZ$204,3*($C$6-1)+2))) -> 10070 | K58: =IF($C$8=1,VLOOKUP($F58,P_All_SDEIS!$A$5:$Y204,3*($C$6-1)+3),IF($C$8=2,VLOOKUP($F58,P_All_SDEIS!$AB$5:$AZ$204,3*($C$6-1)+3),VLOOKUP($F58,P_All_SDEIS!$BB$5:$BZ$204,3*($C$6-1)+3))) -> 11257 | L58: =IF($C$8=1,VLOOKUP($F58,P_All_SDEIS!$A$5:$Y$204,3*($C$6-1)+4),IF($C$8=2,VLOOKUP($F58,P_All_SDEIS!$AB$5:$AZ$204,3*($C$6-1)+4),VLOOKUP($F58,P_All_SDEIS!$BB$5:$BZ$204,3*($C$6-1)+4))) -> 14477 | N58: 250000
A59: Mn | B59: 1002 | C59: 306.6 | F59: 37 | G59: =IF($C$8=1,VLOOKUP($F59,P_All!$A$5:$Y$204,3*($C$6-1)+2),IF($C$8=2,VLOOKUP($F59,P_All!$AB$5:$AZ$204,3*($C$6-1)+2),VLOOKUP($F59,P_All!$BB$5:$BZ$204,3*($C$6-1)+2))) -> 9545.6 | H59: =IF($C$8=1,VLOOKUP($F59,P_All!$A$5:$Y204,3*($C$6-1)+3),IF($C$8=2,VLOOKUP($F59,P_All!$AB$5:$AZ$204,3*($C$6-1)+3),VLOOKUP($F59,P_All!$BB$5:$BZ$204,3*($C$6-1)+3))) -> 10531 | I59: =IF($C$8=1,VLOOKUP($F59,P_All!$A$5:$Y$204,3*($C$6-1)+4),IF($C$8=2,VLOOKUP($F59,P_All!$AB$5:$AZ$204,3*($C$6-1)+4),VLOOKUP($F59,P_All!$BB$5:$BZ$204,3*($C$6-1)+4))) -> 13532 | J59: =IF($C$8=1,VLOOKUP($F59,P_All_SDEIS!$A$5:$Y$204,3*($C$6-1)+2),IF($C$8=2,VLOOKUP($F59,P_All_SDEIS!$AB$5:$AZ$204,3*($C$6-1)+2),VLOOKUP($F59,P_All_SDEIS!$BB$5:$BZ$204,3*($C$6-1)+2))) -> 10023 | K59: =IF($C$8=1,VLOOKUP($F59,P_All_SDEIS!$A$5:$Y204,3*($C$6-1)+3),IF($C$8=2,VLOOKUP($F59,P_All_SDEIS!$AB$5:$AZ$204,3*($C$6-1)+3),VLOOKUP($F59,P_All_SDEIS!$BB$5:$BZ$204,3*($C$6-1)+3))) -> 11161 | L59: =IF($C$8=1,VLOOKUP($F59,P_All_SDEIS!$A$5:$Y$204,3*($C$6-1)+4),IF($C$8=2,VLOOKUP($F59,P_All_SDEIS!$AB$5:$AZ$204,3*($C$6-1)+4),VLOOKUP($F59,P_All_SDEIS!$BB$5:$BZ$204,3*($C$6-1)+4))) -> 14112 | N59: 250000
A60: Tl | B60: 0.6 | C60: 1 | F60: 38 | G60: =IF($C$8=1,VLOOKUP($F60,P_All!$A$5:$Y$204,3*($C$6-1)+2),IF($C$8=2,VLOOKUP($F60,P_All!$AB$5:$AZ$204,3*($C$6-1)+2),VLOOKUP($F60,P_All!$BB$5:$BZ$204,3*($C$6-1)+2))) -> 9488.9 | H60: =IF($C$8=1,VLOOKUP($F60,P_All!$A$5:$Y204,3*($C$6-1)+3),IF($C$8=2,VLOOKUP($F60,P_All!$AB$5:$AZ$204,3*($C$6-1)+3),VLOOKUP($F60,P_All!$BB$5:$BZ$204,3*($C$6-1)+3))) -> 10457 | I60: =IF($C$8=1,VLOOKUP($F60,P_All!$A$5:$Y$204,3*($C$6-1)+4),IF($C$8=2,VLOOKUP($F60,P_All!$AB$5:$AZ$204,3*($C$6-1)+4),VLOOKUP($F60,P_All!$BB$5:$BZ$204,3*($C$6-1)+4))) -> 13305 | J60: =IF($C$8=1,VLOOKUP($F60,P_All_SDEIS!$A$5:$Y$204,3*($C$6-1)+2),IF($C$8=2,VLOOKUP($F60,P_All_SDEIS!$AB$5:$AZ$204,3*($C$6-1)+2),VLOOKUP($F60,P_All_SDEIS!$BB$5:$BZ$204,3*($C$6-1)+2))) -> 9984.9 | K60: =IF($C$8=1,VLOOKUP($F60,P_All_SDEIS!$A$5:$Y204,3*($C$6-1)+3),IF($C$8=2,VLOOKUP($F60,P_All_SDEIS!$AB$5:$AZ$204,3*($C$6-1)+3),VLOOKUP($F60,P_All_SDEIS!$BB$5:$BZ$204,3*($C$6-1)+3))) -> 11091 | L60: =IF($C$8=1,VLOOKUP($F60,P_All_SDEIS!$A$5:$Y$204,3*($C$6-1)+4),IF($C$8=2,VLOOKUP($F60,P_All_SDEIS!$AB$5:$AZ$204,3*($C$6-1)+4),VLOOKUP($F60,P_All_SDEIS!$BB$5:$BZ$204,3*($C$6-1)+4))) -> 13863 | N60: 250000
F61: 39 | G61: =IF($C$8=1,VLOOKUP($F61,P_All!$A$5:$Y$204,3*($C$6-1)+2),IF($C$8=2,VLOOKUP($F61,P_All!$AB$5:$AZ$204,3*($C$6-1)+2),VLOOKUP($F61,P_All!$BB$5:$BZ$204,3*($C$6-1)+2))) -> 9459.7 | H61: =IF($C$8=1,VLOOKUP($F61,P_All!$A$5:$Y204,3*($C$6-1)+3),IF($C$8=2,VLOOKUP($F61,P_All!$AB$5:$AZ$204,3*($C$6-1)+3),VLOOKUP($F61,P_All!$BB$5:$BZ$204,3*($C$6-1)+3))) -> 10379 | I61: =IF($C$8=1,VLOOKUP($F61,P_All!$A$5:$Y$204,3*($C$6-1)+4),IF($C$8=2,VLOOKUP($F61,P_All!$AB$5:$AZ$204,3*($C$6-1)+4),VLOOKUP($F61,P_All!$BB$5:$BZ$204,3*($C$6-1)+4))) -> 13095 | J61: =IF($C$8=1,VLOOKUP($F61,P_All_SDEIS!$A$5:$Y$204,3*($C$6-1)+2),IF($C$8=2,VLOOKUP($F61,P_All_SDEIS!$AB$5:$AZ$204,3*($C$6-1)+2),VLOOKUP($F61,P_All_SDEIS!$BB$5:$BZ$204,3*($C$6-1)+2))) -> 9946.1 | K61: =IF($C$8=1,VLOOKUP($F61,P_All_SDEIS!$A$5:$Y204,3*($C$6-1)+3),IF($C$8=2,VLOOKUP($F61,P_All_SDEIS!$AB$5:$AZ$204,3*($C$6-1)+3),VLOOKUP($F61,P_All_SDEIS!$BB$5:$BZ$204,3*($C$6-1)+3))) -> 10980 | L61: =IF($C$8=1,VLOOKUP($F61,P_All_SDEIS!$A$5:$Y$204,3*($C$6-1)+4),IF($C$8=2,VLOOKUP($F61,P_All_SDEIS!$AB$5:$AZ$204,3*($C$6-1)+4),VLOOKUP($F61,P_All_SDEIS!$BB$5:$BZ$204,3*($C$6-1)+4))) -> 13676 | N61: 250000
B62: = not used for evaluation criteria, see site-specific criteria | F62: 40 | G62: =IF($C$8=1,VLOOKUP($F62,P_All!$A$5:$Y$204,3*($C$6-1)+2),IF($C$8=2,VLOOKUP($F62,P_All!$AB$5:$AZ$204,3*($C$6-1)+2),VLOOKUP($F62,P_All!$BB$5:$BZ$204,3*($C$6-1)+2))) -> 9440.2 | H62: =IF($C$8=1,VLOOKUP($F62,P_All!$A$5:$Y204,3*($C$6-1)+3),IF($C$8=2,VLOOKUP($F62,P_All!$AB$5:$AZ$204,3*($C$6-1)+3),VLOOKUP($F62,P_All!$BB$5:$BZ$204,3*($C$6-1)+3))) -> 10295 | I62: =IF($C$8=1,VLOOKUP($F62,P_All!$A$5:$Y$204,3*($C$6-1)+4),IF($C$8=2,VLOOKUP($F62,P_All!$AB$5:$AZ$204,3*($C$6-1)+4),VLOOKUP($F62,P_All!$BB$5:$BZ$204,3*($C$6-1)+4))) -> 12768 | J62: =IF($C$8=1,VLOOKUP($F62,P_All_SDEIS!$A$5:$Y$204,3*($C$6-1)+2),IF($C$8=2,VLOOKUP($F62,P_All_SDEIS!$AB$5:$AZ$204,3*($C$6-1)+2),VLOOKUP($F62,P_All_SDEIS!$BB$5:$BZ$204,3*($C$6-1)+2))) -> 9909.9 | K62: =IF($C$8=1,VLOOKUP($F62,P_All_SDEIS!$A$5:$Y204,3*($C$6-1)+3),IF($C$8=2,VLOOKUP($F62,P_All_SDEIS!$AB$5:$AZ$204,3*($C$6-1)+3),VLOOKUP($F62,P_All_SDEIS!$BB$5:$BZ$204,3*($C$6-1)+3))) -> 10894 | L62: =IF($C$8=1,VLOOKUP($F62,P_All_SDEIS!$A$5:$Y$204,3*($C$6-1)+4),IF($C$8=2,VLOOKUP($F62,P_All_SDEIS!$AB$5:$AZ$204,3*($C$6-1)+4),VLOOKUP($F62,P_All_SDEIS!$BB$5:$BZ$204,3*($C$6-1)+4))) -> 13379 | N62: 250000
... 77 more rows

Sheet P_All
B1: Values shown for constituent selected on PlotControl tab | AC1: Values shown for constituent selected on PlotControl tab | BC1: Values shown for constituent selected on PlotControl tab
B2: =Control!$A2 -> EPCat23_Dunka | E2: EPbed_Dunka | H2: =Control!$A11 -> OSP_Dunka | K2: =Control!$A14 -> WWTF_Dunka | N2: =Control!$A8 -> OSLA_Dunka | Q2: =Control!$A17 -> WPsurf_Dunka | T2: WPbed4_Dunka | W2: WPbed4a_Dunka | AC2: =Control!$A3 -> EPCat23_Prop | AF2: =Control!$A6 -> EPbed_Prop | AI2: OSP_Prop | AL2: =Control!$A15 -> WWTF_Prop | AO2: =Control!$A9 -> OSLA_Prop | AR2: =Control!$A18 -> WPsurf_Prop | AU2: =Control!$A21 -> WPbed4_Prop | AX2: =Control!$A24 -> WPbed4a_Prop | BC2: =Control!$A4 -> EPCat23_Part | BF2: =Control!$A7 -> EPbed_Part | BI2: OSP_Part1 | BL2: =Control!$A16 -> WWTF_Part | BO2: =Control!$A10 -> OSLA_Part | BR2: =Control!$A19 -> WPsurf_Part | BU2: =Control!$A22 -> WPbed4_Part | BX2: =Control!$A25 -> WPbed4a_Part
B3: Annual Results at Dunka | E3: Annual Results at Dunka | H3: Annual Results at Dunka | K3: Annual Results at Dunka | N3: Annual Results at Dunka | Q3: Annual Results at Dunka | T3: Annual Results at Dunka | W3: Annual Results at Dunka | AC3: Annual Results at Prop. Bdry | AF3: Annual Results at Prop. Bdry | AI3: Annual Results at Prop. Bdry | AL3: Annual Results at Prop. Bdry | AO3: Annual Results at Prop. Bdry | AR3: Annual Results at Prop. Bdry | AU3: Annual Results at Prop. Bdry | AX3: Annual Results at Prop. Bdry | BC3: Annual Results at Partridge | BF3: Annual Results at Partridge | BI3: Annual Results at Partridge | BL3: Annual Results at Partridge | BO3: Annual Results at Partridge | BR3: Annual Results at Partridge | BU3: Annual Results at Partridge | BX3: Annual Results at Partridge
A4: Time | B4: P10 | C4: P50 | D4: P90 | E4: P10 | F4: P50 | G4: P90 | H4: P10 | I4: P50 | J4: P90 | K4: P10 | L4: P50 | M4: P90 | N4: P10 | O4: P50 | P4: P90 | Q4: P10 | R4: P50 | S4: P90 | T4: P10 | U4: P50 | V4: P90 | W4: P10 | X4: P50 | Y4: P90 | AB4: Time | AC4: P10 | AD4: P50 | AE4: P90 | AF4: P10 | AG4: P50 | AH4: P90 | AI4: P10 | AJ4: P50 | AK4: P90 | AL4: P10 | AM4: P50 | AN4: P90 | AO4: P10 | AP4: P50 | AQ4: P90 | AR4: P10 | AS4: P50 | AT4: P90 | AU4: P10 | AV4: P50 | AW4: P90 | AX4: P10 | AY4: P50 | AZ4: P90 | BB4: Time | BC4: P10 | BD4: P50 | BE4: P90 | BF4: P10 | BG4: P50 | BH4: P90 | BI4: P10 | BJ4: P50 | BK4: P90 | BL4: P10 | BM4: P50 | BN4: P90 | BO4: P10 | BP4: P50 | BQ4: P90 | BR4: P10 | BS4: P50 | BT4: P90 | BU4: P10 | BV4: P50 | BW4: P90 | BX4: P10 | BY4: P50 | BZ4: P90
A5: 1 | B5: =MAX(OFFSET(EPCat23_Dunka!$C$10,12*($A5-1),4*(PlotControl!$C$4-1),12,1)) -> 9113.2 | C5: =MAX(OFFSET(EPCat23_Dunka!$D$10,12*($A5-1),4*(PlotControl!$C$4-1),12,1)) -> 9583.4 | D5: =MAX(OFFSET(EPCat23_Dunka!$E$10,12*($A5-1),4*(PlotControl!$C$4-1),12,1)) -> 10078 | H5: =MAX(OFFSET(OSP_Dunka!$C$10,12*($A5-1),4*(PlotControl!$C$4-1),12,1)) -> 9110.4 | I5: =MAX(OFFSET(OSP_Dunka!$D$10,12*($A5-1),4*(PlotControl!$C$4-1),12,1)) -> 9581.1 | J5: =MAX(OFFSET(OSP_Dunka!$E$10,12*($A5-1),4*(PlotControl!$C$4-1),12,1)) -> 10077 | K5: =MAX(OFFSET(WWTF_Dunka!$C$10,12*($A5-1),4*(PlotControl!$C$4-1),12,1)) -> 9110.4 | L5: =MAX(OFFSET(WWTF_Dunka!$D$10,12*($A5-1),4*(PlotControl!$C$4-1),12,1)) -> 9581.1 | M5: =MAX(OFFSET(WWTF_Dunka!$E$10,12*($A5-1),4*(PlotControl!$C$4-1),12,1)) -> 10077 | N5: =MAX(OFFSET(OSLA_Dunka!$C$10,12*($A5-1),4*(PlotControl!$C$4-1),12,1)) -> 11580 | O5: =MAX(OFFSET(OSLA_Dunka!$D$10,12*($A5-1),4*(PlotControl!$C$4-1),12,1)) -> 12458 | P5: =MAX(OFFSET(OSLA_Dunka!$E$10,12*($A5-1),4*(PlotControl!$C$4-1),12,1)) -> 13540 | Q5: =MAX(OFFSET(WPsurf_Dunka!$C$10,12*($A5-1),4*(PlotControl!$C$4-1),12,1)) -> 9110.4 | R5: =MAX(OFFSET(WPsurf_Dunka!$D$10,12*($A5-1),4*(PlotControl!$C$4-1),12,1)) -> 9581.1 | S5: =MAX(OFFSET(WPsurf_Dunka!$E$10,12*($A5-1),4*(PlotControl!$C$4-1),12,1)) -> 10077 | AB5: 1 | AC5: =MAX(OFFSET(EPCat23_Prop!$C$10,12*($AB5-1),4*(PlotControl!$C$4-1),12,1)) -> 9110.4 | AD5: =MAX(OFFSET(EPCat23_Prop!$D$10,12*($AB5-1),4*(PlotControl!$C$4-1),12,1)) -> 9581.1 | AE5: =MAX(OFFSET(EPCat23_Prop!$E$10,12*($AB5-1),4*(PlotControl!$C$4-1),12,1)) -> 10077 | AF5: =MAX(OFFSET(EPbed_Prop!$C$10,12*($AB5-1),4*(PlotControl!$C$4-1),12,1)) -> 20929 | AG5: =MAX(OFFSET(EPbed_Prop!$D$10,12*($AB5-1),4*(PlotControl!$C$4-1),12,1)) -> 24964 | AH5: =MAX(OFFSET(EPbed_Prop!$E$10,12*($AB5-1),4*(PlotControl!$C$4-1),12,1)) -> 29770 | AL5: =MAX(OFFSET(WWTF_Prop!$C$10,12*($AB5-1),4*(PlotControl!$C$4-1),12,1)) -> 9110.4 | AM5: =MAX(OFFSET(WWTF_Prop!$D$10,12*($AB5-1),4*(PlotControl!$C$4-1),12,1)) -> 9581.1 | AN5: =MAX(OFFSET(WWTF_Prop!$E$10,12*($AB5-1),4*(PlotControl!$C$4-1),12,1)) -> 10077 | AO5: =MAX(OFFSET(OSLA_Prop!$C$10,12*($AB5-1),4*(PlotControl!$C$4-1),12,1)) -> 9110.7 | AP5: =MAX(OFFSET(OSLA_Prop!$D$10,12*($AB5-1),4*(PlotControl!$C$4-1),12,1)) -> 9581.1 | AQ5: =MAX(OFFSET(OSLA_Prop!$E$10,12*($AB5-1),4*(PlotControl!$C$4-1),12,1)) -> 10077 | AR5: =MAX(OFFSET(WPsurf_Prop!$C$10,12*($AB5-1),4*(PlotControl!$C$4-1),12,1)) -> 9110.4 | AS5: =MAX(OFFSET(WPsurf_Prop!$D$10,12*($AB5-1),4*(PlotControl!$C$4-1),12,1)) -> 9581.1 | AT5: =MAX(OFFSET(WPsurf_Prop!$E$10,12*($AB5-1),4*(PlotControl!$C$4-1),12,1)) -> 10077 | AU5: =MAX(OFFSET(WPbed4_Prop!$C$10,12*($AB5-1),4*(PlotControl!$C$4-1),12,1)) -> 20929 | AV5: =MAX(OFFSET(WPbed4_Prop!$D$10,12*($AB5-1),4*(PlotControl!$C$4-1),12,1)) -> 24964 | AW5: =MAX(OFFSET(WPbed4_Prop!$E$10,12*($AB5-1),4*(PlotControl!$C$4-1),12,1)) -> 29770 | AX5: =MAX(OFFSET(WPbed4a_Prop!$C$10,12*($AB5-1),4*(PlotControl!$C$4-1),12,1)) -> 20929 | AY5: =MAX(OFFSET(WPbed4a_Prop!$D$10,12*($AB5-1),4*(PlotControl!$C$4-1),12,1)) -> 24964 | AZ5: =MAX(OFFSET(WPbed4a_Prop!$E$10,12*($AB5-1),4*(PlotControl!$C$4-1),12,1)) -> 29770 | BB5: 1 | BC5: =MAX(OFFSET(EPCat23_Part!$C$10,12*($BB5-1),4*(PlotControl!$C$4-1),12,1)) -> 9110.4 | BD5: =MAX(OFFSET(EPCat23_Part!$D$10,12*($BB5-1),4*(PlotControl!$C$4-1),12,1)) -> 9581.1 | BE5: =MAX(OFFSET(EPCat23_Part!$E$10,12*($BB5-1),4*(PlotControl!$C$4-1),12,1)) -> 10077 | BI5: =MAX(OFFSET(OSP_Part1!$C$10,12*($BB5-1),4*(PlotControl!$C$4-1),12,1)) -> 9110.4 | BJ5: =MAX(OFFSET(OSP_Part1!$D$10,12*($BB5-1),4*(PlotControl!$C$4-1),12,1)) -> 9581.1 | BK5: =MAX(OFFSET(OSP_Part1!$E$10,12*($BB5-1),4*(PlotControl!$C$4-1),12,1)) -> 10077 | BL5: =MAX(OFFSET(WWTF_Part!$C$10,12*($BB5-1),4*(PlotControl!$C$4-1),12,1)) -> 9110.4 | BM5: =MAX(OFFSET(WWTF_Part!$D$10,12*($BB5-1),4*(PlotControl!$C$4-1),12,1)) -> 9581.1 | BN5: =MAX(OFFSET(WWTF_Part!$E$10,12*($BB5-1),4*(PlotControl!$C$4-1),12,1)) -> 10077 | BO5: =MAX(OFFSET(OSLA_Part!$C$10,12*($BB5-1),4*(PlotControl!$C$4-1),12,1)) -> 9110.4 | BP5: =MAX(OFFSET(OSLA_Part!$D$10,12*($BB5-1),4*(PlotControl!$C$4-1),12,1)) -> 9581.1 | BQ5: =MAX(OFFSET(OSLA_Part!$E$10,12*($BB5-1),4*(PlotControl!$C$4-1),12,1)) -> 10077 | BR5: =MAX(OFFSET(WPsurf_Part!$C$10,12*($BB5-1),4*(PlotControl!$C$4-1),12,1)) -> 9110.4 | BS5: =MAX(OFFSET(WPsurf_Part!$D$10,12*($BB5-1),4*(PlotControl!$C$4-1),12,1)) -> 9581.1 | BT5: =MAX(OFFSET(WPsurf_Part!$E$10,12*($BB5-1),4*(PlotControl!$C$4-1),12,1)) -> 10077
A6: 2 | B6: =MAX(OFFSET(EPCat23_Dunka!$C$10,12*($A6-1),4*(PlotControl!$C$4-1),12,1)) -> 9124.3 | C6: =MAX(OFFSET(EPCat23_Dunka!$D$10,12*($A6-1),4*(PlotControl!$C$4-1),12,1)) -> 9594.4 | D6: =MAX(OFFSET(EPCat23_Dunka!$E$10,12*($A6-1),4*(PlotControl!$C$4-1),12,1)) -> 10096 | H6: =MAX(OFFSET(OSP_Dunka!$C$10,12*($A6-1),4*(PlotControl!$C$4-1),12,1)) -> 9110.4 | I6: =MAX(OFFSET(OSP_Dunka!$D$10,12*($A6-1),4*(PlotControl!$C$4-1),12,1)) -> 9581.1 | J6: =MAX(OFFSET(OSP_Dunka!$E$10,12*($A6-1),4*(PlotControl!$C$4-1),12,1)) -> 10077 | K6: =MAX(OFFSET(WWTF_Dunka!$C$10,12*($A6-1),4*(PlotControl!$C$4-1),12,1)) -> 9110.5 | L6: =MAX(OFFSET(WWTF_Dunka!$D$10,12*($A6-1),4*(PlotControl!$C$4-1),12,1)) -> 9581.1 | M6: =MAX(OFFSET(WWTF_Dunka!$E$10,12*($A6-1),4*(PlotControl!$C$4-1),12,1)) -> 10077 | N6: =MAX(OFFSET(OSLA_Dunka!$C$10,12*($A6-1),4*(PlotControl!$C$4-1),12,1)) -> 13916 | O6: =MAX(OFFSET(OSLA_Dunka!$D$10,12*($A6-1),4*(PlotControl!$C$4-1),12,1)) -> 15190 | P6: =MAX(OFFSET(OSLA_Dunka!$E$10,12*($A6-1),4*(PlotControl!$C$4-1),12,1)) -> 16947 | Q6: =MAX(OFFSET(WPsurf_Dunka!$C$10,12*($A6-1),4*(PlotControl!$C$4-1),12,1)) -> 9110.4 | R6: =MAX(OFFSET(WPsurf_Dunka!$D$10,12*($A6-1),4*(PlotControl!$C$4-1),12,1)) -> 9581.1 | S6: =MAX(OFFSET(WPsurf_Dunka!$E$10,12*($A6-1),4*(PlotControl!$C$4-1),12,1)) -> 10077 | AB6: 2 | AC6: =MAX(OFFSET(EPCat23_Prop!$C$10,12*($AB6-1),4*(PlotControl!$C$4-1),12,1)) -> 9110.5 | AD6: =MAX(OFFSET(EPCat23_Prop!$D$10,12*($AB6-1),4*(PlotControl!$C$4-1),12,1)) -> 9581.1 | AE6: =MAX(OFFSET(EPCat23_Prop!$E$10,12*($AB6-1),4*(PlotControl!$C$4-1),12,1)) -> 10077 | AF6: =MAX(OFFSET(EPbed_Prop!$C$10,12*($AB6-1),4*(PlotControl!$C$4-1),12,1)) -> 20929 | AG6: =MAX(OFFSET(EPbed_Prop!$D$10,12*($AB6-1),4*(PlotControl!$C$4-1),12,1)) -> 24964 | AH6: =MAX(OFFSET(EPbed_Prop!$E$10,12*($AB6-1),4*(PlotControl!$C$4-1),12,1)) -> 29770 | AL6: =MAX(OFFSET(WWTF_Prop!$C$10,12*($AB6-1),4*(PlotControl!$C$4-1),12,1)) -> 9110.4 | AM6: =MAX(OFFSET(WWTF_Prop!$D$10,12*($AB6-1),4*(PlotControl!$C$4-1),12,1)) -> 9581.1 | AN6: =MAX(OFFSET(WWTF_Prop!$E$10,12*($AB6-1),4*(PlotControl!$C$4-1),12,1)) -> 10077 | AO6: =MAX(OFFSET(OSLA_Prop!$C$10,12*($AB6-1),4*(PlotControl!$C$4-1),12,1)) -> 9116.4 | AP6: =MAX(OFFSET(OSLA_Prop!$D$10,12*($AB6-1),4*(PlotControl!$C$4-1),12,1)) -> 9585.9 | AQ6: =MAX(OFFSET(OSLA_Prop!$E$10,12*($AB6-1),4*(PlotControl!$C$4-1),12,1)) -> 10088 | AR6: =MAX(OFFSET(WPsurf_Prop!$C$10,12*($AB6-1),4*(PlotControl!$C$4-1),12,1)) -> 9110.4 | AS6: =MAX(OFFSET(WPsurf_Prop!$D$10,12*($AB6-1),4*(PlotControl!$C$4-1),12,1)) -> 9581.1 | AT6: =MAX(OFFSET(WPsurf_Prop!$E$10,12*($AB6-1),4*(PlotControl!$C$4-1),12,1)) -> 10077 | AU6: =MAX(OFFSET(WPbed4_Prop!$C$10,12*($AB6-1),4*(PlotControl!$C$4-1),12,1)) -> 20929 | AV6: =MAX(OFFSET(WPbed4_Prop!$D$10,12*($AB6-1),4*(PlotControl!$C$4-1),12,1)) -> 24964 | AW6: =MAX(OFFSET(WPbed4_Prop!$E$10,12*($AB6-1),4*(PlotControl!$C$4-1),12,1)) -> 29770 | AX6: =MAX(OFFSET(WPbed4a_Prop!$C$10,12*($AB6-1),4*(PlotControl!$C$4-1),12,1)) -> 20929 | AY6: =MAX(OFFSET(WPbed4a_Prop!$D$10,12*($AB6-1),4*(PlotControl!$C$4-1),12,1)) -> 24964 | AZ6: =MAX(OFFSET(WPbed4a_Prop!$E$10,12*($AB6-1),4*(PlotControl!$C$4-1),12,1)) -> 29770 | BB6: 2 | BC6: =MAX(OFFSET(EPCat23_Part!$C$10,12*($BB6-1),4*(PlotControl!$C$4-1),12,1)) -> 9110.4 | BD6: =MAX(OFFSET(EPCat23_Part!$D$10,12*($BB6-1),4*(PlotControl!$C$4-1),12,1)) -> 9581.1 | BE6: =MAX(OFFSET(EPCat23_Part!$E$10,12*($BB6-1),4*(PlotControl!$C$4-1),12,1)) -> 10077 | BI6: =MAX(OFFSET(OSP_Part1!$C$10,12*($BB6-1),4*(PlotControl!$C$4-1),12,1)) -> 9110.4 | BJ6: =MAX(OFFSET(OSP_Part1!$D$10,12*($BB6-1),4*(PlotControl!$C$4-1),12,1)) -> 9581.1 | BK6: =MAX(OFFSET(OSP_Part1!$E$10,12*($BB6-1),4*(PlotControl!$C$4-1),12,1)) -> 10077 | BL6: =MAX(OFFSET(WWTF_Part!$C$10,12*($BB6-1),4*(PlotControl!$C$4-1),12,1)) -> 9110.4 | BM6: =MAX(OFFSET(WWTF_Part!$D$10,12*($BB6-1),4*(PlotControl!$C$4-1),12,1)) -> 9581.1 | BN6: =MAX(OFFSET(WWTF_Part!$E$10,12*($BB6-1),4*(PlotControl!$C$4-1),12,1)) -> 10077 | BO6: =MAX(OFFSET(OSLA_Part!$C$10,12*($BB6-1),4*(PlotControl!$C$4-1),12,1)) -> 9110.4 | BP6: =MAX(OFFSET(OSLA_Part!$D$10,12*($BB6-1),4*(PlotControl!$C$4-1),12,1)) -> 9581.1 | BQ6: =MAX(OFFSET(OSLA_Part!$E$10,12*($BB6-1),4*(PlotControl!$C$4-1),12,1)) -> 10077 | BR6: =MAX(OFFSET(WPsurf_Part!$C$10,12*($BB6-1),4*(PlotControl!$C$4-1),12,1)) -> 9110.4 | BS6: =MAX(OFFSET(WPsurf_Part!$D$10,12*($BB6-1),4*(PlotControl!$C$4-1),12,1)) -> 9581.1 | BT6: =MAX(OFFSET(WPsurf_Part!$E$10,12*($BB6-1),4*(PlotControl!$C$4-1),12,1)) -> 10077
A7: 3 | B7: =MAX(OFFSET(EPCat23_Dunka!$C$10,12*($A7-1),4*(PlotControl!$C$4-1),12,1)) -> 9148.5 | C7: =MAX(OFFSET(EPCat23_Dunka!$D$10,12*($A7-1),4*(PlotControl!$C$4-1),12,1)) -> 9613.6 | D7: =MAX(OFFSET(EPCat23_Dunka!$E$10,12*($A7-1),4*(PlotControl!$C$4-1),12,1)) -> 10115 | H7: =MAX(OFFSET(OSP_Dunka!$C$10,12*($A7-1),4*(PlotControl!$C$4-1),12,1)) -> 9110.4 | I7: =MAX(OFFSET(OSP_Dunka!$D$10,12*($A7-1),4*(PlotControl!$C$4-1),12,1)) -> 9581.1 | J7: =MAX(OFFSET(OSP_Dunka!$E$10,12*($A7-1),4*(PlotControl!$C$4-1),12,1)) -> 10077 | K7: =MAX(OFFSET(WWTF_Dunka!$C$10,12*($A7-1),4*(PlotControl!$C$4-1),12,1)) -> 9110.8 | L7: =MAX(OFFSET(WWTF_Dunka!$D$10,12*($A7-1),4*(PlotControl!$C$4-1),12,1)) -> 9581.3 | M7: =MAX(OFFSET(WWTF_Dunka!$E$10,12*($A7-1),4*(PlotControl!$C$4-1),12,1)) -> 10077 | N7: =MAX(OFFSET(OSLA_Dunka!$C$10,12*($A7-1),4*(PlotControl!$C$4-1),12,1)) -> 15975 | O7: =MAX(OFFSET(OSLA_Dunka!$D$10,12*($A7-1),4*(PlotControl!$C$4-1),12,1)) -> 17716 | P7: =MAX(OFFSET(OSLA_Dunka!$E$10,12*($A7-1),4*(PlotControl!$C$4-1),12,1)) -> 19905 | Q7: =MAX(OFFSET(WPsurf_Dunka!$C$10,12*($A7-1),4*(PlotControl!$C$4-1),12,1)) -> 9110.4 | R7: =MAX(OFFSET(WPsurf_Dunka!$D$10,12*($A7-1),4*(PlotControl!$C$4-1),12,1)) -> 9581.1 | S7: =MAX(OFFSET(WPsurf_Dunka!$E$10,12*($A7-1),4*(PlotControl!$C$4-1),12,1)) -> 10077 | AB7: 3 | AC7: =MAX(OFFSET(EPCat23_Prop!$C$10,12*($AB7-1),4*(PlotControl!$C$4-1),12,1)) -> 9110.5 | AD7: =MAX(OFFSET(EPCat23_Prop!$D$10,12*($AB7-1),4*(PlotControl!$C$4-1),12,1)) -> 9581.4 | AE7: =MAX(OFFSET(EPCat23_Prop!$E$10,12*($AB7-1),4*(PlotControl!$C$4-1),12,1)) -> 10077 | AF7: =MAX(OFFSET(EPbed_Prop!$C$10,12*($AB7-1),4*(PlotControl!$C$4-1),12,1)) -> 20929 | AG7: =MAX(OFFSET(EPbed_Prop!$D$10,12*($AB7-1),4*(PlotControl!$C$4-1),12,1)) -> 24964 | AH7: =MAX(OFFSET(EPbed_Prop!$E$10,12*($AB7-1),4*(PlotControl!$C$4-1),12,1)) -> 29770 | AL7: =MAX(OFFSET(WWTF_Prop!$C$10,12*($AB7-1),4*(PlotControl!$C$4-1),12,1)) -> 9110.4 | AM7: =MAX(OFFSET(WWTF_Prop!$D$10,12*($AB7-1),4*(PlotControl!$C$4-1),12,1)) -> 9581.1 | AN7: =MAX(OFFSET(WWTF_Prop!$E$10,12*($AB7-1),4*(PlotControl!$C$4-1),12,1)) -> 10077 | AO7: =MAX(OFFSET(OSLA_Prop!$C$10,12*($AB7-1),4*(PlotControl!$C$4-1),12,1)) -> 9175.5 | AP7: =MAX(OFFSET(OSLA_Prop!$D$10,12*($AB7-1),4*(PlotControl!$C$4-1),12,1)) -> 9661.6 | AQ7: =MAX(OFFSET(OSLA_Prop!$E$10,12*($AB7-1),4*(PlotControl!$C$4-1),12,1)) -> 10150 | AR7: =MAX(OFFSET(WPsurf_Prop!$C$10,12*($AB7-1),4*(PlotControl!$C$4-1),12,1)) -> 9110.4 | AS7: =MAX(OFFSET(WPsurf_Prop!$D$10,12*($AB7-1),4*(PlotControl!$C$4-1),12,1)) -> 9581.1 | AT7: =MAX(OFFSET(WPsurf_Prop!$E$10,12*($AB7-1),4*(PlotControl!$C$4-1),12,1)) -> 10077 | AU7: =MAX(OFFSET(WPbed4_Prop!$C$10,12*($AB7-1),4*(PlotControl!$C$4-1),12,1)) -> 20929 | AV7: =MAX(OFFSET(WPbed4_Prop!$D$10,12*($AB7-1),4*(PlotControl!$C$4-1),12,1)) -> 24964 | AW7: =MAX(OFFSET(WPbed4_Prop!$E$10,12*($AB7-1),4*(PlotControl!$C$4-1),12,1)) -> 29770 | AX7: =MAX(OFFSET(WPbed4a_Prop!$C$10,12*($AB7-1),4*(PlotControl!$C$4-1),12,1)) -> 20929 | AY7: =MAX(OFFSET(WPbed4a_Prop!$D$10,12*($AB7-1),4*(PlotControl!$C$4-1),12,1)) -> 24964 | AZ7: =MAX(OFFSET(WPbed4a_Prop!$E$10,12*($AB7-1),4*(PlotControl!$C$4-1),12,1)) -> 29770 | BB7: 3 | BC7: =MAX(OFFSET(EPCat23_Part!$C$10,12*($BB7-1),4*(PlotControl!$C$4-1),12,1)) -> 9110.4 | BD7: =MAX(OFFSET(EPCat23_Part!$D$10,12*($BB7-1),4*(PlotControl!$C$4-1),12,1)) -> 9581.1 | BE7: =MAX(OFFSET(EPCat23_Part!$E$10,12*($BB7-1),4*(PlotControl!$C$4-1),12,1)) -> 10077 | BI7: =MAX(OFFSET(OSP_Part1!$C$10,12*($BB7-1),4*(PlotControl!$C$4-1),12,1)) -> 9110.4 | BJ7: =MAX(OFFSET(OSP_Part1!$D$10,12*($BB7-1),4*(PlotControl!$C$4-1),12,1)) -> 9581.1 | BK7: =MAX(OFFSET(OSP_Part1!$E$10,12*($BB7-1),4*(PlotControl!$C$4-1),12,1)) -> 10077 | BL7: =MAX(OFFSET(WWTF_Part!$C$10,12*($BB7-1),4*(PlotControl!$C$4-1),12,1)) -> 9110.4 | BM7: =MAX(OFFSET(WWTF_Part!$D$10,12*($BB7-1),4*(PlotControl!$C$4-1),12,1)) -> 9581.1 | BN7: =MAX(OFFSET(WWTF_Part!$E$10,12*($BB7-1),4*(PlotControl!$C$4-1),12,1)) -> 10077 | BO7: =MAX(OFFSET(OSLA_Part!$C$10,12*($BB7-1),4*(PlotControl!$C$4-1),12,1)) -> 9110.4 | BP7: =MAX(OFFSET(OSLA_Part!$D$10,12*($BB7-1),4*(PlotControl!$C$4-1),12,1)) -> 9581.1 | BQ7: =MAX(OFFSET(OSLA_Part!$E$10,12*($BB7-1),4*(PlotControl!$C$4-1),12,1)) -> 10077 | BR7: =MAX(OFFSET(WPsurf_Part!$C$10,12*($BB7-1),4*(PlotControl!$C$4-1),12,1)) -> 9110.4 | BS7: =MAX(OFFSET(WPsurf_Part!$D$10,12*($BB7-1),4*(PlotControl!$C$4-1),12,1)) -> 9581.1 | BT7: =MAX(OFFSET(WPsurf_Part!$E$10,12*($BB7-1),4*(PlotControl!$C$4-1),12,1)) -> 10077
A8: 4 | B8: =MAX(OFFSET(EPCat23_Dunka!$C$10,12*($A8-1),4*(PlotControl!$C$4-1),12,1)) -> 9181.3 | C8: =MAX(OFFSET(EPCat23_Dunka!$D$10,12*($A8-1),4*(PlotControl!$C$4-1),12,1)) -> 9645.7 | D8: =MAX(OFFSET(EPCat23_Dunka!$E$10,12*($A8-1),4*(PlotControl!$C$4-1),12,1)) -> 10160 | H8: =MAX(OFFSET(OSP_Dunka!$C$10,12*($A8-1),4*(PlotControl!$C$4-1),12,1)) -> 9110.4 | I8: =MAX(OFFSET(OSP_Dunka!$D$10,12*($A8-1),4*(PlotControl!$C$4-1),12,1)) -> 9581.1 | J8: =MAX(OFFSET(OSP_Dunka!$E$10,12*($A8-1),4*(PlotControl!$C$4-1),12,1)) -> 10077 | K8: =MAX(OFFSET(WWTF_Dunka!$C$10,12*($A8-1),4*(PlotControl!$C$4-1),12,1)) -> 9111.9 | L8: =MAX(OFFSET(WWTF_Dunka!$D$10,12*($A8-1),4*(PlotControl!$C$4-1),12,1)) -> 9582 | M8: =MAX(OFFSET(WWTF_Dunka!$E$10,12*($A8-1),4*(PlotControl!$C$4-1),12,1)) -> 10077 | N8: =MAX(OFFSET(OSLA_Dunka!$C$10,12*($A8-1),4*(PlotControl!$C$4-1),12,1)) -> 18032 | O8: =MAX(OFFSET(OSLA_Dunka!$D$10,12*($A8-1),4*(PlotControl!$C$4-1),12,1)) -> 20081 | P8: =MAX(OFFSET(OSLA_Dunka!$E$10,12*($A8-1),4*(PlotControl!$C$4-1),12,1)) -> 22669 | Q8: =MAX(OFFSET(WPsurf_Dunka!$C$10,12*($A8-1),4*(PlotControl!$C$4-1),12,1)) -> 9110.4 | R8: =MAX(OFFSET(WPsurf_Dunka!$D$10,12*($A8-1),4*(PlotControl!$C$4-1),12,1)) -> 9581.1 | S8: =MAX(OFFSET(WPsurf_Dunka!$E$10,12*($A8-1),4*(PlotControl!$C$4-1),12,1)) -> 10077 | AB8: 4 | AC8: =MAX(OFFSET(EPCat23_Prop!$C$10,12*($AB8-1),4*(PlotControl!$C$4-1),12,1)) -> 9111 | AD8: =MAX(OFFSET(EPCat23_Prop!$D$10,12*($AB8-1),4*(PlotControl!$C$4-1),12,1)) -> 9582 | AE8: =MAX(OFFSET(EPCat23_Prop!$E$10,12*($AB8-1),4*(PlotControl!$C$4-1),12,1)) -> 10077 | AF8: =MAX(OFFSET(EPbed_Prop!$C$10,12*($AB8-1),4*(PlotControl!$C$4-1),12,1)) -> 20929 | AG8: =MAX(OFFSET(EPbed_Prop!$D$10,12*($AB8-1),4*(PlotControl!$C$4-1),12,1)) -> 24964 | AH8: =MAX(OFFSET(EPbed_Prop!$E$10,12*($AB8-1),4*(PlotControl!$C$4-1),12,1)) -> 29770 | AL8: =MAX(OFFSET(WWTF_Prop!$C$10,12*($AB8-1),4*(PlotControl!$C$4-1),12,1)) -> 9110.4 | AM8: =MAX(OFFSET(WWTF_Prop!$D$10,12*($AB8-1),4*(PlotControl!$C$4-1),12,1)) -> 9581.1 | AN8: =MAX(OFFSET(WWTF_Prop!$E$10,12*($AB8-1),4*(PlotControl!$C$4-1),12,1)) -> 10077 | AO8: =MAX(OFFSET(OSLA_Prop!$C$10,12*($AB8-1),4*(PlotControl!$C$4-1),12,1)) -> 9356.9 | AP8: =MAX(OFFSET(OSLA_Prop!$D$10,12*($AB8-1),4*(PlotControl!$C$4-1),12,1)) -> 9894.6 | AQ8: =MAX(OFFSET(OSLA_Prop!$E$10,12*($AB8-1),4*(PlotControl!$C$4-1),12,1)) -> 10479 | AR8: =MAX(OFFSET(WPsurf_Prop!$C$10,12*($AB8-1),4*(PlotControl!$C$4-1),12,1)) -> 9110.4 | AS8: =MAX(OFFSET(WPsurf_Prop!$D$10,12*($AB8-1),4*(PlotControl!$C$4-1),12,1)) -> 9581.1 | AT8: =MAX(OFFSET(WPsurf_Prop!$E$10,12*($AB8-1),4*(PlotControl!$C$4-1),12,1)) -> 10077 | AU8: =MAX(OFFSET(WPbed4_Prop!$C$10,12*($AB8-1),4*(PlotControl!$C$4-1),12,1)) -> 20929 | AV8: =MAX(OFFSET(WPbed4_Prop!$D$10,12*($AB8-1),4*(PlotControl!$C$4-1),12,1)) -> 24964 | AW8: =MAX(OFFSET(WPbed4_Prop!$E$10,12*($AB8-1),4*(PlotControl!$C$4-1),12,1)) -> 29770 | AX8: =MAX(OFFSET(WPbed4a_Prop!$C$10,12*($AB8-1),4*(PlotControl!$C$4-1),12,1)) -> 20929 | AY8: =MAX(OFFSET(WPbed4a_Prop!$D$10,12*($AB8-1),4*(PlotControl!$C$4-1),12,1)) -> 24964 | AZ8: =MAX(OFFSET(WPbed4a_Prop!$E$10,12*($AB8-1),4*(PlotControl!$C$4-1),12,1)) -> 29770 | BB8: 4 | BC8: =MAX(OFFSET(EPCat23_Part!$C$10,12*($BB8-1),4*(PlotControl!$C$4-1),12,1)) -> 9110.4 | BD8: =MAX(OFFSET(EPCat23_Part!$D$10,12*($BB8-1),4*(PlotControl!$C$4-1),12,1)) -> 9581.1 | BE8: =MAX(OFFSET(EPCat23_Part!$E$10,12*($BB8-1),4*(PlotControl!$C$4-1),12,1)) -> 10077 | BI8: =MAX(OFFSET(OSP_Part1!$C$10,12*($BB8-1),4*(PlotControl!$C$4-1),12,1)) -> 9110.4 | BJ8: =MAX(OFFSET(OSP_Part1!$D$10,12*($BB8-1),4*(PlotControl!$C$4-1),12,1)) -> 9581.1 | BK8: =MAX(OFFSET(OSP_Part1!$E$10,12*($BB8-1),4*(PlotControl!$C$4-1),12,1)) -> 10077 | BL8: =MAX(OFFSET(WWTF_Part!$C$10,12*($BB8-1),4*(PlotControl!$C$4-1),12,1)) -> 9110.4 | BM8: =MAX(OFFSET(WWTF_Part!$D$10,12*($BB8-1),4*(PlotControl!$C$4-1),12,1)) -> 9581.1 | BN8: =MAX(OFFSET(WWTF_Part!$E$10,12*($BB8-1),4*(PlotControl!$C$4-1),12,1)) -> 10077 | BO8: =MAX(OFFSET(OSLA_Part!$C$10,12*($BB8-1),4*(PlotControl!$C$4-1),12,1)) -> 9110.4 | BP8: =MAX(OFFSET(OSLA_Part!$D$10,12*($BB8-1),4*(PlotControl!$C$4-1),12,1)) -> 9581.1 | BQ8: =MAX(OFFSET(OSLA_Part!$E$10,12*($BB8-1),4*(PlotControl!$C$4-1),12,1)) -> 10077 | BR8: =MAX(OFFSET(WPsurf_Part!$C$10,12*($BB8-1),4*(PlotControl!$C$4-1),12,1)) -> 9110.4 | BS8: =MAX(OFFSET(WPsurf_Part!$D$10,12*($BB8-1),4*(PlotControl!$C$4-1),12,1)) -> 9581.1 | BT8: =MAX(OFFSET(WPsurf_Part!$E$10,12*($BB8-1),4*(PlotControl!$C$4-1),12,1)) -> 10077
A9: 5 | B9: =MAX(OFFSET(EPCat23_Dunka!$C$10,12*($A9-1),4*(PlotControl!$C$4-1),12,1)) -> 9223.2 | C9: =MAX(OFFSET(EPCat23_Dunka!$D$10,12*($A9-1),4*(PlotControl!$C$4-1),12,1)) -> 9684.7 | D9: =MAX(OFFSET(EPCat23_Dunka!$E$10,12*($A9-1),4*(PlotControl!$C$4-1),12,1)) -> 10220 | H9: =MAX(OFFSET(OSP_Dunka!$C$10,12*($A9-1),4*(PlotControl!$C$4-1),12,1)) -> 9110.4 | I9: =MAX(OFFSET(OSP_Dunka!$D$10,12*($A9-1),4*(PlotControl!$C$4-1),12,1)) -> 9581.1 | J9: =MAX(OFFSET(OSP_Dunka!$E$10,12*($A9-1),4*(PlotControl!$C$4-1),12,1)) -> 10077 | K9: =MAX(OFFSET(WWTF_Dunka!$C$10,12*($A9-1),4*(PlotControl!$C$4-1),12,1)) -> 9114.2 | L9: =MAX(OFFSET(WWTF_Dunka!$D$10,12*($A9-1),4*(PlotControl!$C$4-1),12,1)) -> 9583.5 | M9: =MAX(OFFSET(WWTF_Dunka!$E$10,12*($A9-1),4*(PlotControl!$C$4-1),12,1)) -> 10078 | N9: =MAX(OFFSET(OSLA_Dunka!$C$10,12*($A9-1),4*(PlotControl!$C$4-1),12,1)) -> 19802 | O9: =MAX(OFFSET(OSLA_Dunka!$D$10,12*($A9-1),4*(PlotControl!$C$4-1),12,1)) -> 22241 | P9: =MAX(OFFSET(OSLA_Dunka!$E$10,12*($A9-1),4*(PlotControl!$C$4-1),12,1)) -> 24995 | Q9: =MAX(OFFSET(WPsurf_Dunka!$C$10,12*($A9-1),4*(PlotControl!$C$4-1),12,1)) -> 9110.4 | R9: =MAX(OFFSET(WPsurf_Dunka!$D$10,12*($A9-1),4*(PlotControl!$C$4-1),12,1)) -> 9581.1 | S9: =MAX(OFFSET(WPsurf_Dunka!$E$10,12*($A9-1),4*(PlotControl!$C$4-1),12,1)) -> 10077 | AB9: 5 | AC9: =MAX(OFFSET(EPCat23_Prop!$C$10,12*($AB9-1),4*(PlotControl!$C$4-1),12,1)) -> 9112.4 | AD9: =MAX(OFFSET(EPCat23_Prop!$D$10,12*($AB9-1),4*(PlotControl!$C$4-1),12,1)) -> 9583.2 | AE9: =MAX(OFFSET(EPCat23_Prop!$E$10,12*($AB9-1),4*(PlotControl!$C$4-1),12,1)) -> 10078 | AF9: =MAX(OFFSET(EPbed_Prop!$C$10,12*($AB9-1),4*(PlotControl!$C$4-1),12,1)) -> 20929 | AG9: =MAX(OFFSET(EPbed_Prop!$D$10,12*($AB9-1),4*(PlotControl!$C$4-1),12,1)) -> 24964 | AH9: =MAX(OFFSET(EPbed_Prop!$E$10,12*($AB9-1),4*(PlotControl!$C$4-1),12,1)) -> 29770 | AL9: =MAX(OFFSET(WWTF_Prop!$C$10,12*($AB9-1),4*(PlotControl!$C$4-1),12,1)) -> 9110.4 | AM9: =MAX(OFFSET(WWTF_Prop!$D$10,12*($AB9-1),4*(PlotControl!$C$4-1),12,1)) -> 9581.1 | AN9: =MAX(OFFSET(WWTF_Prop!$E$10,12*($AB9-1),4*(PlotControl!$C$4-1),12,1)) -> 10077 | AO9: =MAX(OFFSET(OSLA_Prop!$C$10,12*($AB9-1),4*(PlotControl!$C$4-1),12,1)) -> 9742 | AP9: =MAX(OFFSET(OSLA_Prop!$D$10,12*($AB9-1),4*(PlotControl!$C$4-1),12,1)) -> 10375 | AQ9: =MAX(OFFSET(OSLA_Prop!$E$10,12*($AB9-1),4*(PlotControl!$C$4-1),12,1)) -> 11281 | AR9: =MAX(OFFSET(WPsurf_Prop!$C$10,12*($AB9-1),4*(PlotControl!$C$4-1),12,1)) -> 9110.4 | AS9: =MAX(OFFSET(WPsurf_Prop!$D$10,12*($AB9-1),4*(PlotControl!$C$4-1),12,1)) -> 9581.1 | AT9: =MAX(OFFSET(WPsurf_Prop!$E$10,12*($AB9-1),4*(PlotControl!$C$4-1),12,1)) -> 10077 | AU9: =MAX(OFFSET(WPbed4_Prop!$C$10,12*($AB9-1),4*(PlotControl!$C$4-1),12,1)) -> 20929 | AV9: =MAX(OFFSET(WPbed4_Prop!$D$10,12*($AB9-1),4*(PlotControl!$C$4-1),12,1)) -> 24964 | AW9: =MAX(OFFSET(WPbed4_Prop!$E$10,12*($AB9-1),4*(PlotControl!$C$4-1),12,1)) -> 29770 | AX9: =MAX(OFFSET(WPbed4a_Prop!$C$10,12*($AB9-1),4*(PlotControl!$C$4-1),12,1)) -> 20929 | AY9: =MAX(OFFSET(WPbed4a_Prop!$D$10,12*($AB9-1),4*(PlotControl!$C$4-1),12,1)) -> 24964 | AZ9: =MAX(OFFSET(WPbed4a_Prop!$E$10,12*($AB9-1),4*(PlotControl!$C$4-1),12,1)) -> 29770 | BB9: 5 | BC9: =MAX(OFFSET(EPCat23_Part!$C$10,12*($BB9-1),4*(PlotControl!$C$4-1),12,1)) -> 9110.4 | BD9: =MAX(OFFSET(EPCat23_Part!$D$10,12*($BB9-1),4*(PlotControl!$C$4-1),12,1)) -> 9581.1 | BE9: =MAX(OFFSET(EPCat23_Part!$E$10,12*($BB9-1),4*(PlotControl!$C$4-1),12,1)) -> 10077 | BI9: =MAX(OFFSET(OSP_Part1!$C$10,12*($BB9-1),4*(PlotControl!$C$4-1),12,1)) -> 9110.4 | BJ9: =MAX(OFFSET(OSP_Part1!$D$10,12*($BB9-1),4*(PlotControl!$C$4-1),12,1)) -> 9581.1 | BK9: =MAX(OFFSET(OSP_Part1!$E$10,12*($BB9-1),4*(PlotControl!$C$4-1),12,1)) -> 10077 | BL9: =MAX(OFFSET(WWTF_Part!$C$10,12*($BB9-1),4*(PlotControl!$C$4-1),12,1)) -> 9110.4 | BM9: =MAX(OFFSET(WWTF_Part!$D$10,12*($BB9-1),4*(PlotControl!$C$4-1),12,1)) -> 9581.1 | BN9: =MAX(OFFSET(WWTF_Part!$E$10,12*($BB9-1),4*(PlotControl!$C$4-1),12,1)) -> 10077 | BO9: =MAX(OFFSET(OSLA_Part!$C$10,12*($BB9-1),4*(PlotControl!$C$4-1),12,1)) -> 9110.4 | BP9: =MAX(OFFSET(OSLA_Part!$D$10,12*($BB9-1),4*(PlotControl!$C$4-1),12,1)) -> 9581.1 | BQ9: =MAX(OFFSET(OSLA_Part!$E$10,12*($BB9-1),4*(PlotControl!$C$4-1),12,1)) -> 10077 | BR9: =MAX(OFFSET(WPsurf_Part!$C$10,12*($BB9-1),4*(PlotControl!$C$4-1),12,1)) -> 9110.4 | BS9: =MAX(OFFSET(WPsurf_Part!$D$10,12*($BB9-1),4*(PlotControl!$C$4-1),12,1)) -> 9581.1 | BT9: =MAX(OFFSET(WPsurf_Part!$E$10,12*($BB9-1),4*(PlotControl!$C$4-1),12,1)) -> 10077
A10: 6 | B10: =MAX(OFFSET(EPCat23_Dunka!$C$10,12*($A10-1),4*(PlotControl!$C$4-1),12,1)) -> 9252.4 | C10: =MAX(OFFSET(EPCat23_Dunka!$D$10,12*($A10-1),4*(PlotControl!$C$4-1),12,1)) -> 9736.6 | D10: =MAX(OFFSET(EPCat23_Dunka!$E$10,12*($A10-1),4*(PlotControl!$C$4-1),12,1)) -> 10311 | H10: =MAX(OFFSET(OSP_Dunka!$C$10,12*($A10-1),4*(PlotControl!$C$4-1),12,1)) -> 9110.4 | I10: =MAX(OFFSET(OSP_Dunka!$D$10,12*($A10-1),4*(PlotControl!$C$4-1),12,1)) -> 9581.1 | J10: =MAX(OFFSET(OSP_Dunka!$E$10,12*($A10-1),4*(PlotControl!$C$4-1),12,1)) -> 10077 | K10: =MAX(OFFSET(WWTF_Dunka!$C$10,12*($A10-1),4*(PlotControl!$C$4-1),12,1)) -> 9117.8 | L10: =MAX(OFFSET(WWTF_Dunka!$D$10,12*($A10-1),4*(PlotControl!$C$4-1),12,1)) -> 9585.6 | M10: =MAX(OFFSET(WWTF_Dunka!$E$10,12*($A10-1),4*(PlotControl!$C$4-1),12,1)) -> 10081 | N10: =MAX(OFFSET(OSLA_Dunka!$C$10,12*($A10-1),4*(PlotControl!$C$4-1),12,1)) -> 21507 | O10: =MAX(OFFSET(OSLA_Dunka!$D$10,12*($A10-1),4*(PlotControl!$C$4-1),12,1)) -> 24233 | P10: =MAX(OFFSET(OSLA_Dunka!$E$10,12*($A10-1),4*(PlotControl!$C$4-1),12,1)) -> 27282 | Q10: =MAX(OFFSET(WPsurf_Dunka!$C$10,12*($A10-1),4*(PlotControl!$C$4-1),12,1)) -> 9110.4 | R10: =MAX(OFFSET(WPsurf_Dunka!$D$10,12*($A10-1),4*(PlotControl!$C$4-1),12,1)) -> 9581.1 | S10: =MAX(OFFSET(WPsurf_Dunka!$E$10,12*($A10-1),4*(PlotControl!$C$4-1),12,1)) -> 10077 | AB10: 6 | AC10: =MAX(OFFSET(EPCat23_Prop!$C$10,12*($AB10-1),4*(PlotControl!$C$4-1),12,1)) -> 9113.5 | AD10: =MAX(OFFSET(EPCat23_Prop!$D$10,12*($AB10-1),4*(PlotControl!$C$4-1),12,1)) -> 9585.7 | AE10: =MAX(OFFSET(EPCat23_Prop!$E$10,12*($AB10-1),4*(PlotControl!$C$4-1),12,1)) -> 10081 | AF10: =MAX(OFFSET(EPbed_Prop!$C$10,12*($AB10-1),4*(PlotControl!$C$4-1),12,1)) -> 20929 | AG10: =MAX(OFFSET(EPbed_Prop!$D$10,12*($AB10-1),4*(PlotControl!$C$4-1),12,1)) -> 24964 | AH10: =MAX(OFFSET(EPbed_Prop!$E$10,12*($AB10-1),4*(PlotControl!$C$4-1),12,1)) -> 29770 | AL10: =MAX(OFFSET(WWTF_Prop!$C$10,12*($AB10-1),4*(PlotControl!$C$4-1),12,1)) -> 9110.4 | AM10: =MAX(OFFSET(WWTF_Prop!$D$10,12*($AB10-1),4*(PlotControl!$C$4-1),12,1)) -> 9581.1 | AN10: =MAX(OFFSET(WWTF_Prop!$E$10,12*($AB10-1),4*(PlotControl!$C$4-1),12,1)) -> 10077 | AO10: =MAX(OFFSET(OSLA_Prop!$C$10,12*($AB10-1),4*(PlotControl!$C$4-1),12,1)) -> 10315 | AP10: =MAX(OFFSET(OSLA_Prop!$D$10,12*($AB10-1),4*(PlotControl!$C$4-1),12,1)) -> 11256 | AQ10: =MAX(OFFSET(OSLA_Prop!$E$10,12*($AB10-1),4*(PlotControl!$C$4-1),12,1)) -> 12722 | AR10: =MAX(OFFSET(WPsurf_Prop!$C$10,12*($AB10-1),4*(PlotControl!$C$4-1),12,1)) -> 9110.4 | AS10: =MAX(OFFSET(WPsurf_Prop!$D$10,12*($AB10-1),4*(PlotControl!$C$4-1),12,1)) -> 9581.1 | AT10: =MAX(OFFSET(WPsurf_Prop!$E$10,12*($AB10-1),4*(PlotControl!$C$4-1),12,1)) -> 10077 | AU10: =MAX(OFFSET(WPbed4_Prop!$C$10,12*($AB10-1),4*(PlotControl!$C$4-1),12,1)) -> 20929 | AV10: =MAX(OFFSET(WPbed4_Prop!$D$10,12*($AB10-1),4*(PlotControl!$C$4-1),12,1)) -> 24964 | AW10: =MAX(OFFSET(WPbed4_Prop!$E$10,12*($AB10-1),4*(PlotControl!$C$4-1),12,1)) -> 29770 | AX10: =MAX(OFFSET(WPbed4a_Prop!$C$10,12*($AB10-1),4*(PlotControl!$C$4-1),12,1)) -> 20929 | AY10: =MAX(OFFSET(WPbed4a_Prop!$D$10,12*($AB10-1),4*(PlotControl!$C$4-1),12,1)) -> 24964 | AZ10: =MAX(OFFSET(WPbed4a_Prop!$E$10,12*($AB10-1),4*(PlotControl!$C$4-1),12,1)) -> 29770 | BB10: 6 | BC10: =MAX(OFFSET(EPCat23_Part!$C$10,12*($BB10-1),4*(PlotControl!$C$4-1),12,1)) -> 9110.4 | BD10: =MAX(OFFSET(EPCat23_Part!$D$10,12*($BB10-1),4*(PlotControl!$C$4-1),12,1)) -> 9581.1 | BE10: =MAX(OFFSET(EPCat23_Part!$E$10,12*($BB10-1),4*(PlotControl!$C$4-1),12,1)) -> 10077 | BI10: =MAX(OFFSET(OSP_Part1!$C$10,12*($BB10-1),4*(PlotControl!$C$4-1),12,1)) -> 9110.4 | BJ10: =MAX(OFFSET(OSP_Part1!$D$10,12*($BB10-1),4*(PlotControl!$C$4-1),12,1)) -> 9581.1 | BK10: =MAX(OFFSET(OSP_Part1!$E$10,12*($BB10-1),4*(PlotControl!$C$4-1),12,1)) -> 10077 | BL10: =MAX(OFFSET(WWTF_Part!$C$10,12*($BB10-1),4*(PlotControl!$C$4-1),12,1)) -> 9110.4 | BM10: =MAX(OFFSET(WWTF_Part!$D$10,12*($BB10-1),4*(PlotControl!$C$4-1),12,1)) -> 9581.1 | BN10: =MAX(OFFSET(WWTF_Part!$E$10,12*($BB10-1),4*(PlotControl!$C$4-1),12,1)) -> 10077 | BO10: =MAX(OFFSET(OSLA_Part!$C$10,12*($BB10-1),4*(PlotControl!$C$4-1),12,1)) -> 9110.4 | BP10: =MAX(OFFSET(OSLA_Part!$D$10,12*($BB10-1),4*(PlotControl!$C$4-1),12,1)) -> 9581.1 | BQ10: =MAX(OFFSET(OSLA_Part!$E$10,12*($BB10-1),4*(PlotControl!$C$4-1),12,1)) -> 10077 | BR10: =MAX(OFFSET(WPsurf_Part!$C$10,12*($BB10-1),4*(PlotControl!$C$4-1),12,1)) -> 9110.4 | BS10: =MAX(OFFSET(WPsurf_Part!$D$10,12*($BB10-1),4*(PlotControl!$C$4-1),12,1)) -> 9581.1 | BT10: =MAX(OFFSET(WPsurf_Part!$E$10,12*($BB10-1),4*(PlotControl!$C$4-1),12,1)) -> 10077
A11: 7 | B11: =MAX(OFFSET(EPCat23_Dunka!$C$10,12*($A11-1),4*(PlotControl!$C$4-1),12,1)) -> 9298.5 | C11: =MAX(OFFSET(EPCat23_Dunka!$D$10,12*($A11-1),4*(PlotControl!$C$4-1),12,1)) -> 9814.9 | D11: =MAX(OFFSET(EPCat23_Dunka!$E$10,12*($A11-1),4*(PlotControl!$C$4-1),12,1)) -> 10406 | H11: =MAX(OFFSET(OSP_Dunka!$C$10,12*($A11-1),4*(PlotControl!$C$4-1),12,1)) -> 9110.4 | I11: =MAX(OFFSET(OSP_Dunka!$D$10,12*($A11-1),4*(PlotControl!$C$4-1),12,1)) -> 9581.1 | J11: =MAX(OFFSET(OSP_Dunka!$E$10,12*($A11-1),4*(PlotControl!$C$4-1),12,1)) -> 10077 | K11: =MAX(OFFSET(WWTF_Dunka!$C$10,12*($A11-1),4*(PlotControl!$C$4-1),12,1)) -> 9121 | L11: =MAX(OFFSET(WWTF_Dunka!$D$10,12*($A11-1),4*(PlotControl!$C$4-1),12,1)) -> 9589.9 | M11: =MAX(OFFSET(WWTF_Dunka!$E$10,12*($A11-1),4*(PlotControl!$C$4-1),12,1)) -> 10085 | N11: =MAX(OFFSET(OSLA_Dunka!$C$10,12*($A11-1),4*(PlotControl!$C$4-1),12,1)) -> 23126 | O11: =MAX(OFFSET(OSLA_Dunka!$D$10,12*($A11-1),4*(PlotControl!$C$4-1),12,1)) -> 25909 | P11: =MAX(OFFSET(OSLA_Dunka!$E$10,12*($A11-1),4*(PlotControl!$C$4-1),12,1)) -> 29415 | Q11: =MAX(OFFSET(WPsurf_Dunka!$C$10,12*($A11-1),4*(PlotControl!$C$4-1),12,1)) -> 9110.4 | R11: =MAX(OFFSET(WPsurf_Dunka!$D$10,12*($A11-1),4*(PlotControl!$C$4-1),12,1)) -> 9581.1 | S11: =MAX(OFFSET(WPsurf_Dunka!$E$10,12*($A11-1),4*(PlotControl!$C$4-1),12,1)) -> 10077 | AB11: 7 | AC11: =MAX(OFFSET(EPCat23_Prop!$C$10,12*($AB11-1),4*(PlotControl!$C$4-1),12,1)) -> 9115.6 | AD11: =MAX(OFFSET(EPCat23_Prop!$D$10,12*($AB11-1),4*(PlotControl!$C$4-1),12,1)) -> 9592.6 | AE11: =MAX(OFFSET(EPCat23_Prop!$E$10,12*($AB11-1),4*(PlotControl!$C$4-1),12,1)) -> 10092 | AF11: =MAX(OFFSET(EPbed_Prop!$C$10,12*($AB11-1),4*(PlotControl!$C$4-1),12,1)) -> 20929 | AG11: =MAX(OFFSET(EPbed_Prop!$D$10,12*($AB11-1),4*(PlotControl!$C$4-1),12,1)) -> 24964 | AH11: =MAX(OFFSET(EPbed_Prop!$E$10,12*($AB11-1),4*(PlotControl!$C$4-1),12,1)) -> 29770 | AL11: =MAX(OFFSET(WWTF_Prop!$C$10,12*($AB11-1),4*(PlotControl!$C$4-1),12,1)) -> 9110.4 | AM11: =MAX(OFFSET(WWTF_Prop!$D$10,12*($AB11-1),4*(PlotControl!$C$4-1),12,1)) -> 9581.1 | AN11: =MAX(OFFSET(WWTF_Prop!$E$10,12*($AB11-1),4*(PlotControl!$C$4-1),12,1)) -> 10077 | AO11: =MAX(OFFSET(OSLA_Prop!$C$10,12*($AB11-1),4*(PlotControl!$C$4-1),12,1)) -> 11202 | AP11: =MAX(OFFSET(OSLA_Prop!$D$10,12*($AB11-1),4*(PlotControl!$C$4-1),12,1)) -> 12483 | AQ11: =MAX(OFFSET(OSLA_Prop!$E$10,12*($AB11-1),4*(PlotControl!$C$4-1),12,1)) -> 14543 | AR11: =MAX(OFFSET(WPsurf_Prop!$C$10,12*($AB11-1),4*(PlotControl!$C$4-1),12,1)) -> 9110.4 | AS11: =MAX(OFFSET(WPsurf_Prop!$D$10,12*($AB11-1),4*(PlotControl!$C$4-1),12,1)) -> 9581.1 | AT11: =MAX(OFFSET(WPsurf_Prop!$E$10,12*($AB11-1),4*(PlotControl!$C$4-1),12,1)) -> 10077 | AU11: =MAX(OFFSET(WPbed4_Prop!$C$10,12*($AB11-1),4*(PlotControl!$C$4-1),12,1)) -> 20929 | AV11: =MAX(OFFSET(WPbed4_Prop!$D$10,12*($AB11-1),4*(PlotControl!$C$4-1),12,1)) -> 24964 | AW11: =MAX(OFFSET(WPbed4_Prop!$E$10,12*($AB11-1),4*(PlotControl!$C$4-1),12,1)) -> 29770 | AX11: =MAX(OFFSET(WPbed4a_Prop!$C$10,12*($AB11-1),4*(PlotControl!$C$4-1),12,1)) -> 20929 | AY11: =MAX(OFFSET(WPbed4a_Prop!$D$10,12*($AB11-1),4*(PlotControl!$C$4-1),12,1)) -> 24964 | AZ11: =MAX(OFFSET(WPbed4a_Prop!$E$10,12*($AB11-1),4*(PlotControl!$C$4-1),12,1)) -> 29770 | BB11: 7 | BC11: =MAX(OFFSET(EPCat23_Part!$C$10,12*($BB11-1),4*(PlotControl!$C$4-1),12,1)) -> 9110.4 | BD11: =MAX(OFFSET(EPCat23_Part!$D$10,12*($BB11-1),4*(PlotControl!$C$4-1),12,1)) -> 9581.1 | BE11: =MAX(OFFSET(EPCat23_Part!$E$10,12*($BB11-1),4*(PlotControl!$C$4-1),12,1)) -> 10077 | BI11: =MAX(OFFSET(OSP_Part1!$C$10,12*($BB11-1),4*(PlotControl!$C$4-1),12,1)) -> 9110.4 | BJ11: =MAX(OFFSET(OSP_Part1!$D$10,12*($BB11-1),4*(PlotControl!$C$4-1),12,1)) -> 9581.1 | BK11: =MAX(OFFSET(OSP_Part1!$E$10,12*($BB11-1),4*(PlotControl!$C$4-1),12,1)) -> 10077 | BL11: =MAX(OFFSET(WWTF_Part!$C$10,12*($BB11-1),4*(PlotControl!$C$4-1),12,1)) -> 9110.4 | BM11: =MAX(OFFSET(WWTF_Part!$D$10,12*($BB11-1),4*(PlotControl!$C$4-1),12,1)) -> 9581.1 | BN11: =MAX(OFFSET(WWTF_Part!$E$10,12*($BB11-1),4*(PlotControl!$C$4-1),12,1)) -> 10077 | BO11: =MAX(OFFSET(OSLA_Part!$C$10,12*($BB11-1),4*(PlotControl!$C$4-1),12,1)) -> 9110.4 | BP11: =MAX(OFFSET(OSLA_Part!$D$10,12*($BB11-1),4*(PlotControl!$C$4-1),12,1)) -> 9581.1 | BQ11: =MAX(OFFSET(OSLA_Part!$E$10,12*($BB11-1),4*(PlotControl!$C$4-1),12,1)) -> 10077 | BR11: =MAX(OFFSET(WPsurf_Part!$C$10,12*($BB11-1),4*(PlotControl!$C$4-1),12,1)) -> 9110.4 | BS11: =MAX(OFFSET(WPsurf_Part!$D$10,12*($BB11-1),4*(PlotControl!$C$4-1),12,1)) -> 9581.1 | BT11: =MAX(OFFSET(WPsurf_Part!$E$10,12*($BB11-1),4*(PlotControl!$C$4-1),12,1)) -> 10077
A12: 8 | B12: =MAX(OFFSET(EPCat23_Dunka!$C$10,12*($A12-1),4*(PlotControl!$C$4-1),12,1)) -> 9349.2 | C12: =MAX(OFFSET(EPCat23_Dunka!$D$10,12*($A12-1),4*(PlotControl!$C$4-1),12,1)) -> 9899.5 | D12: =MAX(OFFSET(EPCat23_Dunka!$E$10,12*($A12-1),4*(PlotControl!$C$4-1),12,1)) -> 10582 | H12: =MAX(OFFSET(OSP_Dunka!$C$10,12*($A12-1),4*(PlotControl!$C$4-1),12,1)) -> 9110.5 | I12: =MAX(OFFSET(OSP_Dunka!$D$10,12*($A12-1),4*(PlotControl!$C$4-1),12,1)) -> 9581.1 | J12: =MAX(OFFSET(OSP_Dunka!$E$10,12*($A12-1),4*(PlotControl!$C$4-1),12,1)) -> 10077 | K12: =MAX(OFFSET(WWTF_Dunka!$C$10,12*($A12-1),4*(PlotControl!$C$4-1),12,1)) -> 9125.7 | L12: =MAX(OFFSET(WWTF_Dunka!$D$10,12*($A12-1),4*(PlotControl!$C$4-1),12,1)) -> 9593.6 | M12: =MAX(OFFSET(WWTF_Dunka!$E$10,12*($A12-1),4*(PlotControl!$C$4-1),12,1)) -> 10091 | N12: =MAX(OFFSET(OSLA_Dunka!$C$10,12*($A12-1),4*(PlotControl!$C$4-1),12,1)) -> 24397 | O12: =MAX(OFFSET(OSLA_Dunka!$D$10,12*($A12-1),4*(PlotControl!$C$4-1),12,1)) -> 27463 | P12: =MAX(OFFSET(OSLA_Dunka!$E$10,12*($A12-1),4*(PlotControl!$C$4-1),12,1)) -> 31314 | Q12: =MAX(OFFSET(WPsurf_Dunka!$C$10,12*($A12-1),4*(PlotControl!$C$4-1),12,1)) -> 9110.4 | R12: =MAX(OFFSET(WPsurf_Dunka!$D$10,12*($A12-1),4*(PlotControl!$C$4-1),12,1)) -> 9581.1 | S12: =MAX(OFFSET(WPsurf_Dunka!$E$10,12*($A12-1),4*(PlotControl!$C$4-1),12,1)) -> 10077 | AB12: 8 | AC12: =MAX(OFFSET(EPCat23_Prop!$C$10,12*($AB12-1),4*(PlotControl!$C$4-1),12,1)) -> 9126.3 | AD12: =MAX(OFFSET(EPCat23_Prop!$D$10,12*($AB12-1),4*(PlotControl!$C$4-1),12,1)) -> 9596 | AE12: =MAX(OFFSET(EPCat23_Prop!$E$10,12*($AB12-1),4*(PlotControl!$C$4-1),12,1)) -> 10110 | AF12: =MAX(OFFSET(EPbed_Prop!$C$10,12*($AB12-1),4*(PlotControl!$C$4-1),12,1)) -> 20929 | AG12: =MAX(OFFSET(EPbed_Prop!$D$10,12*($AB12-1),4*(PlotControl!$C$4-1),12,1)) -> 24964 | AH12: =MAX(OFFSET(EPbed_Prop!$E$10,12*($AB12-1),4*(PlotControl!$C$4-1),12,1)) -> 29770 | AL12: =MAX(OFFSET(WWTF_Prop!$C$10,12*($AB12-1),4*(PlotControl!$C$4-1),12,1)) -> 9110.4 | AM12: =MAX(OFFSET(WWTF_Prop!$D$10,12*($AB12-1),4*(PlotControl!$C$4-1),12,1)) -> 9581.1 | AN12: =MAX(OFFSET(WWTF_Prop!$E$10,12*($AB12-1),4*(PlotControl!$C$4-1),12,1)) -> 10077 | AO12: =MAX(OFFSET(OSLA_Prop!$C$10,12*($AB12-1),4*(PlotControl!$C$4-1),12,1)) -> 12244 | AP12: =MAX(OFFSET(OSLA_Prop!$D$10,12*($AB12-1),4*(PlotControl!$C$4-1),12,1)) -> 13995 | AQ12: =MAX(OFFSET(OSLA_Prop!$E$10,12*($AB12-1),4*(PlotControl!$C$4-1),12,1)) -> 16585 | AR12: =MAX(OFFSET(WPsurf_Prop!$C$10,12*($AB12-1),4*(PlotControl!$C$4-1),12,1)) -> 9110.4 | AS12: =MAX(OFFSET(WPsurf_Prop!$D$10,12*($AB12-1),4*(PlotControl!$C$4-1),12,1)) -> 9581.1 | AT12: =MAX(OFFSET(WPsurf_Prop!$E$10,12*($AB12-1),4*(PlotControl!$C$4-1),12,1)) -> 10077 | AU12: =MAX(OFFSET(WPbed4_Prop!$C$10,12*($AB12-1),4*(PlotControl!$C$4-1),12,1)) -> 20929 | AV12: =MAX(OFFSET(WPbed4_Prop!$D$10,12*($AB12-1),4*(PlotControl!$C$4-1),12,1)) -> 24964 | AW12: =MAX(OFFSET(WPbed4_Prop!$E$10,12*($AB12-1),4*(PlotControl!$C$4-1),12,1)) -> 29770 | AX12: =MAX(OFFSET(WPbed4a_Prop!$C$10,12*($AB12-1),4*(PlotControl!$C$4-1),12,1)) -> 20929 | AY12: =MAX(OFFSET(WPbed4a_Prop!$D$10,12*($AB12-1),4*(PlotControl!$C$4-1),12,1)) -> 24964 | AZ12: =MAX(OFFSET(WPbed4a_Prop!$E$10,12*($AB12-1),4*(PlotControl!$C$4-1),12,1)) -> 29770 | BB12: 8 | BC12: =MAX(OFFSET(EPCat23_Part!$C$10,12*($BB12-1),4*(PlotControl!$C$4-1),12,1)) -> 9110.4 | BD12: =MAX(OFFSET(EPCat23_Part!$D$10,12*($BB12-1),4*(PlotControl!$C$4-1),12,1)) -> 9581.1 | BE12: =MAX(OFFSET(EPCat23_Part!$E$10,12*($BB12-1),4*(PlotControl!$C$4-1),12,1)) -> 10077 | BI12: =MAX(OFFSET(OSP_Part1!$C$10,12*($BB12-1),4*(PlotControl!$C$4-1),12,1)) -> 9110.4 | BJ12: =MAX(OFFSET(OSP_Part1!$D$10,12*($BB12-1),4*(PlotControl!$C$4-1),12,1)) -> 9581.1 | BK12: =MAX(OFFSET(OSP_Part1!$E$10,12*($BB12-1),4*(PlotControl!$C$4-1),12,1)) -> 10077 | BL12: =MAX(OFFSET(WWTF_Part!$C$10,12*($BB12-1),4*(PlotControl!$C$4-1),12,1)) -> 9110.4 | BM12: =MAX(OFFSET(WWTF_Part!$D$10,12*($BB12-1),4*(PlotControl!$C$4-1),12,1)) -> 9581.1 | BN12: =MAX(OFFSET(WWTF_Part!$E$10,12*($BB12-1),4*(PlotControl!$C$4-1),12,1)) -> 10077 | BO12: =MAX(OFFSET(OSLA_Part!$C$10,12*($BB12-1),4*(PlotControl!$C$4-1),12,1)) -> 9110.4 | BP12: =MAX(OFFSET(OSLA_Part!$D$10,12*($BB12-1),4*(PlotControl!$C$4-1),12,1)) -> 9581.1 | BQ12: =MAX(OFFSET(OSLA_Part!$E$10,12*($BB12-1),4*(PlotControl!$C$4-1),12,1)) -> 10077 | BR12: =MAX(OFFSET(WPsurf_Part!$C$10,12*($BB12-1),4*(PlotControl!$C$4-1),12,1)) -> 9110.4 | BS12: =MAX(OFFSET(WPsurf_Part!$D$10,12*($BB12-1),4*(PlotControl!$C$4-1),12,1)) -> 9581.1 | BT12: =MAX(OFFSET(WPsurf_Part!$E$10,12*($BB12-1),4*(PlotControl!$C$4-1),12,1)) -> 10077
A13: 9 | B13: =MAX(OFFSET(EPCat23_Dunka!$C$10,12*($A13-1),4*(PlotControl!$C$4-1),12,1)) -> 9413 | C13: =MAX(OFFSET(EPCat23_Dunka!$D$10,12*($A13-1),4*(PlotControl!$C$4-1),12,1)) -> 9985.1 | D13: =MAX(OFFSET(EPCat23_Dunka!$E$10,12*($A13-1),4*(PlotControl!$C$4-1),12,1)) -> 10826 | H13: =MAX(OFFSET(OSP_Dunka!$C$10,12*($A13-1),4*(PlotControl!$C$4-1),12,1)) -> 9110.5 | I13: =MAX(OFFSET(OSP_Dunka!$D$10,12*($A13-1),4*(PlotControl!$C$4-1),12,1)) -> 9581.1 | J13: =MAX(OFFSET(OSP_Dunka!$E$10,12*($A13-1),4*(PlotControl!$C$4-1),12,1)) -> 10077 | K13: =MAX(OFFSET(WWTF_Dunka!$C$10,12*($A13-1),4*(PlotControl!$C$4-1),12,1)) -> 9132.3 | L13: =MAX(OFFSET(WWTF_Dunka!$D$10,12*($A13-1),4*(PlotControl!$C$4-1),12,1)) -> 9601.3 | M13: =MAX(OFFSET(WWTF_Dunka!$E$10,12*($A13-1),4*(PlotControl!$C$4-1),12,1)) -> 10102 | N13: =MAX(OFFSET(OSLA_Dunka!$C$10,12*($A13-1),4*(PlotControl!$C$4-1),12,1)) -> 25669 | O13: =MAX(OFFSET(OSLA_Dunka!$D$10,12*($A13-1),4*(PlotControl!$C$4-1),12,1)) -> 28989 | P13: =MAX(OFFSET(OSLA_Dunka!$E$10,12*($A13-1),4*(PlotControl!$C$4-1),12,1)) -> 32956 | Q13: =MAX(OFFSET(WPsurf_Dunka!$C$10,12*($A13-1),4*(PlotControl!$C$4-1),12,1)) -> 9110.4 | R13: =MAX(OFFSET(WPsurf_Dunka!$D$10,12*($A13-1),4*(PlotControl!$C$4-1),12,1)) -> 9581.1 | S13: =MAX(OFFSET(WPsurf_Dunka!$E$10,12*($A13-1),4*(PlotControl!$C$4-1),12,1)) -> 10077 | AB13: 9 | AC13: =MAX(OFFSET(EPCat23_Prop!$C$10,12*($AB13-1),4*(PlotControl!$C$4-1),12,1)) -> 9132.8 | AD13: =MAX(OFFSET(EPCat23_Prop!$D$10,12*($AB13-1),4*(PlotControl!$C$4-1),12,1)) -> 9600 | AE13: =MAX(OFFSET(EPCat23_Prop!$E$10,12*($AB13-1),4*(PlotControl!$C$4-1),12,1)) -> 10123 | AF13: =MAX(OFFSET(EPbed_Prop!$C$10,12*($AB13-1),4*(PlotControl!$C$4-1),12,1)) -> 20929 | AG13: =MAX(OFFSET(EPbed_Prop!$D$10,12*($AB13-1),4*(PlotControl!$C$4-1),12,1)) -> 24964 | AH13: =MAX(OFFSET(EPbed_Prop!$E$10,12*($AB13-1),4*(PlotControl!$C$4-1),12,1)) -> 29770 | AL13: =MAX(OFFSET(WWTF_Prop!$C$10,12*($AB13-1),4*(PlotControl!$C$4-1),12,1)) -> 9110.4 | AM13: =MAX(OFFSET(WWTF_Prop!$D$10,12*($AB13-1),4*(PlotControl!$C$4-1),12,1)) -> 9581.1 | AN13: =MAX(OFFSET(WWTF_Prop!$E$10,12*($AB13-1),4*(PlotControl!$C$4-1),12,1)) -> 10077 | AO13: =MAX(OFFSET(OSLA_Prop!$C$10,12*($AB13-1),4*(PlotControl!$C$4-1),12,1)) -> 13461 | AP13: =MAX(OFFSET(OSLA_Prop!$D$10,12*($AB13-1),4*(PlotControl!$C$4-1),12,1)) -> 15696 | AQ13: =MAX(OFFSET(OSLA_Prop!$E$10,12*($AB13-1),4*(PlotControl!$C$4-1),12,1)) -> 18820 | AR13: =MAX(OFFSET(WPsurf_Prop!$C$10,12*($AB13-1),4*(PlotControl!$C$4-1),12,1)) -> 9110.4 | AS13: =MAX(OFFSET(WPsurf_Prop!$D$10,12*($AB13-1),4*(PlotControl!$C$4-1),12,1)) -> 9581.1 | AT13: =MAX(OFFSET(WPsurf_Prop!$E$10,12*($AB13-1),4*(PlotControl!$C$4-1),12,1)) -> 10077 | AU13: =MAX(OFFSET(WPbed4_Prop!$C$10,12*($AB13-1),4*(PlotControl!$C$4-1),12,1)) -> 20929 | AV13: =MAX(OFFSET(WPbed4_Prop!$D$10,12*($AB13-1),4*(PlotControl!$C$4-1),12,1)) -> 24964 | AW13: =MAX(OFFSET(WPbed4_Prop!$E$10,12*($AB13-1),4*(PlotControl!$C$4-1),12,1)) -> 29770 | AX13: =MAX(OFFSET(WPbed4a_Prop!$C$10,12*($AB13-1),4*(PlotControl!$C$4-1),12,1)) -> 20929 | AY13: =MAX(OFFSET(WPbed4a_Prop!$D$10,12*($AB13-1),4*(PlotControl!$C$4-1),12,1)) -> 24964 | AZ13: =MAX(OFFSET(WPbed4a_Prop!$E$10,12*($AB13-1),4*(PlotControl!$C$4-1),12,1)) -> 29770 | BB13: 9 | BC13: =MAX(OFFSET(EPCat23_Part!$C$10,12*($BB13-1),4*(PlotControl!$C$4-1),12,1)) -> 9110.4 | BD13: =MAX(OFFSET(EPCat23_Part!$D$10,12*($BB13-1),4*(PlotControl!$C$4-1),12,1)) -> 9581.1 | BE13: =MAX(OFFSET(EPCat23_Part!$E$10,12*($BB13-1),4*(PlotControl!$C$4-1),12,1)) -> 10077 | BI13: =MAX(OFFSET(OSP_Part1!$C$10,12*($BB13-1),4*(PlotControl!$C$4-1),12,1)) -> 9110.4 | BJ13: =MAX(OFFSET(OSP_Part1!$D$10,12*($BB13-1),4*(PlotControl!$C$4-1),12,1)) -> 9581.1 | BK13: =MAX(OFFSET(OSP_Part1!$E$10,12*($BB13-1),4*(PlotControl!$C$4-1),12,1)) -> 10077 | BL13: =MAX(OFFSET(WWTF_Part!$C$10,12*($BB13-1),4*(PlotControl!$C$4-1),12,1)) -> 9110.4 | BM13: =MAX(OFFSET(WWTF_Part!$D$10,12*($BB13-1),4*(PlotControl!$C$4-1),12,1)) -> 9581.1 | BN13: =MAX(OFFSET(WWTF_Part!$E$10,12*($BB13-1),4*(PlotControl!$C$4-1),12,1)) -> 10077 | BO13: =MAX(OFFSET(OSLA_Part!$C$10,12*($BB13-1),4*(PlotControl!$C$4-1),12,1)) -> 9110.4 | BP13: =MAX(OFFSET(OSLA_Part!$D$10,12*($BB13-1),4*(PlotControl!$C$4-1),12,1)) -> 9581.1 | BQ13: =MAX(OFFSET(OSLA_Part!$E$10,12*($BB13-1),4*(PlotControl!$C$4-1),12,1)) -> 10077 | BR13: =MAX(OFFSET(WPsurf_Part!$C$10,12*($BB13-1),4*(PlotControl!$C$4-1),12,1)) -> 9110.4 | BS13: =MAX(OFFSET(WPsurf_Part!$D$10,12*($BB13-1),4*(PlotControl!$C$4-1),12,1)) -> 9581.1 | BT13: =MAX(OFFSET(WPsurf_Part!$E$10,12*($BB13-1),4*(PlotControl!$C$4-1),12,1)) -> 10077
A14: 10 | B14: =MAX(OFFSET(EPCat23_Dunka!$C$10,12*($A14-1),4*(PlotControl!$C$4-1),12,1)) -> 9505.4 | C14: =MAX(OFFSET(EPCat23_Dunka!$D$10,12*($A14-1),4*(PlotControl!$C$4-1),12,1)) -> 10123 | D14: =MAX(OFFSET(EPCat23_Dunka!$E$10,12*($A14-1),4*(PlotControl!$C$4-1),12,1)) -> 11204 | H14: =MAX(OFFSET(OSP_Dunka!$C$10,12*($A14-1),4*(PlotControl!$C$4-1),12,1)) -> 9110.5 | I14: =MAX(OFFSET(OSP_Dunka!$D$10,12*($A14-1),4*(PlotControl!$C$4-1),12,1)) -> 9581.1 | J14: =MAX(OFFSET(OSP_Dunka!$E$10,12*($A14-1),4*(PlotControl!$C$4-1),12,1)) -> 10077 | K14: =MAX(OFFSET(WWTF_Dunka!$C$10,12*($A14-1),4*(PlotControl!$C$4-1),12,1)) -> 9145.9 | L14: =MAX(OFFSET(WWTF_Dunka!$D$10,12*($A14-1),4*(PlotControl!$C$4-1),12,1)) -> 9613.8 | M14: =MAX(OFFSET(WWTF_Dunka!$E$10,12*($A14-1),4*(PlotControl!$C$4-1),12,1)) -> 10118 | N14: =MAX(OFFSET(OSLA_Dunka!$C$10,12*($A14-1),4*(PlotControl!$C$4-1),12,1)) -> 26800 | O14: =MAX(OFFSET(OSLA_Dunka!$D$10,12*($A14-1),4*(PlotControl!$C$4-1),12,1)) -> 30324 | P14: =MAX(OFFSET(OSLA_Dunka!$E$10,12*($A14-1),4*(PlotControl!$C$4-1),12,1)) -> 34502 | Q14: =MAX(OFFSET(WPsurf_Dunka!$C$10,12*($A14-1),4*(PlotControl!$C$4-1),12,1)) -> 9110.4 | R14: =MAX(OFFSET(WPsurf_Dunka!$D$10,12*($A14-1),4*(PlotControl!$C$4-1),12,1)) -> 9581.1 | S14: =MAX(OFFSET(WPsurf_Dunka!$E$10,12*($A14-1),4*(PlotControl!$C$4-1),12,1)) -> 10077 | AB14: 10 | AC14: =MAX(OFFSET(EPCat23_Prop!$C$10,12*($AB14-1),4*(PlotControl!$C$4-1),12,1)) -> 9152.3 | AD14: =MAX(OFFSET(EPCat23_Prop!$D$10,12*($AB14-1),4*(PlotControl!$C$4-1),12,1)) -> 9617.6 | AE14: =MAX(OFFSET(EPCat23_Prop!$E$10,12*($AB14-1),4*(PlotControl!$C$4-1),12,1)) -> 10148 | AF14: =MAX(OFFSET(EPbed_Prop!$C$10,12*($AB14-1),4*(PlotControl!$C$4-1),12,1)) -> 20929 | AG14: =MAX(OFFSET(EPbed_Prop!$D$10,12*($AB14-1),4*(PlotControl!$C$4-1),12,1)) -> 24964 | AH14: =MAX(OFFSET(EPbed_Prop!$E$10,12*($AB14-1),4*(PlotControl!$C$4-1),12,1)) -> 29770 | AL14: =MAX(OFFSET(WWTF_Prop!$C$10,12*($AB14-1),4*(PlotControl!$C$4-1),12,1)) -> 9110.4 | AM14: =MAX(OFFSET(WWTF_Prop!$D$10,12*($AB14-1),4*(PlotControl!$C$4-1),12,1)) -> 9581.1 | AN14: =MAX(OFFSET(WWTF_Prop!$E$10,12*($AB14-1),4*(PlotControl!$C$4-1),12,1)) -> 10077 | AO14: =MAX(OFFSET(OSLA_Prop!$C$10,12*($AB14-1),4*(PlotControl!$C$4-1),12,1)) -> 14893 | AP14: =MAX(OFFSET(OSLA_Prop!$D$10,12*($AB14-1),4*(PlotControl!$C$4-1),12,1)) -> 17433 | AQ14: =MAX(OFFSET(OSLA_Prop!$E$10,12*($AB14-1),4*(PlotControl!$C$4-1),12,1)) -> 20919 | AR14: =MAX(OFFSET(WPsurf_Prop!$C$10,12*($AB14-1),4*(PlotControl!$C$4-1),12,1)) -> 9110.4 | AS14: =MAX(OFFSET(WPsurf_Prop!$D$10,12*($AB14-1),4*(PlotControl!$C$4-1),12,1)) -> 9581.1 | AT14: =MAX(OFFSET(WPsurf_Prop!$E$10,12*($AB14-1),4*(PlotControl!$C$4-1),12,1)) -> 10077 | AU14: =MAX(OFFSET(WPbed4_Prop!$C$10,12*($AB14-1),4*(PlotControl!$C$4-1),12,1)) -> 20929 | AV14: =MAX(OFFSET(WPbed4_Prop!$D$10,12*($AB14-1),4*(PlotControl!$C$4-1),12,1)) -> 24964 | AW14: =MAX(OFFSET(WPbed4_Prop!$E$10,12*($AB14-1),4*(PlotControl!$C$4-1),12,1)) -> 29770 | AX14: =MAX(OFFSET(WPbed4a_Prop!$C$10,12*($AB14-1),4*(PlotControl!$C$4-1),12,1)) -> 20929 | AY14: =MAX(OFFSET(WPbed4a_Prop!$D$10,12*($AB14-1),4*(PlotControl!$C$4-1),12,1)) -> 24964 | AZ14: =MAX(OFFSET(WPbed4a_Prop!$E$10,12*($AB14-1),4*(PlotControl!$C$4-1),12,1)) -> 29770 | BB14: 10 | BC14: =MAX(OFFSET(EPCat23_Part!$C$10,12*($BB14-1),4*(PlotControl!$C$4-1),12,1)) -> 9110.4 | BD14: =MAX(OFFSET(EPCat23_Part!$D$10,12*($BB14-1),4*(PlotControl!$C$4-1),12,1)) -> 9581.1 | BE14: =MAX(OFFSET(EPCat23_Part!$E$10,12*($BB14-1),4*(PlotControl!$C$4-1),12,1)) -> 10077 | BI14: =MAX(OFFSET(OSP_Part1!$C$10,12*($BB14-1),4*(PlotControl!$C$4-1),12,1)) -> 9110.4 | BJ14: =MAX(OFFSET(OSP_Part1!$D$10,12*($BB14-1),4*(PlotControl!$C$4-1),12,1)) -> 9581.1 | BK14: =MAX(OFFSET(OSP_Part1!$E$10,12*($BB14-1),4*(PlotControl!$C$4-1),12,1)) -> 10077 | BL14: =MAX(OFFSET(WWTF_Part!$C$10,12*($BB14-1),4*(PlotControl!$C$4-1),12,1)) -> 9110.4 | BM14: =MAX(OFFSET(WWTF_Part!$D$10,12*($BB14-1),4*(PlotControl!$C$4-1),12,1)) -> 9581.1 | BN14: =MAX(OFFSET(WWTF_Part!$E$10,12*($BB14-1),4*(PlotControl!$C$4-1),12,1)) -> 10077 | BO14: =MAX(OFFSET(OSLA_Part!$C$10,12*($BB14-1),4*(PlotControl!$C$4-1),12,1)) -> 9110.4 | BP14: =MAX(OFFSET(OSLA_Part!$D$10,12*($BB14-1),4*(PlotControl!$C$4-1),12,1)) -> 9581.1 | BQ14: =MAX(OFFSET(OSLA_Part!$E$10,12*($BB14-1),4*(PlotControl!$C$4-1),12,1)) -> 10077 | BR14: =MAX(OFFSET(WPsurf_Part!$C$10,12*($BB14-1),4*(PlotControl!$C$4-1),12,1)) -> 9110.4 | BS14: =MAX(OFFSET(WPsurf_Part!$D$10,12*($BB14-1),4*(PlotControl!$C$4-1),12,1)) -> 9581.1 | BT14: =MAX(OFFSET(WPsurf_Part!$E$10,12*($BB14-1),4*(PlotControl!$C$4-1),12,1)) -> 10077
A15: 11 | B15: =MAX(OFFSET(EPCat23_Dunka!$C$10,12*($A15-1),4*(PlotControl!$C$4-1),12,1)) -> 9590.2 | C15: =MAX(OFFSET(EPCat23_Dunka!$D$10,12*($A15-1),4*(PlotControl!$C$4-1),12,1)) -> 10260 | D15: =MAX(OFFSET(EPCat23_Dunka!$E$10,12*($A15-1),4*(PlotControl!$C$4-1),12,1)) -> 11677 | H15: =MAX(OFFSET(OSP_Dunka!$C$10,12*($A15-1),4*(PlotControl!$C$4-1),12,1)) -> 9110.5 | I15: =MAX(OFFSET(OSP_Dunka!$D$10,12*($A15-1),4*(PlotControl!$C$4-1),12,1)) -> 9581.1 | J15: =MAX(OFFSET(OSP_Dunka!$E$10,12*($A15-1),4*(PlotControl!$C$4-1),12,1)) -> 10077 | K15: =MAX(OFFSET(WWTF_Dunka!$C$10,12*($A15-1),4*(PlotControl!$C$4-1),12,1)) -> 9161 | L15: =MAX(OFFSET(WWTF_Dunka!$D$10,12*($A15-1),4*(PlotControl!$C$4-1),12,1)) -> 9627.4 | M15: =MAX(OFFSET(WWTF_Dunka!$E$10,12*($A15-1),4*(PlotControl!$C$4-1),12,1)) -> 10127 | N15: =MAX(OFFSET(OSLA_Dunka!$C$10,12*($A15-1),4*(PlotControl!$C$4-1),12,1)) -> 27736 | O15: =MAX(OFFSET(OSLA_Dunka!$D$10,12*($A15-1),4*(PlotControl!$C$4-1),12,1)) -> 31529 | P15: =MAX(OFFSET(OSLA_Dunka!$E$10,12*($A15-1),4*(PlotControl!$C$4-1),12,1)) -> 35863 | Q15: =MAX(OFFSET(WPsurf_Dunka!$C$10,12*($A15-1),4*(PlotControl!$C$4-1),12,1)) -> 9110.4 | R15: =MAX(OFFSET(WPsurf_Dunka!$D$10,12*($A15-1),4*(PlotControl!$C$4-1),12,1)) -> 9581.1 | S15: =MAX(OFFSET(WPsurf_Dunka!$E$10,12*($A15-1),4*(PlotControl!$C$4-1),12,1)) -> 10077 | AB15: 11 | AC15: =MAX(OFFSET(EPCat23_Prop!$C$10,12*($AB15-1),4*(PlotControl!$C$4-1),12,1)) -> 9162.2 | AD15: =MAX(OFFSET(EPCat23_Prop!$D$10,12*($AB15-1),4*(PlotControl!$C$4-1),12,1)) -> 9644.9 | AE15: =MAX(OFFSET(EPCat23_Prop!$E$10,12*($AB15-1),4*(PlotControl!$C$4-1),12,1)) -> 10180 | AF15: =MAX(OFFSET(EPbed_Prop!$C$10,12*($AB15-1),4*(PlotControl!$C$4-1),12,1)) -> 20929 | AG15: =MAX(OFFSET(EPbed_Prop!$D$10,12*($AB15-1),4*(PlotControl!$C$4-1),12,1)) -> 24964 | AH15: =MAX(OFFSET(EPbed_Prop!$E$10,12*($AB15-1),4*(PlotControl!$C$4-1),12,1)) -> 29770 | AL15: =MAX(OFFSET(WWTF_Prop!$C$10,12*($AB15-1),4*(PlotControl!$C$4-1),12,1)) -> 9110.4 | AM15: =MAX(OFFSET(WWTF_Prop!$D$10,12*($AB15-1),4*(PlotControl!$C$4-1),12,1)) -> 9581.1 | AN15: =MAX(OFFSET(WWTF_Prop!$E$10,12*($AB15-1),4*(PlotControl!$C$4-1),12,1)) -> 10077 | AO15: =MAX(OFFSET(OSLA_Prop!$C$10,12*($AB15-1),4*(PlotControl!$C$4-1),12,1)) -> 16386 | AP15: =MAX(OFFSET(OSLA_Prop!$D$10,12*($AB15-1),4*(PlotControl!$C$4-1),12,1)) -> 19275 | AQ15: =MAX(OFFSET(OSLA_Prop!$E$10,12*($AB15-1),4*(PlotControl!$C$4-1),12,1)) -> 22776 | AR15: =MAX(OFFSET(WPsurf_Prop!$C$10,12*($AB15-1),4*(PlotControl!$C$4-1),12,1)) -> 9110.4 | AS15: =MAX(OFFSET(WPsurf_Prop!$D$10,12*($AB15-1),4*(PlotControl!$C$4-1),12,1)) -> 9581.1 | AT15: =MAX(OFFSET(WPsurf_Prop!$E$10,12*($AB15-1),4*(PlotControl!$C$4-1),12,1)) -> 10077 | AU15: =MAX(OFFSET(WPbed4_Prop!$C$10,12*($AB15-1),4*(PlotControl!$C$4-1),12,1)) -> 20929 | AV15: =MAX(OFFSET(WPbed4_Prop!$D$10,12*($AB15-1),4*(PlotControl!$C$4-1),12,1)) -> 24964 | AW15: =MAX(OFFSET(WPbed4_Prop!$E$10,12*($AB15-1),4*(PlotControl!$C$4-1),12,1)) -> 29770 | AX15: =MAX(OFFSET(WPbed4a_Prop!$C$10,12*($AB15-1),4*(PlotControl!$C$4-1),12,1)) -> 20929 | AY15: =MAX(OFFSET(WPbed4a_Prop!$D$10,12*($AB15-1),4*(PlotControl!$C$4-1),12,1)) -> 24964 | AZ15: =MAX(OFFSET(WPbed4a_Prop!$E$10,12*($AB15-1),4*(PlotControl!$C$4-1),12,1)) -> 29770 | BB15: 11 | BC15: =MAX(OFFSET(EPCat23_Part!$C$10,12*($BB15-1),4*(PlotControl!$C$4-1),12,1)) -> 9110.4 | BD15: =MAX(OFFSET(EPCat23_Part!$D$10,12*($BB15-1),4*(PlotControl!$C$4-1),12,1)) -> 9581.1 | BE15: =MAX(OFFSET(EPCat23_Part!$E$10,12*($BB15-1),4*(PlotControl!$C$4-1),12,1)) -> 10077 | BI15: =MAX(OFFSET(OSP_Part1!$C$10,12*($BB15-1),4*(PlotControl!$C$4-1),12,1)) -> 9110.4 | BJ15: =MAX(OFFSET(OSP_Part1!$D$10,12*($BB15-1),4*(PlotControl!$C$4-1),12,1)) -> 9581.1 | BK15: =MAX(OFFSET(OSP_Part1!$E$10,12*($BB15-1),4*(PlotControl!$C$4-1),12,1)) -> 10077 | BL15: =MAX(OFFSET(WWTF_Part!$C$10,12*($BB15-1),4*(PlotControl!$C$4-1),12,1)) -> 9110.4 | BM15: =MAX(OFFSET(WWTF_Part!$D$10,12*($BB15-1),4*(PlotControl!$C$4-1),12,1)) -> 9581.1 | BN15: =MAX(OFFSET(WWTF_Part!$E$10,12*($BB15-1),4*(PlotControl!$C$4-1),12,1)) -> 10077 | BO15: =MAX(OFFSET(OSLA_Part!$C$10,12*($BB15-1),4*(PlotControl!$C$4-1),12,1)) -> 9110.4 | BP15: =MAX(OFFSET(OSLA_Part!$D$10,12*($BB15-1),4*(PlotControl!$C$4-1),12,1)) -> 9581.1 | BQ15: =MAX(OFFSET(OSLA_Part!$E$10,12*($BB15-1),4*(PlotControl!$C$4-1),12,1)) -> 10077 | BR15: =MAX(OFFSET(WPsurf_Part!$C$10,12*($BB15-1),4*(PlotControl!$C$4-1),12,1)) -> 9110.4 | BS15: =MAX(OFFSET(WPsurf_Part!$D$10,12*($BB15-1),4*(PlotControl!$C$4-1),12,1)) -> 9581.1 | BT15: =MAX(OFFSET(WPsurf_Part!$E$10,12*($BB15-1),4*(PlotControl!$C$4-1),12,1)) -> 10077
A16: 12 | B16: =MAX(OFFSET(EPCat23_Dunka!$C$10,12*($A16-1),4*(PlotControl!$C$4-1),12,1)) -> 9697.5 | C16: =MAX(OFFSET(EPCat23_Dunka!$D$10,12*($A16-1),4*(PlotControl!$C$4-1),12,1)) -> 10442 | D16: =MAX(OFFSET(EPCat23_Dunka!$E$10,12*($A16-1),4*(PlotControl!$C$4-1),12,1)) -> 12240 | H16: =MAX(OFFSET(OSP_Dunka!$C$10,12*($A16-1),4*(PlotControl!$C$4-1),12,1)) -> 9110.5 | I16: =MAX(OFFSET(OSP_Dunka!$D$10,12*($A16-1),4*(PlotControl!$C$4-1),12,1)) -> 9581.1 | J16: =MAX(OFFSET(OSP_Dunka!$E$10,12*($A16-1),4*(PlotControl!$C$4-1),12,1)) -> 10077 | K16: =MAX(OFFSET(WWTF_Dunka!$C$10,12*($A16-1),4*(PlotControl!$C$4-1),12,1)) -> 9181.8 | L16: =MAX(OFFSET(WWTF_Dunka!$D$10,12*($A16-1),4*(PlotControl!$C$4-1),12,1)) -> 9651.7 | M16: =MAX(OFFSET(WWTF_Dunka!$E$10,12*($A16-1),4*(PlotControl!$C$4-1),12,1)) -> 10137 | N16: =MAX(OFFSET(OSLA_Dunka!$C$10,12*($A16-1),4*(PlotControl!$C$4-1),12,1)) -> 28708 | O16: =MAX(OFFSET(OSLA_Dunka!$D$10,12*($A16-1),4*(PlotControl!$C$4-1),12,1)) -> 32656 | P16: =MAX(OFFSET(OSLA_Dunka!$E$10,12*($A16-1),4*(PlotControl!$C$4-1),12,1)) -> 37051 | Q16: =MAX(OFFSET(WPsurf_Dunka!$C$10,12*($A16-1),4*(PlotControl!$C$4-1),12,1)) -> 9110.4 | R16: =MAX(OFFSET(WPsurf_Dunka!$D$10,12*($A16-1),4*(PlotControl!$C$4-1),12,1)) -> 9581.1 | S16: =MAX(OFFSET(WPsurf_Dunka!$E$10,12*($A16-1),4*(PlotControl!$C$4-1),12,1)) -> 10077 | AB16: 12 | AC16: =MAX(OFFSET(EPCat23_Prop!$C$10,12*($AB16-1),4*(PlotControl!$C$4-1),12,1)) -> 9180.1 | AD16: =MAX(OFFSET(EPCat23_Prop!$D$10,12*($AB16-1),4*(PlotControl!$C$4-1),12,1)) -> 9672.9 | AE16: =MAX(OFFSET(EPCat23_Prop!$E$10,12*($AB16-1),4*(PlotControl!$C$4-1),12,1)) -> 10231 | AF16: =MAX(OFFSET(EPbed_Prop!$C$10,12*($AB16-1),4*(PlotControl!$C$4-1),12,1)) -> 20929 | AG16: =MAX(OFFSET(EPbed_Prop!$D$10,12*($AB16-1),4*(PlotControl!$C$4-1),12,1)) -> 24964 | AH16: =MAX(OFFSET(EPbed_Prop!$E$10,12*($AB16-1),4*(PlotControl!$C$4-1),12,1)) -> 29770 | AL16: =MAX(OFFSET(WWTF_Prop!$C$10,12*($AB16-1),4*(PlotControl!$C$4-1),12,1)) -> 9110.4 | AM16: =MAX(OFFSET(WWTF_Prop!$D$10,12*($AB16-1),4*(PlotControl!$C$4-1),12,1)) -> 9581.1 | AN16: =MAX(OFFSET(WWTF_Prop!$E$10,12*($AB16-1),4*(PlotControl!$C$4-1),12,1)) -> 10077 | AO16: =MAX(OFFSET(OSLA_Prop!$C$10,12*($AB16-1),4*(PlotControl!$C$4-1),12,1)) -> 17837 | AP16: =MAX(OFFSET(OSLA_Prop!$D$10,12*($AB16-1),4*(PlotControl!$C$4-1),12,1)) -> 20971 | AQ16: =MAX(OFFSET(OSLA_Prop!$E$10,12*($AB16-1),4*(PlotControl!$C$4-1),12,1)) -> 24920 | AR16: =MAX(OFFSET(WPsurf_Prop!$C$10,12*($AB16-1),4*(PlotControl!$C$4-1),12,1)) -> 9110.4 | AS16: =MAX(OFFSET(WPsurf_Prop!$D$10,12*($AB16-1),4*(PlotControl!$C$4-1),12,1)) -> 9581.1 | AT16: =MAX(OFFSET(WPsurf_Prop!$E$10,12*($AB16-1),4*(PlotControl!$C$4-1),12,1)) -> 10077 | AU16: =MAX(OFFSET(WPbed4_Prop!$C$10,12*($AB16-1),4*(PlotControl!$C$4-1),12,1)) -> 20929 | AV16: =MAX(OFFSET(WPbed4_Prop!$D$10,12*($AB16-1),4*(PlotControl!$C$4-1),12,1)) -> 24964 | AW16: =MAX(OFFSET(WPbed4_Prop!$E$10,12*($AB16-1),4*(PlotControl!$C$4-1),12,1)) -> 29770 | AX16: =MAX(OFFSET(WPbed4a_Prop!$C$10,12*($AB16-1),4*(PlotControl!$C$4-1),12,1)) -> 20929 | AY16: =MAX(OFFSET(WPbed4a_Prop!$D$10,12*($AB16-1),4*(PlotControl!$C$4-1),12,1)) -> 24964 | AZ16: =MAX(OFFSET(WPbed4a_Prop!$E$10,12*($AB16-1),4*(PlotControl!$C$4-1),12,1)) -> 29770 | BB16: 12 | BC16: =MAX(OFFSET(EPCat23_Part!$C$10,12*($BB16-1),4*(PlotControl!$C$4-1),12,1)) -> 9110.4 | BD16: =MAX(OFFSET(EPCat23_Part!$D$10,12*($BB16-1),4*(PlotControl!$C$4-1),12,1)) -> 9581.1 | BE16: =MAX(OFFSET(EPCat23_Part!$E$10,12*($BB16-1),4*(PlotControl!$C$4-1),12,1)) -> 10077 | BI16: =MAX(OFFSET(OSP_Part1!$C$10,12*($BB16-1),4*(PlotControl!$C$4-1),12,1)) -> 9110.4 | BJ16: =MAX(OFFSET(OSP_Part1!$D$10,12*($BB16-1),4*(PlotControl!$C$4-1),12,1)) -> 9581.1 | BK16: =MAX(OFFSET(OSP_Part1!$E$10,12*($BB16-1),4*(PlotControl!$C$4-1),12,1)) -> 10077 | BL16: =MAX(OFFSET(WWTF_Part!$C$10,12*($BB16-1),4*(PlotControl!$C$4-1),12,1)) -> 9110.4 | BM16: =MAX(OFFSET(WWTF_Part!$D$10,12*($BB16-1),4*(PlotControl!$C$4-1),12,1)) -> 9581.1 | BN16: =MAX(OFFSET(WWTF_Part!$E$10,12*($BB16-1),4*(PlotControl!$C$4-1),12,1)) -> 10077 | BO16: =MAX(OFFSET(OSLA_Part!$C$10,12*($BB16-1),4*(PlotControl!$C$4-1),12,1)) -> 9110.5 | BP16: =MAX(OFFSET(OSLA_Part!$D$10,12*($BB16-1),4*(PlotControl!$C$4-1),12,1)) -> 9581.1 | BQ16: =MAX(OFFSET(OSLA_Part!$E$10,12*($BB16-1),4*(PlotControl!$C$4-1),12,1)) -> 10077 | BR16: =MAX(OFFSET(WPsurf_Part!$C$10,12*($BB16-1),4*(PlotControl!$C$4-1),12,1)) -> 9110.4 | BS16: =MAX(OFFSET(WPsurf_Part!$D$10,12*($BB16-1),4*(PlotControl!$C$4-1),12,1)) -> 9581.1 | BT16: =MAX(OFFSET(WPsurf_Part!$E$10,12*($BB16-1),4*(PlotControl!$C$4-1),12,1)) -> 10077
A17: 13 | B17: =MAX(OFFSET(EPCat23_Dunka!$C$10,12*($A17-1),4*(PlotControl!$C$4-1),12,1)) -> 9797.5 | C17: =MAX(OFFSET(EPCat23_Dunka!$D$10,12*($A17-1),4*(PlotControl!$C$4-1),12,1)) -> 10618 | D17: =MAX(OFFSET(EPCat23_Dunka!$E$10,12*($A17-1),4*(PlotControl!$C$4-1),12,1)) -> 12860 | H17: =MAX(OFFSET(OSP_Dunka!$C$10,12*($A17-1),4*(PlotControl!$C$4-1),12,1)) -> 9110.5 | I17: =MAX(OFFSET(OSP_Dunka!$D$10,12*($A17-1),4*(PlotControl!$C$4-1),12,1)) -> 9581.2 | J17: =MAX(OFFSET(OSP_Dunka!$E$10,12*($A17-1),4*(PlotControl!$C$4-1),12,1)) -> 10077 | K17: =MAX(OFFSET(WWTF_Dunka!$C$10,12*($A17-1),4*(PlotControl!$C$4-1),12,1)) -> 9204.8 | L17: =MAX(OFFSET(WWTF_Dunka!$D$10,12*($A17-1),4*(PlotControl!$C$4-1),12,1)) -> 9672.4 | M17: =MAX(OFFSET(WWTF_Dunka!$E$10,12*($A17-1),4*(PlotControl!$C$4-1),12,1)) -> 10173 | N17: =MAX(OFFSET(OSLA_Dunka!$C$10,12*($A17-1),4*(PlotControl!$C$4-1),12,1)) -> 29504 | O17: =MAX(OFFSET(OSLA_Dunka!$D$10,12*($A17-1),4*(PlotControl!$C$4-1),12,1)) -> 33672 | P17: =MAX(OFFSET(OSLA_Dunka!$E$10,12*($A17-1),4*(PlotControl!$C$4-1),12,1)) -> 38231 | Q17: =MAX(OFFSET(WPsurf_Dunka!$C$10,12*($A17-1),4*(PlotControl!$C$4-1),12,1)) -> 9110.4 | R17: =MAX(OFFSET(WPsurf_Dunka!$D$10,12*($A17-1),4*(PlotControl!$C$4-1),12,1)) -> 9581.1 | S17: =MAX(OFFSET(WPsurf_Dunka!$E$10,12*($A17-1),4*(PlotControl!$C$4-1),12,1)) -> 10077 | AB17: 13 | AC17: =MAX(OFFSET(EPCat23_Prop!$C$10,12*($AB17-1),4*(PlotControl!$C$4-1),12,1)) -> 9206.4 | AD17: =MAX(OFFSET(EPCat23_Prop!$D$10,12*($AB17-1),4*(PlotControl!$C$4-1),12,1)) -> 9719.9 | AE17: =MAX(OFFSET(EPCat23_Prop!$E$10,12*($AB17-1),4*(PlotControl!$C$4-1),12,1)) -> 10302 | AF17: =MAX(OFFSET(EPbed_Prop!$C$10,12*($AB17-1),4*(PlotControl!$C$4-1),12,1)) -> 20929 | AG17: =MAX(OFFSET(EPbed_Prop!$D$10,12*($AB17-1),4*(PlotControl!$C$4-1),12,1)) -> 24964 | AH17: =MAX(OFFSET(EPbed_Prop!$E$10,12*($AB17-1),4*(PlotControl!$C$4-1),12,1)) -> 29770 | AL17: =MAX(OFFSET(WWTF_Prop!$C$10,12*($AB17-1),4*(PlotControl!$C$4-1),12,1)) -> 9110.4 | AM17: =MAX(OFFSET(WWTF_Prop!$D$10,12*($AB17-1),4*(PlotControl!$C$4-1),12,1)) -> 9581.1 | AN17: =MAX(OFFSET(WWTF_Prop!$E$10,12*($AB17-1),4*(PlotControl!$C$4-1),12,1)) -> 10077 | AO17: =MAX(OFFSET(OSLA_Prop!$C$10,12*($AB17-1),4*(PlotControl!$C$4-1),12,1)) -> 19207 | AP17: =MAX(OFFSET(OSLA_Prop!$D$10,12*($AB17-1),4*(PlotControl!$C$4-1),12,1)) -> 22631 | AQ17: =MAX(OFFSET(OSLA_Prop!$E$10,12*($AB17-1),4*(PlotControl!$C$4-1),12,1)) -> 26683 | AR17: =MAX(OFFSET(WPsurf_Prop!$C$10,12*($AB17-1),4*(PlotControl!$C$4-1),12,1)) -> 9110.4 | AS17: =MAX(OFFSET(WPsurf_Prop!$D$10,12*($AB17-1),4*(PlotControl!$C$4-1),12,1)) -> 9581.1 | AT17: =MAX(OFFSET(WPsurf_Prop!$E$10,12*($AB17-1),4*(PlotControl!$C$4-1),12,1)) -> 10077 | AU17: =MAX(OFFSET(WPbed4_Prop!$C$10,12*($AB17-1),4*(PlotControl!$C$4-1),12,1)) -> 20929 | AV17: =MAX(OFFSET(WPbed4_Prop!$D$10,12*($AB17-1),4*(PlotControl!$C$4-1),12,1)) -> 24964 | AW17: =MAX(OFFSET(WPbed4_Prop!$E$10,12*($AB17-1),4*(PlotControl!$C$4-1),12,1)) -> 29770 | AX17: =MAX(OFFSET(WPbed4a_Prop!$C$10,12*($AB17-1),4*(PlotControl!$C$4-1),12,1)) -> 20929 | AY17: =MAX(OFFSET(WPbed4a_Prop!$D$10,12*($AB17-1),4*(PlotControl!$C$4-1),12,1)) -> 24964 | AZ17: =MAX(OFFSET(WPbed4a_Prop!$E$10,12*($AB17-1),4*(PlotControl!$C$4-1),12,1)) -> 29770 | BB17: 13 | BC17: =MAX(OFFSET(EPCat23_Part!$C$10,12*($BB17-1),4*(PlotControl!$C$4-1),12,1)) -> 9110.4 | BD17: =MAX(OFFSET(EPCat23_Part!$D$10,12*($BB17-1),4*(PlotControl!$C$4-1),12,1)) -> 9581.1 | BE17: =MAX(OFFSET(EPCat23_Part!$E$10,12*($BB17-1),4*(PlotControl!$C$4-1),12,1)) -> 10077 | BI17: =MAX(OFFSET(OSP_Part1!$C$10,12*($BB17-1),4*(PlotControl!$C$4-1),12,1)) -> 9110.4 | BJ17: =MAX(OFFSET(OSP_Part1!$D$10,12*($BB17-1),4*(PlotControl!$C$4-1),12,1)) -> 9581.1 | BK17: =MAX(OFFSET(OSP_Part1!$E$10,12*($BB17-1),4*(PlotControl!$C$4-1),12,1)) -> 10077 | BL17: =MAX(OFFSET(WWTF_Part!$C$10,12*($BB17-1),4*(PlotControl!$C$4-1),12,1)) -> 9110.4 | BM17: =MAX(OFFSET(WWTF_Part!$D$10,12*($BB17-1),4*(PlotControl!$C$4-1),12,1)) -> 9581.1 | BN17: =MAX(OFFSET(WWTF_Part!$E$10,12*($BB17-1),4*(PlotControl!$C$4-1),12,1)) -> 10077 | BO17: =MAX(OFFSET(OSLA_Part!$C$10,12*($BB17-1),4*(PlotControl!$C$4-1),12,1)) -> 9110.5 | BP17: =MAX(OFFSET(OSLA_Part!$D$10,12*($BB17-1),4*(PlotControl!$C$4-1),12,1)) -> 9581.1 | BQ17: =MAX(OFFSET(OSLA_Part!$E$10,12*($BB17-1),4*(PlotControl!$C$4-1),12,1)) -> 10077 | BR17: =MAX(OFFSET(WPsurf_Part!$C$10,12*($BB17-1),4*(PlotControl!$C$4-1),12,1)) -> 9110.4 | BS17: =MAX(OFFSET(WPsurf_Part!$D$10,12*($BB17-1),4*(PlotControl!$C$4-1),12,1)) -> 9581.1 | BT17: =MAX(OFFSET(WPsurf_Part!$E$10,12*($BB17-1),4*(PlotControl!$C$4-1),12,1)) -> 10077
A18: 14 | B18: =MAX(OFFSET(EPCat23_Dunka!$C$10,12*($A18-1),4*(PlotControl!$C$4-1),12,1)) -> 9870.2 | C18: =MAX(OFFSET(EPCat23_Dunka!$D$10,12*($A18-1),4*(PlotControl!$C$4-1),12,1)) -> 10847 | D18: =MAX(OFFSET(EPCat23_Dunka!$E$10,12*($A18-1),4*(PlotControl!$C$4-1),12,1)) -> 13468 | H18: =MAX(OFFSET(OSP_Dunka!$C$10,12*($A18-1),4*(PlotControl!$C$4-1),12,1)) -> 9110.5 | I18: =MAX(OFFSET(OSP_Dunka!$D$10,12*($A18-1),4*(PlotControl!$C$4-1),12,1)) -> 9581.2 | J18: =MAX(OFFSET(OSP_Dunka!$E$10,12*($A18-1),4*(PlotControl!$C$4-1),12,1)) -> 10077 | K18: =MAX(OFFSET(WWTF_Dunka!$C$10,12*($A18-1),4*(PlotControl!$C$4-1),12,1)) -> 9233.4 | L18: =MAX(OFFSET(WWTF_Dunka!$D$10,12*($A18-1),4*(PlotControl!$C$4-1),12,1)) -> 9695 | M18: =MAX(OFFSET(WWTF_Dunka!$E$10,12*($A18-1),4*(PlotControl!$C$4-1),12,1)) -> 10224 | N18: =MAX(OFFSET(OSLA_Dunka!$C$10,12*($A18-1),4*(PlotControl!$C$4-1),12,1)) -> 30387 | O18: =MAX(OFFSET(OSLA_Dunka!$D$10,12*($A18-1),4*(PlotControl!$C$4-1),12,1)) -> 34668 | P18: =MAX(OFFSET(OSLA_Dunka!$E$10,12*($A18-1),4*(PlotControl!$C$4-1),12,1)) -> 39350 | Q18: =MAX(OFFSET(WPsurf_Dunka!$C$10,12*($A18-1),4*(PlotControl!$C$4-1),12,1)) -> 9110.4 | R18: =MAX(OFFSET(WPsurf_Dunka!$D$10,12*($A18-1),4*(PlotControl!$C$4-1),12,1)) -> 9581.1 | S18: =MAX(OFFSET(WPsurf_Dunka!$E$10,12*($A18-1),4*(PlotControl!$C$4-1),12,1)) -> 10077 | AB18: 14 | AC18: =MAX(OFFSET(EPCat23_Prop!$C$10,12*($AB18-1),4*(PlotControl!$C$4-1),12,1)) -> 9223.8 | AD18: =MAX(OFFSET(EPCat23_Prop!$D$10,12*($AB18-1),4*(PlotControl!$C$4-1),12,1)) -> 9762.2 | AE18: =MAX(OFFSET(EPCat23_Prop!$E$10,12*($AB18-1),4*(PlotControl!$C$4-1),12,1)) -> 10393 | AF18: =MAX(OFFSET(EPbed_Prop!$C$10,12*($AB18-1),4*(PlotControl!$C$4-1),12,1)) -> 20929 | AG18: =MAX(OFFSET(EPbed_Prop!$D$10,12*($AB18-1),4*(PlotControl!$C$4-1),12,1)) -> 24964 | AH18: =MAX(OFFSET(EPbed_Prop!$E$10,12*($AB18-1),4*(PlotControl!$C$4-1),12,1)) -> 29770 | AL18: =MAX(OFFSET(WWTF_Prop!$C$10,12*($AB18-1),4*(PlotControl!$C$4-1),12,1)) -> 9110.4 | AM18: =MAX(OFFSET(WWTF_Prop!$D$10,12*($AB18-1),4*(PlotControl!$C$4-1),12,1)) -> 9581.1 | AN18: =MAX(OFFSET(WWTF_Prop!$E$10,12*($AB18-1),4*(PlotControl!$C$4-1),12,1)) -> 10077 | AO18: =MAX(OFFSET(OSLA_Prop!$C$10,12*($AB18-1),4*(PlotControl!$C$4-1),12,1)) -> 20581 | AP18: =MAX(OFFSET(OSLA_Prop!$D$10,12*($AB18-1),4*(PlotControl!$C$4-1),12,1)) -> 24126 | AQ18: =MAX(OFFSET(OSLA_Prop!$E$10,12*($AB18-1),4*(PlotControl!$C$4-1),12,1)) -> 28248 | AR18: =MAX(OFFSET(WPsurf_Prop!$C$10,12*($AB18-1),4*(PlotControl!$C$4-1),12,1)) -> 9110.4 | AS18: =MAX(OFFSET(WPsurf_Prop!$D$10,12*($AB18-1),4*(PlotControl!$C$4-1),12,1)) -> 9581.1 | AT18: =MAX(OFFSET(WPsurf_Prop!$E$10,12*($AB18-1),4*(PlotControl!$C$4-1),12,1)) -> 10077 | AU18: =MAX(OFFSET(WPbed4_Prop!$C$10,12*($AB18-1),4*(PlotControl!$C$4-1),12,1)) -> 20929 | AV18: =MAX(OFFSET(WPbed4_Prop!$D$10,12*($AB18-1),4*(PlotControl!$C$4-1),12,1)) -> 24964 | AW18: =MAX(OFFSET(WPbed4_Prop!$E$10,12*($AB18-1),4*(PlotControl!$C$4-1),12,1)) -> 29770 | AX18: =MAX(OFFSET(WPbed4a_Prop!$C$10,12*($AB18-1),4*(PlotControl!$C$4-1),12,1)) -> 20929 | AY18: =MAX(OFFSET(WPbed4a_Prop!$D$10,12*($AB18-1),4*(PlotControl!$C$4-1),12,1)) -> 24964 | AZ18: =MAX(OFFSET(WPbed4a_Prop!$E$10,12*($AB18-1),4*(PlotControl!$C$4-1),12,1)) -> 29770 | BB18: 14 | BC18: =MAX(OFFSET(EPCat23_Part!$C$10,12*($BB18-1),4*(PlotControl!$C$4-1),12,1)) -> 9110.4 | BD18: =MAX(OFFSET(EPCat23_Part!$D$10,12*($BB18-1),4*(PlotControl!$C$4-1),12,1)) -> 9581.1 | BE18: =MAX(OFFSET(EPCat23_Part!$E$10,12*($BB18-1),4*(PlotControl!$C$4-1),12,1)) -> 10077 | BI18: =MAX(OFFSET(OSP_Part1!$C$10,12*($BB18-1),4*(PlotControl!$C$4-1),12,1)) -> 9110.4 | BJ18: =MAX(OFFSET(OSP_Part1!$D$10,12*($BB18-1),4*(PlotControl!$C$4-1),12,1)) -> 9581.1 | BK18: =MAX(OFFSET(OSP_Part1!$E$10,12*($BB18-1),4*(PlotControl!$C$4-1),12,1)) -> 10077 | BL18: =MAX(OFFSET(WWTF_Part!$C$10,12*($BB18-1),4*(PlotControl!$C$4-1),12,1)) -> 9110.4 | BM18: =MAX(OFFSET(WWTF_Part!$D$10,12*($BB18-1),4*(PlotControl!$C$4-1),12,1)) -> 9581.1 | BN18: =MAX(OFFSET(WWTF_Part!$E$10,12*($BB18-1),4*(PlotControl!$C$4-1),12,1)) -> 10077 | BO18: =MAX(OFFSET(OSLA_Part!$C$10,12*($BB18-1),4*(PlotControl!$C$4-1),12,1)) -> 9112.6 | BP18: =MAX(OFFSET(OSLA_Part!$D$10,12*($BB18-1),4*(PlotControl!$C$4-1),12,1)) -> 9581.1 | BQ18: =MAX(OFFSET(OSLA_Part!$E$10,12*($BB18-1),4*(PlotControl!$C$4-1),12,1)) -> 10079 | BR18: =MAX(OFFSET(WPsurf_Part!$C$10,12*($BB18-1),4*(PlotControl!$C$4-1),12,1)) -> 9110.4 | BS18: =MAX(OFFSET(WPsurf_Part!$D$10,12*($BB18-1),4*(PlotControl!$C$4-1),12,1)) -> 9581.1 | BT18: =MAX(OFFSET(WPsurf_Part!$E$10,12*($BB18-1),4*(PlotControl!$C$4-1),12,1)) -> 10077
A19: 15 | B19: =MAX(OFFSET(EPCat23_Dunka!$C$10,12*($A19-1),4*(PlotControl!$C$4-1),12,1)) -> 9959.7 | C19: =MAX(OFFSET(EPCat23_Dunka!$D$10,12*($A19-1),4*(PlotControl!$C$4-1),12,1)) -> 11042 | D19: =MAX(OFFSET(EPCat23_Dunka!$E$10,12*($A19-1),4*(PlotControl!$C$4-1),12,1)) -> 14225 | H19: =MAX(OFFSET(OSP_Dunka!$C$10,12*($A19-1),4*(PlotControl!$C$4-1),12,1)) -> 9110.5 | I19: =MAX(OFFSET(OSP_Dunka!$D$10,12*($A19-1),4*(PlotControl!$C$4-1),12,1)) -> 9581.2 | J19: =MAX(OFFSET(OSP_Dunka!$E$10,12*($A19-1),4*(PlotControl!$C$4-1),12,1)) -> 10077 | K19: =MAX(OFFSET(WWTF_Dunka!$C$10,12*($A19-1),4*(PlotControl!$C$4-1),12,1)) -> 9254.2 | L19: =MAX(OFFSET(WWTF_Dunka!$D$10,12*($A19-1),4*(PlotControl!$C$4-1),12,1)) -> 9722.6 | M19: =MAX(OFFSET(WWTF_Dunka!$E$10,12*($A19-1),4*(PlotControl!$C$4-1),12,1)) -> 10242 | N19: =MAX(OFFSET(OSLA_Dunka!$C$10,12*($A19-1),4*(PlotControl!$C$4-1),12,1)) -> 31120 | O19: =MAX(OFFSET(OSLA_Dunka!$D$10,12*($A19-1),4*(PlotControl!$C$4-1),12,1)) -> 35534 | P19: =MAX(OFFSET(OSLA_Dunka!$E$10,12*($A19-1),4*(PlotControl!$C$4-1),12,1)) -> 40347 | Q19: =MAX(OFFSET(WPsurf_Dunka!$C$10,12*($A19-1),4*(PlotControl!$C$4-1),12,1)) -> 9110.4 | R19: =MAX(OFFSET(WPsurf_Dunka!$D$10,12*($A19-1),4*(PlotControl!$C$4-1),12,1)) -> 9581.1 | S19: =MAX(OFFSET(WPsurf_Dunka!$E$10,12*($A19-1),4*(PlotControl!$C$4-1),12,1)) -> 10077 | AB19: 15 | AC19: =MAX(OFFSET(EPCat23_Prop!$C$10,12*($AB19-1),4*(PlotControl!$C$4-1),12,1)) -> 9254.7 | AD19: =MAX(OFFSET(EPCat23_Prop!$D$10,12*($AB19-1),4*(PlotControl!$C$4-1),12,1)) -> 9804 | AE19: =MAX(OFFSET(EPCat23_Prop!$E$10,12*($AB19-1),4*(PlotControl!$C$4-1),12,1)) -> 10513 | AF19: =MAX(OFFSET(EPbed_Prop!$C$10,12*($AB19-1),4*(PlotControl!$C$4-1),12,1)) -> 20929 | AG19: =MAX(OFFSET(EPbed_Prop!$D$10,12*($AB19-1),4*(PlotControl!$C$4-1),12,1)) -> 24964 | AH19: =MAX(OFFSET(EPbed_Prop!$E$10,12*($AB19-1),4*(PlotControl!$C$4-1),12,1)) -> 29770 | AL19: =MAX(OFFSET(WWTF_Prop!$C$10,12*($AB19-1),4*(PlotControl!$C$4-1),12,1)) -> 9110.4 | AM19: =MAX(OFFSET(WWTF_Prop!$D$10,12*($AB19-1),4*(PlotControl!$C$4-1),12,1)) -> 9581.1 | AN19: =MAX(OFFSET(WWTF_Prop!$E$10,12*($AB19-1),4*(PlotControl!$C$4-1),12,1)) -> 10077 | AO19: =MAX(OFFSET(OSLA_Prop!$C$10,12*($AB19-1),4*(PlotControl!$C$4-1),12,1)) -> 21961 | AP19: =MAX(OFFSET(OSLA_Prop!$D$10,12*($AB19-1),4*(PlotControl!$C$4-1),12,1)) -> 25512 | AQ19: =MAX(OFFSET(OSLA_Prop!$E$10,12*($AB19-1),4*(PlotControl!$C$4-1),12,1)) -> 29863 | AR19: =MAX(OFFSET(WPsurf_Prop!$C$10,12*($AB19-1),4*(PlotControl!$C$4-1),12,1)) -> 9110.4 | AS19: =MAX(OFFSET(WPsurf_Prop!$D$10,12*($AB19-1),4*(PlotControl!$C$4-1),12,1)) -> 9581.1 | AT19: =MAX(OFFSET(WPsurf_Prop!$E$10,12*($AB19-1),4*(PlotControl!$C$4-1),12,1)) -> 10077 | AU19: =MAX(OFFSET(WPbed4_Prop!$C$10,12*($AB19-1),4*(PlotControl!$C$4-1),12,1)) -> 20929 | AV19: =MAX(OFFSET(WPbed4_Prop!$D$10,12*($AB19-1),4*(PlotControl!$C$4-1),12,1)) -> 24964 | AW19: =MAX(OFFSET(WPbed4_Prop!$E$10,12*($AB19-1),4*(PlotControl!$C$4-1),12,1)) -> 29770 | AX19: =MAX(OFFSET(WPbed4a_Prop!$C$10,12*($AB19-1),4*(PlotControl!$C$4-1),12,1)) -> 20929 | AY19: =MAX(OFFSET(WPbed4a_Prop!$D$10,12*($AB19-1),4*(PlotControl!$C$4-1),12,1)) -> 24964 | AZ19: =MAX(OFFSET(WPbed4a_Prop!$E$10,12*($AB19-1),4*(PlotControl!$C$4-1),12,1)) -> 29770 | BB19: 15 | BC19: =MAX(OFFSET(EPCat23_Part!$C$10,12*($BB19-1),4*(PlotControl!$C$4-1),12,1)) -> 9110.4 | BD19: =MAX(OFFSET(EPCat23_Part!$D$10,12*($BB19-1),4*(PlotControl!$C$4-1),12,1)) -> 9581.1 | BE19: =MAX(OFFSET(EPCat23_Part!$E$10,12*($BB19-1),4*(PlotControl!$C$4-1),12,1)) -> 10077 | BI19: =MAX(OFFSET(OSP_Part1!$C$10,12*($BB19-1),4*(PlotControl!$C$4-1),12,1)) -> 9110.4 | BJ19: =MAX(OFFSET(OSP_Part1!$D$10,12*($BB19-1),4*(PlotControl!$C$4-1),12,1)) -> 9581.1 | BK19: =MAX(OFFSET(OSP_Part1!$E$10,12*($BB19-1),4*(PlotControl!$C$4-1),12,1)) -> 10077 | BL19: =MAX(OFFSET(WWTF_Part!$C$10,12*($BB19-1),4*(PlotControl!$C$4-1),12,1)) -> 9110.4 | BM19: =MAX(OFFSET(WWTF_Part!$D$10,12*($BB19-1),4*(PlotControl!$C$4-1),12,1)) -> 9581.1 | BN19: =MAX(OFFSET(WWTF_Part!$E$10,12*($BB19-1),4*(PlotControl!$C$4-1),12,1)) -> 10077 | BO19: =MAX(OFFSET(OSLA_Part!$C$10,12*($BB19-1),4*(PlotControl!$C$4-1),12,1)) -> 9114.4 | BP19: =MAX(OFFSET(OSLA_Part!$D$10,12*($BB19-1),4*(PlotControl!$C$4-1),12,1)) -> 9585.2 | BQ19: =MAX(OFFSET(OSLA_Part!$E$10,12*($BB19-1),4*(PlotControl!$C$4-1),12,1)) -> 10082 | BR19: =MAX(OFFSET(WPsurf_Part!$C$10,12*($BB19-1),4*(PlotControl!$C$4-1),12,1)) -> 9110.4 | BS19: =MAX(OFFSET(WPsurf_Part!$D$10,12*($BB19-1),4*(PlotControl!$C$4-1),12,1)) -> 9581.1 | BT19: =MAX(OFFSET(WPsurf_Part!$E$10,12*($BB19-1),4*(PlotControl!$C$4-1),12,1)) -> 10077
A20: 16 | B20: =MAX(OFFSET(EPCat23_Dunka!$C$10,12*($A20-1),4*(PlotControl!$C$4-1),12,1)) -> 10041 | C20: =MAX(OFFSET(EPCat23_Dunka!$D$10,12*($A20-1),4*(PlotControl!$C$4-1),12,1)) -> 11245 | D20: =MAX(OFFSET(EPCat23_Dunka!$E$10,12*($A20-1),4*(PlotControl!$C$4-1),12,1)) -> 15046 | H20: =MAX(OFFSET(OSP_Dunka!$C$10,12*($A20-1),4*(PlotControl!$C$4-1),12,1)) -> 9110.5 | I20: =MAX(OFFSET(OSP_Dunka!$D$10,12*($A20-1),4*(PlotControl!$C$4-1),12,1)) -> 9581.3 | J20: =MAX(OFFSET(OSP_Dunka!$E$10,12*($A20-1),4*(PlotControl!$C$4-1),12,1)) -> 10077 | K20: =MAX(OFFSET(WWTF_Dunka!$C$10,12*($A20-1),4*(PlotControl!$C$4-1),12,1)) -> 9280.5 | L20: =MAX(OFFSET(WWTF_Dunka!$D$10,12*($A20-1),4*(PlotControl!$C$4-1),12,1)) -> 9770 | M20: =MAX(OFFSET(WWTF_Dunka!$E$10,12*($A20-1),4*(PlotControl!$C$4-1),12,1)) -> 10284 | N20: =MAX(OFFSET(OSLA_Dunka!$C$10,12*($A20-1),4*(PlotControl!$C$4-1),12,1)) -> 31822 | O20: =MAX(OFFSET(OSLA_Dunka!$D$10,12*($A20-1),4*(PlotControl!$C$4-1),12,1)) -> 36304 | P20: =MAX(OFFSET(OSLA_Dunka!$E$10,12*($A20-1),4*(PlotControl!$C$4-1),12,1)) -> 41125 | Q20: =MAX(OFFSET(WPsurf_Dunka!$C$10,12*($A20-1),4*(PlotControl!$C$4-1),12,1)) -> 9110.4 | R20: =MAX(OFFSET(WPsurf_Dunka!$D$10,12*($A20-1),4*(PlotControl!$C$4-1),12,1)) -> 9581.1 | S20: =MAX(OFFSET(WPsurf_Dunka!$E$10,12*($A20-1),4*(PlotControl!$C$4-1),12,1)) -> 10077 | AB20: 16 | AC20: =MAX(OFFSET(EPCat23_Prop!$C$10,12*($AB20-1),4*(PlotControl!$C$4-1),12,1)) -> 9290.4 | AD20: =MAX(OFFSET(EPCat23_Prop!$D$10,12*($AB20-1),4*(PlotControl!$C$4-1),12,1)) -> 9849.7 | AE20: =MAX(OFFSET(EPCat23_Prop!$E$10,12*($AB20-1),4*(PlotControl!$C$4-1),12,1)) -> 10662 | AF20: =MAX(OFFSET(EPbed_Prop!$C$10,12*($AB20-1),4*(PlotControl!$C$4-1),12,1)) -> 20929 | AG20: =MAX(OFFSET(EPbed_Prop!$D$10,12*($AB20-1),4*(PlotControl!$C$4-1),12,1)) -> 24964 | AH20: =MAX(OFFSET(EPbed_Prop!$E$10,12*($AB20-1),4*(PlotControl!$C$4-1),12,1)) -> 29770 | AL20: =MAX(OFFSET(WWTF_Prop!$C$10,12*($AB20-1),4*(PlotControl!$C$4-1),12,1)) -> 9110.4 | AM20: =MAX(OFFSET(WWTF_Prop!$D$10,12*($AB20-1),4*(PlotControl!$C$4-1),12,1)) -> 9581.1 | AN20: =MAX(OFFSET(WWTF_Prop!$E$10,12*($AB20-1),4*(PlotControl!$C$4-1),12,1)) -> 10077 | AO20: =MAX(OFFSET(OSLA_Prop!$C$10,12*($AB20-1),4*(PlotControl!$C$4-1),12,1)) -> 22946 | AP20: =MAX(OFFSET(OSLA_Prop!$D$10,12*($AB20-1),4*(PlotControl!$C$4-1),12,1)) -> 26891 | AQ20: =MAX(OFFSET(OSLA_Prop!$E$10,12*($AB20-1),4*(PlotControl!$C$4-1),12,1)) -> 31363 | AR20: =MAX(OFFSET(WPsurf_Prop!$C$10,12*($AB20-1),4*(PlotControl!$C$4-1),12,1)) -> 9110.4 | AS20: =MAX(OFFSET(WPsurf_Prop!$D$10,12*($AB20-1),4*(PlotControl!$C$4-1),12,1)) -> 9581.1 | AT20: =MAX(OFFSET(WPsurf_Prop!$E$10,12*($AB20-1),4*(PlotControl!$C$4-1),12,1)) -> 10077 | AU20: =MAX(OFFSET(WPbed4_Prop!$C$10,12*($AB20-1),4*(PlotControl!$C$4-1),12,1)) -> 20929 | AV20: =MAX(OFFSET(WPbed4_Prop!$D$10,12*($AB20-1),4*(PlotControl!$C$4-1),12,1)) -> 24964 | AW20: =MAX(OFFSET(WPbed4_Prop!$E$10,12*($AB20-1),4*(PlotControl!$C$4-1),12,1)) -> 29770 | AX20: =MAX(OFFSET(WPbed4a_Prop!$C$10,12*($AB20-1),4*(PlotControl!$C$4-1),12,1)) -> 20929 | AY20: =MAX(OFFSET(WPbed4a_Prop!$D$10,12*($AB20-1),4*(PlotControl!$C$4-1),12,1)) -> 24964 | AZ20: =MAX(OFFSET(WPbed4a_Prop!$E$10,12*($AB20-1),4*(PlotControl!$C$4-1),12,1)) -> 29770 | BB20: 16 | BC20: =MAX(OFFSET(EPCat23_Part!$C$10,12*($BB20-1),4*(PlotControl!$C$4-1),12,1)) -> 9110.4 | BD20: =MAX(OFFSET(EPCat23_Part!$D$10,12*($BB20-1),4*(PlotControl!$C$4-1),12,1)) -> 9581.1 | BE20: =MAX(OFFSET(EPCat23_Part!$E$10,12*($BB20-1),4*(PlotControl!$C$4-1),12,1)) -> 10077 | BI20: =MAX(OFFSET(OSP_Part1!$C$10,12*($BB20-1),4*(PlotControl!$C$4-1),12,1)) -> 9110.4 | BJ20: =MAX(OFFSET(OSP_Part1!$D$10,12*($BB20-1),4*(PlotControl!$C$4-1),12,1)) -> 9581.1 | BK20: =MAX(OFFSET(OSP_Part1!$E$10,12*($BB20-1),4*(PlotControl!$C$4-1),12,1)) -> 10077 | BL20: =MAX(OFFSET(WWTF_Part!$C$10,12*($BB20-1),4*(PlotControl!$C$4-1),12,1)) -> 9110.4 | BM20: =MAX(OFFSET(WWTF_Part!$D$10,12*($BB20-1),4*(PlotControl!$C$4-1),12,1)) -> 9581.1 | BN20: =MAX(OFFSET(WWTF_Part!$E$10,12*($BB20-1),4*(PlotControl!$C$4-1),12,1)) -> 10077 | BO20: =MAX(OFFSET(OSLA_Part!$C$10,12*($BB20-1),4*(PlotControl!$C$4-1),12,1)) -> 9129.1 | BP20: =MAX(OFFSET(OSLA_Part!$D$10,12*($BB20-1),4*(PlotControl!$C$4-1),12,1)) -> 9598.3 | BQ20: =MAX(OFFSET(OSLA_Part!$E$10,12*($BB20-1),4*(PlotControl!$C$4-1),12,1)) -> 10097 | BR20: =MAX(OFFSET(WPsurf_Part!$C$10,12*($BB20-1),4*(PlotControl!$C$4-1),12,1)) -> 9110.4 | BS20: =MAX(OFFSET(WPsurf_Part!$D$10,12*($BB20-1),4*(PlotControl!$C$4-1),12,1)) -> 9581.1 | BT20: =MAX(OFFSET(WPsurf_Part!$E$10,12*($BB20-1),4*(PlotControl!$C$4-1),12,1)) -> 10077
A21: 17 | B21: =MAX(OFFSET(EPCat23_Dunka!$C$10,12*($A21-1),4*(PlotControl!$C$4-1),12,1)) -> 10102 | C21: =MAX(OFFSET(EPCat23_Dunka!$D$10,12*($A21-1),4*(PlotControl!$C$4-1),12,1)) -> 11419 | D21: =MAX(OFFSET(EPCat23_Dunka!$E$10,12*($A21-1),4*(PlotControl!$C$4-1),12,1)) -> 15723 | H21: =MAX(OFFSET(OSP_Dunka!$C$10,12*($A21-1),4*(PlotControl!$C$4-1),12,1)) -> 9110.5 | I21: =MAX(OFFSET(OSP_Dunka!$D$10,12*($A21-1),4*(PlotControl!$C$4-1),12,1)) -> 9581.3 | J21: =MAX(OFFSET(OSP_Dunka!$E$10,12*($A21-1),4*(PlotControl!$C$4-1),12,1)) -> 10077 | K21: =MAX(OFFSET(WWTF_Dunka!$C$10,12*($A21-1),4*(PlotControl!$C$4-1),12,1)) -> 9316.8 | L21: =MAX(OFFSET(WWTF_Dunka!$D$10,12*($A21-1),4*(PlotControl!$C$4-1),12,1)) -> 9824.9 | M21: =MAX(OFFSET(WWTF_Dunka!$E$10,12*($A21-1),4*(PlotControl!$C$4-1),12,1)) -> 10358 | N21: =MAX(OFFSET(OSLA_Dunka!$C$10,12*($A21-1),4*(PlotControl!$C$4-1),12,1)) -> 32477 | O21: =MAX(OFFSET(OSLA_Dunka!$D$10,12*($A21-1),4*(PlotControl!$C$4-1),12,1)) -> 36975 | P21: =MAX(OFFSET(OSLA_Dunka!$E$10,12*($A21-1),4*(PlotControl!$C$4-1),12,1)) -> 41854 | Q21: =MAX(OFFSET(WPsurf_Dunka!$C$10,12*($A21-1),4*(PlotControl!$C$4-1),12,1)) -> 9110.4 | R21: =MAX(OFFSET(WPsurf_Dunka!$D$10,12*($A21-1),4*(PlotControl!$C$4-1),12,1)) -> 9581.1 | S21: =MAX(OFFSET(WPsurf_Dunka!$E$10,12*($A21-1),4*(PlotControl!$C$4-1),12,1)) -> 10077 | AB21: 17 | AC21: =MAX(OFFSET(EPCat23_Prop!$C$10,12*($AB21-1),4*(PlotControl!$C$4-1),12,1)) -> 9316.1 | AD21: =MAX(OFFSET(EPCat23_Prop!$D$10,12*($AB21-1),4*(PlotControl!$C$4-1),12,1)) -> 9923.4 | AE21: =MAX(OFFSET(EPCat23_Prop!$E$10,12*($AB21-1),4*(PlotControl!$C$4-1),12,1)) -> 10908 | AF21: =MAX(OFFSET(EPbed_Prop!$C$10,12*($AB21-1),4*(PlotControl!$C$4-1),12,1)) -> 20929 | AG21: =MAX(OFFSET(EPbed_Prop!$D$10,12*($AB21-1),4*(PlotControl!$C$4-1),12,1)) -> 24964 | AH21: =MAX(OFFSET(EPbed_Prop!$E$10,12*($AB21-1),4*(PlotControl!$C$4-1),12,1)) -> 29770 | AL21: =MAX(OFFSET(WWTF_Prop!$C$10,12*($AB21-1),4*(PlotControl!$C$4-1),12,1)) -> 9110.4 | AM21: =MAX(OFFSET(WWTF_Prop!$D$10,12*($AB21-1),4*(PlotControl!$C$4-1),12,1)) -> 9581.1 | AN21: =MAX(OFFSET(WWTF_Prop!$E$10,12*($AB21-1),4*(PlotControl!$C$4-1),12,1)) -> 10077 | AO21: =MAX(OFFSET(OSLA_Prop!$C$10,12*($AB21-1),4*(PlotControl!$C$4-1),12,1)) -> 24086 | AP21: =MAX(OFFSET(OSLA_Prop!$D$10,12*($AB21-1),4*(PlotControl!$C$4-1),12,1)) -> 28118 | AQ21: =MAX(OFFSET(OSLA_Prop!$E$10,12*($AB21-1),4*(PlotControl!$C$4-1),12,1)) -> 32763 | AR21: =MAX(OFFSET(WPsurf_Prop!$C$10,12*($AB21-1),4*(PlotControl!$C$4-1),12,1)) -> 9110.4 | AS21: =MAX(OFFSET(WPsurf_Prop!$D$10,12*($AB21-1),4*(PlotControl!$C$4-1),12,1)) -> 9581.1 | AT21: =MAX(OFFSET(WPsurf_Prop!$E$10,12*($AB21-1),4*(PlotControl!$C$4-1),12,1)) -> 10077 | AU21: =MAX(OFFSET(WPbed4_Prop!$C$10,12*($AB21-1),4*(PlotControl!$C$4-1),12,1)) -> 20929 | AV21: =MAX(OFFSET(WPbed4_Prop!$D$10,12*($AB21-1),4*(PlotControl!$C$4-1),12,1)) -> 24964 | AW21: =MAX(OFFSET(WPbed4_Prop!$E$10,12*($AB21-1),4*(PlotControl!$C$4-1),12,1)) -> 29770 | AX21: =MAX(OFFSET(WPbed4a_Prop!$C$10,12*($AB21-1),4*(PlotControl!$C$4-1),12,1)) -> 20929 | AY21: =MAX(OFFSET(WPbed4a_Prop!$D$10,12*($AB21-1),4*(PlotControl!$C$4-1),12,1)) -> 24964 | AZ21: =MAX(OFFSET(WPbed4a_Prop!$E$10,12*($AB21-1),4*(PlotControl!$C$4-1),12,1)) -> 29770 | BB21: 17 | BC21: =MAX(OFFSET(EPCat23_Part!$C$10,12*($BB21-1),4*(PlotControl!$C$4-1),12,1)) -> 9110.4 | BD21: =MAX(OFFSET(EPCat23_Part!$D$10,12*($BB21-1),4*(PlotControl!$C$4-1),12,1)) -> 9581.1 | BE21: =MAX(OFFSET(EPCat23_Part!$E$10,12*($BB21-1),4*(PlotControl!$C$4-1),12,1)) -> 10077 | BI21: =MAX(OFFSET(OSP_Part1!$C$10,12*($BB21-1),4*(PlotControl!$C$4-1),12,1)) -> 9110.4 | BJ21: =MAX(OFFSET(OSP_Part1!$D$10,12*($BB21-1),4*(PlotControl!$C$4-1),12,1)) -> 9581.1 | BK21: =MAX(OFFSET(OSP_Part1!$E$10,12*($BB21-1),4*(PlotControl!$C$4-1),12,1)) -> 10077 | BL21: =MAX(OFFSET(WWTF_Part!$C$10,12*($BB21-1),4*(PlotControl!$C$4-1),12,1)) -> 9110.4 | BM21: =MAX(OFFSET(WWTF_Part!$D$10,12*($BB21-1),4*(PlotControl!$C$4-1),12,1)) -> 9581.1 | BN21: =MAX(OFFSET(WWTF_Part!$E$10,12*($BB21-1),4*(PlotControl!$C$4-1),12,1)) -> 10077 | BO21: =MAX(OFFSET(OSLA_Part!$C$10,12*($BB21-1),4*(PlotControl!$C$4-1),12,1)) -> 9145.1 | BP21: =MAX(OFFSET(OSLA_Part!$D$10,12*($BB21-1),4*(PlotControl!$C$4-1),12,1)) -> 9617.3 | BQ21: =MAX(OFFSET(OSLA_Part!$E$10,12*($BB21-1),4*(PlotControl!$C$4-1),12,1)) -> 10140 | BR21: =MAX(OFFSET(WPsurf_Part!$C$10,12*($BB21-1),4*(PlotControl!$C$4-1),12,1)) -> 9110.4 | BS21: =MAX(OFFSET(WPsurf_Part!$D$10,12*($BB21-1),4*(PlotControl!$C$4-1),12,1)) -> 9581.1 | BT21: =MAX(OFFSET(WPsurf_Part!$E$10,12*($BB21-1),4*(PlotControl!$C$4-1),12,1)) -> 10077
A22: 18 | B22: =MAX(OFFSET(EPCat23_Dunka!$C$10,12*($A22-1),4*(PlotControl!$C$4-1),12,1)) -> 10148 | C22: =MAX(OFFSET(EPCat23_Dunka!$D$10,12*($A22-1),4*(PlotControl!$C$4-1),12,1)) -> 11590 | D22: =MAX(OFFSET(EPCat23_Dunka!$E$10,12*($A22-1),4*(PlotControl!$C$4-1),12,1)) -> 16296 | H22: =MAX(OFFSET(OSP_Dunka!$C$10,12*($A22-1),4*(PlotControl!$C$4-1),12,1)) -> 9110.5 | I22: =MAX(OFFSET(OSP_Dunka!$D$10,12*($A22-1),4*(PlotControl!$C$4-1),12,1)) -> 9581.4 | J22: =MAX(OFFSET(OSP_Dunka!$E$10,12*($A22-1),4*(PlotControl!$C$4-1),12,1)) -> 10077 | K22: =MAX(OFFSET(WWTF_Dunka!$C$10,12*($A22-1),4*(PlotControl!$C$4-1),12,1)) -> 9354.8 | L22: =MAX(OFFSET(WWTF_Dunka!$D$10,12*($A22-1),4*(PlotControl!$C$4-1),12,1)) -> 9880.1 | M22: =MAX(OFFSET(WWTF_Dunka!$E$10,12*($A22-1),4*(PlotControl!$C$4-1),12,1)) -> 10416 | N22: =MAX(OFFSET(OSLA_Dunka!$C$10,12*($A22-1),4*(PlotControl!$C$4-1),12,1)) -> 33031 | O22: =MAX(OFFSET(OSLA_Dunka!$D$10,12*($A22-1),4*(PlotControl!$C$4-1),12,1)) -> 37623 | P22: =MAX(OFFSET(OSLA_Dunka!$E$10,12*($A22-1),4*(PlotControl!$C$4-1),12,1)) -> 42623 | Q22: =MAX(OFFSET(WPsurf_Dunka!$C$10,12*($A22-1),4*(PlotControl!$C$4-1),12,1)) -> 9110.4 | R22: =MAX(OFFSET(WPsurf_Dunka!$D$10,12*($A22-1),4*(PlotControl!$C$4-1),12,1)) -> 9581.1 | S22: =MAX(OFFSET(WPsurf_Dunka!$E$10,12*($A22-1),4*(PlotControl!$C$4-1),12,1)) -> 10077 | AB22: 18 | AC22: =MAX(OFFSET(EPCat23_Prop!$C$10,12*($AB22-1),4*(PlotControl!$C$4-1),12,1)) -> 9339.5 | AD22: =MAX(OFFSET(EPCat23_Prop!$D$10,12*($AB22-1),4*(PlotControl!$C$4-1),12,1)) -> 9997.8 | AE22: =MAX(OFFSET(EPCat23_Prop!$E$10,12*($AB22-1),4*(PlotControl!$C$4-1),12,1)) -> 11222 | AF22: =MAX(OFFSET(EPbed_Prop!$C$10,12*($AB22-1),4*(PlotControl!$C$4-1),12,1)) -> 20929 | AG22: =MAX(OFFSET(EPbed_Prop!$D$10,12*($AB22-1),4*(PlotControl!$C$4-1),12,1)) -> 24964 | AH22: =MAX(OFFSET(EPbed_Prop!$E$10,12*($AB22-1),4*(PlotControl!$C$4-1),12,1)) -> 29770 | AL22: =MAX(OFFSET(WWTF_Prop!$C$10,12*($AB22-1),4*(PlotControl!$C$4-1),12,1)) -> 9110.4 | AM22: =MAX(OFFSET(WWTF_Prop!$D$10,12*($AB22-1),4*(PlotControl!$C$4-1),12,1)) -> 9581.1 | AN22: =MAX(OFFSET(WWTF_Prop!$E$10,12*($AB22-1),4*(PlotControl!$C$4-1),12,1)) -> 10077 | AO22: =MAX(OFFSET(OSLA_Prop!$C$10,12*($AB22-1),4*(PlotControl!$C$4-1),12,1)) -> 24963 | AP22: =MAX(OFFSET(OSLA_Prop!$D$10,12*($AB22-1),4*(PlotControl!$C$4-1),12,1)) -> 29138 | AQ22: =MAX(OFFSET(OSLA_Prop!$E$10,12*($AB22-1),4*(PlotControl!$C$4-1),12,1)) -> 34055 | AR22: =MAX(OFFSET(WPsurf_Prop!$C$10,12*($AB22-1),4*(PlotControl!$C$4-1),12,1)) -> 9110.4 | AS22: =MAX(OFFSET(WPsurf_Prop!$D$10,12*($AB22-1),4*(PlotControl!$C$4-1),12,1)) -> 9581.1 | AT22: =MAX(OFFSET(WPsurf_Prop!$E$10,12*($AB22-1),4*(PlotControl!$C$4-1),12,1)) -> 10077 | AU22: =MAX(OFFSET(WPbed4_Prop!$C$10,12*($AB22-1),4*(PlotControl!$C$4-1),12,1)) -> 20929 | AV22: =MAX(OFFSET(WPbed4_Prop!$D$10,12*($AB22-1),4*(PlotControl!$C$4-1),12,1)) -> 24964 | AW22: =MAX(OFFSET(WPbed4_Prop!$E$10,12*($AB22-1),4*(PlotControl!$C$4-1),12,1)) -> 29770 | AX22: =MAX(OFFSET(WPbed4a_Prop!$C$10,12*($AB22-1),4*(PlotControl!$C$4-1),12,1)) -> 20929 | AY22: =MAX(OFFSET(WPbed4a_Prop!$D$10,12*($AB22-1),4*(PlotControl!$C$4-1),12,1)) -> 24964 | AZ22: =MAX(OFFSET(WPbed4a_Prop!$E$10,12*($AB22-1),4*(PlotControl!$C$4-1),12,1)) -> 29770 | BB22: 18 | BC22: =MAX(OFFSET(EPCat23_Part!$C$10,12*($BB22-1),4*(PlotControl!$C$4-1),12,1)) -> 9110.4 | BD22: =MAX(OFFSET(EPCat23_Part!$D$10,12*($BB22-1),4*(PlotControl!$C$4-1),12,1)) -> 9581.2 | BE22: =MAX(OFFSET(EPCat23_Part!$E$10,12*($BB22-1),4*(PlotControl!$C$4-1),12,1)) -> 10077 | BI22: =MAX(OFFSET(OSP_Part1!$C$10,12*($BB22-1),4*(PlotControl!$C$4-1),12,1)) -> 9110.4 | BJ22: =MAX(OFFSET(OSP_Part1!$D$10,12*($BB22-1),4*(PlotControl!$C$4-1),12,1)) -> 9581.1 | BK22: =MAX(OFFSET(OSP_Part1!$E$10,12*($BB22-1),4*(PlotControl!$C$4-1),12,1)) -> 10077 | BL22: =MAX(OFFSET(WWTF_Part!$C$10,12*($BB22-1),4*(PlotControl!$C$4-1),12,1)) -> 9110.4 | BM22: =MAX(OFFSET(WWTF_Part!$D$10,12*($BB22-1),4*(PlotControl!$C$4-1),12,1)) -> 9581.1 | BN22: =MAX(OFFSET(WWTF_Part!$E$10,12*($BB22-1),4*(PlotControl!$C$4-1),12,1)) -> 10077 | BO22: =MAX(OFFSET(OSLA_Part!$C$10,12*($BB22-1),4*(PlotControl!$C$4-1),12,1)) -> 9158.6 | BP22: =MAX(OFFSET(OSLA_Part!$D$10,12*($BB22-1),4*(PlotControl!$C$4-1),12,1)) -> 9653.3 | BQ22: =MAX(OFFSET(OSLA_Part!$E$10,12*($BB22-1),4*(PlotControl!$C$4-1),12,1)) -> 10205 | BR22: =MAX(OFFSET(WPsurf_Part!$C$10,12*($BB22-1),4*(PlotControl!$C$4-1),12,1)) -> 9110.4 | BS22: =MAX(OFFSET(WPsurf_Part!$D$10,12*($BB22-1),4*(PlotControl!$C$4-1),12,1)) -> 9581.1 | BT22: =MAX(OFFSET(WPsurf_Part!$E$10,12*($BB22-1),4*(PlotControl!$C$4-1),12,1)) -> 10077
A23: 19 | B23: =MAX(OFFSET(EPCat23_Dunka!$C$10,12*($A23-1),4*(PlotControl!$C$4-1),12,1)) -> 10182 | C23: =MAX(OFFSET(EPCat23_Dunka!$D$10,12*($A23-1),4*(PlotControl!$C$4-1),12,1)) -> 11738 | D23: =MAX(OFFSET(EPCat23_Dunka!$E$10,12*($A23-1),4*(PlotControl!$C$4-1),12,1)) -> 16943 | H23: =MAX(OFFSET(OSP_Dunka!$C$10,12*($A23-1),4*(PlotControl!$C$4-1),12,1)) -> 9110.5 | I23: =MAX(OFFSET(OSP_Dunka!$D$10,12*($A23-1),4*(PlotControl!$C$4-1),12,1)) -> 9581.5 | J23: =MAX(OFFSET(OSP_Dunka!$E$10,12*($A23-1),4*(PlotControl!$C$4-1),12,1)) -> 10077 | K23: =MAX(OFFSET(WWTF_Dunka!$C$10,12*($A23-1),4*(PlotControl!$C$4-1),12,1)) -> 9397.2 | L23: =MAX(OFFSET(WWTF_Dunka!$D$10,12*($A23-1),4*(PlotControl!$C$4-1),12,1)) -> 9929 | M23: =MAX(OFFSET(WWTF_Dunka!$E$10,12*($A23-1),4*(PlotControl!$C$4-1),12,1)) -> 10492 | N23: =MAX(OFFSET(OSLA_Dunka!$C$10,12*($A23-1),4*(PlotControl!$C$4-1),12,1)) -> 33611 | O23: =MAX(OFFSET(OSLA_Dunka!$D$10,12*($A23-1),4*(PlotControl!$C$4-1),12,1)) -> 38193 | P23: =MAX(OFFSET(OSLA_Dunka!$E$10,12*($A23-1),4*(PlotControl!$C$4-1),12,1)) -> 43306 | Q23: =MAX(OFFSET(WPsurf_Dunka!$C$10,12*($A23-1),4*(PlotControl!$C$4-1),12,1)) -> 9110.4 | R23: =MAX(OFFSET(WPsurf_Dunka!$D$10,12*($A23-1),4*(PlotControl!$C$4-1),12,1)) -> 9581.1 | S23: =MAX(OFFSET(WPsurf_Dunka!$E$10,12*($A23-1),4*(PlotControl!$C$4-1),12,1)) -> 10077 | AB23: 19 | AC23: =MAX(OFFSET(EPCat23_Prop!$C$10,12*($AB23-1),4*(PlotControl!$C$4-1),12,1)) -> 9392.3 | AD23: =MAX(OFFSET(EPCat23_Prop!$D$10,12*($AB23-1),4*(PlotControl!$C$4-1),12,1)) -> 10078 | AE23: =MAX(OFFSET(EPCat23_Prop!$E$10,12*($AB23-1),4*(PlotControl!$C$4-1),12,1)) -> 11533 | AF23: =MAX(OFFSET(EPbed_Prop!$C$10,12*($AB23-1),4*(PlotControl!$C$4-1),12,1)) -> 20929 | AG23: =MAX(OFFSET(EPbed_Prop!$D$10,12*($AB23-1),4*(PlotControl!$C$4-1),12,1)) -> 24964 | AH23: =MAX(OFFSET(EPbed_Prop!$E$10,12*($AB23-1),4*(PlotControl!$C$4-1),12,1)) -> 29770 | AL23: =MAX(OFFSET(WWTF_Prop!$C$10,12*($AB23-1),4*(PlotControl!$C$4-1),12,1)) -> 9110.4 | AM23: =MAX(OFFSET(WWTF_Prop!$D$10,12*($AB23-1),4*(PlotControl!$C$4-1),12,1)) -> 9581.1 | AN23: =MAX(OFFSET(WWTF_Prop!$E$10,12*($AB23-1),4*(PlotControl!$C$4-1),12,1)) -> 10077 | AO23: =MAX(OFFSET(OSLA_Prop!$C$10,12*($AB23-1),4*(PlotControl!$C$4-1),12,1)) -> 25780 | AP23: =MAX(OFFSET(OSLA_Prop!$D$10,12*($AB23-1),4*(PlotControl!$C$4-1),12,1)) -> 30098 | AQ23: =MAX(OFFSET(OSLA_Prop!$E$10,12*($AB23-1),4*(PlotControl!$C$4-1),12,1)) -> 35190 | AR23: =MAX(OFFSET(WPsurf_Prop!$C$10,12*($AB23-1),4*(PlotControl!$C$4-1),12,1)) -> 9110.4 | AS23: =MAX(OFFSET(WPsurf_Prop!$D$10,12*($AB23-1),4*(PlotControl!$C$4-1),12,1)) -> 9581.1 | AT23: =MAX(OFFSET(WPsurf_Prop!$E$10,12*($AB23-1),4*(PlotControl!$C$4-1),12,1)) -> 10077 | AU23: =MAX(OFFSET(WPbed4_Prop!$C$10,12*($AB23-1),4*(PlotControl!$C$4-1),12,1)) -> 20929 | AV23: =MAX(OFFSET(WPbed4_Prop!$D$10,12*($AB23-1),4*(PlotControl!$C$4-1),12,1)) -> 24964 | AW23: =MAX(OFFSET(WPbed4_Prop!$E$10,12*($AB23-1),4*(PlotControl!$C$4-1),12,1)) -> 29770 | AX23: =MAX(OFFSET(WPbed4a_Prop!$C$10,12*($AB23-1),4*(PlotControl!$C$4-1),12,1)) -> 20929 | AY23: =MAX(OFFSET(WPbed4a_Prop!$D$10,12*($AB23-1),4*(PlotControl!$C$4-1),12,1)) -> 24964 | AZ23: =MAX(OFFSET(WPbed4a_Prop!$E$10,12*($AB23-1),4*(PlotControl!$C$4-1),12,1)) -> 29770 | BB23: 19 | BC23: =MAX(OFFSET(EPCat23_Part!$C$10,12*($BB23-1),4*(PlotControl!$C$4-1),12,1)) -> 9110.4 | BD23: =MAX(OFFSET(EPCat23_Part!$D$10,12*($BB23-1),4*(PlotControl!$C$4-1),12,1)) -> 9581.3 | BE23: =MAX(OFFSET(EPCat23_Part!$E$10,12*($BB23-1),4*(PlotControl!$C$4-1),12,1)) -> 10077 | BI23: =MAX(OFFSET(OSP_Part1!$C$10,12*($BB23-1),4*(PlotControl!$C$4-1),12,1)) -> 9110.4 | BJ23: =MAX(OFFSET(OSP_Part1!$D$10,12*($BB23-1),4*(PlotControl!$C$4-1),12,1)) -> 9581.1 | BK23: =MAX(OFFSET(OSP_Part1!$E$10,12*($BB23-1),4*(PlotControl!$C$4-1),12,1)) -> 10077 | BL23: =MAX(OFFSET(WWTF_Part!$C$10,12*($BB23-1),4*(PlotControl!$C$4-1),12,1)) -> 9110.4 | BM23: =MAX(OFFSET(WWTF_Part!$D$10,12*($BB23-1),4*(PlotControl!$C$4-1),12,1)) -> 9581.1 | BN23: =MAX(OFFSET(WWTF_Part!$E$10,12*($BB23-1),4*(PlotControl!$C$4-1),12,1)) -> 10077 | BO23: =MAX(OFFSET(OSLA_Part!$C$10,12*($BB23-1),4*(PlotControl!$C$4-1),12,1)) -> 9193.4 | BP23: =MAX(OFFSET(OSLA_Part!$D$10,12*($BB23-1),4*(PlotControl!$C$4-1),12,1)) -> 9706.2 | BQ23: =MAX(OFFSET(OSLA_Part!$E$10,12*($BB23-1),4*(PlotControl!$C$4-1),12,1)) -> 10320 | BR23: =MAX(OFFSET(WPsurf_Part!$C$10,12*($BB23-1),4*(PlotControl!$C$4-1),12,1)) -> 9110.4 | BS23: =MAX(OFFSET(WPsurf_Part!$D$10,12*($BB23-1),4*(PlotControl!$C$4-1),12,1)) -> 9581.1 | BT23: =MAX(OFFSET(WPsurf_Part!$E$10,12*($BB23-1),4*(PlotControl!$C$4-1),12,1)) -> 10077
A24: 20 | B24: =MAX(OFFSET(EPCat23_Dunka!$C$10,12*($A24-1),4*(PlotControl!$C$4-1),12,1)) -> 10215 | C24: =MAX(OFFSET(EPCat23_Dunka!$D$10,12*($A24-1),4*(PlotControl!$C$4-1),12,1)) -> 11868 | D24: =MAX(OFFSET(EPCat23_Dunka!$E$10,12*($A24-1),4*(PlotControl!$C$4-1),12,1)) -> 17441 | H24: =MAX(OFFSET(OSP_Dunka!$C$10,12*($A24-1),4*(PlotControl!$C$4-1),12,1)) -> 9110.5 | I24: =MAX(OFFSET(OSP_Dunka!$D$10,12*($A24-1),4*(PlotControl!$C$4-1),12,1)) -> 9581.6 | J24: =MAX(OFFSET(OSP_Dunka!$E$10,12*($A24-1),4*(PlotControl!$C$4-1),12,1)) -> 10077 | K24: =MAX(OFFSET(WWTF_Dunka!$C$10,12*($A24-1),4*(PlotControl!$C$4-1),12,1)) -> 9452.7 | L24: =MAX(OFFSET(WWTF_Dunka!$D$10,12*($A24-1),4*(PlotControl!$C$4-1),12,1)) -> 9978.7 | M24: =MAX(OFFSET(WWTF_Dunka!$E$10,12*($A24-1),4*(PlotControl!$C$4-1),12,1)) -> 10573 | N24: =MAX(OFFSET(OSLA_Dunka!$C$10,12*($A24-1),4*(PlotControl!$C$4-1),12,1)) -> 34028 | O24: =MAX(OFFSET(OSLA_Dunka!$D$10,12*($A24-1),4*(PlotControl!$C$4-1),12,1)) -> 38724 | P24: =MAX(OFFSET(OSLA_Dunka!$E$10,12*($A24-1),4*(PlotControl!$C$4-1),12,1)) -> 43879 | Q24: =MAX(OFFSET(WPsurf_Dunka!$C$10,12*($A24-1),4*(PlotControl!$C$4-1),12,1)) -> 9110.4 | R24: =MAX(OFFSET(WPsurf_Dunka!$D$10,12*($A24-1),4*(PlotControl!$C$4-1),12,1)) -> 9581.1 | S24: =MAX(OFFSET(WPsurf_Dunka!$E$10,12*($A24-1),4*(PlotControl!$C$4-1),12,1)) -> 10077 | AB24: 20 | AC24: =MAX(OFFSET(EPCat23_Prop!$C$10,12*($AB24-1),4*(PlotControl!$C$4-1),12,1)) -> 9450.3 | AD24: =MAX(OFFSET(EPCat23_Prop!$D$10,12*($AB24-1),4*(PlotControl!$C$4-1),12,1)) -> 10184 | AE24: =MAX(OFFSET(EPCat23_Prop!$E$10,12*($AB24-1),4*(PlotControl!$C$4-1),12,1)) -> 11961 | AF24: =MAX(OFFSET(EPbed_Prop!$C$10,12*($AB24-1),4*(PlotControl!$C$4-1),12,1)) -> 20929 | AG24: =MAX(OFFSET(EPbed_Prop!$D$10,12*($AB24-1),4*(PlotControl!$C$4-1),12,1)) -> 24964 | AH24: =MAX(OFFSET(EPbed_Prop!$E$10,12*($AB24-1),4*(PlotControl!$C$4-1),12,1)) -> 29770 | AL24: =MAX(OFFSET(WWTF_Prop!$C$10,12*($AB24-1),4*(PlotControl!$C$4-1),12,1)) -> 9110.4 | AM24: =MAX(OFFSET(WWTF_Prop!$D$10,12*($AB24-1),4*(PlotControl!$C$4-1),12,1)) -> 9581.1 | AN24: =MAX(OFFSET(WWTF_Prop!$E$10,12*($AB24-1),4*(PlotControl!$C$4-1),12,1)) -> 10077 | AO24: =MAX(OFFSET(OSLA_Prop!$C$10,12*($AB24-1),4*(PlotControl!$C$4-1),12,1)) -> 26439 | AP24: =MAX(OFFSET(OSLA_Prop!$D$10,12*($AB24-1),4*(PlotControl!$C$4-1),12,1)) -> 30992 | AQ24: =MAX(OFFSET(OSLA_Prop!$E$10,12*($AB24-1),4*(PlotControl!$C$4-1),12,1)) -> 36203 | AR24: =MAX(OFFSET(WPsurf_Prop!$C$10,12*($AB24-1),4*(PlotControl!$C$4-1),12,1)) -> 9110.4 | AS24: =MAX(OFFSET(WPsurf_Prop!$D$10,12*($AB24-1),4*(PlotControl!$C$4-1),12,1)) -> 9581.1 | AT24: =MAX(OFFSET(WPsurf_Prop!$E$10,12*($AB24-1),4*(PlotControl!$C$4-1),12,1)) -> 10077 | AU24: =MAX(OFFSET(WPbed4_Prop!$C$10,12*($AB24-1),4*(PlotControl!$C$4-1),12,1)) -> 20929 | AV24: =MAX(OFFSET(WPbed4_Prop!$D$10,12*($AB24-1),4*(PlotControl!$C$4-1),12,1)) -> 24964 | AW24: =MAX(OFFSET(WPbed4_Prop!$E$10,12*($AB24-1),4*(PlotControl!$C$4-1),12,1)) -> 29770 | AX24: =MAX(OFFSET(WPbed4a_Prop!$C$10,12*($AB24-1),4*(PlotControl!$C$4-1),12,1)) -> 20929 | AY24: =MAX(OFFSET(WPbed4a_Prop!$D$10,12*($AB24-1),4*(PlotControl!$C$4-1),12,1)) -> 24964 | AZ24: =MAX(OFFSET(WPbed4a_Prop!$E$10,12*($AB24-1),4*(PlotControl!$C$4-1),12,1)) -> 29770 | BB24: 20 | BC24: =MAX(OFFSET(EPCat23_Part!$C$10,12*($BB24-1),4*(PlotControl!$C$4-1),12,1)) -> 9110.5 | BD24: =MAX(OFFSET(EPCat23_Part!$D$10,12*($BB24-1),4*(PlotControl!$C$4-1),12,1)) -> 9581.5 | BE24: =MAX(OFFSET(EPCat23_Part!$E$10,12*($BB24-1),4*(PlotControl!$C$4-1),12,1)) -> 10077 | BI24: =MAX(OFFSET(OSP_Part1!$C$10,12*($BB24-1),4*(PlotControl!$C$4-1),12,1)) -> 9110.4 | BJ24: =MAX(OFFSET(OSP_Part1!$D$10,12*($BB24-1),4*(PlotControl!$C$4-1),12,1)) -> 9581.1 | BK24: =MAX(OFFSET(OSP_Part1!$E$10,12*($BB24-1),4*(PlotControl!$C$4-1),12,1)) -> 10077 | BL24: =MAX(OFFSET(WWTF_Part!$C$10,12*($BB24-1),4*(PlotControl!$C$4-1),12,1)) -> 9110.4 | BM24: =MAX(OFFSET(WWTF_Part!$D$10,12*($BB24-1),4*(PlotControl!$C$4-1),12,1)) -> 9581.1 | BN24: =MAX(OFFSET(WWTF_Part!$E$10,12*($BB24-1),4*(PlotControl!$C$4-1),12,1)) -> 10077 | BO24: =MAX(OFFSET(OSLA_Part!$C$10,12*($BB24-1),4*(PlotControl!$C$4-1),12,1)) -> 9226.4 | BP24: =MAX(OFFSET(OSLA_Part!$D$10,12*($BB24-1),4*(PlotControl!$C$4-1),12,1)) -> 9770.4 | BQ24: =MAX(OFFSET(OSLA_Part!$E$10,12*($BB24-1),4*(PlotControl!$C$4-1),12,1)) -> 10536 | BR24: =MAX(OFFSET(WPsurf_Part!$C$10,12*($BB24-1),4*(PlotControl!$C$4-1),12,1)) -> 9110.4 | BS24: =MAX(OFFSET(WPsurf_Part!$D$10,12*($BB24-1),4*(PlotControl!$C$4-1),12,1)) -> 9581.1 | BT24: =MAX(OFFSET(WPsurf_Part!$E$10,12*($BB24-1),4*(PlotControl!$C$4-1),12,1)) -> 10077
A25: 21 | B25: =MAX(OFFSET(EPCat23_Dunka!$C$10,12*($A25-1),4*(PlotControl!$C$4-1),12,1)) -> 10250 | C25: =MAX(OFFSET(EPCat23_Dunka!$D$10,12*($A25-1),4*(PlotControl!$C$4-1),12,1)) -> 11996 | D25: =MAX(OFFSET(EPCat23_Dunka!$E$10,12*($A25-1),4*(PlotControl!$C$4-1),12,1)) -> 17655 | H25: =MAX(OFFSET(OSP_Dunka!$C$10,12*($A25-1),4*(PlotControl!$C$4-1),12,1)) -> 9110.5 | I25: =MAX(OFFSET(OSP_Dunka!$D$10,12*($A25-1),4*(PlotControl!$C$4-1),12,1)) -> 9581.7 | J25: =MAX(OFFSET(OSP_Dunka!$E$10,12*($A25-1),4*(PlotControl!$C$4-1),12,1)) -> 10077 | K25: =MAX(OFFSET(WWTF_Dunka!$C$10,12*($A25-1),4*(PlotControl!$C$4-1),12,1)) -> 9507.8 | L25: =MAX(OFFSET(WWTF_Dunka!$D$10,12*($A25-1),4*(PlotControl!$C$4-1),12,1)) -> 10059 | M25: =MAX(OFFSET(WWTF_Dunka!$E$10,12*($A25-1),4*(PlotControl!$C$4-1),12,1)) -> 10680 | N25: =MAX(OFFSET(OSLA_Dunka!$C$10,12*($A25-1),4*(PlotControl!$C$4-1),12,1)) -> 34095 | O25: =MAX(OFFSET(OSLA_Dunka!$D$10,12*($A25-1),4*(PlotControl!$C$4-1),12,1)) -> 38793 | P25: =MAX(OFFSET(OSLA_Dunka!$E$10,12*($A25-1),4*(PlotControl!$C$4-1),12,1)) -> 43964 | Q25: =MAX(OFFSET(WPsurf_Dunka!$C$10,12*($A25-1),4*(PlotControl!$C$4-1),12,1)) -> 9110.4 | R25: =MAX(OFFSET(WPsurf_Dunka!$D$10,12*($A25-1),4*(PlotControl!$C$4-1),12,1)) -> 9581.1 | S25: =MAX(OFFSET(WPsurf_Dunka!$E$10,12*($A25-1),4*(PlotControl!$C$4-1),12,1)) -> 10077 | AB25: 21 | AC25: =MAX(OFFSET(EPCat23_Prop!$C$10,12*($AB25-1),4*(PlotControl!$C$4-1),12,1)) -> 9514.1 | AD25: =MAX(OFFSET(EPCat23_Prop!$D$10,12*($AB25-1),4*(PlotControl!$C$4-1),12,1)) -> 10343 | AE25: =MAX(OFFSET(EPCat23_Prop!$E$10,12*($AB25-1),4*(PlotControl!$C$4-1),12,1)) -> 12830 | AF25: =MAX(OFFSET(EPbed_Prop!$C$10,12*($AB25-1),4*(PlotControl!$C$4-1),12,1)) -> 20929 | AG25: =MAX(OFFSET(EPbed_Prop!$D$10,12*($AB25-1),4*(PlotControl!$C$4-1),12,1)) -> 24964 | AH25: =MAX(OFFSET(EPbed_Prop!$E$10,12*($AB25-1),4*(PlotControl!$C$4-1),12,1)) -> 29770 | AL25: =MAX(OFFSET(WWTF_Prop!$C$10,12*($AB25-1),4*(PlotControl!$C$4-1),12,1)) -> 9110.4 | AM25: =MAX(OFFSET(WWTF_Prop!$D$10,12*($AB25-1),4*(PlotControl!$C$4-1),12,1)) -> 9581.1 | AN25: =MAX(OFFSET(WWTF_Prop!$E$10,12*($AB25-1),4*(PlotControl!$C$4-1),12,1)) -> 10077 | AO25: =MAX(OFFSET(OSLA_Prop!$C$10,12*($AB25-1),4*(PlotControl!$C$4-1),12,1)) -> 26506 | AP25: =MAX(OFFSET(OSLA_Prop!$D$10,12*($AB25-1),4*(PlotControl!$C$4-1),12,1)) -> 31006 | AQ25: =MAX(OFFSET(OSLA_Prop!$E$10,12*($AB25-1),4*(PlotControl!$C$4-1),12,1)) -> 36228 | AR25: =MAX(OFFSET(WPsurf_Prop!$C$10,12*($AB25-1),4*(PlotControl!$C$4-1),12,1)) -> 9110.4 | AS25: =MAX(OFFSET(WPsurf_Prop!$D$10,12*($AB25-1),4*(PlotControl!$C$4-1),12,1)) -> 9581.1 | AT25: =MAX(OFFSET(WPsurf_Prop!$E$10,12*($AB25-1),4*(PlotControl!$C$4-1),12,1)) -> 10077 | AU25: =MAX(OFFSET(WPbed4_Prop!$C$10,12*($AB25-1),4*(PlotControl!$C$4-1),12,1)) -> 20929 | AV25: =MAX(OFFSET(WPbed4_Prop!$D$10,12*($AB25-1),4*(PlotControl!$C$4-1),12,1)) -> 24964 | AW25: =MAX(OFFSET(WPbed4_Prop!$E$10,12*($AB25-1),4*(PlotControl!$C$4-1),12,1)) -> 29770 | AX25: =MAX(OFFSET(WPbed4a_Prop!$C$10,12*($AB25-1),4*(PlotControl!$C$4-1),12,1)) -> 20929 | AY25: =MAX(OFFSET(WPbed4a_Prop!$D$10,12*($AB25-1),4*(PlotControl!$C$4-1),12,1)) -> 24964 | AZ25: =MAX(OFFSET(WPbed4a_Prop!$E$10,12*($AB25-1),4*(PlotControl!$C$4-1),12,1)) -> 29770 | BB25: 21 | BC25: =MAX(OFFSET(EPCat23_Part!$C$10,12*($BB25-1),4*(PlotControl!$C$4-1),12,1)) -> 9110.5 | BD25: =MAX(OFFSET(EPCat23_Part!$D$10,12*($BB25-1),4*(PlotControl!$C$4-1),12,1)) -> 9581.6 | BE25: =MAX(OFFSET(EPCat23_Part!$E$10,12*($BB25-1),4*(PlotControl!$C$4-1),12,1)) -> 10077 | BI25: =MAX(OFFSET(OSP_Part1!$C$10,12*($BB25-1),4*(PlotControl!$C$4-1),12,1)) -> 9110.4 | BJ25: =MAX(OFFSET(OSP_Part1!$D$10,12*($BB25-1),4*(PlotControl!$C$4-1),12,1)) -> 9581.1 | BK25: =MAX(OFFSET(OSP_Part1!$E$10,12*($BB25-1),4*(PlotControl!$C$4-1),12,1)) -> 10077 | BL25: =MAX(OFFSET(WWTF_Part!$C$10,12*($BB25-1),4*(PlotControl!$C$4-1),12,1)) -> 9110.4 | BM25: =MAX(OFFSET(WWTF_Part!$D$10,12*($BB25-1),4*(PlotControl!$C$4-1),12,1)) -> 9581.1 | BN25: =MAX(OFFSET(WWTF_Part!$E$10,12*($BB25-1),4*(PlotControl!$C$4-1),12,1)) -> 10077 | BO25: =MAX(OFFSET(OSLA_Part!$C$10,12*($BB25-1),4*(PlotControl!$C$4-1),12,1)) -> 9240.3 | BP25: =MAX(OFFSET(OSLA_Part!$D$10,12*($BB25-1),4*(PlotControl!$C$4-1),12,1)) -> 9804.9 | BQ25: =MAX(OFFSET(OSLA_Part!$E$10,12*($BB25-1),4*(PlotControl!$C$4-1),12,1)) -> 10746 | BR25: =MAX(OFFSET(WPsurf_Part!$C$10,12*($BB25-1),4*(PlotControl!$C$4-1),12,1)) -> 9110.4 | BS25: =MAX(OFFSET(WPsurf_Part!$D$10,12*($BB25-1),4*(PlotControl!$C$4-1),12,1)) -> 9581.1 | BT25: =MAX(OFFSET(WPsurf_Part!$E$10,12*($BB25-1),4*(PlotControl!$C$4-1),12,1)) -> 10077
A26: 22 | B26: =MAX(OFFSET(EPCat23_Dunka!$C$10,12*($A26-1),4*(PlotControl!$C$4-1),12,1)) -> 10273 | C26: =MAX(OFFSET(EPCat23_Dunka!$D$10,12*($A26-1),4*(PlotControl!$C$4-1),12,1)) -> 12028 | D26: =MAX(OFFSET(EPCat23_Dunka!$E$10,12*($A26-1),4*(PlotControl!$C$4-1),12,1)) -> 17688 | H26: =MAX(OFFSET(OSP_Dunka!$C$10,12*($A26-1),4*(PlotControl!$C$4-1),12,1)) -> 9150.9 | I26: =MAX(OFFSET(OSP_Dunka!$D$10,12*($A26-1),4*(PlotControl!$C$4-1),12,1)) -> 9623.4 | J26: =MAX(OFFSET(OSP_Dunka!$E$10,12*($A26-1),4*(PlotControl!$C$4-1),12,1)) -> 10110 | K26: =MAX(OFFSET(WWTF_Dunka!$C$10,12*($A26-1),4*(PlotControl!$C$4-1),12,1)) -> 9565.9 | L26: =MAX(OFFSET(WWTF_Dunka!$D$10,12*($A26-1),4*(PlotControl!$C$4-1),12,1)) -> 10156 | M26: =MAX(OFFSET(WWTF_Dunka!$E$10,12*($A26-1),4*(PlotControl!$C$4-1),12,1)) -> 10789 | N26: =MAX(OFFSET(OSLA_Dunka!$C$10,12*($A26-1),4*(PlotControl!$C$4-1),12,1)) -> 33725 | O26: =MAX(OFFSET(OSLA_Dunka!$D$10,12*($A26-1),4*(PlotControl!$C$4-1),12,1)) -> 38275 | P26: =MAX(OFFSET(OSLA_Dunka!$E$10,12*($A26-1),4*(PlotControl!$C$4-1),12,1)) -> 43344 | Q26: =MAX(OFFSET(WPsurf_Dunka!$C$10,12*($A26-1),4*(PlotControl!$C$4-1),12,1)) -> 9110.4 | R26: =MAX(OFFSET(WPsurf_Dunka!$D$10,12*($A26-1),4*(PlotControl!$C$4-1),12,1)) -> 9581.1 | S26: =MAX(OFFSET(WPsurf_Dunka!$E$10,12*($A26-1),4*(PlotControl!$C$4-1),12,1)) -> 10077 | AB26: 22 | AC26: =MAX(OFFSET(EPCat23_Prop!$C$10,12*($AB26-1),4*(PlotControl!$C$4-1),12,1)) -> 9606.1 | AD26: =MAX(OFFSET(EPCat23_Prop!$D$10,12*($AB26-1),4*(PlotControl!$C$4-1),12,1)) -> 10535 | AE26: =MAX(OFFSET(EPCat23_Prop!$E$10,12*($AB26-1),4*(PlotControl!$C$4-1),12,1)) -> 13646 | AF26: =MAX(OFFSET(EPbed_Prop!$C$10,12*($AB26-1),4*(PlotControl!$C$4-1),12,1)) -> 20929 | AG26: =MAX(OFFSET(EPbed_Prop!$D$10,12*($AB26-1),4*(PlotControl!$C$4-1),12,1)) -> 24964 | AH26: =MAX(OFFSET(EPbed_Prop!$E$10,12*($AB26-1),4*(PlotControl!$C$4-1),12,1)) -> 29770 | AL26: =MAX(OFFSET(WWTF_Prop!$C$10,12*($AB26-1),4*(PlotControl!$C$4-1),12,1)) -> 9110.4 | AM26: =MAX(OFFSET(WWTF_Prop!$D$10,12*($AB26-1),4*(PlotControl!$C$4-1),12,1)) -> 9581.1 | AN26: =MAX(OFFSET(WWTF_Prop!$E$10,12*($AB26-1),4*(PlotControl!$C$4-1),12,1)) -> 10077 | AO26: =MAX(OFFSET(OSLA_Prop!$C$10,12*($AB26-1),4*(PlotControl!$C$4-1),12,1)) -> 26528 | AP26: =MAX(OFFSET(OSLA_Prop!$D$10,12*($AB26-1),4*(PlotControl!$C$4-1),12,1)) -> 31012 | AQ26: =MAX(OFFSET(OSLA_Prop!$E$10,12*($AB26-1),4*(PlotControl!$C$4-1),12,1)) -> 36096 | AR26: =MAX(OFFSET(WPsurf_Prop!$C$10,12*($AB26-1),4*(PlotControl!$C$4-1),12,1)) -> 9110.4 | AS26: =MAX(OFFSET(WPsurf_Prop!$D$10,12*($AB26-1),4*(PlotControl!$C$4-1),12,1)) -> 9581.1 | AT26: =MAX(OFFSET(WPsurf_Prop!$E$10,12*($AB26-1),4*(PlotControl!$C$4-1),12,1)) -> 10077 | AU26: =MAX(OFFSET(WPbed4_Prop!$C$10,12*($AB26-1),4*(PlotControl!$C$4-1),12,1)) -> 20929 | AV26: =MAX(OFFSET(WPbed4_Prop!$D$10,12*($AB26-1),4*(PlotControl!$C$4-1),12,1)) -> 24964 | AW26: =MAX(OFFSET(WPbed4_Prop!$E$10,12*($AB26-1),4*(PlotControl!$C$4-1),12,1)) -> 29770 | AX26: =MAX(OFFSET(WPbed4a_Prop!$C$10,12*($AB26-1),4*(PlotControl!$C$4-1),12,1)) -> 20929 | AY26: =MAX(OFFSET(WPbed4a_Prop!$D$10,12*($AB26-1),4*(PlotControl!$C$4-1),12,1)) -> 24964 | AZ26: =MAX(OFFSET(WPbed4a_Prop!$E$10,12*($AB26-1),4*(PlotControl!$C$4-1),12,1)) -> 29770 | BB26: 22 | BC26: =MAX(OFFSET(EPCat23_Part!$C$10,12*($BB26-1),4*(PlotControl!$C$4-1),12,1)) -> 9110.5 | BD26: =MAX(OFFSET(EPCat23_Part!$D$10,12*($BB26-1),4*(PlotControl!$C$4-1),12,1)) -> 9581.7 | BE26: =MAX(OFFSET(EPCat23_Part!$E$10,12*($BB26-1),4*(PlotControl!$C$4-1),12,1)) -> 10077 | BI26: =MAX(OFFSET(OSP_Part1!$C$10,12*($BB26-1),4*(PlotControl!$C$4-1),12,1)) -> 9110.4 | BJ26: =MAX(OFFSET(OSP_Part1!$D$10,12*($BB26-1),4*(PlotControl!$C$4-1),12,1)) -> 9581.1 | BK26: =MAX(OFFSET(OSP_Part1!$E$10,12*($BB26-1),4*(PlotControl!$C$4-1),12,1)) -> 10077 | BL26: =MAX(OFFSET(WWTF_Part!$C$10,12*($BB26-1),4*(PlotControl!$C$4-1),12,1)) -> 9110.4 | BM26: =MAX(OFFSET(WWTF_Part!$D$10,12*($BB26-1),4*(PlotControl!$C$4-1),12,1)) -> 9581.1 | BN26: =MAX(OFFSET(WWTF_Part!$E$10,12*($BB26-1),4*(PlotControl!$C$4-1),12,1)) -> 10077 | BO26: =MAX(OFFSET(OSLA_Part!$C$10,12*($BB26-1),4*(PlotControl!$C$4-1),12,1)) -> 9252.3 | BP26: =MAX(OFFSET(OSLA_Part!$D$10,12*($BB26-1),4*(PlotControl!$C$4-1),12,1)) -> 9853.6 | BQ26: =MAX(OFFSET(OSLA_Part!$E$10,12*($BB26-1),4*(PlotControl!$C$4-1),12,1)) -> 10987 | BR26: =MAX(OFFSET(WPsurf_Part!$C$10,12*($BB26-1),4*(PlotControl!$C$4-1),12,1)) -> 9110.4 | BS26: =MAX(OFFSET(WPsurf_Part!$D$10,12*($BB26-1),4*(PlotControl!$C$4-1),12,1)) -> 9581.1 | BT26: =MAX(OFFSET(WPsurf_Part!$E$10,12*($BB26-1),4*(PlotControl!$C$4-1),12,1)) -> 10077
A27: 23 | B27: =MAX(OFFSET(EPCat23_Dunka!$C$10,12*($A27-1),4*(PlotControl!$C$4-1),12,1)) -> 10273 | C27: =MAX(OFFSET(EPCat23_Dunka!$D$10,12*($A27-1),4*(PlotControl!$C$4-1),12,1)) -> 11994 | D27: =MAX(OFFSET(EPCat23_Dunka!$E$10,12*($A27-1),4*(PlotControl!$C$4-1),12,1)) -> 17650 | H27: =MAX(OFFSET(OSP_Dunka!$C$10,12*($A27-1),4*(PlotControl!$C$4-1),12,1)) -> 9211.8 | I27: =MAX(OFFSET(OSP_Dunka!$D$10,12*($A27-1),4*(PlotControl!$C$4-1),12,1)) -> 9713.9 | J27: =MAX(OFFSET(OSP_Dunka!$E$10,12*($A27-1),4*(PlotControl!$C$4-1),12,1)) -> 10223 | K27: =MAX(OFFSET(WWTF_Dunka!$C$10,12*($A27-1),4*(PlotControl!$C$4-1),12,1)) -> 9652.3 | L27: =MAX(OFFSET(WWTF_Dunka!$D$10,12*($A27-1),4*(PlotControl!$C$4-1),12,1)) -> 10250 | M27: =MAX(OFFSET(WWTF_Dunka!$E$10,12*($A27-1),4*(PlotControl!$C$4-1),12,1)) -> 10915 | N27: =MAX(OFFSET(OSLA_Dunka!$C$10,12*($A27-1),4*(PlotControl!$C$4-1),12,1)) -> 33302 | O27: =MAX(OFFSET(OSLA_Dunka!$D$10,12*($A27-1),4*(PlotControl!$C$4-1),12,1)) -> 37750 | P27: =MAX(OFFSET(OSLA_Dunka!$E$10,12*($A27-1),4*(PlotControl!$C$4-1),12,1)) -> 42785 | Q27: =MAX(OFFSET(WPsurf_Dunka!$C$10,12*($A27-1),4*(PlotControl!$C$4-1),12,1)) -> 9110.4 | R27: =MAX(OFFSET(WPsurf_Dunka!$D$10,12*($A27-1),4*(PlotControl!$C$4-1),12,1)) -> 9581.1 | S27: =MAX(OFFSET(WPsurf_Dunka!$E$10,12*($A27-1),4*(PlotControl!$C$4-1),12,1)) -> 10077 | AB27: 23 | AC27: =MAX(OFFSET(EPCat23_Prop!$C$10,12*($AB27-1),4*(PlotControl!$C$4-1),12,1)) -> 9696 | AD27: =MAX(OFFSET(EPCat23_Prop!$D$10,12*($AB27-1),4*(PlotControl!$C$4-1),12,1)) -> 10727 | AE27: =MAX(OFFSET(EPCat23_Prop!$E$10,12*($AB27-1),4*(PlotControl!$C$4-1),12,1)) -> 14309 | AF27: =MAX(OFFSET(EPbed_Prop!$C$10,12*($AB27-1),4*(PlotControl!$C$4-1),12,1)) -> 20929 | AG27: =MAX(OFFSET(EPbed_Prop!$D$10,12*($AB27-1),4*(PlotControl!$C$4-1),12,1)) -> 24964 | AH27: =MAX(OFFSET(EPbed_Prop!$E$10,12*($AB27-1),4*(PlotControl!$C$4-1),12,1)) -> 29770 | AL27: =MAX(OFFSET(WWTF_Prop!$C$10,12*($AB27-1),4*(PlotControl!$C$4-1),12,1)) -> 9110.4 | AM27: =MAX(OFFSET(WWTF_Prop!$D$10,12*($AB27-1),4*(PlotControl!$C$4-1),12,1)) -> 9581.1 | AN27: =MAX(OFFSET(WWTF_Prop!$E$10,12*($AB27-1),4*(PlotControl!$C$4-1),12,1)) -> 10077 | AO27: =MAX(OFFSET(OSLA_Prop!$C$10,12*($AB27-1),4*(PlotControl!$C$4-1),12,1)) -> 26545 | AP27: =MAX(OFFSET(OSLA_Prop!$D$10,12*($AB27-1),4*(PlotControl!$C$4-1),12,1)) -> 30980 | AQ27: =MAX(OFFSET(OSLA_Prop!$E$10,12*($AB27-1),4*(PlotControl!$C$4-1),12,1)) -> 35965 | AR27: =MAX(OFFSET(WPsurf_Prop!$C$10,12*($AB27-1),4*(PlotControl!$C$4-1),12,1)) -> 9110.4 | AS27: =MAX(OFFSET(WPsurf_Prop!$D$10,12*($AB27-1),4*(PlotControl!$C$4-1),12,1)) -> 9581.1 | AT27: =MAX(OFFSET(WPsurf_Prop!$E$10,12*($AB27-1),4*(PlotControl!$C$4-1),12,1)) -> 10077 | AU27: =MAX(OFFSET(WPbed4_Prop!$C$10,12*($AB27-1),4*(PlotControl!$C$4-1),12,1)) -> 20929 | AV27: =MAX(OFFSET(WPbed4_Prop!$D$10,12*($AB27-1),4*(PlotControl!$C$4-1),12,1)) -> 24964 | AW27: =MAX(OFFSET(WPbed4_Prop!$E$10,12*($AB27-1),4*(PlotControl!$C$4-1),12,1)) -> 29770 | AX27: =MAX(OFFSET(WPbed4a_Prop!$C$10,12*($AB27-1),4*(PlotControl!$C$4-1),12,1)) -> 20929 | AY27: =MAX(OFFSET(WPbed4a_Prop!$D$10,12*($AB27-1),4*(PlotControl!$C$4-1),12,1)) -> 24964 | AZ27: =MAX(OFFSET(WPbed4a_Prop!$E$10,12*($AB27-1),4*(PlotControl!$C$4-1),12,1)) -> 29770 | BB27: 23 | BC27: =MAX(OFFSET(EPCat23_Part!$C$10,12*($BB27-1),4*(PlotControl!$C$4-1),12,1)) -> 9110.6 | BD27: =MAX(OFFSET(EPCat23_Part!$D$10,12*($BB27-1),4*(PlotControl!$C$4-1),12,1)) -> 9582.1 | BE27: =MAX(OFFSET(EPCat23_Part!$E$10,12*($BB27-1),4*(PlotControl!$C$4-1),12,1)) -> 10077 | BI27: =MAX(OFFSET(OSP_Part1!$C$10,12*($BB27-1),4*(PlotControl!$C$4-1),12,1)) -> 9110.4 | BJ27: =MAX(OFFSET(OSP_Part1!$D$10,12*($BB27-1),4*(PlotControl!$C$4-1),12,1)) -> 9581.1 | BK27: =MAX(OFFSET(OSP_Part1!$E$10,12*($BB27-1),4*(PlotControl!$C$4-1),12,1)) -> 10077 | BL27: =MAX(OFFSET(WWTF_Part!$C$10,12*($BB27-1),4*(PlotControl!$C$4-1),12,1)) -> 9110.4 | BM27: =MAX(OFFSET(WWTF_Part!$D$10,12*($BB27-1),4*(PlotControl!$C$4-1),12,1)) -> 9581.1 | BN27: =MAX(OFFSET(WWTF_Part!$E$10,12*($BB27-1),4*(PlotControl!$C$4-1),12,1)) -> 10077 | BO27: =MAX(OFFSET(OSLA_Part!$C$10,12*($BB27-1),4*(PlotControl!$C$4-1),12,1)) -> 9266.4 | BP27: =MAX(OFFSET(OSLA_Part!$D$10,12*($BB27-1),4*(PlotControl!$C$4-1),12,1)) -> 9931.9 | BQ27: =MAX(OFFSET(OSLA_Part!$E$10,12*($BB27-1),4*(PlotControl!$C$4-1),12,1)) -> 11309 | BR27: =MAX(OFFSET(WPsurf_Part!$C$10,12*($BB27-1),4*(PlotControl!$C$4-1),12,1)) -> 9110.4 | BS27: =MAX(OFFSET(WPsurf_Part!$D$10,12*($BB27-1),4*(PlotControl!$C$4-1),12,1)) -> 9581.1 | BT27: =MAX(OFFSET(WPsurf_Part!$E$10,12*($BB27-1),4*(PlotControl!$C$4-1),12,1)) -> 10077
A28: 24 | B28: =MAX(OFFSET(EPCat23_Dunka!$C$10,12*($A28-1),4*(PlotControl!$C$4-1),12,1)) -> 10244 | C28: =MAX(OFFSET(EPCat23_Dunka!$D$10,12*($A28-1),4*(PlotControl!$C$4-1),12,1)) -> 11957 | D28: =MAX(OFFSET(EPCat23_Dunka!$E$10,12*($A28-1),4*(PlotControl!$C$4-1),12,1)) -> 17561 | H28: =MAX(OFFSET(OSP_Dunka!$C$10,12*($A28-1),4*(PlotControl!$C$4-1),12,1)) -> 9285.2 | I28: =MAX(OFFSET(OSP_Dunka!$D$10,12*($A28-1),4*(PlotControl!$C$4-1),12,1)) -> 9821.2 | J28: =MAX(OFFSET(OSP_Dunka!$E$10,12*($A28-1),4*(PlotControl!$C$4-1),12,1)) -> 10434 | K28: =MAX(OFFSET(WWTF_Dunka!$C$10,12*($A28-1),4*(PlotControl!$C$4-1),12,1)) -> 9744.1 | L28: =MAX(OFFSET(WWTF_Dunka!$D$10,12*($A28-1),4*(PlotControl!$C$4-1),12,1)) -> 10335 | M28: =MAX(OFFSET(WWTF_Dunka!$E$10,12*($A28-1),4*(PlotControl!$C$4-1),12,1)) -> 11054 | N28: =MAX(OFFSET(OSLA_Dunka!$C$10,12*($A28-1),4*(PlotControl!$C$4-1),12,1)) -> 32916 | O28: =MAX(OFFSET(OSLA_Dunka!$D$10,12*($A28-1),4*(PlotControl!$C$4-1),12,1)) -> 37278 | P28: =MAX(OFFSET(OSLA_Dunka!$E$10,12*($A28-1),4*(PlotControl!$C$4-1),12,1)) -> 42078 | Q28: =MAX(OFFSET(WPsurf_Dunka!$C$10,12*($A28-1),4*(PlotControl!$C$4-1),12,1)) -> 9110.4 | R28: =MAX(OFFSET(WPsurf_Dunka!$D$10,12*($A28-1),4*(PlotControl!$C$4-1),12,1)) -> 9581.1 | S28: =MAX(OFFSET(WPsurf_Dunka!$E$10,12*($A28-1),4*(PlotControl!$C$4-1),12,1)) -> 10077 | AB28: 24 | AC28: =MAX(OFFSET(EPCat23_Prop!$C$10,12*($AB28-1),4*(PlotControl!$C$4-1),12,1)) -> 9792.4 | AD28: =MAX(OFFSET(EPCat23_Prop!$D$10,12*($AB28-1),4*(PlotControl!$C$4-1),12,1)) -> 10923 | AE28: =MAX(OFFSET(EPCat23_Prop!$E$10,12*($AB28-1),4*(PlotControl!$C$4-1),12,1)) -> 14927 | AF28: =MAX(OFFSET(EPbed_Prop!$C$10,12*($AB28-1),4*(PlotControl!$C$4-1),12,1)) -> 20929 | AG28: =MAX(OFFSET(EPbed_Prop!$D$10,12*($AB28-1),4*(PlotControl!$C$4-1),12,1)) -> 24964 | AH28: =MAX(OFFSET(EPbed_Prop!$E$10,12*($AB28-1),4*(PlotControl!$C$4-1),12,1)) -> 29770 | AL28: =MAX(OFFSET(WWTF_Prop!$C$10,12*($AB28-1),4*(PlotControl!$C$4-1),12,1)) -> 9110.4 | AM28: =MAX(OFFSET(WWTF_Prop!$D$10,12*($AB28-1),4*(PlotControl!$C$4-1),12,1)) -> 9581.1 | AN28: =MAX(OFFSET(WWTF_Prop!$E$10,12*($AB28-1),4*(PlotControl!$C$4-1),12,1)) -> 10077 | AO28: =MAX(OFFSET(OSLA_Prop!$C$10,12*($AB28-1),4*(PlotControl!$C$4-1),12,1)) -> 26561 | AP28: =MAX(OFFSET(OSLA_Prop!$D$10,12*($AB28-1),4*(PlotControl!$C$4-1),12,1)) -> 30901 | AQ28: =MAX(OFFSET(OSLA_Prop!$E$10,12*($AB28-1),4*(PlotControl!$C$4-1),12,1)) -> 35858 | AR28: =MAX(OFFSET(WPsurf_Prop!$C$10,12*($AB28-1),4*(PlotControl!$C$4-1),12,1)) -> 9110.4 | AS28: =MAX(OFFSET(WPsurf_Prop!$D$10,12*($AB28-1),4*(PlotControl!$C$4-1),12,1)) -> 9581.1 | AT28: =MAX(OFFSET(WPsurf_Prop!$E$10,12*($AB28-1),4*(PlotControl!$C$4-1),12,1)) -> 10077 | AU28: =MAX(OFFSET(WPbed4_Prop!$C$10,12*($AB28-1),4*(PlotControl!$C$4-1),12,1)) -> 20929 | AV28: =MAX(OFFSET(WPbed4_Prop!$D$10,12*($AB28-1),4*(PlotControl!$C$4-1),12,1)) -> 24964 | AW28: =MAX(OFFSET(WPbed4_Prop!$E$10,12*($AB28-1),4*(PlotControl!$C$4-1),12,1)) -> 29770 | AX28: =MAX(OFFSET(WPbed4a_Prop!$C$10,12*($AB28-1),4*(PlotControl!$C$4-1),12,1)) -> 20929 | AY28: =MAX(OFFSET(WPbed4a_Prop!$D$10,12*($AB28-1),4*(PlotControl!$C$4-1),12,1)) -> 24964 | AZ28: =MAX(OFFSET(WPbed4a_Prop!$E$10,12*($AB28-1),4*(PlotControl!$C$4-1),12,1)) -> 29770 | BB28: 24 | BC28: =MAX(OFFSET(EPCat23_Part!$C$10,12*($BB28-1),4*(PlotControl!$C$4-1),12,1)) -> 9110.9 | BD28: =MAX(OFFSET(EPCat23_Part!$D$10,12*($BB28-1),4*(PlotControl!$C$4-1),12,1)) -> 9582.8 | BE28: =MAX(OFFSET(EPCat23_Part!$E$10,12*($BB28-1),4*(PlotControl!$C$4-1),12,1)) -> 10077 | BI28: =MAX(OFFSET(OSP_Part1!$C$10,12*($BB28-1),4*(PlotControl!$C$4-1),12,1)) -> 9110.4 | BJ28: =MAX(OFFSET(OSP_Part1!$D$10,12*($BB28-1),4*(PlotControl!$C$4-1),12,1)) -> 9581.1 | BK28: =MAX(OFFSET(OSP_Part1!$E$10,12*($BB28-1),4*(PlotControl!$C$4-1),12,1)) -> 10077 | BL28: =MAX(OFFSET(WWTF_Part!$C$10,12*($BB28-1),4*(PlotControl!$C$4-1),12,1)) -> 9110.4 | BM28: =MAX(OFFSET(WWTF_Part!$D$10,12*($BB28-1),4*(PlotControl!$C$4-1),12,1)) -> 9581.1 | BN28: =MAX(OFFSET(WWTF_Part!$E$10,12*($BB28-1),4*(PlotControl!$C$4-1),12,1)) -> 10077 | BO28: =MAX(OFFSET(OSLA_Part!$C$10,12*($BB28-1),4*(PlotControl!$C$4-1),12,1)) -> 9303.9 | BP28: =MAX(OFFSET(OSLA_Part!$D$10,12*($BB28-1),4*(PlotControl!$C$4-1),12,1)) -> 10005 | BQ28: =MAX(OFFSET(OSLA_Part!$E$10,12*($BB28-1),4*(PlotControl!$C$4-1),12,1)) -> 11650 | BR28: =MAX(OFFSET(WPsurf_Part!$C$10,12*($BB28-1),4*(PlotControl!$C$4-1),12,1)) -> 9110.4 | BS28: =MAX(OFFSET(WPsurf_Part!$D$10,12*($BB28-1),4*(PlotControl!$C$4-1),12,1)) -> 9581.1 | BT28: =MAX(OFFSET(WPsurf_Part!$E$10,12*($BB28-1),4*(PlotControl!$C$4-1),12,1)) -> 10077
A29: 25 | B29: =MAX(OFFSET(EPCat23_Dunka!$C$10,12*($A29-1),4*(PlotControl!$C$4-1),12,1)) -> 10185 | C29: =MAX(OFFSET(EPCat23_Dunka!$D$10,12*($A29-1),4*(PlotControl!$C$4-1),12,1)) -> 11876 | D29: =MAX(OFFSET(EPCat23_Dunka!$E$10,12*($A29-1),4*(PlotControl!$C$4-1),12,1)) -> 17375 | H29: =MAX(OFFSET(OSP_Dunka!$C$10,12*($A29-1),4*(PlotControl!$C$4-1),12,1)) -> 9355.1 | I29: =MAX(OFFSET(OSP_Dunka!$D$10,12*($A29-1),4*(PlotControl!$C$4-1),12,1)) -> 9906.5 | J29: =MAX(OFFSET(OSP_Dunka!$E$10,12*($A29-1),4*(PlotControl!$C$4-1),12,1)) -> 10674 | K29: =MAX(OFFSET(WWTF_Dunka!$C$10,12*($A29-1),4*(PlotControl!$C$4-1),12,1)) -> 9822.9 | L29: =MAX(OFFSET(WWTF_Dunka!$D$10,12*($A29-1),4*(PlotControl!$C$4-1),12,1)) -> 10422 | M29: =MAX(OFFSET(WWTF_Dunka!$E$10,12*($A29-1),4*(PlotControl!$C$4-1),12,1)) -> 11182 | N29: =MAX(OFFSET(OSLA_Dunka!$C$10,12*($A29-1),4*(PlotControl!$C$4-1),12,1)) -> 32337 | O29: =MAX(OFFSET(OSLA_Dunka!$D$10,12*($A29-1),4*(PlotControl!$C$4-1),12,1)) -> 36791 | P29: =MAX(OFFSET(OSLA_Dunka!$E$10,12*($A29-1),4*(PlotControl!$C$4-1),12,1)) -> 41660 | Q29: =MAX(OFFSET(WPsurf_Dunka!$C$10,12*($A29-1),4*(PlotControl!$C$4-1),12,1)) -> 9110.4 | R29: =MAX(OFFSET(WPsurf_Dunka!$D$10,12*($A29-1),4*(PlotControl!$C$4-1),12,1)) -> 9581.1 | S29: =MAX(OFFSET(WPsurf_Dunka!$E$10,12*($A29-1),4*(PlotControl!$C$4-1),12,1)) -> 10077 | AB29: 25 | AC29: =MAX(OFFSET(EPCat23_Prop!$C$10,12*($AB29-1),4*(PlotControl!$C$4-1),12,1)) -> 9879.5 | AD29: =MAX(OFFSET(EPCat23_Prop!$D$10,12*($AB29-1),4*(PlotControl!$C$4-1),12,1)) -> 11055 | AE29: =MAX(OFFSET(EPCat23_Prop!$E$10,12*($AB29-1),4*(PlotControl!$C$4-1),12,1)) -> 15431 | AF29: =MAX(OFFSET(EPbed_Prop!$C$10,12*($AB29-1),4*(PlotControl!$C$4-1),12,1)) -> 20929 | AG29: =MAX(OFFSET(EPbed_Prop!$D$10,12*($AB29-1),4*(PlotControl!$C$4-1),12,1)) -> 24964 | AH29: =MAX(OFFSET(EPbed_Prop!$E$10,12*($AB29-1),4*(PlotControl!$C$4-1),12,1)) -> 29770 | AL29: =MAX(OFFSET(WWTF_Prop!$C$10,12*($AB29-1),4*(PlotControl!$C$4-1),12,1)) -> 9110.4 | AM29: =MAX(OFFSET(WWTF_Prop!$D$10,12*($AB29-1),4*(PlotControl!$C$4-1),12,1)) -> 9581.1 | AN29: =MAX(OFFSET(WWTF_Prop!$E$10,12*($AB29-1),4*(PlotControl!$C$4-1),12,1)) -> 10077 | AO29: =MAX(OFFSET(OSLA_Prop!$C$10,12*($AB29-1),4*(PlotControl!$C$4-1),12,1)) -> 26534 | AP29: =MAX(OFFSET(OSLA_Prop!$D$10,12*($AB29-1),4*(PlotControl!$C$4-1),12,1)) -> 30809 | AQ29: =MAX(OFFSET(OSLA_Prop!$E$10,12*($AB29-1),4*(PlotControl!$C$4-1),12,1)) -> 35637 | AR29: =MAX(OFFSET(WPsurf_Prop!$C$10,12*($AB29-1),4*(PlotControl!$C$4-1),12,1)) -> 9110.4 | AS29: =MAX(OFFSET(WPsurf_Prop!$D$10,12*($AB29-1),4*(PlotControl!$C$4-1),12,1)) -> 9581.1 | AT29: =MAX(OFFSET(WPsurf_Prop!$E$10,12*($AB29-1),4*(PlotControl!$C$4-1),12,1)) -> 10077 | AU29: =MAX(OFFSET(WPbed4_Prop!$C$10,12*($AB29-1),4*(PlotControl!$C$4-1),12,1)) -> 20929 | AV29: =MAX(OFFSET(WPbed4_Prop!$D$10,12*($AB29-1),4*(PlotControl!$C$4-1),12,1)) -> 24964 | AW29: =MAX(OFFSET(WPbed4_Prop!$E$10,12*($AB29-1),4*(PlotControl!$C$4-1),12,1)) -> 29770 | AX29: =MAX(OFFSET(WPbed4a_Prop!$C$10,12*($AB29-1),4*(PlotControl!$C$4-1),12,1)) -> 20929 | AY29: =MAX(OFFSET(WPbed4a_Prop!$D$10,12*($AB29-1),4*(PlotControl!$C$4-1),12,1)) -> 24964 | AZ29: =MAX(OFFSET(WPbed4a_Prop!$E$10,12*($AB29-1),4*(PlotControl!$C$4-1),12,1)) -> 29770 | BB29: 25 | BC29: =MAX(OFFSET(EPCat23_Part!$C$10,12*($BB29-1),4*(PlotControl!$C$4-1),12,1)) -> 9111.5 | BD29: =MAX(OFFSET(EPCat23_Part!$D$10,12*($BB29-1),4*(PlotControl!$C$4-1),12,1)) -> 9583.8 | BE29: =MAX(OFFSET(EPCat23_Part!$E$10,12*($BB29-1),4*(PlotControl!$C$4-1),12,1)) -> 10084 | BI29: =MAX(OFFSET(OSP_Part1!$C$10,12*($BB29-1),4*(PlotControl!$C$4-1),12,1)) -> 9110.4 | BJ29: =MAX(OFFSET(OSP_Part1!$D$10,12*($BB29-1),4*(PlotControl!$C$4-1),12,1)) -> 9581.1 | BK29: =MAX(OFFSET(OSP_Part1!$E$10,12*($BB29-1),4*(PlotControl!$C$4-1),12,1)) -> 10077 | BL29: =MAX(OFFSET(WWTF_Part!$C$10,12*($BB29-1),4*(PlotControl!$C$4-1),12,1)) -> 9110.4 | BM29: =MAX(OFFSET(WWTF_Part!$D$10,12*($BB29-1),4*(PlotControl!$C$4-1),12,1)) -> 9581.1 | BN29: =MAX(OFFSET(WWTF_Part!$E$10,12*($BB29-1),4*(PlotControl!$C$4-1),12,1)) -> 10077 | BO29: =MAX(OFFSET(OSLA_Part!$C$10,12*($BB29-1),4*(PlotControl!$C$4-1),12,1)) -> 9320.2 | BP29: =MAX(OFFSET(OSLA_Part!$D$10,12*($BB29-1),4*(PlotControl!$C$4-1),12,1)) -> 10099 | BQ29: =MAX(OFFSET(OSLA_Part!$E$10,12*($BB29-1),4*(PlotControl!$C$4-1),12,1)) -> 11991 | BR29: =MAX(OFFSET(WPsurf_Part!$C$10,12*($BB29-1),4*(PlotControl!$C$4-1),12,1)) -> 9110.4 | BS29: =MAX(OFFSET(WPsurf_Part!$D$10,12*($BB29-1),4*(PlotControl!$C$4-1),12,1)) -> 9581.1 | BT29: =MAX(OFFSET(WPsurf_Part!$E$10,12*($BB29-1),4*(PlotControl!$C$4-1),12,1)) -> 10077
A30: 26 | B30: =MAX(OFFSET(EPCat23_Dunka!$C$10,12*($A30-1),4*(PlotControl!$C$4-1),12,1)) -> 10133 | C30: =MAX(OFFSET(EPCat23_Dunka!$D$10,12*($A30-1),4*(PlotControl!$C$4-1),12,1)) -> 11771 | D30: =MAX(OFFSET(EPCat23_Dunka!$E$10,12*($A30-1),4*(PlotControl!$C$4-1),12,1)) -> 17153 | H30: =MAX(OFFSET(OSP_Dunka!$C$10,12*($A30-1),4*(PlotControl!$C$4-1),12,1)) -> 9428.9 | I30: =MAX(OFFSET(OSP_Dunka!$D$10,12*($A30-1),4*(PlotControl!$C$4-1),12,1)) -> 9991.6 | J30: =MAX(OFFSET(OSP_Dunka!$E$10,12*($A30-1),4*(PlotControl!$C$4-1),12,1)) -> 10938 | K30: =MAX(OFFSET(WWTF_Dunka!$C$10,12*($A30-1),4*(PlotControl!$C$4-1),12,1)) -> 9891.6 | L30: =MAX(OFFSET(WWTF_Dunka!$D$10,12*($A30-1),4*(PlotControl!$C$4-1),12,1)) -> 10505 | M30: =MAX(OFFSET(WWTF_Dunka!$E$10,12*($A30-1),4*(PlotControl!$C$4-1),12,1)) -> 11288 | N30: =MAX(OFFSET(OSLA_Dunka!$C$10,12*($A30-1),4*(PlotControl!$C$4-1),12,1)) -> 31771 | O30: =MAX(OFFSET(OSLA_Dunka!$D$10,12*($A30-1),4*(PlotControl!$C$4-1),12,1)) -> 36434 | P30: =MAX(OFFSET(OSLA_Dunka!$E$10,12*($A30-1),4*(PlotControl!$C$4-1),12,1)) -> 41380 | Q30: =MAX(OFFSET(WPsurf_Dunka!$C$10,12*($A30-1),4*(PlotControl!$C$4-1),12,1)) -> 9110.4 | R30: =MAX(OFFSET(WPsurf_Dunka!$D$10,12*($A30-1),4*(PlotControl!$C$4-1),12,1)) -> 9581.1 | S30: =MAX(OFFSET(WPsurf_Dunka!$E$10,12*($A30-1),4*(PlotControl!$C$4-1),12,1)) -> 10077 | AB30: 26 | AC30: =MAX(OFFSET(EPCat23_Prop!$C$10,12*($AB30-1),4*(PlotControl!$C$4-1),12,1)) -> 9942.6 | AD30: =MAX(OFFSET(EPCat23_Prop!$D$10,12*($AB30-1),4*(PlotControl!$C$4-1),12,1)) -> 11234 | AE30: =MAX(OFFSET(EPCat23_Prop!$E$10,12*($AB30-1),4*(PlotControl!$C$4-1),12,1)) -> 15689 | AF30: =MAX(OFFSET(EPbed_Prop!$C$10,12*($AB30-1),4*(PlotControl!$C$4-1),12,1)) -> 20929 | AG30: =MAX(OFFSET(EPbed_Prop!$D$10,12*($AB30-1),4*(PlotControl!$C$4-1),12,1)) -> 24964 | AH30: =MAX(OFFSET(EPbed_Prop!$E$10,12*($AB30-1),4*(PlotControl!$C$4-1),12,1)) -> 29770 | AL30: =MAX(OFFSET(WWTF_Prop!$C$10,12*($AB30-1),4*(PlotControl!$C$4-1),12,1)) -> 9110.4 | AM30: =MAX(OFFSET(WWTF_Prop!$D$10,12*($AB30-1),4*(PlotControl!$C$4-1),12,1)) -> 9581.1 | AN30: =MAX(OFFSET(WWTF_Prop!$E$10,12*($AB30-1),4*(PlotControl!$C$4-1),12,1)) -> 10077 | AO30: =MAX(OFFSET(OSLA_Prop!$C$10,12*($AB30-1),4*(PlotControl!$C$4-1),12,1)) -> 26495 | AP30: =MAX(OFFSET(OSLA_Prop!$D$10,12*($AB30-1),4*(PlotControl!$C$4-1),12,1)) -> 30696 | AQ30: =MAX(OFFSET(OSLA_Prop!$E$10,12*($AB30-1),4*(PlotControl!$C$4-1),12,1)) -> 35479 | AR30: =MAX(OFFSET(WPsurf_Prop!$C$10,12*($AB30-1),4*(PlotControl!$C$4-1),12,1)) -> 9110.4 | AS30: =MAX(OFFSET(WPsurf_Prop!$D$10,12*($AB30-1),4*(PlotControl!$C$4-1),12,1)) -> 9581.1 | AT30: =MAX(OFFSET(WPsurf_Prop!$E$10,12*($AB30-1),4*(PlotControl!$C$4-1),12,1)) -> 10077 | AU30: =MAX(OFFSET(WPbed4_Prop!$C$10,12*($AB30-1),4*(PlotControl!$C$4-1),12,1)) -> 20929 | AV30: =MAX(OFFSET(WPbed4_Prop!$D$10,12*($AB30-1),4*(PlotControl!$C$4-1),12,1)) -> 24964 | AW30: =MAX(OFFSET(WPbed4_Prop!$E$10,12*($AB30-1),4*(PlotControl!$C$4-1),12,1)) -> 29770 | AX30: =MAX(OFFSET(WPbed4a_Prop!$C$10,12*($AB30-1),4*(PlotControl!$C$4-1),12,1)) -> 20929 | AY30: =MAX(OFFSET(WPbed4a_Prop!$D$10,12*($AB30-1),4*(PlotControl!$C$4-1),12,1)) -> 24964 | AZ30: =MAX(OFFSET(WPbed4a_Prop!$E$10,12*($AB30-1),4*(PlotControl!$C$4-1),12,1)) -> 29770 | BB30: 26 | BC30: =MAX(OFFSET(EPCat23_Part!$C$10,12*($BB30-1),4*(PlotControl!$C$4-1),12,1)) -> 9116.2 | BD30: =MAX(OFFSET(EPCat23_Part!$D$10,12*($BB30-1),4*(PlotControl!$C$4-1),12,1)) -> 9589 | BE30: =MAX(OFFSET(EPCat23_Part!$E$10,12*($BB30-1),4*(PlotControl!$C$4-1),12,1)) -> 10099 | BI30: =MAX(OFFSET(OSP_Part1!$C$10,12*($BB30-1),4*(PlotControl!$C$4-1),12,1)) -> 9110.4 | BJ30: =MAX(OFFSET(OSP_Part1!$D$10,12*($BB30-1),4*(PlotControl!$C$4-1),12,1)) -> 9581.1 | BK30: =MAX(OFFSET(OSP_Part1!$E$10,12*($BB30-1),4*(PlotControl!$C$4-1),12,1)) -> 10077 | BL30: =MAX(OFFSET(WWTF_Part!$C$10,12*($BB30-1),4*(PlotControl!$C$4-1),12,1)) -> 9110.4 | BM30: =MAX(OFFSET(WWTF_Part!$D$10,12*($BB30-1),4*(PlotControl!$C$4-1),12,1)) -> 9581.1 | BN30: =MAX(OFFSET(WWTF_Part!$E$10,12*($BB30-1),4*(PlotControl!$C$4-1),12,1)) -> 10077 | BO30: =MAX(OFFSET(OSLA_Part!$C$10,12*($BB30-1),4*(PlotControl!$C$4-1),12,1)) -> 9332.1 | BP30: =MAX(OFFSET(OSLA_Part!$D$10,12*($BB30-1),4*(PlotControl!$C$4-1),12,1)) -> 10191 | BQ30: =MAX(OFFSET(OSLA_Part!$E$10,12*($BB30-1),4*(PlotControl!$C$4-1),12,1)) -> 12400 | BR30: =MAX(OFFSET(WPsurf_Part!$C$10,12*($BB30-1),4*(PlotControl!$C$4-1),12,1)) -> 9110.4 | BS30: =MAX(OFFSET(WPsurf_Part!$D$10,12*($BB30-1),4*(PlotControl!$C$4-1),12,1)) -> 9581.1 | BT30: =MAX(OFFSET(WPsurf_Part!$E$10,12*($BB30-1),4*(PlotControl!$C$4-1),12,1)) -> 10077
A31: 27 | B31: =MAX(OFFSET(EPCat23_Dunka!$C$10,12*($A31-1),4*(PlotControl!$C$4-1),12,1)) -> 10101 | C31: =MAX(OFFSET(EPCat23_Dunka!$D$10,12*($A31-1),4*(PlotControl!$C$4-1),12,1)) -> 11669 | D31: =MAX(OFFSET(EPCat23_Dunka!$E$10,12*($A31-1),4*(PlotControl!$C$4-1),12,1)) -> 16810 | H31: =MAX(OFFSET(OSP_Dunka!$C$10,12*($A31-1),4*(PlotControl!$C$4-1),12,1)) -> 9478.4 | I31: =MAX(OFFSET(OSP_Dunka!$D$10,12*($A31-1),4*(PlotControl!$C$4-1),12,1)) -> 10077 | J31: =MAX(OFFSET(OSP_Dunka!$E$10,12*($A31-1),4*(PlotControl!$C$4-1),12,1)) -> 11188 | K31: =MAX(OFFSET(WWTF_Dunka!$C$10,12*($A31-1),4*(PlotControl!$C$4-1),12,1)) -> 9957 | L31: =MAX(OFFSET(WWTF_Dunka!$D$10,12*($A31-1),4*(PlotControl!$C$4-1),12,1)) -> 10580 | M31: =MAX(OFFSET(WWTF_Dunka!$E$10,12*($A31-1),4*(PlotControl!$C$4-1),12,1)) -> 11392 | N31: =MAX(OFFSET(OSLA_Dunka!$C$10,12*($A31-1),4*(PlotControl!$C$4-1),12,1)) -> 31162 | O31: =MAX(OFFSET(OSLA_Dunka!$D$10,12*($A31-1),4*(PlotControl!$C$4-1),12,1)) -> 35973 | P31: =MAX(OFFSET(OSLA_Dunka!$E$10,12*($A31-1),4*(PlotControl!$C$4-1),12,1)) -> 40733 | Q31: =MAX(OFFSET(WPsurf_Dunka!$C$10,12*($A31-1),4*(PlotControl!$C$4-1),12,1)) -> 9110.4 | R31: =MAX(OFFSET(WPsurf_Dunka!$D$10,12*($A31-1),4*(PlotControl!$C$4-1),12,1)) -> 9581.1 | S31: =MAX(OFFSET(WPsurf_Dunka!$E$10,12*($A31-1),4*(PlotControl!$C$4-1),12,1)) -> 10077 | AB31: 27 | AC31: =MAX(OFFSET(EPCat23_Prop!$C$10,12*($AB31-1),4*(PlotControl!$C$4-1),12,1)) -> 9986.2 | AD31: =MAX(OFFSET(EPCat23_Prop!$D$10,12*($AB31-1),4*(PlotControl!$C$4-1),12,1)) -> 11302 | AE31: =MAX(OFFSET(EPCat23_Prop!$E$10,12*($AB31-1),4*(PlotControl!$C$4-1),12,1)) -> 15887 | AF31: =MAX(OFFSET(EPbed_Prop!$C$10,12*($AB31-1),4*(PlotControl!$C$4-1),12,1)) -> 20929 | AG31: =MAX(OFFSET(EPbed_Prop!$D$10,12*($AB31-1),4*(PlotControl!$C$4-1),12,1)) -> 24964 | AH31: =MAX(OFFSET(EPbed_Prop!$E$10,12*($AB31-1),4*(PlotControl!$C$4-1),12,1)) -> 29770 | AL31: =MAX(OFFSET(WWTF_Prop!$C$10,12*($AB31-1),4*(PlotControl!$C$4-1),12,1)) -> 9110.4 | AM31: =MAX(OFFSET(WWTF_Prop!$D$10,12*($AB31-1),4*(PlotControl!$C$4-1),12,1)) -> 9581.1 | AN31: =MAX(OFFSET(WWTF_Prop!$E$10,12*($AB31-1),4*(PlotControl!$C$4-1),12,1)) -> 10077 | AO31: =MAX(OFFSET(OSLA_Prop!$C$10,12*($AB31-1),4*(PlotControl!$C$4-1),12,1)) -> 26476 | AP31: =MAX(OFFSET(OSLA_Prop!$D$10,12*($AB31-1),4*(PlotControl!$C$4-1),12,1)) -> 30583 | AQ31: =MAX(OFFSET(OSLA_Prop!$E$10,12*($AB31-1),4*(PlotControl!$C$4-1),12,1)) -> 35408 | AR31: =MAX(OFFSET(WPsurf_Prop!$C$10,12*($AB31-1),4*(PlotControl!$C$4-1),12,1)) -> 9110.4 | AS31: =MAX(OFFSET(WPsurf_Prop!$D$10,12*($AB31-1),4*(PlotControl!$C$4-1),12,1)) -> 9581.1 | AT31: =MAX(OFFSET(WPsurf_Prop!$E$10,12*($AB31-1),4*(PlotControl!$C$4-1),12,1)) -> 10077 | AU31: =MAX(OFFSET(WPbed4_Prop!$C$10,12*($AB31-1),4*(PlotControl!$C$4-1),12,1)) -> 20929 | AV31: =MAX(OFFSET(WPbed4_Prop!$D$10,12*($AB31-1),4*(PlotControl!$C$4-1),12,1)) -> 24964 | AW31: =MAX(OFFSET(WPbed4_Prop!$E$10,12*($AB31-1),4*(PlotControl!$C$4-1),12,1)) -> 29770 | AX31: =MAX(OFFSET(WPbed4a_Prop!$C$10,12*($AB31-1),4*(PlotControl!$C$4-1),12,1)) -> 20929 | AY31: =MAX(OFFSET(WPbed4a_Prop!$D$10,12*($AB31-1),4*(PlotControl!$C$4-1),12,1)) -> 24964 | AZ31: =MAX(OFFSET(WPbed4a_Prop!$E$10,12*($AB31-1),4*(PlotControl!$C$4-1),12,1)) -> 29770 | BB31: 27 | BC31: =MAX(OFFSET(EPCat23_Part!$C$10,12*($BB31-1),4*(PlotControl!$C$4-1),12,1)) -> 9118.4 | BD31: =MAX(OFFSET(EPCat23_Part!$D$10,12*($BB31-1),4*(PlotControl!$C$4-1),12,1)) -> 9591.8 | BE31: =MAX(OFFSET(EPCat23_Part!$E$10,12*($BB31-1),4*(PlotControl!$C$4-1),12,1)) -> 10109 | BI31: =MAX(OFFSET(OSP_Part1!$C$10,12*($BB31-1),4*(PlotControl!$C$4-1),12,1)) -> 9110.4 | BJ31: =MAX(OFFSET(OSP_Part1!$D$10,12*($BB31-1),4*(PlotControl!$C$4-1),12,1)) -> 9581.1 | BK31: =MAX(OFFSET(OSP_Part1!$E$10,12*($BB31-1),4*(PlotControl!$C$4-1),12,1)) -> 10077 | BL31: =MAX(OFFSET(WWTF_Part!$C$10,12*($BB31-1),4*(PlotControl!$C$4-1),12,1)) -> 9110.4 | BM31: =MAX(OFFSET(WWTF_Part!$D$10,12*($BB31-1),4*(PlotControl!$C$4-1),12,1)) -> 9581.1 | BN31: =MAX(OFFSET(WWTF_Part!$E$10,12*($BB31-1),4*(PlotControl!$C$4-1),12,1)) -> 10077 | BO31: =MAX(OFFSET(OSLA_Part!$C$10,12*($BB31-1),4*(PlotControl!$C$4-1),12,1)) -> 9357.9 | BP31: =MAX(OFFSET(OSLA_Part!$D$10,12*($BB31-1),4*(PlotControl!$C$4-1),12,1)) -> 10284 | BQ31: =MAX(OFFSET(OSLA_Part!$E$10,12*($BB31-1),4*(PlotControl!$C$4-1),12,1)) -> 12831 | BR31: =MAX(OFFSET(WPsurf_Part!$C$10,12*($BB31-1),4*(PlotControl!$C$4-1),12,1)) -> 9110.4 | BS31: =MAX(OFFSET(WPsurf_Part!$D$10,12*($BB31-1),4*(PlotControl!$C$4-1),12,1)) -> 9581.1 | BT31: =MAX(OFFSET(WPsurf_Part!$E$10,12*($BB31-1),4*(PlotControl!$C$4-1),12,1)) -> 10077
A32: 28 | B32: =MAX(OFFSET(EPCat23_Dunka!$C$10,12*($A32-1),4*(PlotControl!$C$4-1),12,1)) -> 10078 | C32: =MAX(OFFSET(EPCat23_Dunka!$D$10,12*($A32-1),4*(PlotControl!$C$4-1),12,1)) -> 11540 | D32: =MAX(OFFSET(EPCat23_Dunka!$E$10,12*($A32-1),4*(PlotControl!$C$4-1),12,1)) -> 16424 | H32: =MAX(OFFSET(OSP_Dunka!$C$10,12*($A32-1),4*(PlotControl!$C$4-1),12,1)) -> 9503.4 | I32: =MAX(OFFSET(OSP_Dunka!$D$10,12*($A32-1),4*(PlotControl!$C$4-1),12,1)) -> 10149 | J32: =MAX(OFFSET(OSP_Dunka!$E$10,12*($A32-1),4*(PlotControl!$C$4-1),12,1)) -> 11416 | K32: =MAX(OFFSET(WWTF_Dunka!$C$10,12*($A32-1),4*(PlotControl!$C$4-1),12,1)) -> 10008 | L32: =MAX(OFFSET(WWTF_Dunka!$D$10,12*($A32-1),4*(PlotControl!$C$4-1),12,1)) -> 10648 | M32: =MAX(OFFSET(WWTF_Dunka!$E$10,12*($A32-1),4*(PlotControl!$C$4-1),12,1)) -> 11504 | N32: =MAX(OFFSET(OSLA_Dunka!$C$10,12*($A32-1),4*(PlotControl!$C$4-1),12,1)) -> 30625 | O32: =MAX(OFFSET(OSLA_Dunka!$D$10,12*($A32-1),4*(PlotControl!$C$4-1),12,1)) -> 35518 | P32: =MAX(OFFSET(OSLA_Dunka!$E$10,12*($A32-1),4*(PlotControl!$C$4-1),12,1)) -> 40428 | Q32: =MAX(OFFSET(WPsurf_Dunka!$C$10,12*($A32-1),4*(PlotControl!$C$4-1),12,1)) -> 9110.4 | R32: =MAX(OFFSET(WPsurf_Dunka!$D$10,12*($A32-1),4*(PlotControl!$C$4-1),12,1)) -> 9581.1 | S32: =MAX(OFFSET(WPsurf_Dunka!$E$10,12*($A32-1),4*(PlotControl!$C$4-1),12,1)) -> 10077 | AB32: 28 | AC32: =MAX(OFFSET(EPCat23_Prop!$C$10,12*($AB32-1),4*(PlotControl!$C$4-1),12,1)) -> 10020 | AD32: =MAX(OFFSET(EPCat23_Prop!$D$10,12*($AB32-1),4*(PlotControl!$C$4-1),12,1)) -> 11345 | AE32: =MAX(OFFSET(EPCat23_Prop!$E$10,12*($AB32-1),4*(PlotControl!$C$4-1),12,1)) -> 15895 | AF32: =MAX(OFFSET(EPbed_Prop!$C$10,12*($AB32-1),4*(PlotControl!$C$4-1),12,1)) -> 20929 | AG32: =MAX(OFFSET(EPbed_Prop!$D$10,12*($AB32-1),4*(PlotControl!$C$4-1),12,1)) -> 24964 | AH32: =MAX(OFFSET(EPbed_Prop!$E$10,12*($AB32-1),4*(PlotControl!$C$4-1),12,1)) -> 29770 | AL32: =MAX(OFFSET(WWTF_Prop!$C$10,12*($AB32-1),4*(PlotControl!$C$4-1),12,1)) -> 9110.4 | AM32: =MAX(OFFSET(WWTF_Prop!$D$10,12*($AB32-1),4*(PlotControl!$C$4-1),12,1)) -> 9581.1 | AN32: =MAX(OFFSET(WWTF_Prop!$E$10,12*($AB32-1),4*(PlotControl!$C$4-1),12,1)) -> 10077 | AO32: =MAX(OFFSET(OSLA_Prop!$C$10,12*($AB32-1),4*(PlotControl!$C$4-1),12,1)) -> 26458 | AP32: =MAX(OFFSET(OSLA_Prop!$D$10,12*($AB32-1),4*(PlotControl!$C$4-1),12,1)) -> 30519 | AQ32: =MAX(OFFSET(OSLA_Prop!$E$10,12*($AB32-1),4*(PlotControl!$C$4-1),12,1)) -> 35315 | AR32: =MAX(OFFSET(WPsurf_Prop!$C$10,12*($AB32-1),4*(PlotControl!$C$4-1),12,1)) -> 9110.4 | AS32: =MAX(OFFSET(WPsurf_Prop!$D$10,12*($AB32-1),4*(PlotControl!$C$4-1),12,1)) -> 9581.1 | AT32: =MAX(OFFSET(WPsurf_Prop!$E$10,12*($AB32-1),4*(PlotControl!$C$4-1),12,1)) -> 10077 | AU32: =MAX(OFFSET(WPbed4_Prop!$C$10,12*($AB32-1),4*(PlotControl!$C$4-1),12,1)) -> 20929 | AV32: =MAX(OFFSET(WPbed4_Prop!$D$10,12*($AB32-1),4*(PlotControl!$C$4-1),12,1)) -> 24964 | AW32: =MAX(OFFSET(WPbed4_Prop!$E$10,12*($AB32-1),4*(PlotControl!$C$4-1),12,1)) -> 29770 | AX32: =MAX(OFFSET(WPbed4a_Prop!$C$10,12*($AB32-1),4*(PlotControl!$C$4-1),12,1)) -> 20929 | AY32: =MAX(OFFSET(WPbed4a_Prop!$D$10,12*($AB32-1),4*(PlotControl!$C$4-1),12,1)) -> 24964 | AZ32: =MAX(OFFSET(WPbed4a_Prop!$E$10,12*($AB32-1),4*(PlotControl!$C$4-1),12,1)) -> 29770 | BB32: 28 | BC32: =MAX(OFFSET(EPCat23_Part!$C$10,12*($BB32-1),4*(PlotControl!$C$4-1),12,1)) -> 9122.1 | BD32: =MAX(OFFSET(EPCat23_Part!$D$10,12*($BB32-1),4*(PlotControl!$C$4-1),12,1)) -> 9600.2 | BE32: =MAX(OFFSET(EPCat23_Part!$E$10,12*($BB32-1),4*(PlotControl!$C$4-1),12,1)) -> 10125 | BI32: =MAX(OFFSET(OSP_Part1!$C$10,12*($BB32-1),4*(PlotControl!$C$4-1),12,1)) -> 9110.4 | BJ32: =MAX(OFFSET(OSP_Part1!$D$10,12*($BB32-1),4*(PlotControl!$C$4-1),12,1)) -> 9581.1 | BK32: =MAX(OFFSET(OSP_Part1!$E$10,12*($BB32-1),4*(PlotControl!$C$4-1),12,1)) -> 10077 | BL32: =MAX(OFFSET(WWTF_Part!$C$10,12*($BB32-1),4*(PlotControl!$C$4-1),12,1)) -> 9110.4 | BM32: =MAX(OFFSET(WWTF_Part!$D$10,12*($BB32-1),4*(PlotControl!$C$4-1),12,1)) -> 9581.1 | BN32: =MAX(OFFSET(WWTF_Part!$E$10,12*($BB32-1),4*(PlotControl!$C$4-1),12,1)) -> 10077 | BO32: =MAX(OFFSET(OSLA_Part!$C$10,12*($BB32-1),4*(PlotControl!$C$4-1),12,1)) -> 9384.1 | BP32: =MAX(OFFSET(OSLA_Part!$D$10,12*($BB32-1),4*(PlotControl!$C$4-1),12,1)) -> 10411 | BQ32: =MAX(OFFSET(OSLA_Part!$E$10,12*($BB32-1),4*(PlotControl!$C$4-1),12,1)) -> 13257 | BR32: =MAX(OFFSET(WPsurf_Part!$C$10,12*($BB32-1),4*(PlotControl!$C$4-1),12,1)) -> 9110.4 | BS32: =MAX(OFFSET(WPsurf_Part!$D$10,12*($BB32-1),4*(PlotControl!$C$4-1),12,1)) -> 9581.1 | BT32: =MAX(OFFSET(WPsurf_Part!$E$10,12*($BB32-1),4*(PlotControl!$C$4-1),12,1)) -> 10077
A33: 29 | B33: =MAX(OFFSET(EPCat23_Dunka!$C$10,12*($A33-1),4*(PlotControl!$C$4-1),12,1)) -> 10022 | C33: =MAX(OFFSET(EPCat23_Dunka!$D$10,12*($A33-1),4*(PlotControl!$C$4-1),12,1)) -> 11451 | D33: =MAX(OFFSET(EPCat23_Dunka!$E$10,12*($A33-1),4*(PlotControl!$C$4-1),12,1)) -> 16233 | H33: =MAX(OFFSET(OSP_Dunka!$C$10,12*($A33-1),4*(PlotControl!$C$4-1),12,1)) -> 9537.3 | I33: =MAX(OFFSET(OSP_Dunka!$D$10,12*($A33-1),4*(PlotControl!$C$4-1),12,1)) -> 10224 | J33: =MAX(OFFSET(OSP_Dunka!$E$10,12*($A33-1),4*(PlotControl!$C$4-1),12,1)) -> 11609 | K33: =MAX(OFFSET(WWTF_Dunka!$C$10,12*($A33-1),4*(PlotControl!$C$4-1),12,1)) -> 10066 | L33: =MAX(OFFSET(WWTF_Dunka!$D$10,12*($A33-1),4*(PlotControl!$C$4-1),12,1)) -> 10724 | M33: =MAX(OFFSET(WWTF_Dunka!$E$10,12*($A33-1),4*(PlotControl!$C$4-1),12,1)) -> 11618 | N33: =MAX(OFFSET(OSLA_Dunka!$C$10,12*($A33-1),4*(PlotControl!$C$4-1),12,1)) -> 30021 | O33: =MAX(OFFSET(OSLA_Dunka!$D$10,12*($A33-1),4*(PlotControl!$C$4-1),12,1)) -> 34944 | P33: =MAX(OFFSET(OSLA_Dunka!$E$10,12*($A33-1),4*(PlotControl!$C$4-1),12,1)) -> 40241 | Q33: =MAX(OFFSET(WPsurf_Dunka!$C$10,12*($A33-1),4*(PlotControl!$C$4-1),12,1)) -> 9110.4 | R33: =MAX(OFFSET(WPsurf_Dunka!$D$10,12*($A33-1),4*(PlotControl!$C$4-1),12,1)) -> 9581.1 | S33: =MAX(OFFSET(WPsurf_Dunka!$E$10,12*($A33-1),4*(PlotControl!$C$4-1),12,1)) -> 10077 | AB33: 29 | AC33: =MAX(OFFSET(EPCat23_Prop!$C$10,12*($AB33-1),4*(PlotControl!$C$4-1),12,1)) -> 10010 | AD33: =MAX(OFFSET(EPCat23_Prop!$D$10,12*($AB33-1),4*(PlotControl!$C$4-1),12,1)) -> 11353 | AE33: =MAX(OFFSET(EPCat23_Prop!$E$10,12*($AB33-1),4*(PlotControl!$C$4-1),12,1)) -> 15857 | AF33: =MAX(OFFSET(EPbed_Prop!$C$10,12*($AB33-1),4*(PlotControl!$C$4-1),12,1)) -> 20929 | AG33: =MAX(OFFSET(EPbed_Prop!$D$10,12*($AB33-1),4*(PlotControl!$C$4-1),12,1)) -> 24964 | AH33: =MAX(OFFSET(EPbed_Prop!$E$10,12*($AB33-1),4*(PlotControl!$C$4-1),12,1)) -> 29770 | AL33: =MAX(OFFSET(WWTF_Prop!$C$10,12*($AB33-1),4*(PlotControl!$C$4-1),12,1)) -> 9110.4 | AM33: =MAX(OFFSET(WWTF_Prop!$D$10,12*($AB33-1),4*(PlotControl!$C$4-1),12,1)) -> 9581.1 | AN33: =MAX(OFFSET(WWTF_Prop!$E$10,12*($AB33-1),4*(PlotControl!$C$4-1),12,1)) -> 10077 | AO33: =MAX(OFFSET(OSLA_Prop!$C$10,12*($AB33-1),4*(PlotControl!$C$4-1),12,1)) -> 26337 | AP33: =MAX(OFFSET(OSLA_Prop!$D$10,12*($AB33-1),4*(PlotControl!$C$4-1),12,1)) -> 30467 | AQ33: =MAX(OFFSET(OSLA_Prop!$E$10,12*($AB33-1),4*(PlotControl!$C$4-1),12,1)) -> 35188 | AR33: =MAX(OFFSET(WPsurf_Prop!$C$10,12*($AB33-1),4*(PlotControl!$C$4-1),12,1)) -> 9110.4 | AS33: =MAX(OFFSET(WPsurf_Prop!$D$10,12*($AB33-1),4*(PlotControl!$C$4-1),12,1)) -> 9581.1 | AT33: =MAX(OFFSET(WPsurf_Prop!$E$10,12*($AB33-1),4*(PlotControl!$C$4-1),12,1)) -> 10077 | AU33: =MAX(OFFSET(WPbed4_Prop!$C$10,12*($AB33-1),4*(PlotControl!$C$4-1),12,1)) -> 20929 | AV33: =MAX(OFFSET(WPbed4_Prop!$D$10,12*($AB33-1),4*(PlotControl!$C$4-1),12,1)) -> 24964 | AW33: =MAX(OFFSET(WPbed4_Prop!$E$10,12*($AB33-1),4*(PlotControl!$C$4-1),12,1)) -> 29770 | AX33: =MAX(OFFSET(WPbed4a_Prop!$C$10,12*($AB33-1),4*(PlotControl!$C$4-1),12,1)) -> 20929 | AY33: =MAX(OFFSET(WPbed4a_Prop!$D$10,12*($AB33-1),4*(PlotControl!$C$4-1),12,1)) -> 24964 | AZ33: =MAX(OFFSET(WPbed4a_Prop!$E$10,12*($AB33-1),4*(PlotControl!$C$4-1),12,1)) -> 29770 | BB33: 29 | BC33: =MAX(OFFSET(EPCat23_Part!$C$10,12*($BB33-1),4*(PlotControl!$C$4-1),12,1)) -> 9122.5 | BD33: =MAX(OFFSET(EPCat23_Part!$D$10,12*($BB33-1),4*(PlotControl!$C$4-1),12,1)) -> 9611.2 | BE33: =MAX(OFFSET(EPCat23_Part!$E$10,12*($BB33-1),4*(PlotControl!$C$4-1),12,1)) -> 10139 | BI33: =MAX(OFFSET(OSP_Part1!$C$10,12*($BB33-1),4*(PlotControl!$C$4-1),12,1)) -> 9110.4 | BJ33: =MAX(OFFSET(OSP_Part1!$D$10,12*($BB33-1),4*(PlotControl!$C$4-1),12,1)) -> 9581.1 | BK33: =MAX(OFFSET(OSP_Part1!$E$10,12*($BB33-1),4*(PlotControl!$C$4-1),12,1)) -> 10077 | BL33: =MAX(OFFSET(WWTF_Part!$C$10,12*($BB33-1),4*(PlotControl!$C$4-1),12,1)) -> 9110.4 | BM33: =MAX(OFFSET(WWTF_Part!$D$10,12*($BB33-1),4*(PlotControl!$C$4-1),12,1)) -> 9581.1 | BN33: =MAX(OFFSET(WWTF_Part!$E$10,12*($BB33-1),4*(PlotControl!$C$4-1),12,1)) -> 10077 | BO33: =MAX(OFFSET(OSLA_Part!$C$10,12*($BB33-1),4*(PlotControl!$C$4-1),12,1)) -> 9391.6 | BP33: =MAX(OFFSET(OSLA_Part!$D$10,12*($BB33-1),4*(PlotControl!$C$4-1),12,1)) -> 10601 | BQ33: =MAX(OFFSET(OSLA_Part!$E$10,12*($BB33-1),4*(PlotControl!$C$4-1),12,1)) -> 13645 | BR33: =MAX(OFFSET(WPsurf_Part!$C$10,12*($BB33-1),4*(PlotControl!$C$4-1),12,1)) -> 9110.4 | BS33: =MAX(OFFSET(WPsurf_Part!$D$10,12*($BB33-1),4*(PlotControl!$C$4-1),12,1)) -> 9581.1 | BT33: =MAX(OFFSET(WPsurf_Part!$E$10,12*($BB33-1),4*(PlotControl!$C$4-1),12,1)) -> 10077
A34: 30 | B34: =MAX(OFFSET(EPCat23_Dunka!$C$10,12*($A34-1),4*(PlotControl!$C$4-1),12,1)) -> 9964.6 | C34: =MAX(OFFSET(EPCat23_Dunka!$D$10,12*($A34-1),4*(PlotControl!$C$4-1),12,1)) -> 11304 | D34: =MAX(OFFSET(EPCat23_Dunka!$E$10,12*($A34-1),4*(PlotControl!$C$4-1),12,1)) -> 15934 | H34: =MAX(OFFSET(OSP_Dunka!$C$10,12*($A34-1),4*(PlotControl!$C$4-1),12,1)) -> 9576.3 | I34: =MAX(OFFSET(OSP_Dunka!$D$10,12*($A34-1),4*(PlotControl!$C$4-1),12,1)) -> 10292 | J34: =MAX(OFFSET(OSP_Dunka!$E$10,12*($A34-1),4*(PlotControl!$C$4-1),12,1)) -> 11759 | K34: =MAX(OFFSET(WWTF_Dunka!$C$10,12*($A34-1),4*(PlotControl!$C$4-1),12,1)) -> 10122 | L34: =MAX(OFFSET(WWTF_Dunka!$D$10,12*($A34-1),4*(PlotControl!$C$4-1),12,1)) -> 10773 | M34: =MAX(OFFSET(WWTF_Dunka!$E$10,12*($A34-1),4*(PlotControl!$C$4-1),12,1)) -> 11695 | N34: =MAX(OFFSET(OSLA_Dunka!$C$10,12*($A34-1),4*(PlotControl!$C$4-1),12,1)) -> 29465 | O34: =MAX(OFFSET(OSLA_Dunka!$D$10,12*($A34-1),4*(PlotControl!$C$4-1),12,1)) -> 34404 | P34: =MAX(OFFSET(OSLA_Dunka!$E$10,12*($A34-1),4*(PlotControl!$C$4-1),12,1)) -> 39999 | Q34: =MAX(OFFSET(WPsurf_Dunka!$C$10,12*($A34-1),4*(PlotControl!$C$4-1),12,1)) -> 9110.4 | R34: =MAX(OFFSET(WPsurf_Dunka!$D$10,12*($A34-1),4*(PlotControl!$C$4-1),12,1)) -> 9581.1 | S34: =MAX(OFFSET(WPsurf_Dunka!$E$10,12*($A34-1),4*(PlotControl!$C$4-1),12,1)) -> 10077 | AB34: 30 | AC34: =MAX(OFFSET(EPCat23_Prop!$C$10,12*($AB34-1),4*(PlotControl!$C$4-1),12,1)) -> 10014 | AD34: =MAX(OFFSET(EPCat23_Prop!$D$10,12*($AB34-1),4*(PlotControl!$C$4-1),12,1)) -> 11302 | AE34: =MAX(OFFSET(EPCat23_Prop!$E$10,12*($AB34-1),4*(PlotControl!$C$4-1),12,1)) -> 15842 | AF34: =MAX(OFFSET(EPbed_Prop!$C$10,12*($AB34-1),4*(PlotControl!$C$4-1),12,1)) -> 20929 | AG34: =MAX(OFFSET(EPbed_Prop!$D$10,12*($AB34-1),4*(PlotControl!$C$4-1),12,1)) -> 24964 | AH34: =MAX(OFFSET(EPbed_Prop!$E$10,12*($AB34-1),4*(PlotControl!$C$4-1),12,1)) -> 29770 | AL34: =MAX(OFFSET(WWTF_Prop!$C$10,12*($AB34-1),4*(PlotControl!$C$4-1),12,1)) -> 9110.4 | AM34: =MAX(OFFSET(WWTF_Prop!$D$10,12*($AB34-1),4*(PlotControl!$C$4-1),12,1)) -> 9581.1 | AN34: =MAX(OFFSET(WWTF_Prop!$E$10,12*($AB34-1),4*(PlotControl!$C$4-1),12,1)) -> 10077 | AO34: =MAX(OFFSET(OSLA_Prop!$C$10,12*($AB34-1),4*(PlotControl!$C$4-1),12,1)) -> 26232 | AP34: =MAX(OFFSET(OSLA_Prop!$D$10,12*($AB34-1),4*(PlotControl!$C$4-1),12,1)) -> 30353 | AQ34: =MAX(OFFSET(OSLA_Prop!$E$10,12*($AB34-1),4*(PlotControl!$C$4-1),12,1)) -> 35086 | AR34: =MAX(OFFSET(WPsurf_Prop!$C$10,12*($AB34-1),4*(PlotControl!$C$4-1),12,1)) -> 9110.4 | AS34: =MAX(OFFSET(WPsurf_Prop!$D$10,12*($AB34-1),4*(PlotControl!$C$4-1),12,1)) -> 9581.1 | AT34: =MAX(OFFSET(WPsurf_Prop!$E$10,12*($AB34-1),4*(PlotControl!$C$4-1),12,1)) -> 10077 | AU34: =MAX(OFFSET(WPbed4_Prop!$C$10,12*($AB34-1),4*(PlotControl!$C$4-1),12,1)) -> 20929 | AV34: =MAX(OFFSET(WPbed4_Prop!$D$10,12*($AB34-1),4*(PlotControl!$C$4-1),12,1)) -> 24964 | AW34: =MAX(OFFSET(WPbed4_Prop!$E$10,12*($AB34-1),4*(PlotControl!$C$4-1),12,1)) -> 29770 | AX34: =MAX(OFFSET(WPbed4a_Prop!$C$10,12*($AB34-1),4*(PlotControl!$C$4-1),12,1)) -> 20929 | AY34: =MAX(OFFSET(WPbed4a_Prop!$D$10,12*($AB34-1),4*(PlotControl!$C$4-1),12,1)) -> 24964 | AZ34: =MAX(OFFSET(WPbed4a_Prop!$E$10,12*($AB34-1),4*(PlotControl!$C$4-1),12,1)) -> 29770 | BB34: 30 | BC34: =MAX(OFFSET(EPCat23_Part!$C$10,12*($BB34-1),4*(PlotControl!$C$4-1),12,1)) -> 9129.6 | BD34: =MAX(OFFSET(EPCat23_Part!$D$10,12*($BB34-1),4*(PlotControl!$C$4-1),12,1)) -> 9623.7 | BE34: =MAX(OFFSET(EPCat23_Part!$E$10,12*($BB34-1),4*(PlotControl!$C$4-1),12,1)) -> 10169 | BI34: =MAX(OFFSET(OSP_Part1!$C$10,12*($BB34-1),4*(PlotControl!$C$4-1),12,1)) -> 9110.4 | BJ34: =MAX(OFFSET(OSP_Part1!$D$10,12*($BB34-1),4*(PlotControl!$C$4-1),12,1)) -> 9581.1 | BK34: =MAX(OFFSET(OSP_Part1!$E$10,12*($BB34-1),4*(PlotControl!$C$4-1),12,1)) -> 10077 | BL34: =MAX(OFFSET(WWTF_Part!$C$10,12*($BB34-1),4*(PlotControl!$C$4-1),12,1)) -> 9110.4 | BM34: =MAX(OFFSET(WWTF_Part!$D$10,12*($BB34-1),4*(PlotControl!$C$4-1),12,1)) -> 9581.1 | BN34: =MAX(OFFSET(WWTF_Part!$E$10,12*($BB34-1),4*(PlotControl!$C$4-1),12,1)) -> 10077 | BO34: =MAX(OFFSET(OSLA_Part!$C$10,12*($BB34-1),4*(PlotControl!$C$4-1),12,1)) -> 9414 | BP34: =MAX(OFFSET(OSLA_Part!$D$10,12*($BB34-1),4*(PlotControl!$C$4-1),12,1)) -> 10759 | BQ34: =MAX(OFFSET(OSLA_Part!$E$10,12*($BB34-1),4*(PlotControl!$C$4-1),12,1)) -> 14056 | BR34: =MAX(OFFSET(WPsurf_Part!$C$10,12*($BB34-1),4*(PlotControl!$C$4-1),12,1)) -> 9110.4 | BS34: =MAX(OFFSET(WPsurf_Part!$D$10,12*($BB34-1),4*(PlotControl!$C$4-1),12,1)) -> 9581.1 | BT34: =MAX(OFFSET(WPsurf_Part!$E$10,12*($BB34-1),4*(PlotControl!$C$4-1),12,1)) -> 10077
A35: 31 | B35: =MAX(OFFSET(EPCat23_Dunka!$C$10,12*($A35-1),4*(PlotControl!$C$4-1),12,1)) -> 9890.2 | C35: =MAX(OFFSET(EPCat23_Dunka!$D$10,12*($A35-1),4*(PlotControl!$C$4-1),12,1)) -> 11177 | D35: =MAX(OFFSET(EPCat23_Dunka!$E$10,12*($A35-1),4*(PlotControl!$C$4-1),12,1)) -> 15576 | H35: =MAX(OFFSET(OSP_Dunka!$C$10,12*($A35-1),4*(PlotControl!$C$4-1),12,1)) -> 9600 | I35: =MAX(OFFSET(OSP_Dunka!$D$10,12*($A35-1),4*(PlotControl!$C$4-1),12,1)) -> 10348 | J35: =MAX(OFFSET(OSP_Dunka!$E$10,12*($A35-1),4*(PlotControl!$C$4-1),12,1)) -> 11951 | K35: =MAX(OFFSET(WWTF_Dunka!$C$10,12*($A35-1),4*(PlotControl!$C$4-1),12,1)) -> 10176 | L35: =MAX(OFFSET(WWTF_Dunka!$D$10,12*($A35-1),4*(PlotControl!$C$4-1),12,1)) -> 10831 | M35: =MAX(OFFSET(WWTF_Dunka!$E$10,12*($A35-1),4*(PlotControl!$C$4-1),12,1)) -> 11797 | N35: =MAX(OFFSET(OSLA_Dunka!$C$10,12*($A35-1),4*(PlotControl!$C$4-1),12,1)) -> 29006 | O35: =MAX(OFFSET(OSLA_Dunka!$D$10,12*($A35-1),4*(PlotControl!$C$4-1),12,1)) -> 33817 | P35: =MAX(OFFSET(OSLA_Dunka!$E$10,12*($A35-1),4*(PlotControl!$C$4-1),12,1)) -> 39774 | Q35: =MAX(OFFSET(WPsurf_Dunka!$C$10,12*($A35-1),4*(PlotControl!$C$4-1),12,1)) -> 9110.4 | R35: =MAX(OFFSET(WPsurf_Dunka!$D$10,12*($A35-1),4*(PlotControl!$C$4-1),12,1)) -> 9581.1 | S35: =MAX(OFFSET(WPsurf_Dunka!$E$10,12*($A35-1),4*(PlotControl!$C$4-1),12,1)) -> 10077 | AB35: 31 | AC35: =MAX(OFFSET(EPCat23_Prop!$C$10,12*($AB35-1),4*(PlotControl!$C$4-1),12,1)) -> 10000 | AD35: =MAX(OFFSET(EPCat23_Prop!$D$10,12*($AB35-1),4*(PlotControl!$C$4-1),12,1)) -> 11256 | AE35: =MAX(OFFSET(EPCat23_Prop!$E$10,12*($AB35-1),4*(PlotControl!$C$4-1),12,1)) -> 15783 | AF35: =MAX(OFFSET(EPbed_Prop!$C$10,12*($AB35-1),4*(PlotControl!$C$4-1),12,1)) -> 20929 | AG35: =MAX(OFFSET(EPbed_Prop!$D$10,12*($AB35-1),4*(PlotControl!$C$4-1),12,1)) -> 24964 | AH35: =MAX(OFFSET(EPbed_Prop!$E$10,12*($AB35-1),4*(PlotControl!$C$4-1),12,1)) -> 29770 | AL35: =MAX(OFFSET(WWTF_Prop!$C$10,12*($AB35-1),4*(PlotControl!$C$4-1),12,1)) -> 9110.4 | AM35: =MAX(OFFSET(WWTF_Prop!$D$10,12*($AB35-1),4*(PlotControl!$C$4-1),12,1)) -> 9581.1 | AN35: =MAX(OFFSET(WWTF_Prop!$E$10,12*($AB35-1),4*(PlotControl!$C$4-1),12,1)) -> 10077 | AO35: =MAX(OFFSET(OSLA_Prop!$C$10,12*($AB35-1),4*(PlotControl!$C$4-1),12,1)) -> 26168 | AP35: =MAX(OFFSET(OSLA_Prop!$D$10,12*($AB35-1),4*(PlotControl!$C$4-1),12,1)) -> 30215 | AQ35: =MAX(OFFSET(OSLA_Prop!$E$10,12*($AB35-1),4*(PlotControl!$C$4-1),12,1)) -> 34814 | AR35: =MAX(OFFSET(WPsurf_Prop!$C$10,12*($AB35-1),4*(PlotControl!$C$4-1),12,1)) -> 9110.4 | AS35: =MAX(OFFSET(WPsurf_Prop!$D$10,12*($AB35-1),4*(PlotControl!$C$4-1),12,1)) -> 9581.1 | AT35: =MAX(OFFSET(WPsurf_Prop!$E$10,12*($AB35-1),4*(PlotControl!$C$4-1),12,1)) -> 10077 | AU35: =MAX(OFFSET(WPbed4_Prop!$C$10,12*($AB35-1),4*(PlotControl!$C$4-1),12,1)) -> 20929 | AV35: =MAX(OFFSET(WPbed4_Prop!$D$10,12*($AB35-1),4*(PlotControl!$C$4-1),12,1)) -> 24964 | AW35: =MAX(OFFSET(WPbed4_Prop!$E$10,12*($AB35-1),4*(PlotControl!$C$4-1),12,1)) -> 29770 | AX35: =MAX(OFFSET(WPbed4a_Prop!$C$10,12*($AB35-1),4*(PlotControl!$C$4-1),12,1)) -> 20929 | AY35: =MAX(OFFSET(WPbed4a_Prop!$D$10,12*($AB35-1),4*(PlotControl!$C$4-1),12,1)) -> 24964 | AZ35: =MAX(OFFSET(WPbed4a_Prop!$E$10,12*($AB35-1),4*(PlotControl!$C$4-1),12,1)) -> 29770 | BB35: 31 | BC35: =MAX(OFFSET(EPCat23_Part!$C$10,12*($BB35-1),4*(PlotControl!$C$4-1),12,1)) -> 9132 | BD35: =MAX(OFFSET(EPCat23_Part!$D$10,12*($BB35-1),4*(PlotControl!$C$4-1),12,1)) -> 9639.6 | BE35: =MAX(OFFSET(EPCat23_Part!$E$10,12*($BB35-1),4*(PlotControl!$C$4-1),12,1)) -> 10218 | BI35: =MAX(OFFSET(OSP_Part1!$C$10,12*($BB35-1),4*(PlotControl!$C$4-1),12,1)) -> 9110.4 | BJ35: =MAX(OFFSET(OSP_Part1!$D$10,12*($BB35-1),4*(PlotControl!$C$4-1),12,1)) -> 9581.1 | BK35: =MAX(OFFSET(OSP_Part1!$E$10,12*($BB35-1),4*(PlotControl!$C$4-1),12,1)) -> 10077 | BL35: =MAX(OFFSET(WWTF_Part!$C$10,12*($BB35-1),4*(PlotControl!$C$4-1),12,1)) -> 9110.4 | BM35: =MAX(OFFSET(WWTF_Part!$D$10,12*($BB35-1),4*(PlotControl!$C$4-1),12,1)) -> 9581.1 | BN35: =MAX(OFFSET(WWTF_Part!$E$10,12*($BB35-1),4*(PlotControl!$C$4-1),12,1)) -> 10077 | BO35: =MAX(OFFSET(OSLA_Part!$C$10,12*($BB35-1),4*(PlotControl!$C$4-1),12,1)) -> 9440.1 | BP35: =MAX(OFFSET(OSLA_Part!$D$10,12*($BB35-1),4*(PlotControl!$C$4-1),12,1)) -> 10890 | BQ35: =MAX(OFFSET(OSLA_Part!$E$10,12*($BB35-1),4*(PlotControl!$C$4-1),12,1)) -> 14464 | BR35: =MAX(OFFSET(WPsurf_Part!$C$10,12*($BB35-1),4*(PlotControl!$C$4-1),12,1)) -> 9110.4 | BS35: =MAX(OFFSET(WPsurf_Part!$D$10,12*($BB35-1),4*(PlotControl!$C$4-1),12,1)) -> 9581.1 | BT35: =MAX(OFFSET(WPsurf_Part!$E$10,12*($BB35-1),4*(PlotControl!$C$4-1),12,1)) -> 10077
A36: 32 | B36: =MAX(OFFSET(EPCat23_Dunka!$C$10,12*($A36-1),4*(PlotControl!$C$4-1),12,1)) -> 9827.9 | C36: =MAX(OFFSET(EPCat23_Dunka!$D$10,12*($A36-1),4*(PlotControl!$C$4-1),12,1)) -> 11054 | D36: =MAX(OFFSET(EPCat23_Dunka!$E$10,12*($A36-1),4*(PlotControl!$C$4-1),12,1)) -> 15192 | H36: =MAX(OFFSET(OSP_Dunka!$C$10,12*($A36-1),4*(PlotControl!$C$4-1),12,1)) -> 9610.5 | I36: =MAX(OFFSET(OSP_Dunka!$D$10,12*($A36-1),4*(PlotControl!$C$4-1),12,1)) -> 10385 | J36: =MAX(OFFSET(OSP_Dunka!$E$10,12*($A36-1),4*(PlotControl!$C$4-1),12,1)) -> 12079 | K36: =MAX(OFFSET(WWTF_Dunka!$C$10,12*($A36-1),4*(PlotControl!$C$4-1),12,1)) -> 10236 | L36: =MAX(OFFSET(WWTF_Dunka!$D$10,12*($A36-1),4*(PlotControl!$C$4-1),12,1)) -> 10893 | M36: =MAX(OFFSET(WWTF_Dunka!$E$10,12*($A36-1),4*(PlotControl!$C$4-1),12,1)) -> 11857 | N36: =MAX(OFFSET(OSLA_Dunka!$C$10,12*($A36-1),4*(PlotControl!$C$4-1),12,1)) -> 28484 | O36: =MAX(OFFSET(OSLA_Dunka!$D$10,12*($A36-1),4*(PlotControl!$C$4-1),12,1)) -> 33409 | P36: =MAX(OFFSET(OSLA_Dunka!$E$10,12*($A36-1),4*(PlotControl!$C$4-1),12,1)) -> 39525 | Q36: =MAX(OFFSET(WPsurf_Dunka!$C$10,12*($A36-1),4*(PlotControl!$C$4-1),12,1)) -> 9110.4 | R36: =MAX(OFFSET(WPsurf_Dunka!$D$10,12*($A36-1),4*(PlotControl!$C$4-1),12,1)) -> 9581.1 | S36: =MAX(OFFSET(WPsurf_Dunka!$E$10,12*($A36-1),4*(PlotControl!$C$4-1),12,1)) -> 10077 | AB36: 32 | AC36: =MAX(OFFSET(EPCat23_Prop!$C$10,12*($AB36-1),4*(PlotControl!$C$4-1),12,1)) -> 9963 | AD36: =MAX(OFFSET(EPCat23_Prop!$D$10,12*($AB36-1),4*(PlotControl!$C$4-1),12,1)) -> 11228 | AE36: =MAX(OFFSET(EPCat23_Prop!$E$10,12*($AB36-1),4*(PlotControl!$C$4-1),12,1)) -> 15531 | AF36: =MAX(OFFSET(EPbed_Prop!$C$10,12*($AB36-1),4*(PlotControl!$C$4-1),12,1)) -> 20929 | AG36: =MAX(OFFSET(EPbed_Prop!$D$10,12*($AB36-1),4*(PlotControl!$C$4-1),12,1)) -> 24964 | AH36: =MAX(OFFSET(EPbed_Prop!$E$10,12*($AB36-1),4*(PlotControl!$C$4-1),12,1)) -> 29770 | AL36: =MAX(OFFSET(WWTF_Prop!$C$10,12*($AB36-1),4*(PlotControl!$C$4-1),12,1)) -> 9110.4 | AM36: =MAX(OFFSET(WWTF_Prop!$D$10,12*($AB36-1),4*(PlotControl!$C$4-1),12,1)) -> 9581.1 | AN36: =MAX(OFFSET(WWTF_Prop!$E$10,12*($AB36-1),4*(PlotControl!$C$4-1),12,1)) -> 10077 | AO36: =MAX(OFFSET(OSLA_Prop!$C$10,12*($AB36-1),4*(PlotControl!$C$4-1),12,1)) -> 26046 | AP36: =MAX(OFFSET(OSLA_Prop!$D$10,12*($AB36-1),4*(PlotControl!$C$4-1),12,1)) -> 30024 | AQ36: =MAX(OFFSET(OSLA_Prop!$E$10,12*($AB36-1),4*(PlotControl!$C$4-1),12,1)) -> 34649 | AR36: =MAX(OFFSET(WPsurf_Prop!$C$10,12*($AB36-1),4*(PlotControl!$C$4-1),12,1)) -> 9110.4 | AS36: =MAX(OFFSET(WPsurf_Prop!$D$10,12*($AB36-1),4*(PlotControl!$C$4-1),12,1)) -> 9581.1 | AT36: =MAX(OFFSET(WPsurf_Prop!$E$10,12*($AB36-1),4*(PlotControl!$C$4-1),12,1)) -> 10077 | AU36: =MAX(OFFSET(WPbed4_Prop!$C$10,12*($AB36-1),4*(PlotControl!$C$4-1),12,1)) -> 20929 | AV36: =MAX(OFFSET(WPbed4_Prop!$D$10,12*($AB36-1),4*(PlotControl!$C$4-1),12,1)) -> 24964 | AW36: =MAX(OFFSET(WPbed4_Prop!$E$10,12*($AB36-1),4*(PlotControl!$C$4-1),12,1)) -> 29770 | AX36: =MAX(OFFSET(WPbed4a_Prop!$C$10,12*($AB36-1),4*(PlotControl!$C$4-1),12,1)) -> 20929 | AY36: =MAX(OFFSET(WPbed4a_Prop!$D$10,12*($AB36-1),4*(PlotControl!$C$4-1),12,1)) -> 24964 | AZ36: =MAX(OFFSET(WPbed4a_Prop!$E$10,12*($AB36-1),4*(PlotControl!$C$4-1),12,1)) -> 29770 | BB36: 32 | BC36: =MAX(OFFSET(EPCat23_Part!$C$10,12*($BB36-1),4*(PlotControl!$C$4-1),12,1)) -> 9132 | BD36: =MAX(OFFSET(EPCat23_Part!$D$10,12*($BB36-1),4*(PlotControl!$C$4-1),12,1)) -> 9655.4 | BE36: =MAX(OFFSET(EPCat23_Part!$E$10,12*($BB36-1),4*(PlotControl!$C$4-1),12,1)) -> 10290 | BI36: =MAX(OFFSET(OSP_Part1!$C$10,12*($BB36-1),4*(PlotControl!$C$4-1),12,1)) -> 9110.4 | BJ36: =MAX(OFFSET(OSP_Part1!$D$10,12*($BB36-1),4*(PlotControl!$C$4-1),12,1)) -> 9581.1 | BK36: =MAX(OFFSET(OSP_Part1!$E$10,12*($BB36-1),4*(PlotControl!$C$4-1),12,1)) -> 10077 | BL36: =MAX(OFFSET(WWTF_Part!$C$10,12*($BB36-1),4*(PlotControl!$C$4-1),12,1)) -> 9110.4 | BM36: =MAX(OFFSET(WWTF_Part!$D$10,12*($BB36-1),4*(PlotControl!$C$4-1),12,1)) -> 9581.1 | BN36: =MAX(OFFSET(WWTF_Part!$E$10,12*($BB36-1),4*(PlotControl!$C$4-1),12,1)) -> 10077 | BO36: =MAX(OFFSET(OSLA_Part!$C$10,12*($BB36-1),4*(PlotControl!$C$4-1),12,1)) -> 9449.2 | BP36: =MAX(OFFSET(OSLA_Part!$D$10,12*($BB36-1),4*(PlotControl!$C$4-1),12,1)) -> 11067 | BQ36: =MAX(OFFSET(OSLA_Part!$E$10,12*($BB36-1),4*(PlotControl!$C$4-1),12,1)) -> 14869 | BR36: =MAX(OFFSET(WPsurf_Part!$C$10,12*($BB36-1),4*(PlotControl!$C$4-1),12,1)) -> 9110.4 | BS36: =MAX(OFFSET(WPsurf_Part!$D$10,12*($BB36-1),4*(PlotControl!$C$4-1),12,1)) -> 9581.1 | BT36: =MAX(OFFSET(WPsurf_Part!$E$10,12*($BB36-1),4*(PlotControl!$C$4-1),12,1)) -> 10077
A37: 33 | B37: =MAX(OFFSET(EPCat23_Dunka!$C$10,12*($A37-1),4*(PlotControl!$C$4-1),12,1)) -> 9767.7 | C37: =MAX(OFFSET(EPCat23_Dunka!$D$10,12*($A37-1),4*(PlotControl!$C$4-1),12,1)) -> 10977 | D37: =MAX(OFFSET(EPCat23_Dunka!$E$10,12*($A37-1),4*(PlotControl!$C$4-1),12,1)) -> 14677 | H37: =MAX(OFFSET(OSP_Dunka!$C$10,12*($A37-1),4*(PlotControl!$C$4-1),12,1)) -> 9632.4 | I37: =MAX(OFFSET(OSP_Dunka!$D$10,12*($A37-1),4*(PlotControl!$C$4-1),12,1)) -> 10433 | J37: =MAX(OFFSET(OSP_Dunka!$E$10,12*($A37-1),4*(PlotControl!$C$4-1),12,1)) -> 12201 | K37: =MAX(OFFSET(WWTF_Dunka!$C$10,12*($A37-1),4*(PlotControl!$C$4-1),12,1)) -> 10265 | L37: =MAX(OFFSET(WWTF_Dunka!$D$10,12*($A37-1),4*(PlotControl!$C$4-1),12,1)) -> 10941 | M37: =MAX(OFFSET(WWTF_Dunka!$E$10,12*($A37-1),4*(PlotControl!$C$4-1),12,1)) -> 11903 | N37: =MAX(OFFSET(OSLA_Dunka!$C$10,12*($A37-1),4*(PlotControl!$C$4-1),12,1)) -> 27940 | O37: =MAX(OFFSET(OSLA_Dunka!$D$10,12*($A37-1),4*(PlotControl!$C$4-1),12,1)) -> 32837 | P37: =MAX(OFFSET(OSLA_Dunka!$E$10,12*($A37-1),4*(PlotControl!$C$4-1),12,1)) -> 39316 | Q37: =MAX(OFFSET(WPsurf_Dunka!$C$10,12*($A37-1),4*(PlotControl!$C$4-1),12,1)) -> 9110.4 | R37: =MAX(OFFSET(WPsurf_Dunka!$D$10,12*($A37-1),4*(PlotControl!$C$4-1),12,1)) -> 9581.1 | S37: =MAX(OFFSET(WPsurf_Dunka!$E$10,12*($A37-1),4*(PlotControl!$C$4-1),12,1)) -> 10077 | AB37: 33 | AC37: =MAX(OFFSET(EPCat23_Prop!$C$10,12*($AB37-1),4*(PlotControl!$C$4-1),12,1)) -> 9917.2 | AD37: =MAX(OFFSET(EPCat23_Prop!$D$10,12*($AB37-1),4*(PlotControl!$C$4-1),12,1)) -> 11192 | AE37: =MAX(OFFSET(EPCat23_Prop!$E$10,12*($AB37-1),4*(PlotControl!$C$4-1),12,1)) -> 15468 | AF37: =MAX(OFFSET(EPbed_Prop!$C$10,12*($AB37-1),4*(PlotControl!$C$4-1),12,1)) -> 20929 | AG37: =MAX(OFFSET(EPbed_Prop!$D$10,12*($AB37-1),4*(PlotControl!$C$4-1),12,1)) -> 24964 | AH37: =MAX(OFFSET(EPbed_Prop!$E$10,12*($AB37-1),4*(PlotControl!$C$4-1),12,1)) -> 29770 | AL37: =MAX(OFFSET(WWTF_Prop!$C$10,12*($AB37-1),4*(PlotControl!$C$4-1),12,1)) -> 9110.4 | AM37: =MAX(OFFSET(WWTF_Prop!$D$10,12*($AB37-1),4*(PlotControl!$C$4-1),12,1)) -> 9581.1 | AN37: =MAX(OFFSET(WWTF_Prop!$E$10,12*($AB37-1),4*(PlotControl!$C$4-1),12,1)) -> 10077 | AO37: =MAX(OFFSET(OSLA_Prop!$C$10,12*($AB37-1),4*(PlotControl!$C$4-1),12,1)) -> 25862 | AP37: =MAX(OFFSET(OSLA_Prop!$D$10,12*($AB37-1),4*(PlotControl!$C$4-1),12,1)) -> 29800 | AQ37: =MAX(OFFSET(OSLA_Prop!$E$10,12*($AB37-1),4*(PlotControl!$C$4-1),12,1)) -> 34593 | AR37: =MAX(OFFSET(WPsurf_Prop!$C$10,12*($AB37-1),4*(PlotControl!$C$4-1),12,1)) -> 9110.4 | AS37: =MAX(OFFSET(WPsurf_Prop!$D$10,12*($AB37-1),4*(PlotControl!$C$4-1),12,1)) -> 9581.1 | AT37: =MAX(OFFSET(WPsurf_Prop!$E$10,12*($AB37-1),4*(PlotControl!$C$4-1),12,1)) -> 10077 | AU37: =MAX(OFFSET(WPbed4_Prop!$C$10,12*($AB37-1),4*(PlotControl!$C$4-1),12,1)) -> 20929 | AV37: =MAX(OFFSET(WPbed4_Prop!$D$10,12*($AB37-1),4*(PlotControl!$C$4-1),12,1)) -> 24964 | AW37: =MAX(OFFSET(WPbed4_Prop!$E$10,12*($AB37-1),4*(PlotControl!$C$4-1),12,1)) -> 29770 | AX37: =MAX(OFFSET(WPbed4a_Prop!$C$10,12*($AB37-1),4*(PlotControl!$C$4-1),12,1)) -> 20929 | AY37: =MAX(OFFSET(WPbed4a_Prop!$D$10,12*($AB37-1),4*(PlotControl!$C$4-1),12,1)) -> 24964 | AZ37: =MAX(OFFSET(WPbed4a_Prop!$E$10,12*($AB37-1),4*(PlotControl!$C$4-1),12,1)) -> 29770 | BB37: 33 | BC37: =MAX(OFFSET(EPCat23_Part!$C$10,12*($BB37-1),4*(PlotControl!$C$4-1),12,1)) -> 9148.1 | BD37: =MAX(OFFSET(EPCat23_Part!$D$10,12*($BB37-1),4*(PlotControl!$C$4-1),12,1)) -> 9674.8 | BE37: =MAX(OFFSET(EPCat23_Part!$E$10,12*($BB37-1),4*(PlotControl!$C$4-1),12,1)) -> 10413 | BI37: =MAX(OFFSET(OSP_Part1!$C$10,12*($BB37-1),4*(PlotControl!$C$4-1),12,1)) -> 9110.4 | BJ37: =MAX(OFFSET(OSP_Part1!$D$10,12*($BB37-1),4*(PlotControl!$C$4-1),12,1)) -> 9581.1 | BK37: =MAX(OFFSET(OSP_Part1!$E$10,12*($BB37-1),4*(PlotControl!$C$4-1),12,1)) -> 10077 | BL37: =MAX(OFFSET(WWTF_Part!$C$10,12*($BB37-1),4*(PlotControl!$C$4-1),12,1)) -> 9110.4 | BM37: =MAX(OFFSET(WWTF_Part!$D$10,12*($BB37-1),4*(PlotControl!$C$4-1),12,1)) -> 9581.1 | BN37: =MAX(OFFSET(WWTF_Part!$E$10,12*($BB37-1),4*(PlotControl!$C$4-1),12,1)) -> 10077 | BO37: =MAX(OFFSET(OSLA_Part!$C$10,12*($BB37-1),4*(PlotControl!$C$4-1),12,1)) -> 9483.8 | BP37: =MAX(OFFSET(OSLA_Part!$D$10,12*($BB37-1),4*(PlotControl!$C$4-1),12,1)) -> 11273 | BQ37: =MAX(OFFSET(OSLA_Part!$E$10,12*($BB37-1),4*(PlotControl!$C$4-1),12,1)) -> 15255 | BR37: =MAX(OFFSET(WPsurf_Part!$C$10,12*($BB37-1),4*(PlotControl!$C$4-1),12,1)) -> 9110.4 | BS37: =MAX(OFFSET(WPsurf_Part!$D$10,12*($BB37-1),4*(PlotControl!$C$4-1),12,1)) -> 9581.1 | BT37: =MAX(OFFSET(WPsurf_Part!$E$10,12*($BB37-1),4*(PlotControl!$C$4-1),12,1)) -> 10077
A38: 34 | B38: =MAX(OFFSET(EPCat23_Dunka!$C$10,12*($A38-1),4*(PlotControl!$C$4-1),12,1)) -> 9684 | C38: =MAX(OFFSET(EPCat23_Dunka!$D$10,12*($A38-1),4*(PlotControl!$C$4-1),12,1)) -> 10800 | D38: =MAX(OFFSET(EPCat23_Dunka!$E$10,12*($A38-1),4*(PlotControl!$C$4-1),12,1)) -> 14323 | H38: =MAX(OFFSET(OSP_Dunka!$C$10,12*($A38-1),4*(PlotControl!$C$4-1),12,1)) -> 9652.3 | I38: =MAX(OFFSET(OSP_Dunka!$D$10,12*($A38-1),4*(PlotControl!$C$4-1),12,1)) -> 10469 | J38: =MAX(OFFSET(OSP_Dunka!$E$10,12*($A38-1),4*(PlotControl!$C$4-1),12,1)) -> 12283 | K38: =MAX(OFFSET(WWTF_Dunka!$C$10,12*($A38-1),4*(PlotControl!$C$4-1),12,1)) -> 10296 | L38: =MAX(OFFSET(WWTF_Dunka!$D$10,12*($A38-1),4*(PlotControl!$C$4-1),12,1)) -> 10984 | M38: =MAX(OFFSET(WWTF_Dunka!$E$10,12*($A38-1),4*(PlotControl!$C$4-1),12,1)) -> 11966 | N38: =MAX(OFFSET(OSLA_Dunka!$C$10,12*($A38-1),4*(PlotControl!$C$4-1),12,1)) -> 27479 | O38: =MAX(OFFSET(OSLA_Dunka!$D$10,12*($A38-1),4*(PlotControl!$C$4-1),12,1)) -> 32331 | P38: =MAX(OFFSET(OSLA_Dunka!$E$10,12*($A38-1),4*(PlotControl!$C$4-1),12,1)) -> 39058 | Q38: =MAX(OFFSET(WPsurf_Dunka!$C$10,12*($A38-1),4*(PlotControl!$C$4-1),12,1)) -> 9110.4 | R38: =MAX(OFFSET(WPsurf_Dunka!$D$10,12*($A38-1),4*(PlotControl!$C$4-1),12,1)) -> 9581.1 | S38: =MAX(OFFSET(WPsurf_Dunka!$E$10,12*($A38-1),4*(PlotControl!$C$4-1),12,1)) -> 10077 | AB38: 34 | AC38: =MAX(OFFSET(EPCat23_Prop!$C$10,12*($AB38-1),4*(PlotControl!$C$4-1),12,1)) -> 9882.4 | AD38: =MAX(OFFSET(EPCat23_Prop!$D$10,12*($AB38-1),4*(PlotControl!$C$4-1),12,1)) -> 11120 | AE38: =MAX(OFFSET(EPCat23_Prop!$E$10,12*($AB38-1),4*(PlotControl!$C$4-1),12,1)) -> 15320 | AF38: =MAX(OFFSET(EPbed_Prop!$C$10,12*($AB38-1),4*(PlotControl!$C$4-1),12,1)) -> 20929 | AG38: =MAX(OFFSET(EPbed_Prop!$D$10,12*($AB38-1),4*(PlotControl!$C$4-1),12,1)) -> 24964 | AH38: =MAX(OFFSET(EPbed_Prop!$E$10,12*($AB38-1),4*(PlotControl!$C$4-1),12,1)) -> 29770 | AL38: =MAX(OFFSET(WWTF_Prop!$C$10,12*($AB38-1),4*(PlotControl!$C$4-1),12,1)) -> 9110.4 | AM38: =MAX(OFFSET(WWTF_Prop!$D$10,12*($AB38-1),4*(PlotControl!$C$4-1),12,1)) -> 9581.1 | AN38: =MAX(OFFSET(WWTF_Prop!$E$10,12*($AB38-1),4*(PlotControl!$C$4-1),12,1)) -> 10077 | AO38: =MAX(OFFSET(OSLA_Prop!$C$10,12*($AB38-1),4*(PlotControl!$C$4-1),12,1)) -> 25696 | AP38: =MAX(OFFSET(OSLA_Prop!$D$10,12*($AB38-1),4*(PlotControl!$C$4-1),12,1)) -> 29629 | AQ38: =MAX(OFFSET(OSLA_Prop!$E$10,12*($AB38-1),4*(PlotControl!$C$4-1),12,1)) -> 34499 | AR38: =MAX(OFFSET(WPsurf_Prop!$C$10,12*($AB38-1),4*(PlotControl!$C$4-1),12,1)) -> 9110.4 | AS38: =MAX(OFFSET(WPsurf_Prop!$D$10,12*($AB38-1),4*(PlotControl!$C$4-1),12,1)) -> 9581.1 | AT38: =MAX(OFFSET(WPsurf_Prop!$E$10,12*($AB38-1),4*(PlotControl!$C$4-1),12,1)) -> 10077 | AU38: =MAX(OFFSET(WPbed4_Prop!$C$10,12*($AB38-1),4*(PlotControl!$C$4-1),12,1)) -> 20929 | AV38: =MAX(OFFSET(WPbed4_Prop!$D$10,12*($AB38-1),4*(PlotControl!$C$4-1),12,1)) -> 24964 | AW38: =MAX(OFFSET(WPbed4_Prop!$E$10,12*($AB38-1),4*(PlotControl!$C$4-1),12,1)) -> 29770 | AX38: =MAX(OFFSET(WPbed4a_Prop!$C$10,12*($AB38-1),4*(PlotControl!$C$4-1),12,1)) -> 20929 | AY38: =MAX(OFFSET(WPbed4a_Prop!$D$10,12*($AB38-1),4*(PlotControl!$C$4-1),12,1)) -> 24964 | AZ38: =MAX(OFFSET(WPbed4a_Prop!$E$10,12*($AB38-1),4*(PlotControl!$C$4-1),12,1)) -> 29770 | BB38: 34 | BC38: =MAX(OFFSET(EPCat23_Part!$C$10,12*($BB38-1),4*(PlotControl!$C$4-1),12,1)) -> 9164.6 | BD38: =MAX(OFFSET(EPCat23_Part!$D$10,12*($BB38-1),4*(PlotControl!$C$4-1),12,1)) -> 9699.6 | BE38: =MAX(OFFSET(EPCat23_Part!$E$10,12*($BB38-1),4*(PlotControl!$C$4-1),12,1)) -> 10492 | BI38: =MAX(OFFSET(OSP_Part1!$C$10,12*($BB38-1),4*(PlotControl!$C$4-1),12,1)) -> 9110.4 | BJ38: =MAX(OFFSET(OSP_Part1!$D$10,12*($BB38-1),4*(PlotControl!$C$4-1),12,1)) -> 9581.1 | BK38: =MAX(OFFSET(OSP_Part1!$E$10,12*($BB38-1),4*(PlotControl!$C$4-1),12,1)) -> 10077 | BL38: =MAX(OFFSET(WWTF_Part!$C$10,12*($BB38-1),4*(PlotControl!$C$4-1),12,1)) -> 9110.4 | BM38: =MAX(OFFSET(WWTF_Part!$D$10,12*($BB38-1),4*(PlotControl!$C$4-1),12,1)) -> 9581.1 | BN38: =MAX(OFFSET(WWTF_Part!$E$10,12*($BB38-1),4*(PlotControl!$C$4-1),12,1)) -> 10077 | BO38: =MAX(OFFSET(OSLA_Part!$C$10,12*($BB38-1),4*(PlotControl!$C$4-1),12,1)) -> 9506.8 | BP38: =MAX(OFFSET(OSLA_Part!$D$10,12*($BB38-1),4*(PlotControl!$C$4-1),12,1)) -> 11506 | BQ38: =MAX(OFFSET(OSLA_Part!$E$10,12*($BB38-1),4*(PlotControl!$C$4-1),12,1)) -> 15639 | BR38: =MAX(OFFSET(WPsurf_Part!$C$10,12*($BB38-1),4*(PlotControl!$C$4-1),12,1)) -> 9110.4 | BS38: =MAX(OFFSET(WPsurf_Part!$D$10,12*($BB38-1),4*(PlotControl!$C$4-1),12,1)) -> 9581.1 | BT38: =MAX(OFFSET(WPsurf_Part!$E$10,12*($BB38-1),4*(PlotControl!$C$4-1),12,1)) -> 10077
A39: 35 | B39: =MAX(OFFSET(EPCat23_Dunka!$C$10,12*($A39-1),4*(PlotControl!$C$4-1),12,1)) -> 9619.4 | C39: =MAX(OFFSET(EPCat23_Dunka!$D$10,12*($A39-1),4*(PlotControl!$C$4-1),12,1)) -> 10717 | D39: =MAX(OFFSET(EPCat23_Dunka!$E$10,12*($A39-1),4*(PlotControl!$C$4-1),12,1)) -> 14038 | H39: =MAX(OFFSET(OSP_Dunka!$C$10,12*($A39-1),4*(PlotControl!$C$4-1),12,1)) -> 9673.5 | I39: =MAX(OFFSET(OSP_Dunka!$D$10,12*($A39-1),4*(PlotControl!$C$4-1),12,1)) -> 10503 | J39: =MAX(OFFSET(OSP_Dunka!$E$10,12*($A39-1),4*(PlotControl!$C$4-1),12,1)) -> 12336 | K39: =MAX(OFFSET(WWTF_Dunka!$C$10,12*($A39-1),4*(PlotControl!$C$4-1),12,1)) -> 10328 | L39: =MAX(OFFSET(WWTF_Dunka!$D$10,12*($A39-1),4*(PlotControl!$C$4-1),12,1)) -> 11030 | M39: =MAX(OFFSET(WWTF_Dunka!$E$10,12*($A39-1),4*(PlotControl!$C$4-1),12,1)) -> 12000 | N39: =MAX(OFFSET(OSLA_Dunka!$C$10,12*($A39-1),4*(PlotControl!$C$4-1),12,1)) -> 27014 | O39: =MAX(OFFSET(OSLA_Dunka!$D$10,12*($A39-1),4*(PlotControl!$C$4-1),12,1)) -> 31868 | P39: =MAX(OFFSET(OSLA_Dunka!$E$10,12*($A39-1),4*(PlotControl!$C$4-1),12,1)) -> 38876 | Q39: =MAX(OFFSET(WPsurf_Dunka!$C$10,12*($A39-1),4*(PlotControl!$C$4-1),12,1)) -> 9110.4 | R39: =MAX(OFFSET(WPsurf_Dunka!$D$10,12*($A39-1),4*(PlotControl!$C$4-1),12,1)) -> 9581.1 | S39: =MAX(OFFSET(WPsurf_Dunka!$E$10,12*($A39-1),4*(PlotControl!$C$4-1),12,1)) -> 10077 | AB39: 35 | AC39: =MAX(OFFSET(EPCat23_Prop!$C$10,12*($AB39-1),4*(PlotControl!$C$4-1),12,1)) -> 9842.3 | AD39: =MAX(OFFSET(EPCat23_Prop!$D$10,12*($AB39-1),4*(PlotControl!$C$4-1),12,1)) -> 11052 | AE39: =MAX(OFFSET(EPCat23_Prop!$E$10,12*($AB39-1),4*(PlotControl!$C$4-1),12,1)) -> 15203 | AF39: =MAX(OFFSET(EPbed_Prop!$C$10,12*($AB39-1),4*(PlotControl!$C$4-1),12,1)) -> 20929 | AG39: =MAX(OFFSET(EPbed_Prop!$D$10,12*($AB39-1),4*(PlotControl!$C$4-1),12,1)) -> 24964 | AH39: =MAX(OFFSET(EPbed_Prop!$E$10,12*($AB39-1),4*(PlotControl!$C$4-1),12,1)) -> 29770 | AL39: =MAX(OFFSET(WWTF_Prop!$C$10,12*($AB39-1),4*(PlotControl!$C$4-1),12,1)) -> 9110.4 | AM39: =MAX(OFFSET(WWTF_Prop!$D$10,12*($AB39-1),4*(PlotControl!$C$4-1),12,1)) -> 9581.1 | AN39: =MAX(OFFSET(WWTF_Prop!$E$10,12*($AB39-1),4*(PlotControl!$C$4-1),12,1)) -> 10077 | AO39: =MAX(OFFSET(OSLA_Prop!$C$10,12*($AB39-1),4*(PlotControl!$C$4-1),12,1)) -> 25466 | AP39: =MAX(OFFSET(OSLA_Prop!$D$10,12*($AB39-1),4*(PlotControl!$C$4-1),12,1)) -> 29396 | AQ39: =MAX(OFFSET(OSLA_Prop!$E$10,12*($AB39-1),4*(PlotControl!$C$4-1),12,1)) -> 34436 | AR39: =MAX(OFFSET(WPsurf_Prop!$C$10,12*($AB39-1),4*(PlotControl!$C$4-1),12,1)) -> 9110.4 | AS39: =MAX(OFFSET(WPsurf_Prop!$D$10,12*($AB39-1),4*(PlotControl!$C$4-1),12,1)) -> 9581.1 | AT39: =MAX(OFFSET(WPsurf_Prop!$E$10,12*($AB39-1),4*(PlotControl!$C$4-1),12,1)) -> 10077 | AU39: =MAX(OFFSET(WPbed4_Prop!$C$10,12*($AB39-1),4*(PlotControl!$C$4-1),12,1)) -> 20929 | AV39: =MAX(OFFSET(WPbed4_Prop!$D$10,12*($AB39-1),4*(PlotControl!$C$4-1),12,1)) -> 24964 | AW39: =MAX(OFFSET(WPbed4_Prop!$E$10,12*($AB39-1),4*(PlotControl!$C$4-1),12,1)) -> 29770 | AX39: =MAX(OFFSET(WPbed4a_Prop!$C$10,12*($AB39-1),4*(PlotControl!$C$4-1),12,1)) -> 20929 | AY39: =MAX(OFFSET(WPbed4a_Prop!$D$10,12*($AB39-1),4*(PlotControl!$C$4-1),12,1)) -> 24964 | AZ39: =MAX(OFFSET(WPbed4a_Prop!$E$10,12*($AB39-1),4*(PlotControl!$C$4-1),12,1)) -> 29770 | BB39: 35 | BC39: =MAX(OFFSET(EPCat23_Part!$C$10,12*($BB39-1),4*(PlotControl!$C$4-1),12,1)) -> 9171.6 | BD39: =MAX(OFFSET(EPCat23_Part!$D$10,12*($BB39-1),4*(PlotControl!$C$4-1),12,1)) -> 9718.8 | BE39: =MAX(OFFSET(EPCat23_Part!$E$10,12*($BB39-1),4*(PlotControl!$C$4-1),12,1)) -> 10591 | BI39: =MAX(OFFSET(OSP_Part1!$C$10,12*($BB39-1),4*(PlotControl!$C$4-1),12,1)) -> 9110.4 | BJ39: =MAX(OFFSET(OSP_Part1!$D$10,12*($BB39-1),4*(PlotControl!$C$4-1),12,1)) -> 9581.1 | BK39: =MAX(OFFSET(OSP_Part1!$E$10,12*($BB39-1),4*(PlotControl!$C$4-1),12,1)) -> 10077 | BL39: =MAX(OFFSET(WWTF_Part!$C$10,12*($BB39-1),4*(PlotControl!$C$4-1),12,1)) -> 9110.4 | BM39: =MAX(OFFSET(WWTF_Part!$D$10,12*($BB39-1),4*(PlotControl!$C$4-1),12,1)) -> 9581.1 | BN39: =MAX(OFFSET(WWTF_Part!$E$10,12*($BB39-1),4*(PlotControl!$C$4-1),12,1)) -> 10077 | BO39: =MAX(OFFSET(OSLA_Part!$C$10,12*($BB39-1),4*(PlotControl!$C$4-1),12,1)) -> 9516.3 | BP39: =MAX(OFFSET(OSLA_Part!$D$10,12*($BB39-1),4*(PlotControl!$C$4-1),12,1)) -> 11773 | BQ39: =MAX(OFFSET(OSLA_Part!$E$10,12*($BB39-1),4*(PlotControl!$C$4-1),12,1)) -> 15990 | BR39: =MAX(OFFSET(WPsurf_Part!$C$10,12*($BB39-1),4*(PlotControl!$C$4-1),12,1)) -> 9110.4 | BS39: =MAX(OFFSET(WPsurf_Part!$D$10,12*($BB39-1),4*(PlotControl!$C$4-1),12,1)) -> 9581.1 | BT39: =MAX(OFFSET(WPsurf_Part!$E$10,12*($BB39-1),4*(PlotControl!$C$4-1),12,1)) -> 10077
A40: 36 | B40: =MAX(OFFSET(EPCat23_Dunka!$C$10,12*($A40-1),4*(PlotControl!$C$4-1),12,1)) -> 9591.1 | C40: =MAX(OFFSET(EPCat23_Dunka!$D$10,12*($A40-1),4*(PlotControl!$C$4-1),12,1)) -> 10603 | D40: =MAX(OFFSET(EPCat23_Dunka!$E$10,12*($A40-1),4*(PlotControl!$C$4-1),12,1)) -> 13846 | H40: =MAX(OFFSET(OSP_Dunka!$C$10,12*($A40-1),4*(PlotControl!$C$4-1),12,1)) -> 9681.6 | I40: =MAX(OFFSET(OSP_Dunka!$D$10,12*($A40-1),4*(PlotControl!$C$4-1),12,1)) -> 10531 | J40: =MAX(OFFSET(OSP_Dunka!$E$10,12*($A40-1),4*(PlotControl!$C$4-1),12,1)) -> 12382 | K40: =MAX(OFFSET(WWTF_Dunka!$C$10,12*($A40-1),4*(PlotControl!$C$4-1),12,1)) -> 10357 | L40: =MAX(OFFSET(WWTF_Dunka!$D$10,12*($A40-1),4*(PlotControl!$C$4-1),12,1)) -> 11075 | M40: =MAX(OFFSET(WWTF_Dunka!$E$10,12*($A40-1),4*(PlotControl!$C$4-1),12,1)) -> 12048 | N40: =MAX(OFFSET(OSLA_Dunka!$C$10,12*($A40-1),4*(PlotControl!$C$4-1),12,1)) -> 26517 | O40: =MAX(OFFSET(OSLA_Dunka!$D$10,12*($A40-1),4*(PlotControl!$C$4-1),12,1)) -> 31488 | P40: =MAX(OFFSET(OSLA_Dunka!$E$10,12*($A40-1),4*(PlotControl!$C$4-1),12,1)) -> 38695 | Q40: =MAX(OFFSET(WPsurf_Dunka!$C$10,12*($A40-1),4*(PlotControl!$C$4-1),12,1)) -> 9110.4 | R40: =MAX(OFFSET(WPsurf_Dunka!$D$10,12*($A40-1),4*(PlotControl!$C$4-1),12,1)) -> 9581.1 | S40: =MAX(OFFSET(WPsurf_Dunka!$E$10,12*($A40-1),4*(PlotControl!$C$4-1),12,1)) -> 10077 | AB40: 36 | AC40: =MAX(OFFSET(EPCat23_Prop!$C$10,12*($AB40-1),4*(PlotControl!$C$4-1),12,1)) -> 9799.5 | AD40: =MAX(OFFSET(EPCat23_Prop!$D$10,12*($AB40-1),4*(PlotControl!$C$4-1),12,1)) -> 10964 | AE40: =MAX(OFFSET(EPCat23_Prop!$E$10,12*($AB40-1),4*(PlotControl!$C$4-1),12,1)) -> 14860 | AF40: =MAX(OFFSET(EPbed_Prop!$C$10,12*($AB40-1),4*(PlotControl!$C$4-1),12,1)) -> 20929 | AG40: =MAX(OFFSET(EPbed_Prop!$D$10,12*($AB40-1),4*(PlotControl!$C$4-1),12,1)) -> 24964 | AH40: =MAX(OFFSET(EPbed_Prop!$E$10,12*($AB40-1),4*(PlotControl!$C$4-1),12,1)) -> 29770 | AL40: =MAX(OFFSET(WWTF_Prop!$C$10,12*($AB40-1),4*(PlotControl!$C$4-1),12,1)) -> 9110.4 | AM40: =MAX(OFFSET(WWTF_Prop!$D$10,12*($AB40-1),4*(PlotControl!$C$4-1),12,1)) -> 9581.1 | AN40: =MAX(OFFSET(WWTF_Prop!$E$10,12*($AB40-1),4*(PlotControl!$C$4-1),12,1)) -> 10077 | AO40: =MAX(OFFSET(OSLA_Prop!$C$10,12*($AB40-1),4*(PlotControl!$C$4-1),12,1)) -> 25222 | AP40: =MAX(OFFSET(OSLA_Prop!$D$10,12*($AB40-1),4*(PlotControl!$C$4-1),12,1)) -> 29217 | AQ40: =MAX(OFFSET(OSLA_Prop!$E$10,12*($AB40-1),4*(PlotControl!$C$4-1),12,1)) -> 34333 | AR40: =MAX(OFFSET(WPsurf_Prop!$C$10,12*($AB40-1),4*(PlotControl!$C$4-1),12,1)) -> 9110.4 | AS40: =MAX(OFFSET(WPsurf_Prop!$D$10,12*($AB40-1),4*(PlotControl!$C$4-1),12,1)) -> 9581.1 | AT40: =MAX(OFFSET(WPsurf_Prop!$E$10,12*($AB40-1),4*(PlotControl!$C$4-1),12,1)) -> 10077 | AU40: =MAX(OFFSET(WPbed4_Prop!$C$10,12*($AB40-1),4*(PlotControl!$C$4-1),12,1)) -> 20929 | AV40: =MAX(OFFSET(WPbed4_Prop!$D$10,12*($AB40-1),4*(PlotControl!$C$4-1),12,1)) -> 24964 | AW40: =MAX(OFFSET(WPbed4_Prop!$E$10,12*($AB40-1),4*(PlotControl!$C$4-1),12,1)) -> 29770 | AX40: =MAX(OFFSET(WPbed4a_Prop!$C$10,12*($AB40-1),4*(PlotControl!$C$4-1),12,1)) -> 20929 | AY40: =MAX(OFFSET(WPbed4a_Prop!$D$10,12*($AB40-1),4*(PlotControl!$C$4-1),12,1)) -> 24964 | AZ40: =MAX(OFFSET(WPbed4a_Prop!$E$10,12*($AB40-1),4*(PlotControl!$C$4-1),12,1)) -> 29770 | BB40: 36 | BC40: =MAX(OFFSET(EPCat23_Part!$C$10,12*($BB40-1),4*(PlotControl!$C$4-1),12,1)) -> 9177.4 | BD40: =MAX(OFFSET(EPCat23_Part!$D$10,12*($BB40-1),4*(PlotControl!$C$4-1),12,1)) -> 9743.4 | BE40: =MAX(OFFSET(EPCat23_Part!$E$10,12*($BB40-1),4*(PlotControl!$C$4-1),12,1)) -> 10709 | BI40: =MAX(OFFSET(OSP_Part1!$C$10,12*($BB40-1),4*(PlotControl!$C$4-1),12,1)) -> 9110.4 | BJ40: =MAX(OFFSET(OSP_Part1!$D$10,12*($BB40-1),4*(PlotControl!$C$4-1),12,1)) -> 9581.1 | BK40: =MAX(OFFSET(OSP_Part1!$E$10,12*($BB40-1),4*(PlotControl!$C$4-1),12,1)) -> 10077 | BL40: =MAX(OFFSET(WWTF_Part!$C$10,12*($BB40-1),4*(PlotControl!$C$4-1),12,1)) -> 9110.4 | BM40: =MAX(OFFSET(WWTF_Part!$D$10,12*($BB40-1),4*(PlotControl!$C$4-1),12,1)) -> 9581.1 | BN40: =MAX(OFFSET(WWTF_Part!$E$10,12*($BB40-1),4*(PlotControl!$C$4-1),12,1)) -> 10077 | BO40: =MAX(OFFSET(OSLA_Part!$C$10,12*($BB40-1),4*(PlotControl!$C$4-1),12,1)) -> 9528.4 | BP40: =MAX(OFFSET(OSLA_Part!$D$10,12*($BB40-1),4*(PlotControl!$C$4-1),12,1)) -> 12000 | BQ40: =MAX(OFFSET(OSLA_Part!$E$10,12*($BB40-1),4*(PlotControl!$C$4-1),12,1)) -> 16298 | BR40: =MAX(OFFSET(WPsurf_Part!$C$10,12*($BB40-1),4*(PlotControl!$C$4-1),12,1)) -> 9110.4 | BS40: =MAX(OFFSET(WPsurf_Part!$D$10,12*($BB40-1),4*(PlotControl!$C$4-1),12,1)) -> 9581.1 | BT40: =MAX(OFFSET(WPsurf_Part!$E$10,12*($BB40-1),4*(PlotControl!$C$4-1),12,1)) -> 10077
A41: 37 | B41: =MAX(OFFSET(EPCat23_Dunka!$C$10,12*($A41-1),4*(PlotControl!$C$4-1),12,1)) -> 9545.6 | C41: =MAX(OFFSET(EPCat23_Dunka!$D$10,12*($A41-1),4*(PlotControl!$C$4-1),12,1)) -> 10531 | D41: =MAX(OFFSET(EPCat23_Dunka!$E$10,12*($A41-1),4*(PlotControl!$C$4-1),12,1)) -> 13532 | H41: =MAX(OFFSET(OSP_Dunka!$C$10,12*($A41-1),4*(PlotControl!$C$4-1),12,1)) -> 9684.6 | I41: =MAX(OFFSET(OSP_Dunka!$D$10,12*($A41-1),4*(PlotControl!$C$4-1),12,1)) -> 10552 | J41: =MAX(OFFSET(OSP_Dunka!$E$10,12*($A41-1),4*(PlotControl!$C$4-1),12,1)) -> 12414 | K41: =MAX(OFFSET(WWTF_Dunka!$C$10,12*($A41-1),4*(PlotControl!$C$4-1),12,1)) -> 10368 | L41: =MAX(OFFSET(WWTF_Dunka!$D$10,12*($A41-1),4*(PlotControl!$C$4-1),12,1)) -> 11115 | M41: =MAX(OFFSET(WWTF_Dunka!$E$10,12*($A41-1),4*(PlotControl!$C$4-1),12,1)) -> 12095 | N41: =MAX(OFFSET(OSLA_Dunka!$C$10,12*($A41-1),4*(PlotControl!$C$4-1),12,1)) -> 26014 | O41: =MAX(OFFSET(OSLA_Dunka!$D$10,12*($A41-1),4*(PlotControl!$C$4-1),12,1)) -> 31023 | P41: =MAX(OFFSET(OSLA_Dunka!$E$10,12*($A41-1),4*(PlotControl!$C$4-1),12,1)) -> 38515 | Q41: =MAX(OFFSET(WPsurf_Dunka!$C$10,12*($A41-1),4*(PlotControl!$C$4-1),12,1)) -> 9110.4 | R41: =MAX(OFFSET(WPsurf_Dunka!$D$10,12*($A41-1),4*(PlotControl!$C$4-1),12,1)) -> 9581.1 | S41: =MAX(OFFSET(WPsurf_Dunka!$E$10,12*($A41-1),4*(PlotControl!$C$4-1),12,1)) -> 10077 | AB41: 37 | AC41: =MAX(OFFSET(EPCat23_Prop!$C$10,12*($AB41-1),4*(PlotControl!$C$4-1),12,1)) -> 9743.4 | AD41: =MAX(OFFSET(EPCat23_Prop!$D$10,12*($AB41-1),4*(PlotControl!$C$4-1),12,1)) -> 10867 | AE41: =MAX(OFFSET(EPCat23_Prop!$E$10,12*($AB41-1),4*(PlotControl!$C$4-1),12,1)) -> 14663 | AF41: =MAX(OFFSET(EPbed_Prop!$C$10,12*($AB41-1),4*(PlotControl!$C$4-1),12,1)) -> 20929 | AG41: =MAX(OFFSET(EPbed_Prop!$D$10,12*($AB41-1),4*(PlotControl!$C$4-1),12,1)) -> 24964 | AH41: =MAX(OFFSET(EPbed_Prop!$E$10,12*($AB41-1),4*(PlotControl!$C$4-1),12,1)) -> 29770 | AL41: =MAX(OFFSET(WWTF_Prop!$C$10,12*($AB41-1),4*(PlotControl!$C$4-1),12,1)) -> 9110.4 | AM41: =MAX(OFFSET(WWTF_Prop!$D$10,12*($AB41-1),4*(PlotControl!$C$4-1),12,1)) -> 9581.1 | AN41: =MAX(OFFSET(WWTF_Prop!$E$10,12*($AB41-1),4*(PlotControl!$C$4-1),12,1)) -> 10077 | AO41: =MAX(OFFSET(OSLA_Prop!$C$10,12*($AB41-1),4*(PlotControl!$C$4-1),12,1)) -> 24967 | AP41: =MAX(OFFSET(OSLA_Prop!$D$10,12*($AB41-1),4*(PlotControl!$C$4-1),12,1)) -> 28974 | AQ41: =MAX(OFFSET(OSLA_Prop!$E$10,12*($AB41-1),4*(PlotControl!$C$4-1),12,1)) -> 34223 | AR41: =MAX(OFFSET(WPsurf_Prop!$C$10,12*($AB41-1),4*(PlotControl!$C$4-1),12,1)) -> 9110.4 | AS41: =MAX(OFFSET(WPsurf_Prop!$D$10,12*($AB41-1),4*(PlotControl!$C$4-1),12,1)) -> 9581.1 | AT41: =MAX(OFFSET(WPsurf_Prop!$E$10,12*($AB41-1),4*(PlotControl!$C$4-1),12,1)) -> 10077 | AU41: =MAX(OFFSET(WPbed4_Prop!$C$10,12*($AB41-1),4*(PlotControl!$C$4-1),12,1)) -> 20929 | AV41: =MAX(OFFSET(WPbed4_Prop!$D$10,12*($AB41-1),4*(PlotControl!$C$4-1),12,1)) -> 24964 | AW41: =MAX(OFFSET(WPbed4_Prop!$E$10,12*($AB41-1),4*(PlotControl!$C$4-1),12,1)) -> 29770 | AX41: =MAX(OFFSET(WPbed4a_Prop!$C$10,12*($AB41-1),4*(PlotControl!$C$4-1),12,1)) -> 20929 | AY41: =MAX(OFFSET(WPbed4a_Prop!$D$10,12*($AB41-1),4*(PlotControl!$C$4-1),12,1)) -> 24964 | AZ41: =MAX(OFFSET(WPbed4a_Prop!$E$10,12*($AB41-1),4*(PlotControl!$C$4-1),12,1)) -> 29770 | BB41: 37 | BC41: =MAX(OFFSET(EPCat23_Part!$C$10,12*($BB41-1),4*(PlotControl!$C$4-1),12,1)) -> 9183.7 | BD41: =MAX(OFFSET(EPCat23_Part!$D$10,12*($BB41-1),4*(PlotControl!$C$4-1),12,1)) -> 9773.3 | BE41: =MAX(OFFSET(EPCat23_Part!$E$10,12*($BB41-1),4*(PlotControl!$C$4-1),12,1)) -> 10845 | BI41: =MAX(OFFSET(OSP_Part1!$C$10,12*($BB41-1),4*(PlotControl!$C$4-1),12,1)) -> 9110.4 | BJ41: =MAX(OFFSET(OSP_Part1!$D$10,12*($BB41-1),4*(PlotControl!$C$4-1),12,1)) -> 9581.1 | BK41: =MAX(OFFSET(OSP_Part1!$E$10,12*($BB41-1),4*(PlotControl!$C$4-1),12,1)) -> 10077 | BL41: =MAX(OFFSET(WWTF_Part!$C$10,12*($BB41-1),4*(PlotControl!$C$4-1),12,1)) -> 9110.4 | BM41: =MAX(OFFSET(WWTF_Part!$D$10,12*($BB41-1),4*(PlotControl!$C$4-1),12,1)) -> 9581.1 | BN41: =MAX(OFFSET(WWTF_Part!$E$10,12*($BB41-1),4*(PlotControl!$C$4-1),12,1)) -> 10077 | BO41: =MAX(OFFSET(OSLA_Part!$C$10,12*($BB41-1),4*(PlotControl!$C$4-1),12,1)) -> 9541 | BP41: =MAX(OFFSET(OSLA_Part!$D$10,12*($BB41-1),4*(PlotControl!$C$4-1),12,1)) -> 12251 | BQ41: =MAX(OFFSET(OSLA_Part!$E$10,12*($BB41-1),4*(PlotControl!$C$4-1),12,1)) -> 16583 | BR41: =MAX(OFFSET(WPsurf_Part!$C$10,12*($BB41-1),4*(PlotControl!$C$4-1),12,1)) -> 9110.4 | BS41: =MAX(OFFSET(WPsurf_Part!$D$10,12*($BB41-1),4*(PlotControl!$C$4-1),12,1)) -> 9581.1 | BT41: =MAX(OFFSET(WPsurf_Part!$E$10,12*($BB41-1),4*(PlotControl!$C$4-1),12,1)) -> 10077
A42: 38 | B42: =MAX(OFFSET(EPCat23_Dunka!$C$10,12*($A42-1),4*(PlotControl!$C$4-1),12,1)) -> 9488.9 | C42: =MAX(OFFSET(EPCat23_Dunka!$D$10,12*($A42-1),4*(PlotControl!$C$4-1),12,1)) -> 10457 | D42: =MAX(OFFSET(EPCat23_Dunka!$E$10,12*($A42-1),4*(PlotControl!$C$4-1),12,1)) -> 13305 | H42: =MAX(OFFSET(OSP_Dunka!$C$10,12*($A42-1),4*(PlotControl!$C$4-1),12,1)) -> 9688.8 | I42: =MAX(OFFSET(OSP_Dunka!$D$10,12*($A42-1),4*(PlotControl!$C$4-1),12,1)) -> 10564 | J42: =MAX(OFFSET(OSP_Dunka!$E$10,12*($A42-1),4*(PlotControl!$C$4-1),12,1)) -> 12457 | K42: =MAX(OFFSET(WWTF_Dunka!$C$10,12*($A42-1),4*(PlotControl!$C$4-1),12,1)) -> 10393 | L42: =MAX(OFFSET(WWTF_Dunka!$D$10,12*($A42-1),4*(PlotControl!$C$4-1),12,1)) -> 11147 | M42: =MAX(OFFSET(WWTF_Dunka!$E$10,12*($A42-1),4*(PlotControl!$C$4-1),12,1)) -> 12143 | N42: =MAX(OFFSET(OSLA_Dunka!$C$10,12*($A42-1),4*(PlotControl!$C$4-1),12,1)) -> 25543 | O42: =MAX(OFFSET(OSLA_Dunka!$D$10,12*($A42-1),4*(PlotControl!$C$4-1),12,1)) -> 30525 | P42: =MAX(OFFSET(OSLA_Dunka!$E$10,12*($A42-1),4*(PlotControl!$C$4-1),12,1)) -> 38336 | Q42: =MAX(OFFSET(WPsurf_Dunka!$C$10,12*($A42-1),4*(PlotControl!$C$4-1),12,1)) -> 9110.4 | R42: =MAX(OFFSET(WPsurf_Dunka!$D$10,12*($A42-1),4*(PlotControl!$C$4-1),12,1)) -> 9581.1 | S42: =MAX(OFFSET(WPsurf_Dunka!$E$10,12*($A42-1),4*(PlotControl!$C$4-1),12,1)) -> 10077 | AB42: 38 | AC42: =MAX(OFFSET(EPCat23_Prop!$C$10,12*($AB42-1),4*(PlotControl!$C$4-1),12,1)) -> 9672.7 | AD42: =MAX(OFFSET(EPCat23_Prop!$D$10,12*($AB42-1),4*(PlotControl!$C$4-1),12,1)) -> 10826 | AE42: =MAX(OFFSET(EPCat23_Prop!$E$10,12*($AB42-1),4*(PlotControl!$C$4-1),12,1)) -> 14457 | AF42: =MAX(OFFSET(EPbed_Prop!$C$10,12*($AB42-1),4*(PlotControl!$C$4-1),12,1)) -> 20929 | AG42: =MAX(OFFSET(EPbed_Prop!$D$10,12*($AB42-1),4*(PlotControl!$C$4-1),12,1)) -> 24964 | AH42: =MAX(OFFSET(EPbed_Prop!$E$10,12*($AB42-1),4*(PlotControl!$C$4-1),12,1)) -> 29770 | AL42: =MAX(OFFSET(WWTF_Prop!$C$10,12*($AB42-1),4*(PlotControl!$C$4-1),12,1)) -> 9110.4 | AM42: =MAX(OFFSET(WWTF_Prop!$D$10,12*($AB42-1),4*(PlotControl!$C$4-1),12,1)) -> 9581.1 | AN42: =MAX(OFFSET(WWTF_Prop!$E$10,12*($AB42-1),4*(PlotControl!$C$4-1),12,1)) -> 10077 | AO42: =MAX(OFFSET(OSLA_Prop!$C$10,12*($AB42-1),4*(PlotControl!$C$4-1),12,1)) -> 24717 | AP42: =MAX(OFFSET(OSLA_Prop!$D$10,12*($AB42-1),4*(PlotControl!$C$4-1),12,1)) -> 28724 | AQ42: =MAX(OFFSET(OSLA_Prop!$E$10,12*($AB42-1),4*(PlotControl!$C$4-1),12,1)) -> 34124 | AR42: =MAX(OFFSET(WPsurf_Prop!$C$10,12*($AB42-1),4*(PlotControl!$C$4-1),12,1)) -> 9110.4 | AS42: =MAX(OFFSET(WPsurf_Prop!$D$10,12*($AB42-1),4*(PlotControl!$C$4-1),12,1)) -> 9581.1 | AT42: =MAX(OFFSET(WPsurf_Prop!$E$10,12*($AB42-1),4*(PlotControl!$C$4-1),12,1)) -> 10077 | AU42: =MAX(OFFSET(WPbed4_Prop!$C$10,12*($AB42-1),4*(PlotControl!$C$4-1),12,1)) -> 20929 | AV42: =MAX(OFFSET(WPbed4_Prop!$D$10,12*($AB42-1),4*(PlotControl!$C$4-1),12,1)) -> 24964 | AW42: =MAX(OFFSET(WPbed4_Prop!$E$10,12*($AB42-1),4*(PlotControl!$C$4-1),12,1)) -> 29770 | AX42: =MAX(OFFSET(WPbed4a_Prop!$C$10,12*($AB42-1),4*(PlotControl!$C$4-1),12,1)) -> 20929 | AY42: =MAX(OFFSET(WPbed4a_Prop!$D$10,12*($AB42-1),4*(PlotControl!$C$4-1),12,1)) -> 24964 | AZ42: =MAX(OFFSET(WPbed4a_Prop!$E$10,12*($AB42-1),4*(PlotControl!$C$4-1),12,1)) -> 29770 | BB42: 38 | BC42: =MAX(OFFSET(EPCat23_Part!$C$10,12*($BB42-1),4*(PlotControl!$C$4-1),12,1)) -> 9193.1 | BD42: =MAX(OFFSET(EPCat23_Part!$D$10,12*($BB42-1),4*(PlotControl!$C$4-1),12,1)) -> 9789.2 | BE42: =MAX(OFFSET(EPCat23_Part!$E$10,12*($BB42-1),4*(PlotControl!$C$4-1),12,1)) -> 11026 | BI42: =MAX(OFFSET(OSP_Part1!$C$10,12*($BB42-1),4*(PlotControl!$C$4-1),12,1)) -> 9110.4 | BJ42: =MAX(OFFSET(OSP_Part1!$D$10,12*($BB42-1),4*(PlotControl!$C$4-1),12,1)) -> 9581.1 | BK42: =MAX(OFFSET(OSP_Part1!$E$10,12*($BB42-1),4*(PlotControl!$C$4-1),12,1)) -> 10077 | BL42: =MAX(OFFSET(WWTF_Part!$C$10,12*($BB42-1),4*(PlotControl!$C$4-1),12,1)) -> 9110.4 | BM42: =MAX(OFFSET(WWTF_Part!$D$10,12*($BB42-1),4*(PlotControl!$C$4-1),12,1)) -> 9581.1 | BN42: =MAX(OFFSET(WWTF_Part!$E$10,12*($BB42-1),4*(PlotControl!$C$4-1),12,1)) -> 10077 | BO42: =MAX(OFFSET(OSLA_Part!$C$10,12*($BB42-1),4*(PlotControl!$C$4-1),12,1)) -> 9560.3 | BP42: =MAX(OFFSET(OSLA_Part!$D$10,12*($BB42-1),4*(PlotControl!$C$4-1),12,1)) -> 12522 | BQ42: =MAX(OFFSET(OSLA_Part!$E$10,12*($BB42-1),4*(PlotControl!$C$4-1),12,1)) -> 16855 | BR42: =MAX(OFFSET(WPsurf_Part!$C$10,12*($BB42-1),4*(PlotControl!$C$4-1),12,1)) -> 9110.4 | BS42: =MAX(OFFSET(WPsurf_Part!$D$10,12*($BB42-1),4*(PlotControl!$C$4-1),12,1)) -> 9581.1 | BT42: =MAX(OFFSET(WPsurf_Part!$E$10,12*($BB42-1),4*(PlotControl!$C$4-1),12,1)) -> 10077
A43: 39 | B43: =MAX(OFFSET(EPCat23_Dunka!$C$10,12*($A43-1),4*(PlotControl!$C$4-1),12,1)) -> 9459.7 | C43: =MAX(OFFSET(EPCat23_Dunka!$D$10,12*($A43-1),4*(PlotControl!$C$4-1),12,1)) -> 10379 | D43: =MAX(OFFSET(EPCat23_Dunka!$E$10,12*($A43-1),4*(PlotControl!$C$4-1),12,1)) -> 13095 | H43: =MAX(OFFSET(OSP_Dunka!$C$10,12*($A43-1),4*(PlotControl!$C$4-1),12,1)) -> 9705.4 | I43: =MAX(OFFSET(OSP_Dunka!$D$10,12*($A43-1),4*(PlotControl!$C$4-1),12,1)) -> 10570 | J43: =MAX(OFFSET(OSP_Dunka!$E$10,12*($A43-1),4*(PlotControl!$C$4-1),12,1)) -> 12457 | K43: =MAX(OFFSET(WWTF_Dunka!$C$10,12*($A43-1),4*(PlotControl!$C$4-1),12,1)) -> 10416 | L43: =MAX(OFFSET(WWTF_Dunka!$D$10,12*($A43-1),4*(PlotControl!$C$4-1),12,1)) -> 11174 | M43: =MAX(OFFSET(WWTF_Dunka!$E$10,12*($A43-1),4*(PlotControl!$C$4-1),12,1)) -> 12189 | N43: =MAX(OFFSET(OSLA_Dunka!$C$10,12*($A43-1),4*(PlotControl!$C$4-1),12,1)) -> 25083 | O43: =MAX(OFFSET(OSLA_Dunka!$D$10,12*($A43-1),4*(PlotControl!$C$4-1),12,1)) -> 30072 | P43: =MAX(OFFSET(OSLA_Dunka!$E$10,12*($A43-1),4*(PlotControl!$C$4-1),12,1)) -> 38159 | Q43: =MAX(OFFSET(WPsurf_Dunka!$C$10,12*($A43-1),4*(PlotControl!$C$4-1),12,1)) -> 9110.4 | R43: =MAX(OFFSET(WPsurf_Dunka!$D$10,12*($A43-1),4*(PlotControl!$C$4-1),12,1)) -> 9581.1 | S43: =MAX(OFFSET(WPsurf_Dunka!$E$10,12*($A43-1),4*(PlotControl!$C$4-1),12,1)) -> 10077 | AB43: 39 | AC43: =MAX(OFFSET(EPCat23_Prop!$C$10,12*($AB43-1),4*(PlotControl!$C$4-1),12,1)) -> 9635.1 | AD43: =MAX(OFFSET(EPCat23_Prop!$D$10,12*($AB43-1),4*(PlotControl!$C$4-1),12,1)) -> 10740 | AE43: =MAX(OFFSET(EPCat23_Prop!$E$10,12*($AB43-1),4*(PlotControl!$C$4-1),12,1)) -> 14179 | AF43: =MAX(OFFSET(EPbed_Prop!$C$10,12*($AB43-1),4*(PlotControl!$C$4-1),12,1)) -> 20929 | AG43: =MAX(OFFSET(EPbed_Prop!$D$10,12*($AB43-1),4*(PlotControl!$C$4-1),12,1)) -> 24964 | AH43: =MAX(OFFSET(EPbed_Prop!$E$10,12*($AB43-1),4*(PlotControl!$C$4-1),12,1)) -> 29770 | AL43: =MAX(OFFSET(WWTF_Prop!$C$10,12*($AB43-1),4*(PlotControl!$C$4-1),12,1)) -> 9110.4 | AM43: =MAX(OFFSET(WWTF_Prop!$D$10,12*($AB43-1),4*(PlotControl!$C$4-1),12,1)) -> 9581.1 | AN43: =MAX(OFFSET(WWTF_Prop!$E$10,12*($AB43-1),4*(PlotControl!$C$4-1),12,1)) -> 10077 | AO43: =MAX(OFFSET(OSLA_Prop!$C$10,12*($AB43-1),4*(PlotControl!$C$4-1),12,1)) -> 24444 | AP43: =MAX(OFFSET(OSLA_Prop!$D$10,12*($AB43-1),4*(PlotControl!$C$4-1),12,1)) -> 28368 | AQ43: =MAX(OFFSET(OSLA_Prop!$E$10,12*($AB43-1),4*(PlotControl!$C$4-1),12,1)) -> 33979 | AR43: =MAX(OFFSET(WPsurf_Prop!$C$10,12*($AB43-1),4*(PlotControl!$C$4-1),12,1)) -> 9110.4 | AS43: =MAX(OFFSET(WPsurf_Prop!$D$10,12*($AB43-1),4*(PlotControl!$C$4-1),12,1)) -> 9581.1 | AT43: =MAX(OFFSET(WPsurf_Prop!$E$10,12*($AB43-1),4*(PlotControl!$C$4-1),12,1)) -> 10077 | AU43: =MAX(OFFSET(WPbed4_Prop!$C$10,12*($AB43-1),4*(PlotControl!$C$4-1),12,1)) -> 20929 | AV43: =MAX(OFFSET(WPbed4_Prop!$D$10,12*($AB43-1),4*(PlotControl!$C$4-1),12,1)) -> 24964 | AW43: =MAX(OFFSET(WPbed4_Prop!$E$10,12*($AB43-1),4*(PlotControl!$C$4-1),12,1)) -> 29770 | AX43: =MAX(OFFSET(WPbed4a_Prop!$C$10,12*($AB43-1),4*(PlotControl!$C$4-1),12,1)) -> 20929 | AY43: =MAX(OFFSET(WPbed4a_Prop!$D$10,12*($AB43-1),4*(PlotControl!$C$4-1),12,1)) -> 24964 | AZ43: =MAX(OFFSET(WPbed4a_Prop!$E$10,12*($AB43-1),4*(PlotControl!$C$4-1),12,1)) -> 29770 | BB43: 39 | BC43: =MAX(OFFSET(EPCat23_Part!$C$10,12*($BB43-1),4*(PlotControl!$C$4-1),12,1)) -> 9206.6 | BD43: =MAX(OFFSET(EPCat23_Part!$D$10,12*($BB43-1),4*(PlotControl!$C$4-1),12,1)) -> 9824.1 | BE43: =MAX(OFFSET(EPCat23_Part!$E$10,12*($BB43-1),4*(PlotControl!$C$4-1),12,1)) -> 11186 | BI43: =MAX(OFFSET(OSP_Part1!$C$10,12*($BB43-1),4*(PlotControl!$C$4-1),12,1)) -> 9110.4 | BJ43: =MAX(OFFSET(OSP_Part1!$D$10,12*($BB43-1),4*(PlotControl!$C$4-1),12,1)) -> 9581.1 | BK43: =MAX(OFFSET(OSP_Part1!$E$10,12*($BB43-1),4*(PlotControl!$C$4-1),12,1)) -> 10077 | BL43: =MAX(OFFSET(WWTF_Part!$C$10,12*($BB43-1),4*(PlotControl!$C$4-1),12,1)) -> 9110.4 | BM43: =MAX(OFFSET(WWTF_Part!$D$10,12*($BB43-1),4*(PlotControl!$C$4-1),12,1)) -> 9581.1 | BN43: =MAX(OFFSET(WWTF_Part!$E$10,12*($BB43-1),4*(PlotControl!$C$4-1),12,1)) -> 10077 | BO43: =MAX(OFFSET(OSLA_Part!$C$10,12*($BB43-1),4*(PlotControl!$C$4-1),12,1)) -> 9582.1 | BP43: =MAX(OFFSET(OSLA_Part!$D$10,12*($BB43-1),4*(PlotControl!$C$4-1),12,1)) -> 12789 | BQ43: =MAX(OFFSET(OSLA_Part!$E$10,12*($BB43-1),4*(PlotControl!$C$4-1),12,1)) -> 17100 | BR43: =MAX(OFFSET(WPsurf_Part!$C$10,12*($BB43-1),4*(PlotControl!$C$4-1),12,1)) -> 9110.4 | BS43: =MAX(OFFSET(WPsurf_Part!$D$10,12*($BB43-1),4*(PlotControl!$C$4-1),12,1)) -> 9581.1 | BT43: =MAX(OFFSET(WPsurf_Part!$E$10,12*($BB43-1),4*(PlotControl!$C$4-1),12,1)) -> 10077
A44: 40 | B44: =MAX(OFFSET(EPCat23_Dunka!$C$10,12*($A44-1),4*(PlotControl!$C$4-1),12,1)) -> 9440.2 | C44: =MAX(OFFSET(EPCat23_Dunka!$D$10,12*($A44-1),4*(PlotControl!$C$4-1),12,1)) -> 10295 | D44: =MAX(OFFSET(EPCat23_Dunka!$E$10,12*($A44-1),4*(PlotControl!$C$4-1),12,1)) -> 12768 | H44: =MAX(OFFSET(OSP_Dunka!$C$10,12*($A44-1),4*(PlotControl!$C$4-1),12,1)) -> 9713.8 | I44: =MAX(OFFSET(OSP_Dunka!$D$10,12*($A44-1),4*(PlotControl!$C$4-1),12,1)) -> 10570 | J44: =MAX(OFFSET(OSP_Dunka!$E$10,12*($A44-1),4*(PlotControl!$C$4-1),12,1)) -> 12477 | K44: =MAX(OFFSET(WWTF_Dunka!$C$10,12*($A44-1),4*(PlotControl!$C$4-1),12,1)) -> 10432 | L44: =MAX(OFFSET(WWTF_Dunka!$D$10,12*($A44-1),4*(PlotControl!$C$4-1),12,1)) -> 11198 | M44: =MAX(OFFSET(WWTF_Dunka!$E$10,12*($A44-1),4*(PlotControl!$C$4-1),12,1)) -> 12216 | N44: =MAX(OFFSET(OSLA_Dunka!$C$10,12*($A44-1),4*(PlotControl!$C$4-1),12,1)) -> 24628 | O44: =MAX(OFFSET(OSLA_Dunka!$D$10,12*($A44-1),4*(PlotControl!$C$4-1),12,1)) -> 29649 | P44: =MAX(OFFSET(OSLA_Dunka!$E$10,12*($A44-1),4*(PlotControl!$C$4-1),12,1)) -> 37985 | Q44: =MAX(OFFSET(WPsurf_Dunka!$C$10,12*($A44-1),4*(PlotControl!$C$4-1),12,1)) -> 9110.4 | R44: =MAX(OFFSET(WPsurf_Dunka!$D$10,12*($A44-1),4*(PlotControl!$C$4-1),12,1)) -> 9581.1 | S44: =MAX(OFFSET(WPsurf_Dunka!$E$10,12*($A44-1),4*(PlotControl!$C$4-1),12,1)) -> 10077 | AB44: 40 | AC44: =MAX(OFFSET(EPCat23_Prop!$C$10,12*($AB44-1),4*(PlotControl!$C$4-1),12,1)) -> 9606.7 | AD44: =MAX(OFFSET(EPCat23_Prop!$D$10,12*($AB44-1),4*(PlotControl!$C$4-1),12,1)) -> 10656 | AE44: =MAX(OFFSET(EPCat23_Prop!$E$10,12*($AB44-1),4*(PlotControl!$C$4-1),12,1)) -> 13849 | AF44: =MAX(OFFSET(EPbed_Prop!$C$10,12*($AB44-1),4*(PlotControl!$C$4-1),12,1)) -> 20929 | AG44: =MAX(OFFSET(EPbed_Prop!$D$10,12*($AB44-1),4*(PlotControl!$C$4-1),12,1)) -> 24964 | AH44: =MAX(OFFSET(EPbed_Prop!$E$10,12*($AB44-1),4*(PlotControl!$C$4-1),12,1)) -> 29770 | AL44: =MAX(OFFSET(WWTF_Prop!$C$10,12*($AB44-1),4*(PlotControl!$C$4-1),12,1)) -> 9110.5 | AM44: =MAX(OFFSET(WWTF_Prop!$D$10,12*($AB44-1),4*(PlotControl!$C$4-1),12,1)) -> 9581.1 | AN44: =MAX(OFFSET(WWTF_Prop!$E$10,12*($AB44-1),4*(PlotControl!$C$4-1),12,1)) -> 10077 | AO44: =MAX(OFFSET(OSLA_Prop!$C$10,12*($AB44-1),4*(PlotControl!$C$4-1),12,1)) -> 24136 | AP44: =MAX(OFFSET(OSLA_Prop!$D$10,12*($AB44-1),4*(PlotControl!$C$4-1),12,1)) -> 28097 | AQ44: =MAX(OFFSET(OSLA_Prop!$E$10,12*($AB44-1),4*(PlotControl!$C$4-1),12,1)) -> 33833 | AR44: =MAX(OFFSET(WPsurf_Prop!$C$10,12*($AB44-1),4*(PlotControl!$C$4-1),12,1)) -> 9110.4 | AS44: =MAX(OFFSET(WPsurf_Prop!$D$10,12*($AB44-1),4*(PlotControl!$C$4-1),12,1)) -> 9581.1 | AT44: =MAX(OFFSET(WPsurf_Prop!$E$10,12*($AB44-1),4*(PlotControl!$C$4-1),12,1)) -> 10077 | AU44: =MAX(OFFSET(WPbed4_Prop!$C$10,12*($AB44-1),4*(PlotControl!$C$4-1),12,1)) -> 20929 | AV44: =MAX(OFFSET(WPbed4_Prop!$D$10,12*($AB44-1),4*(PlotControl!$C$4-1),12,1)) -> 24964 | AW44: =MAX(OFFSET(WPbed4_Prop!$E$10,12*($AB44-1),4*(PlotControl!$C$4-1),12,1)) -> 29770 | AX44: =MAX(OFFSET(WPbed4a_Prop!$C$10,12*($AB44-1),4*(PlotControl!$C$4-1),12,1)) -> 20929 | AY44: =MAX(OFFSET(WPbed4a_Prop!$D$10,12*($AB44-1),4*(PlotControl!$C$4-1),12,1)) -> 24964 | AZ44: =MAX(OFFSET(WPbed4a_Prop!$E$10,12*($AB44-1),4*(PlotControl!$C$4-1),12,1)) -> 29770 | BB44: 40 | BC44: =MAX(OFFSET(EPCat23_Part!$C$10,12*($BB44-1),4*(PlotControl!$C$4-1),12,1)) -> 9241.5 | BD44: =MAX(OFFSET(EPCat23_Part!$D$10,12*($BB44-1),4*(PlotControl!$C$4-1),12,1)) -> 9871.5 | BE44: =MAX(OFFSET(EPCat23_Part!$E$10,12*($BB44-1),4*(PlotControl!$C$4-1),12,1)) -> 11378 | BI44: =MAX(OFFSET(OSP_Part1!$C$10,12*($BB44-1),4*(PlotControl!$C$4-1),12,1)) -> 9110.4 | BJ44: =MAX(OFFSET(OSP_Part1!$D$10,12*($BB44-1),4*(PlotControl!$C$4-1),12,1)) -> 9581.1 | BK44: =MAX(OFFSET(OSP_Part1!$E$10,12*($BB44-1),4*(PlotControl!$C$4-1),12,1)) -> 10077 | BL44: =MAX(OFFSET(WWTF_Part!$C$10,12*($BB44-1),4*(PlotControl!$C$4-1),12,1)) -> 9110.4 | BM44: =MAX(OFFSET(WWTF_Part!$D$10,12*($BB44-1),4*(PlotControl!$C$4-1),12,1)) -> 9581.1 | BN44: =MAX(OFFSET(WWTF_Part!$E$10,12*($BB44-1),4*(PlotControl!$C$4-1),12,1)) -> 10077 | BO44: =MAX(OFFSET(OSLA_Part!$C$10,12*($BB44-1),4*(PlotControl!$C$4-1),12,1)) -> 9607.1 | BP44: =MAX(OFFSET(OSLA_Part!$D$10,12*($BB44-1),4*(PlotControl!$C$4-1),12,1)) -> 13033 | BQ44: =MAX(OFFSET(OSLA_Part!$E$10,12*($BB44-1),4*(PlotControl!$C$4-1),12,1)) -> 17290 | BR44: =MAX(OFFSET(WPsurf_Part!$C$10,12*($BB44-1),4*(PlotControl!$C$4-1),12,1)) -> 9110.4 | BS44: =MAX(OFFSET(WPsurf_Part!$D$10,12*($BB44-1),4*(PlotControl!$C$4-1),12,1)) -> 9581.1 | BT44: =MAX(OFFSET(WPsurf_Part!$E$10,12*($BB44-1),4*(PlotControl!$C$4-1),12,1)) -> 10077
A45: 41 | B45: =MAX(OFFSET(EPCat23_Dunka!$C$10,12*($A45-1),4*(PlotControl!$C$4-1),12,1)) -> 9415.8 | C45: =MAX(OFFSET(EPCat23_Dunka!$D$10,12*($A45-1),4*(PlotControl!$C$4-1),12,1)) -> 10217 | D45: =MAX(OFFSET(EPCat23_Dunka!$E$10,12*($A45-1),4*(PlotControl!$C$4-1),12,1)) -> 12436 | H45: =MAX(OFFSET(OSP_Dunka!$C$10,12*($A45-1),4*(PlotControl!$C$4-1),12,1)) -> 9717.9 | I45: =MAX(OFFSET(OSP_Dunka!$D$10,12*($A45-1),4*(PlotControl!$C$4-1),12,1)) -> 10577 | J45: =MAX(OFFSET(OSP_Dunka!$E$10,12*($A45-1),4*(PlotControl!$C$4-1),12,1)) -> 12491 | K45: =MAX(OFFSET(WWTF_Dunka!$C$10,12*($A45-1),4*(PlotControl!$C$4-1),12,1)) -> 10441 | L45: =MAX(OFFSET(WWTF_Dunka!$D$10,12*($A45-1),4*(PlotControl!$C$4-1),12,1)) -> 11213 | M45: =MAX(OFFSET(WWTF_Dunka!$E$10,12*($A45-1),4*(PlotControl!$C$4-1),12,1)) -> 12262 | N45: =MAX(OFFSET(OSLA_Dunka!$C$10,12*($A45-1),4*(PlotControl!$C$4-1),12,1)) -> 24191 | O45: =MAX(OFFSET(OSLA_Dunka!$D$10,12*($A45-1),4*(PlotControl!$C$4-1),12,1)) -> 29307 | P45: =MAX(OFFSET(OSLA_Dunka!$E$10,12*($A45-1),4*(PlotControl!$C$4-1),12,1)) -> 37803 | Q45: =MAX(OFFSET(WPsurf_Dunka!$C$10,12*($A45-1),4*(PlotControl!$C$4-1),12,1)) -> 9110.4 | R45: =MAX(OFFSET(WPsurf_Dunka!$D$10,12*($A45-1),4*(PlotControl!$C$4-1),12,1)) -> 9581.1 | S45: =MAX(OFFSET(WPsurf_Dunka!$E$10,12*($A45-1),4*(PlotControl!$C$4-1),12,1)) -> 10077 | AB45: 41 | AC45: =MAX(OFFSET(EPCat23_Prop!$C$10,12*($AB45-1),4*(PlotControl!$C$4-1),12,1)) -> 9559.5 | AD45: =MAX(OFFSET(EPCat23_Prop!$D$10,12*($AB45-1),4*(PlotControl!$C$4-1),12,1)) -> 10583 | AE45: =MAX(OFFSET(EPCat23_Prop!$E$10,12*($AB45-1),4*(PlotControl!$C$4-1),12,1)) -> 13695 | AF45: =MAX(OFFSET(EPbed_Prop!$C$10,12*($AB45-1),4*(PlotControl!$C$4-1),12,1)) -> 20929 | AG45: =MAX(OFFSET(EPbed_Prop!$D$10,12*($AB45-1),4*(PlotControl!$C$4-1),12,1)) -> 24964 | AH45: =MAX(OFFSET(EPbed_Prop!$E$10,12*($AB45-1),4*(PlotControl!$C$4-1),12,1)) -> 29770 | AL45: =MAX(OFFSET(WWTF_Prop!$C$10,12*($AB45-1),4*(PlotControl!$C$4-1),12,1)) -> 9110.5 | AM45: =MAX(OFFSET(WWTF_Prop!$D$10,12*($AB45-1),4*(PlotControl!$C$4-1),12,1)) -> 9581.1 | AN45: =MAX(OFFSET(WWTF_Prop!$E$10,12*($AB45-1),4*(PlotControl!$C$4-1),12,1)) -> 10077 | AO45: =MAX(OFFSET(OSLA_Prop!$C$10,12*($AB45-1),4*(PlotControl!$C$4-1),12,1)) -> 23835 | AP45: =MAX(OFFSET(OSLA_Prop!$D$10,12*($AB45-1),4*(PlotControl!$C$4-1),12,1)) -> 27827 | AQ45: =MAX(OFFSET(OSLA_Prop!$E$10,12*($AB45-1),4*(PlotControl!$C$4-1),12,1)) -> 33719 | AR45: =MAX(OFFSET(WPsurf_Prop!$C$10,12*($AB45-1),4*(PlotControl!$C$4-1),12,1)) -> 9110.4 | AS45: =MAX(OFFSET(WPsurf_Prop!$D$10,12*($AB45-1),4*(PlotControl!$C$4-1),12,1)) -> 9581.1 | AT45: =MAX(OFFSET(WPsurf_Prop!$E$10,12*($AB45-1),4*(PlotControl!$C$4-1),12,1)) -> 10077 | AU45: =MAX(OFFSET(WPbed4_Prop!$C$10,12*($AB45-1),4*(PlotControl!$C$4-1),12,1)) -> 20929 | AV45: =MAX(OFFSET(WPbed4_Prop!$D$10,12*($AB45-1),4*(PlotControl!$C$4-1),12,1)) -> 24964 | AW45: =MAX(OFFSET(WPbed4_Prop!$E$10,12*($AB45-1),4*(PlotControl!$C$4-1),12,1)) -> 29770 | AX45: =MAX(OFFSET(WPbed4a_Prop!$C$10,12*($AB45-1),4*(PlotControl!$C$4-1),12,1)) -> 20929 | AY45: =MAX(OFFSET(WPbed4a_Prop!$D$10,12*($AB45-1),4*(PlotControl!$C$4-1),12,1)) -> 24964 | AZ45: =MAX(OFFSET(WPbed4a_Prop!$E$10,12*($AB45-1),4*(PlotControl!$C$4-1),12,1)) -> 29770 | BB45: 41 | BC45: =MAX(OFFSET(EPCat23_Part!$C$10,12*($BB45-1),4*(PlotControl!$C$4-1),12,1)) -> 9251.8 | BD45: =MAX(OFFSET(EPCat23_Part!$D$10,12*($BB45-1),4*(PlotControl!$C$4-1),12,1)) -> 9909.9 | BE45: =MAX(OFFSET(EPCat23_Part!$E$10,12*($BB45-1),4*(PlotControl!$C$4-1),12,1)) -> 11510 | BI45: =MAX(OFFSET(OSP_Part1!$C$10,12*($BB45-1),4*(PlotControl!$C$4-1),12,1)) -> 9110.4 | BJ45: =MAX(OFFSET(OSP_Part1!$D$10,12*($BB45-1),4*(PlotControl!$C$4-1),12,1)) -> 9581.1 | BK45: =MAX(OFFSET(OSP_Part1!$E$10,12*($BB45-1),4*(PlotControl!$C$4-1),12,1)) -> 10077 | BL45: =MAX(OFFSET(WWTF_Part!$C$10,12*($BB45-1),4*(PlotControl!$C$4-1),12,1)) -> 9110.4 | BM45: =MAX(OFFSET(WWTF_Part!$D$10,12*($BB45-1),4*(PlotControl!$C$4-1),12,1)) -> 9581.1 | BN45: =MAX(OFFSET(WWTF_Part!$E$10,12*($BB45-1),4*(PlotControl!$C$4-1),12,1)) -> 10077 | BO45: =MAX(OFFSET(OSLA_Part!$C$10,12*($BB45-1),4*(PlotControl!$C$4-1),12,1)) -> 9647.6 | BP45: =MAX(OFFSET(OSLA_Part!$D$10,12*($BB45-1),4*(PlotControl!$C$4-1),12,1)) -> 13292 | BQ45: =MAX(OFFSET(OSLA_Part!$E$10,12*($BB45-1),4*(PlotControl!$C$4-1),12,1)) -> 17520 | BR45: =MAX(OFFSET(WPsurf_Part!$C$10,12*($BB45-1),4*(PlotControl!$C$4-1),12,1)) -> 9110.4 | BS45: =MAX(OFFSET(WPsurf_Part!$D$10,12*($BB45-1),4*(PlotControl!$C$4-1),12,1)) -> 9581.1 | BT45: =MAX(OFFSET(WPsurf_Part!$E$10,12*($BB45-1),4*(PlotControl!$C$4-1),12,1)) -> 10077
A46: 42 | B46: =MAX(OFFSET(EPCat23_Dunka!$C$10,12*($A46-1),4*(PlotControl!$C$4-1),12,1)) -> 9386.7 | C46: =MAX(OFFSET(EPCat23_Dunka!$D$10,12*($A46-1),4*(PlotControl!$C$4-1),12,1)) -> 10166 | D46: =MAX(OFFSET(EPCat23_Dunka!$E$10,12*($A46-1),4*(PlotControl!$C$4-1),12,1)) -> 12231 | H46: =MAX(OFFSET(OSP_Dunka!$C$10,12*($A46-1),4*(PlotControl!$C$4-1),12,1)) -> 9712.7 | I46: =MAX(OFFSET(OSP_Dunka!$D$10,12*($A46-1),4*(PlotControl!$C$4-1),12,1)) -> 10581 | J46: =MAX(OFFSET(OSP_Dunka!$E$10,12*($A46-1),4*(PlotControl!$C$4-1),12,1)) -> 12475 | K46: =MAX(OFFSET(WWTF_Dunka!$C$10,12*($A46-1),4*(PlotControl!$C$4-1),12,1)) -> 10447 | L46: =MAX(OFFSET(WWTF_Dunka!$D$10,12*($A46-1),4*(PlotControl!$C$4-1),12,1)) -> 11241 | M46: =MAX(OFFSET(WWTF_Dunka!$E$10,12*($A46-1),4*(PlotControl!$C$4-1),12,1)) -> 12280 | N46: =MAX(OFFSET(OSLA_Dunka!$C$10,12*($A46-1),4*(PlotControl!$C$4-1),12,1)) -> 23783 | O46: =MAX(OFFSET(OSLA_Dunka!$D$10,12*($A46-1),4*(PlotControl!$C$4-1),12,1)) -> 28963 | P46: =MAX(OFFSET(OSLA_Dunka!$E$10,12*($A46-1),4*(PlotControl!$C$4-1),12,1)) -> 37581 | Q46: =MAX(OFFSET(WPsurf_Dunka!$C$10,12*($A46-1),4*(PlotControl!$C$4-1),12,1)) -> 9110.4 | R46: =MAX(OFFSET(WPsurf_Dunka!$D$10,12*($A46-1),4*(PlotControl!$C$4-1),12,1)) -> 9581.1 | S46: =MAX(OFFSET(WPsurf_Dunka!$E$10,12*($A46-1),4*(PlotControl!$C$4-1),12,1)) -> 10077 | AB46: 42 | AC46: =MAX(OFFSET(EPCat23_Prop!$C$10,12*($AB46-1),4*(PlotControl!$C$4-1),12,1)) -> 9508.1 | AD46: =MAX(OFFSET(EPCat23_Prop!$D$10,12*($AB46-1),4*(PlotControl!$C$4-1),12,1)) -> 10521 | AE46: =MAX(OFFSET(EPCat23_Prop!$E$10,12*($AB46-1),4*(PlotControl!$C$4-1),12,1)) -> 13430 | AF46: =MAX(OFFSET(EPbed_Prop!$C$10,12*($AB46-1),4*(PlotControl!$C$4-1),12,1)) -> 20929 | AG46: =MAX(OFFSET(EPbed_Prop!$D$10,12*($AB46-1),4*(PlotControl!$C$4-1),12,1)) -> 24964 | AH46: =MAX(OFFSET(EPbed_Prop!$E$10,12*($AB46-1),4*(PlotControl!$C$4-1),12,1)) -> 29770 | AL46: =MAX(OFFSET(WWTF_Prop!$C$10,12*($AB46-1),4*(PlotControl!$C$4-1),12,1)) -> 9110.5 | AM46: =MAX(OFFSET(WWTF_Prop!$D$10,12*($AB46-1),4*(PlotControl!$C$4-1),12,1)) -> 9581.1 | AN46: =MAX(OFFSET(WWTF_Prop!$E$10,12*($AB46-1),4*(PlotControl!$C$4-1),12,1)) -> 10077 | AO46: =MAX(OFFSET(OSLA_Prop!$C$10,12*($AB46-1),4*(PlotControl!$C$4-1),12,1)) -> 23488 | AP46: =MAX(OFFSET(OSLA_Prop!$D$10,12*($AB46-1),4*(PlotControl!$C$4-1),12,1)) -> 27560 | AQ46: =MAX(OFFSET(OSLA_Prop!$E$10,12*($AB46-1),4*(PlotControl!$C$4-1),12,1)) -> 33582 | AR46: =MAX(OFFSET(WPsurf_Prop!$C$10,12*($AB46-1),4*(PlotControl!$C$4-1),12,1)) -> 9110.4 | AS46: =MAX(OFFSET(WPsurf_Prop!$D$10,12*($AB46-1),4*(PlotControl!$C$4-1),12,1)) -> 9581.1 | AT46: =MAX(OFFSET(WPsurf_Prop!$E$10,12*($AB46-1),4*(PlotControl!$C$4-1),12,1)) -> 10077 | AU46: =MAX(OFFSET(WPbed4_Prop!$C$10,12*($AB46-1),4*(PlotControl!$C$4-1),12,1)) -> 20929 | AV46: =MAX(OFFSET(WPbed4_Prop!$D$10,12*($AB46-1),4*(PlotControl!$C$4-1),12,1)) -> 24964 | AW46: =MAX(OFFSET(WPbed4_Prop!$E$10,12*($AB46-1),4*(PlotControl!$C$4-1),12,1)) -> 29770 | AX46: =MAX(OFFSET(WPbed4a_Prop!$C$10,12*($AB46-1),4*(PlotControl!$C$4-1),12,1)) -> 20929 | AY46: =MAX(OFFSET(WPbed4a_Prop!$D$10,12*($AB46-1),4*(PlotControl!$C$4-1),12,1)) -> 24964 | AZ46: =MAX(OFFSET(WPbed4a_Prop!$E$10,12*($AB46-1),4*(PlotControl!$C$4-1),12,1)) -> 29770 | BB46: 42 | BC46: =MAX(OFFSET(EPCat23_Part!$C$10,12*($BB46-1),4*(PlotControl!$C$4-1),12,1)) -> 9257 | BD46: =MAX(OFFSET(EPCat23_Part!$D$10,12*($BB46-1),4*(PlotControl!$C$4-1),12,1)) -> 9938.6 | BE46: =MAX(OFFSET(EPCat23_Part!$E$10,12*($BB46-1),4*(PlotControl!$C$4-1),12,1)) -> 11690 | BI46: =MAX(OFFSET(OSP_Part1!$C$10,12*($BB46-1),4*(PlotControl!$C$4-1),12,1)) -> 9110.4 | BJ46: =MAX(OFFSET(OSP_Part1!$D$10,12*($BB46-1),4*(PlotControl!$C$4-1),12,1)) -> 9581.1 | BK46: =MAX(OFFSET(OSP_Part1!$E$10,12*($BB46-1),4*(PlotControl!$C$4-1),12,1)) -> 10077 | BL46: =MAX(OFFSET(WWTF_Part!$C$10,12*($BB46-1),4*(PlotControl!$C$4-1),12,1)) -> 9110.4 | BM46: =MAX(OFFSET(WWTF_Part!$D$10,12*($BB46-1),4*(PlotControl!$C$4-1),12,1)) -> 9581.1 | BN46: =MAX(OFFSET(WWTF_Part!$E$10,12*($BB46-1),4*(PlotControl!$C$4-1),12,1)) -> 10077 | BO46: =MAX(OFFSET(OSLA_Part!$C$10,12*($BB46-1),4*(PlotControl!$C$4-1),12,1)) -> 9678.7 | BP46: =MAX(OFFSET(OSLA_Part!$D$10,12*($BB46-1),4*(PlotControl!$C$4-1),12,1)) -> 13535 | BQ46: =MAX(OFFSET(OSLA_Part!$E$10,12*($BB46-1),4*(PlotControl!$C$4-1),12,1)) -> 17720 | BR46: =MAX(OFFSET(WPsurf_Part!$C$10,12*($BB46-1),4*(PlotControl!$C$4-1),12,1)) -> 9110.4 | BS46: =MAX(OFFSET(WPsurf_Part!$D$10,12*($BB46-1),4*(PlotControl!$C$4-1),12,1)) -> 9581.1 | BT46: =MAX(OFFSET(WPsurf_Part!$E$10,12*($BB46-1),4*(PlotControl!$C$4-1),12,1)) -> 10077
A47: 43 | B47: =MAX(OFFSET(EPCat23_Dunka!$C$10,12*($A47-1),4*(PlotControl!$C$4-1),12,1)) -> 9368.6 | C47: =MAX(OFFSET(EPCat23_Dunka!$D$10,12*($A47-1),4*(PlotControl!$C$4-1),12,1)) -> 10094 | D47: =MAX(OFFSET(EPCat23_Dunka!$E$10,12*($A47-1),4*(PlotControl!$C$4-1),12,1)) -> 12124 | H47: =MAX(OFFSET(OSP_Dunka!$C$10,12*($A47-1),4*(PlotControl!$C$4-1),12,1)) -> 9703.1 | I47: =MAX(OFFSET(OSP_Dunka!$D$10,12*($A47-1),4*(PlotControl!$C$4-1),12,1)) -> 10584 | J47: =MAX(OFFSET(OSP_Dunka!$E$10,12*($A47-1),4*(PlotControl!$C$4-1),12,1)) -> 12474 | K47: =MAX(OFFSET(WWTF_Dunka!$C$10,12*($A47-1),4*(PlotControl!$C$4-1),12,1)) -> 10461 | L47: =MAX(OFFSET(WWTF_Dunka!$D$10,12*($A47-1),4*(PlotControl!$C$4-1),12,1)) -> 11248 | M47: =MAX(OFFSET(WWTF_Dunka!$E$10,12*($A47-1),4*(PlotControl!$C$4-1),12,1)) -> 12299 | N47: =MAX(OFFSET(OSLA_Dunka!$C$10,12*($A47-1),4*(PlotControl!$C$4-1),12,1)) -> 23383 | O47: =MAX(OFFSET(OSLA_Dunka!$D$10,12*($A47-1),4*(PlotControl!$C$4-1),12,1)) -> 28544 | P47: =MAX(OFFSET(OSLA_Dunka!$E$10,12*($A47-1),4*(PlotControl!$C$4-1),12,1)) -> 37386 | Q47: =MAX(OFFSET(WPsurf_Dunka!$C$10,12*($A47-1),4*(PlotControl!$C$4-1),12,1)) -> 9110.4 | R47: =MAX(OFFSET(WPsurf_Dunka!$D$10,12*($A47-1),4*(PlotControl!$C$4-1),12,1)) -> 9581.1 | S47: =MAX(OFFSET(WPsurf_Dunka!$E$10,12*($A47-1),4*(PlotControl!$C$4-1),12,1)) -> 10077 | AB47: 43 | AC47: =MAX(OFFSET(EPCat23_Prop!$C$10,12*($AB47-1),4*(PlotControl!$C$4-1),12,1)) -> 9471.6 | AD47: =MAX(OFFSET(EPCat23_Prop!$D$10,12*($AB47-1),4*(PlotControl!$C$4-1),12,1)) -> 10430 | AE47: =MAX(OFFSET(EPCat23_Prop!$E$10,12*($AB47-1),4*(PlotControl!$C$4-1),12,1)) -> 13324 | AF47: =MAX(OFFSET(EPbed_Prop!$C$10,12*($AB47-1),4*(PlotControl!$C$4-1),12,1)) -> 20929 | AG47: =MAX(OFFSET(EPbed_Prop!$D$10,12*($AB47-1),4*(PlotControl!$C$4-1),12,1)) -> 24964 | AH47: =MAX(OFFSET(EPbed_Prop!$E$10,12*($AB47-1),4*(PlotControl!$C$4-1),12,1)) -> 29770 | AL47: =MAX(OFFSET(WWTF_Prop!$C$10,12*($AB47-1),4*(PlotControl!$C$4-1),12,1)) -> 9110.5 | AM47: =MAX(OFFSET(WWTF_Prop!$D$10,12*($AB47-1),4*(PlotControl!$C$4-1),12,1)) -> 9581.1 | AN47: =MAX(OFFSET(WWTF_Prop!$E$10,12*($AB47-1),4*(PlotControl!$C$4-1),12,1)) -> 10077 | AO47: =MAX(OFFSET(OSLA_Prop!$C$10,12*($AB47-1),4*(PlotControl!$C$4-1),12,1)) -> 23149 | AP47: =MAX(OFFSET(OSLA_Prop!$D$10,12*($AB47-1),4*(PlotControl!$C$4-1),12,1)) -> 27275 | AQ47: =MAX(OFFSET(OSLA_Prop!$E$10,12*($AB47-1),4*(PlotControl!$C$4-1),12,1)) -> 33445 | AR47: =MAX(OFFSET(WPsurf_Prop!$C$10,12*($AB47-1),4*(PlotControl!$C$4-1),12,1)) -> 9110.4 | AS47: =MAX(OFFSET(WPsurf_Prop!$D$10,12*($AB47-1),4*(PlotControl!$C$4-1),12,1)) -> 9581.1 | AT47: =MAX(OFFSET(WPsurf_Prop!$E$10,12*($AB47-1),4*(PlotControl!$C$4-1),12,1)) -> 10077 | AU47: =MAX(OFFSET(WPbed4_Prop!$C$10,12*($AB47-1),4*(PlotControl!$C$4-1),12,1)) -> 20929 | AV47: =MAX(OFFSET(WPbed4_Prop!$D$10,12*($AB47-1),4*(PlotControl!$C$4-1),12,1)) -> 24964 | AW47: =MAX(OFFSET(WPbed4_Prop!$E$10,12*($AB47-1),4*(PlotControl!$C$4-1),12,1)) -> 29770 | AX47: =MAX(OFFSET(WPbed4a_Prop!$C$10,12*($AB47-1),4*(PlotControl!$C$4-1),12,1)) -> 20929 | AY47: =MAX(OFFSET(WPbed4a_Prop!$D$10,12*($AB47-1),4*(PlotControl!$C$4-1),12,1)) -> 24964 | AZ47: =MAX(OFFSET(WPbed4a_Prop!$E$10,12*($AB47-1),4*(PlotControl!$C$4-1),12,1)) -> 29770 | BB47: 43 | BC47: =MAX(OFFSET(EPCat23_Part!$C$10,12*($BB47-1),4*(PlotControl!$C$4-1),12,1)) -> 9269 | BD47: =MAX(OFFSET(EPCat23_Part!$D$10,12*($BB47-1),4*(PlotControl!$C$4-1),12,1)) -> 9962.7 | BE47: =MAX(OFFSET(EPCat23_Part!$E$10,12*($BB47-1),4*(PlotControl!$C$4-1),12,1)) -> 11760 | BI47: =MAX(OFFSET(OSP_Part1!$C$10,12*($BB47-1),4*(PlotControl!$C$4-1),12,1)) -> 9110.4 | BJ47: =MAX(OFFSET(OSP_Part1!$D$10,12*($BB47-1),4*(PlotControl!$C$4-1),12,1)) -> 9581.1 | BK47: =MAX(OFFSET(OSP_Part1!$E$10,12*($BB47-1),4*(PlotControl!$C$4-1),12,1)) -> 10077 | BL47: =MAX(OFFSET(WWTF_Part!$C$10,12*($BB47-1),4*(PlotControl!$C$4-1),12,1)) -> 9110.4 | BM47: =MAX(OFFSET(WWTF_Part!$D$10,12*($BB47-1),4*(PlotControl!$C$4-1),12,1)) -> 9581.1 | BN47: =MAX(OFFSET(WWTF_Part!$E$10,12*($BB47-1),4*(PlotControl!$C$4-1),12,1)) -> 10077 | BO47: =MAX(OFFSET(OSLA_Part!$C$10,12*($BB47-1),4*(PlotControl!$C$4-1),12,1)) -> 9699.9 | BP47: =MAX(OFFSET(OSLA_Part!$D$10,12*($BB47-1),4*(PlotControl!$C$4-1),12,1)) -> 13784 | BQ47: =MAX(OFFSET(OSLA_Part!$E$10,12*($BB47-1),4*(PlotControl!$C$4-1),12,1)) -> 17906 | BR47: =MAX(OFFSET(WPsurf_Part!$C$10,12*($BB47-1),4*(PlotControl!$C$4-1),12,1)) -> 9110.4 | BS47: =MAX(OFFSET(WPsurf_Part!$D$10,12*($BB47-1),4*(PlotControl!$C$4-1),12,1)) -> 9581.1 | BT47: =MAX(OFFSET(WPsurf_Part!$E$10,12*($BB47-1),4*(PlotControl!$C$4-1),12,1)) -> 10077
A48: 44 | B48: =MAX(OFFSET(EPCat23_Dunka!$C$10,12*($A48-1),4*(PlotControl!$C$4-1),12,1)) -> 9345.5 | C48: =MAX(OFFSET(EPCat23_Dunka!$D$10,12*($A48-1),4*(PlotControl!$C$4-1),12,1)) -> 10033 | D48: =MAX(OFFSET(EPCat23_Dunka!$E$10,12*($A48-1),4*(PlotControl!$C$4-1),12,1)) -> 12012 | H48: =MAX(OFFSET(OSP_Dunka!$C$10,12*($A48-1),4*(PlotControl!$C$4-1),12,1)) -> 9703.5 | I48: =MAX(OFFSET(OSP_Dunka!$D$10,12*($A48-1),4*(PlotControl!$C$4-1),12,1)) -> 10582 | J48: =MAX(OFFSET(OSP_Dunka!$E$10,12*($A48-1),4*(PlotControl!$C$4-1),12,1)) -> 12455 | K48: =MAX(OFFSET(WWTF_Dunka!$C$10,12*($A48-1),4*(PlotControl!$C$4-1),12,1)) -> 10469 | L48: =MAX(OFFSET(WWTF_Dunka!$D$10,12*($A48-1),4*(PlotControl!$C$4-1),12,1)) -> 11254 | M48: =MAX(OFFSET(WWTF_Dunka!$E$10,12*($A48-1),4*(PlotControl!$C$4-1),12,1)) -> 12314 | N48: =MAX(OFFSET(OSLA_Dunka!$C$10,12*($A48-1),4*(PlotControl!$C$4-1),12,1)) -> 22977 | O48: =MAX(OFFSET(OSLA_Dunka!$D$10,12*($A48-1),4*(PlotControl!$C$4-1),12,1)) -> 28203 | P48: =MAX(OFFSET(OSLA_Dunka!$E$10,12*($A48-1),4*(PlotControl!$C$4-1),12,1)) -> 37160 | Q48: =MAX(OFFSET(WPsurf_Dunka!$C$10,12*($A48-1),4*(PlotControl!$C$4-1),12,1)) -> 9110.4 | R48: =MAX(OFFSET(WPsurf_Dunka!$D$10,12*($A48-1),4*(PlotControl!$C$4-1),12,1)) -> 9581.1 | S48: =MAX(OFFSET(WPsurf_Dunka!$E$10,12*($A48-1),4*(PlotControl!$C$4-1),12,1)) -> 10077 | AB48: 44 | AC48: =MAX(OFFSET(EPCat23_Prop!$C$10,12*($AB48-1),4*(PlotControl!$C$4-1),12,1)) -> 9450 | AD48: =MAX(OFFSET(EPCat23_Prop!$D$10,12*($AB48-1),4*(PlotControl!$C$4-1),12,1)) -> 10386 | AE48: =MAX(OFFSET(EPCat23_Prop!$E$10,12*($AB48-1),4*(PlotControl!$C$4-1),12,1)) -> 13183 | AF48: =MAX(OFFSET(EPbed_Prop!$C$10,12*($AB48-1),4*(PlotControl!$C$4-1),12,1)) -> 20929 | AG48: =MAX(OFFSET(EPbed_Prop!$D$10,12*($AB48-1),4*(PlotControl!$C$4-1),12,1)) -> 24964 | AH48: =MAX(OFFSET(EPbed_Prop!$E$10,12*($AB48-1),4*(PlotControl!$C$4-1),12,1)) -> 29770 | AL48: =MAX(OFFSET(WWTF_Prop!$C$10,12*($AB48-1),4*(PlotControl!$C$4-1),12,1)) -> 9110.5 | AM48: =MAX(OFFSET(WWTF_Prop!$D$10,12*($AB48-1),4*(PlotControl!$C$4-1),12,1)) -> 9581.1 | AN48: =MAX(OFFSET(WWTF_Prop!$E$10,12*($AB48-1),4*(PlotControl!$C$4-1),12,1)) -> 10077 | AO48: =MAX(OFFSET(OSLA_Prop!$C$10,12*($AB48-1),4*(PlotControl!$C$4-1),12,1)) -> 22800 | AP48: =MAX(OFFSET(OSLA_Prop!$D$10,12*($AB48-1),4*(PlotControl!$C$4-1),12,1)) -> 26961 | AQ48: =MAX(OFFSET(OSLA_Prop!$E$10,12*($AB48-1),4*(PlotControl!$C$4-1),12,1)) -> 33323 | AR48: =MAX(OFFSET(WPsurf_Prop!$C$10,12*($AB48-1),4*(PlotControl!$C$4-1),12,1)) -> 9110.4 | AS48: =MAX(OFFSET(WPsurf_Prop!$D$10,12*($AB48-1),4*(PlotControl!$C$4-1),12,1)) -> 9581.1 | AT48: =MAX(OFFSET(WPsurf_Prop!$E$10,12*($AB48-1),4*(PlotControl!$C$4-1),12,1)) -> 10077 | AU48: =MAX(OFFSET(WPbed4_Prop!$C$10,12*($AB48-1),4*(PlotControl!$C$4-1),12,1)) -> 20929 | AV48: =MAX(OFFSET(WPbed4_Prop!$D$10,12*($AB48-1),4*(PlotControl!$C$4-1),12,1)) -> 24964 | AW48: =MAX(OFFSET(WPbed4_Prop!$E$10,12*($AB48-1),4*(PlotControl!$C$4-1),12,1)) -> 29770 | AX48: =MAX(OFFSET(WPbed4a_Prop!$C$10,12*($AB48-1),4*(PlotControl!$C$4-1),12,1)) -> 20929 | AY48: =MAX(OFFSET(WPbed4a_Prop!$D$10,12*($AB48-1),4*(PlotControl!$C$4-1),12,1)) -> 24964 | AZ48: =MAX(OFFSET(WPbed4a_Prop!$E$10,12*($AB48-1),4*(PlotControl!$C$4-1),12,1)) -> 29770 | BB48: 44 | BC48: =MAX(OFFSET(EPCat23_Part!$C$10,12*($BB48-1),4*(PlotControl!$C$4-1),12,1)) -> 9285.2 | BD48: =MAX(OFFSET(EPCat23_Part!$D$10,12*($BB48-1),4*(PlotControl!$C$4-1),12,1)) -> 10004 | BE48: =MAX(OFFSET(EPCat23_Part!$E$10,12*($BB48-1),4*(PlotControl!$C$4-1),12,1)) -> 11771 | BI48: =MAX(OFFSET(OSP_Part1!$C$10,12*($BB48-1),4*(PlotControl!$C$4-1),12,1)) -> 9110.4 | BJ48: =MAX(OFFSET(OSP_Part1!$D$10,12*($BB48-1),4*(PlotControl!$C$4-1),12,1)) -> 9581.1 | BK48: =MAX(OFFSET(OSP_Part1!$E$10,12*($BB48-1),4*(PlotControl!$C$4-1),12,1)) -> 10077 | BL48: =MAX(OFFSET(WWTF_Part!$C$10,12*($BB48-1),4*(PlotControl!$C$4-1),12,1)) -> 9110.4 | BM48: =MAX(OFFSET(WWTF_Part!$D$10,12*($BB48-1),4*(PlotControl!$C$4-1),12,1)) -> 9581.1 | BN48: =MAX(OFFSET(WWTF_Part!$E$10,12*($BB48-1),4*(PlotControl!$C$4-1),12,1)) -> 10077 | BO48: =MAX(OFFSET(OSLA_Part!$C$10,12*($BB48-1),4*(PlotControl!$C$4-1),12,1)) -> 9732.8 | BP48: =MAX(OFFSET(OSLA_Part!$D$10,12*($BB48-1),4*(PlotControl!$C$4-1),12,1)) -> 14033 | BQ48: =MAX(OFFSET(OSLA_Part!$E$10,12*($BB48-1),4*(PlotControl!$C$4-1),12,1)) -> 18026 | BR48: =MAX(OFFSET(WPsurf_Part!$C$10,12*($BB48-1),4*(PlotControl!$C$4-1),12,1)) -> 9110.4 | BS48: =MAX(OFFSET(WPsurf_Part!$D$10,12*($BB48-1),4*(PlotControl!$C$4-1),12,1)) -> 9581.1 | BT48: =MAX(OFFSET(WPsurf_Part!$E$10,12*($BB48-1),4*(PlotControl!$C$4-1),12,1)) -> 10077
A49: 45 | B49: =MAX(OFFSET(EPCat23_Dunka!$C$10,12*($A49-1),4*(PlotControl!$C$4-1),12,1)) -> 9330 | C49: =MAX(OFFSET(EPCat23_Dunka!$D$10,12*($A49-1),4*(PlotControl!$C$4-1),12,1)) -> 9981.9 | D49: =MAX(OFFSET(EPCat23_Dunka!$E$10,12*($A49-1),4*(PlotControl!$C$4-1),12,1)) -> 11888 | H49: =MAX(OFFSET(OSP_Dunka!$C$10,12*($A49-1),4*(PlotControl!$C$4-1),12,1)) -> 9698.7 | I49: =MAX(OFFSET(OSP_Dunka!$D$10,12*($A49-1),4*(PlotControl!$C$4-1),12,1)) -> 10579 | J49: =MAX(OFFSET(OSP_Dunka!$E$10,12*($A49-1),4*(PlotControl!$C$4-1),12,1)) -> 12432 | K49: =MAX(OFFSET(WWTF_Dunka!$C$10,12*($A49-1),4*(PlotControl!$C$4-1),12,1)) -> 10485 | L49: =MAX(OFFSET(WWTF_Dunka!$D$10,12*($A49-1),4*(PlotControl!$C$4-1),12,1)) -> 11261 | M49: =MAX(OFFSET(WWTF_Dunka!$E$10,12*($A49-1),4*(PlotControl!$C$4-1),12,1)) -> 12334 | N49: =MAX(OFFSET(OSLA_Dunka!$C$10,12*($A49-1),4*(PlotControl!$C$4-1),12,1)) -> 22588 | O49: =MAX(OFFSET(OSLA_Dunka!$D$10,12*($A49-1),4*(PlotControl!$C$4-1),12,1)) -> 27873 | P49: =MAX(OFFSET(OSLA_Dunka!$E$10,12*($A49-1),4*(PlotControl!$C$4-1),12,1)) -> 36946 | Q49: =MAX(OFFSET(WPsurf_Dunka!$C$10,12*($A49-1),4*(PlotControl!$C$4-1),12,1)) -> 9110.4 | R49: =MAX(OFFSET(WPsurf_Dunka!$D$10,12*($A49-1),4*(PlotControl!$C$4-1),12,1)) -> 9581.1 | S49: =MAX(OFFSET(WPsurf_Dunka!$E$10,12*($A49-1),4*(PlotControl!$C$4-1),12,1)) -> 10082 | AB49: 45 | AC49: =MAX(OFFSET(EPCat23_Prop!$C$10,12*($AB49-1),4*(PlotControl!$C$4-1),12,1)) -> 9438.1 | AD49: =MAX(OFFSET(EPCat23_Prop!$D$10,12*($AB49-1),4*(PlotControl!$C$4-1),12,1)) -> 10327 | AE49: =MAX(OFFSET(EPCat23_Prop!$E$10,12*($AB49-1),4*(PlotControl!$C$4-1),12,1)) -> 12959 | AF49: =MAX(OFFSET(EPbed_Prop!$C$10,12*($AB49-1),4*(PlotControl!$C$4-1),12,1)) -> 20929 | AG49: =MAX(OFFSET(EPbed_Prop!$D$10,12*($AB49-1),4*(PlotControl!$C$4-1),12,1)) -> 24964 | AH49: =MAX(OFFSET(EPbed_Prop!$E$10,12*($AB49-1),4*(PlotControl!$C$4-1),12,1)) -> 29770 | AL49: =MAX(OFFSET(WWTF_Prop!$C$10,12*($AB49-1),4*(PlotControl!$C$4-1),12,1)) -> 9110.5 | AM49: =MAX(OFFSET(WWTF_Prop!$D$10,12*($AB49-1),4*(PlotControl!$C$4-1),12,1)) -> 9581.1 | AN49: =MAX(OFFSET(WWTF_Prop!$E$10,12*($AB49-1),4*(PlotControl!$C$4-1),12,1)) -> 10077 | AO49: =MAX(OFFSET(OSLA_Prop!$C$10,12*($AB49-1),4*(PlotControl!$C$4-1),12,1)) -> 22458 | AP49: =MAX(OFFSET(OSLA_Prop!$D$10,12*($AB49-1),4*(PlotControl!$C$4-1),12,1)) -> 26728 | AQ49: =MAX(OFFSET(OSLA_Prop!$E$10,12*($AB49-1),4*(PlotControl!$C$4-1),12,1)) -> 33263 | AR49: =MAX(OFFSET(WPsurf_Prop!$C$10,12*($AB49-1),4*(PlotControl!$C$4-1),12,1)) -> 9110.4 | AS49: =MAX(OFFSET(WPsurf_Prop!$D$10,12*($AB49-1),4*(PlotControl!$C$4-1),12,1)) -> 9581.1 | AT49: =MAX(OFFSET(WPsurf_Prop!$E$10,12*($AB49-1),4*(PlotControl!$C$4-1),12,1)) -> 10077 | AU49: =MAX(OFFSET(WPbed4_Prop!$C$10,12*($AB49-1),4*(PlotControl!$C$4-1),12,1)) -> 20929 | AV49: =MAX(OFFSET(WPbed4_Prop!$D$10,12*($AB49-1),4*(PlotControl!$C$4-1),12,1)) -> 24964 | AW49: =MAX(OFFSET(WPbed4_Prop!$E$10,12*($AB49-1),4*(PlotControl!$C$4-1),12,1)) -> 29770 | AX49: =MAX(OFFSET(WPbed4a_Prop!$C$10,12*($AB49-1),4*(PlotControl!$C$4-1),12,1)) -> 20929 | AY49: =MAX(OFFSET(WPbed4a_Prop!$D$10,12*($AB49-1),4*(PlotControl!$C$4-1),12,1)) -> 24964 | AZ49: =MAX(OFFSET(WPbed4a_Prop!$E$10,12*($AB49-1),4*(PlotControl!$C$4-1),12,1)) -> 29770 | BB49: 45 | BC49: =MAX(OFFSET(EPCat23_Part!$C$10,12*($BB49-1),4*(PlotControl!$C$4-1),12,1)) -> 9309.7 | BD49: =MAX(OFFSET(EPCat23_Part!$D$10,12*($BB49-1),4*(PlotControl!$C$4-1),12,1)) -> 10017 | BE49: =MAX(OFFSET(EPCat23_Part!$E$10,12*($BB49-1),4*(PlotControl!$C$4-1),12,1)) -> 11745 | BI49: =MAX(OFFSET(OSP_Part1!$C$10,12*($BB49-1),4*(PlotControl!$C$4-1),12,1)) -> 9110.4 | BJ49: =MAX(OFFSET(OSP_Part1!$D$10,12*($BB49-1),4*(PlotControl!$C$4-1),12,1)) -> 9581.1 | BK49: =MAX(OFFSET(OSP_Part1!$E$10,12*($BB49-1),4*(PlotControl!$C$4-1),12,1)) -> 10077 | BL49: =MAX(OFFSET(WWTF_Part!$C$10,12*($BB49-1),4*(PlotControl!$C$4-1),12,1)) -> 9110.4 | BM49: =MAX(OFFSET(WWTF_Part!$D$10,12*($BB49-1),4*(PlotControl!$C$4-1),12,1)) -> 9581.1 | BN49: =MAX(OFFSET(WWTF_Part!$E$10,12*($BB49-1),4*(PlotControl!$C$4-1),12,1)) -> 10077 | BO49: =MAX(OFFSET(OSLA_Part!$C$10,12*($BB49-1),4*(PlotControl!$C$4-1),12,1)) -> 9772.7 | BP49: =MAX(OFFSET(OSLA_Part!$D$10,12*($BB49-1),4*(PlotControl!$C$4-1),12,1)) -> 14263 | BQ49: =MAX(OFFSET(OSLA_Part!$E$10,12*($BB49-1),4*(PlotControl!$C$4-1),12,1)) -> 18136 | BR49: =MAX(OFFSET(WPsurf_Part!$C$10,12*($BB49-1),4*(PlotControl!$C$4-1),12,1)) -> 9110.4 | BS49: =MAX(OFFSET(WPsurf_Part!$D$10,12*($BB49-1),4*(PlotControl!$C$4-1),12,1)) -> 9581.1 | BT49: =MAX(OFFSET(WPsurf_Part!$E$10,12*($BB49-1),4*(PlotControl!$C$4-1),12,1)) -> 10077
A50: 46 | B50: =MAX(OFFSET(EPCat23_Dunka!$C$10,12*($A50-1),4*(PlotControl!$C$4-1),12,1)) -> 9321 | C50: =MAX(OFFSET(EPCat23_Dunka!$D$10,12*($A50-1),4*(PlotControl!$C$4-1),12,1)) -> 9947.3 | D50: =MAX(OFFSET(EPCat23_Dunka!$E$10,12*($A50-1),4*(PlotControl!$C$4-1),12,1)) -> 11754 | H50: =MAX(OFFSET(OSP_Dunka!$C$10,12*($A50-1),4*(PlotControl!$C$4-1),12,1)) -> 9697.6 | I50: =MAX(OFFSET(OSP_Dunka!$D$10,12*($A50-1),4*(PlotControl!$C$4-1),12,1)) -> 10574 | J50: =MAX(OFFSET(OSP_Dunka!$E$10,12*($A50-1),4*(PlotControl!$C$4-1),12,1)) -> 12417 | K50: =MAX(OFFSET(WWTF_Dunka!$C$10,12*($A50-1),4*(PlotControl!$C$4-1),12,1)) -> 10480 | L50: =MAX(OFFSET(WWTF_Dunka!$D$10,12*($A50-1),4*(PlotControl!$C$4-1),12,1)) -> 11258 | M50: =MAX(OFFSET(WWTF_Dunka!$E$10,12*($A50-1),4*(PlotControl!$C$4-1),12,1)) -> 12362 | N50: =MAX(OFFSET(OSLA_Dunka!$C$10,12*($A50-1),4*(PlotControl!$C$4-1),12,1)) -> 22208 | O50: =MAX(OFFSET(OSLA_Dunka!$D$10,12*($A50-1),4*(PlotControl!$C$4-1),12,1)) -> 27533 | P50: =MAX(OFFSET(OSLA_Dunka!$E$10,12*($A50-1),4*(PlotControl!$C$4-1),12,1)) -> 36755 | Q50: =MAX(OFFSET(WPsurf_Dunka!$C$10,12*($A50-1),4*(PlotControl!$C$4-1),12,1)) -> 9112.1 | R50: =MAX(OFFSET(WPsurf_Dunka!$D$10,12*($A50-1),4*(PlotControl!$C$4-1),12,1)) -> 9589 | S50: =MAX(OFFSET(WPsurf_Dunka!$E$10,12*($A50-1),4*(PlotControl!$C$4-1),12,1)) -> 10090 | AB50: 46 | AC50: =MAX(OFFSET(EPCat23_Prop!$C$10,12*($AB50-1),4*(PlotControl!$C$4-1),12,1)) -> 9425.8 | AD50: =MAX(OFFSET(EPCat23_Prop!$D$10,12*($AB50-1),4*(PlotControl!$C$4-1),12,1)) -> 10248 | AE50: =MAX(OFFSET(EPCat23_Prop!$E$10,12*($AB50-1),4*(PlotControl!$C$4-1),12,1)) -> 12724 | AF50: =MAX(OFFSET(EPbed_Prop!$C$10,12*($AB50-1),4*(PlotControl!$C$4-1),12,1)) -> 20929 | AG50: =MAX(OFFSET(EPbed_Prop!$D$10,12*($AB50-1),4*(PlotControl!$C$4-1),12,1)) -> 24964 | AH50: =MAX(OFFSET(EPbed_Prop!$E$10,12*($AB50-1),4*(PlotControl!$C$4-1),12,1)) -> 29770 | AL50: =MAX(OFFSET(WWTF_Prop!$C$10,12*($AB50-1),4*(PlotControl!$C$4-1),12,1)) -> 9110.5 | AM50: =MAX(OFFSET(WWTF_Prop!$D$10,12*($AB50-1),4*(PlotControl!$C$4-1),12,1)) -> 9581.1 | AN50: =MAX(OFFSET(WWTF_Prop!$E$10,12*($AB50-1),4*(PlotControl!$C$4-1),12,1)) -> 10077 | AO50: =MAX(OFFSET(OSLA_Prop!$C$10,12*($AB50-1),4*(PlotControl!$C$4-1),12,1)) -> 22102 | AP50: =MAX(OFFSET(OSLA_Prop!$D$10,12*($AB50-1),4*(PlotControl!$C$4-1),12,1)) -> 26490 | AQ50: =MAX(OFFSET(OSLA_Prop!$E$10,12*($AB50-1),4*(PlotControl!$C$4-1),12,1)) -> 33203 | AR50: =MAX(OFFSET(WPsurf_Prop!$C$10,12*($AB50-1),4*(PlotControl!$C$4-1),12,1)) -> 9110.4 | AS50: =MAX(OFFSET(WPsurf_Prop!$D$10,12*($AB50-1),4*(PlotControl!$C$4-1),12,1)) -> 9581.1 | AT50: =MAX(OFFSET(WPsurf_Prop!$E$10,12*($AB50-1),4*(PlotControl!$C$4-1),12,1)) -> 10077 | AU50: =MAX(OFFSET(WPbed4_Prop!$C$10,12*($AB50-1),4*(PlotControl!$C$4-1),12,1)) -> 20929 | AV50: =MAX(OFFSET(WPbed4_Prop!$D$10,12*($AB50-1),4*(PlotControl!$C$4-1),12,1)) -> 24964 | AW50: =MAX(OFFSET(WPbed4_Prop!$E$10,12*($AB50-1),4*(PlotControl!$C$4-1),12,1)) -> 29770 | AX50: =MAX(OFFSET(WPbed4a_Prop!$C$10,12*($AB50-1),4*(PlotControl!$C$4-1),12,1)) -> 20929 | AY50: =MAX(OFFSET(WPbed4a_Prop!$D$10,12*($AB50-1),4*(PlotControl!$C$4-1),12,1)) -> 24964 | AZ50: =MAX(OFFSET(WPbed4a_Prop!$E$10,12*($AB50-1),4*(PlotControl!$C$4-1),12,1)) -> 29770 | BB50: 46 | BC50: =MAX(OFFSET(EPCat23_Part!$C$10,12*($BB50-1),4*(PlotControl!$C$4-1),12,1)) -> 9326.7 | BD50: =MAX(OFFSET(EPCat23_Part!$D$10,12*($BB50-1),4*(PlotControl!$C$4-1),12,1)) -> 10019 | BE50: =MAX(OFFSET(EPCat23_Part!$E$10,12*($BB50-1),4*(PlotControl!$C$4-1),12,1)) -> 11924 | BI50: =MAX(OFFSET(OSP_Part1!$C$10,12*($BB50-1),4*(PlotControl!$C$4-1),12,1)) -> 9110.4 | BJ50: =MAX(OFFSET(OSP_Part1!$D$10,12*($BB50-1),4*(PlotControl!$C$4-1),12,1)) -> 9581.1 | BK50: =MAX(OFFSET(OSP_Part1!$E$10,12*($BB50-1),4*(PlotControl!$C$4-1),12,1)) -> 10077 | BL50: =MAX(OFFSET(WWTF_Part!$C$10,12*($BB50-1),4*(PlotControl!$C$4-1),12,1)) -> 9110.4 | BM50: =MAX(OFFSET(WWTF_Part!$D$10,12*($BB50-1),4*(PlotControl!$C$4-1),12,1)) -> 9581.1 | BN50: =MAX(OFFSET(WWTF_Part!$E$10,12*($BB50-1),4*(PlotControl!$C$4-1),12,1)) -> 10077 | BO50: =MAX(OFFSET(OSLA_Part!$C$10,12*($BB50-1),4*(PlotControl!$C$4-1),12,1)) -> 9804.7 | BP50: =MAX(OFFSET(OSLA_Part!$D$10,12*($BB50-1),4*(PlotControl!$C$4-1),12,1)) -> 14489 | BQ50: =MAX(OFFSET(OSLA_Part!$E$10,12*($BB50-1),4*(PlotControl!$C$4-1),12,1)) -> 18188 | BR50: =MAX(OFFSET(WPsurf_Part!$C$10,12*($BB50-1),4*(PlotControl!$C$4-1),12,1)) -> 9110.4 | BS50: =MAX(OFFSET(WPsurf_Part!$D$10,12*($BB50-1),4*(PlotControl!$C$4-1),12,1)) -> 9581.1 | BT50: =MAX(OFFSET(WPsurf_Part!$E$10,12*($BB50-1),4*(PlotControl!$C$4-1),12,1)) -> 10077
A51: 47 | B51: =MAX(OFFSET(EPCat23_Dunka!$C$10,12*($A51-1),4*(PlotControl!$C$4-1),12,1)) -> 9305.4 | C51: =MAX(OFFSET(EPCat23_Dunka!$D$10,12*($A51-1),4*(PlotControl!$C$4-1),12,1)) -> 9911 | D51: =MAX(OFFSET(EPCat23_Dunka!$E$10,12*($A51-1),4*(PlotControl!$C$4-1),12,1)) -> 11577 | H51: =MAX(OFFSET(OSP_Dunka!$C$10,12*($A51-1),4*(PlotControl!$C$4-1),12,1)) -> 9694.6 | I51: =MAX(OFFSET(OSP_Dunka!$D$10,12*($A51-1),4*(PlotControl!$C$4-1),12,1)) -> 10570 | J51: =MAX(OFFSET(OSP_Dunka!$E$10,12*($A51-1),4*(PlotControl!$C$4-1),12,1)) -> 12371 | K51: =MAX(OFFSET(WWTF_Dunka!$C$10,12*($A51-1),4*(PlotControl!$C$4-1),12,1)) -> 10468 | L51: =MAX(OFFSET(WWTF_Dunka!$D$10,12*($A51-1),4*(PlotControl!$C$4-1),12,1)) -> 11267 | M51: =MAX(OFFSET(WWTF_Dunka!$E$10,12*($A51-1),4*(PlotControl!$C$4-1),12,1)) -> 12384 | N51: =MAX(OFFSET(OSLA_Dunka!$C$10,12*($A51-1),4*(PlotControl!$C$4-1),12,1)) -> 21835 | O51: =MAX(OFFSET(OSLA_Dunka!$D$10,12*($A51-1),4*(PlotControl!$C$4-1),12,1)) -> 27239 | P51: =MAX(OFFSET(OSLA_Dunka!$E$10,12*($A51-1),4*(PlotControl!$C$4-1),12,1)) -> 36548 | Q51: =MAX(OFFSET(WPsurf_Dunka!$C$10,12*($A51-1),4*(PlotControl!$C$4-1),12,1)) -> 9126.2 | R51: =MAX(OFFSET(WPsurf_Dunka!$D$10,12*($A51-1),4*(PlotControl!$C$4-1),12,1)) -> 9596.7 | S51: =MAX(OFFSET(WPsurf_Dunka!$E$10,12*($A51-1),4*(PlotControl!$C$4-1),12,1)) -> 10126 | AB51: 47 | AC51: =MAX(OFFSET(EPCat23_Prop!$C$10,12*($AB51-1),4*(PlotControl!$C$4-1),12,1)) -> 9398.9 | AD51: =MAX(OFFSET(EPCat23_Prop!$D$10,12*($AB51-1),4*(PlotControl!$C$4-1),12,1)) -> 10188 | AE51: =MAX(OFFSET(EPCat23_Prop!$E$10,12*($AB51-1),4*(PlotControl!$C$4-1),12,1)) -> 12454 | AF51: =MAX(OFFSET(EPbed_Prop!$C$10,12*($AB51-1),4*(PlotControl!$C$4-1),12,1)) -> 20929 | AG51: =MAX(OFFSET(EPbed_Prop!$D$10,12*($AB51-1),4*(PlotControl!$C$4-1),12,1)) -> 24964 | AH51: =MAX(OFFSET(EPbed_Prop!$E$10,12*($AB51-1),4*(PlotControl!$C$4-1),12,1)) -> 29770 | AL51: =MAX(OFFSET(WWTF_Prop!$C$10,12*($AB51-1),4*(PlotControl!$C$4-1),12,1)) -> 9110.5 | AM51: =MAX(OFFSET(WWTF_Prop!$D$10,12*($AB51-1),4*(PlotControl!$C$4-1),12,1)) -> 9581.1 | AN51: =MAX(OFFSET(WWTF_Prop!$E$10,12*($AB51-1),4*(PlotControl!$C$4-1),12,1)) -> 10077 | AO51: =MAX(OFFSET(OSLA_Prop!$C$10,12*($AB51-1),4*(PlotControl!$C$4-1),12,1)) -> 21760 | AP51: =MAX(OFFSET(OSLA_Prop!$D$10,12*($AB51-1),4*(PlotControl!$C$4-1),12,1)) -> 26306 | AQ51: =MAX(OFFSET(OSLA_Prop!$E$10,12*($AB51-1),4*(PlotControl!$C$4-1),12,1)) -> 33141 | AR51: =MAX(OFFSET(WPsurf_Prop!$C$10,12*($AB51-1),4*(PlotControl!$C$4-1),12,1)) -> 9110.4 | AS51: =MAX(OFFSET(WPsurf_Prop!$D$10,12*($AB51-1),4*(PlotControl!$C$4-1),12,1)) -> 9581.1 | AT51: =MAX(OFFSET(WPsurf_Prop!$E$10,12*($AB51-1),4*(PlotControl!$C$4-1),12,1)) -> 10077 | AU51: =MAX(OFFSET(WPbed4_Prop!$C$10,12*($AB51-1),4*(PlotControl!$C$4-1),12,1)) -> 20929 | AV51: =MAX(OFFSET(WPbed4_Prop!$D$10,12*($AB51-1),4*(PlotControl!$C$4-1),12,1)) -> 24964 | AW51: =MAX(OFFSET(WPbed4_Prop!$E$10,12*($AB51-1),4*(PlotControl!$C$4-1),12,1)) -> 29770 | AX51: =MAX(OFFSET(WPbed4a_Prop!$C$10,12*($AB51-1),4*(PlotControl!$C$4-1),12,1)) -> 20929 | AY51: =MAX(OFFSET(WPbed4a_Prop!$D$10,12*($AB51-1),4*(PlotControl!$C$4-1),12,1)) -> 24964 | AZ51: =MAX(OFFSET(WPbed4a_Prop!$E$10,12*($AB51-1),4*(PlotControl!$C$4-1),12,1)) -> 29770 | BB51: 47 | BC51: =MAX(OFFSET(EPCat23_Part!$C$10,12*($BB51-1),4*(PlotControl!$C$4-1),12,1)) -> 9359.1 | BD51: =MAX(OFFSET(EPCat23_Part!$D$10,12*($BB51-1),4*(PlotControl!$C$4-1),12,1)) -> 10063 | BE51: =MAX(OFFSET(EPCat23_Part!$E$10,12*($BB51-1),4*(PlotControl!$C$4-1),12,1)) -> 11965 | BI51: =MAX(OFFSET(OSP_Part1!$C$10,12*($BB51-1),4*(PlotControl!$C$4-1),12,1)) -> 9110.4 | BJ51: =MAX(OFFSET(OSP_Part1!$D$10,12*($BB51-1),4*(PlotControl!$C$4-1),12,1)) -> 9581.1 | BK51: =MAX(OFFSET(OSP_Part1!$E$10,12*($BB51-1),4*(PlotControl!$C$4-1),12,1)) -> 10077 | BL51: =MAX(OFFSET(WWTF_Part!$C$10,12*($BB51-1),4*(PlotControl!$C$4-1),12,1)) -> 9110.4 | BM51: =MAX(OFFSET(WWTF_Part!$D$10,12*($BB51-1),4*(PlotControl!$C$4-1),12,1)) -> 9581.1 | BN51: =MAX(OFFSET(WWTF_Part!$E$10,12*($BB51-1),4*(PlotControl!$C$4-1),12,1)) -> 10077 | BO51: =MAX(OFFSET(OSLA_Part!$C$10,12*($BB51-1),4*(PlotControl!$C$4-1),12,1)) -> 9831.1 | BP51: =MAX(OFFSET(OSLA_Part!$D$10,12*($BB51-1),4*(PlotControl!$C$4-1),12,1)) -> 14683 | BQ51: =MAX(OFFSET(OSLA_Part!$E$10,12*($BB51-1),4*(PlotControl!$C$4-1),12,1)) -> 18214 | BR51: =MAX(OFFSET(WPsurf_Part!$C$10,12*($BB51-1),4*(PlotControl!$C$4-1),12,1)) -> 9110.4 | BS51: =MAX(OFFSET(WPsurf_Part!$D$10,12*($BB51-1),4*(PlotControl!$C$4-1),12,1)) -> 9581.1 | BT51: =MAX(OFFSET(WPsurf_Part!$E$10,12*($BB51-1),4*(PlotControl!$C$4-1),12,1)) -> 10077
A52: 48 | B52: =MAX(OFFSET(EPCat23_Dunka!$C$10,12*($A52-1),4*(PlotControl!$C$4-1),12,1)) -> 9299.4 | C52: =MAX(OFFSET(EPCat23_Dunka!$D$10,12*($A52-1),4*(PlotControl!$C$4-1),12,1)) -> 9884.4 | D52: =MAX(OFFSET(EPCat23_Dunka!$E$10,12*($A52-1),4*(PlotControl!$C$4-1),12,1)) -> 11349 | H52: =MAX(OFFSET(OSP_Dunka!$C$10,12*($A52-1),4*(PlotControl!$C$4-1),12,1)) -> 9688 | I52: =MAX(OFFSET(OSP_Dunka!$D$10,12*($A52-1),4*(PlotControl!$C$4-1),12,1)) -> 10566 | J52: =MAX(OFFSET(OSP_Dunka!$E$10,12*($A52-1),4*(PlotControl!$C$4-1),12,1)) -> 12324 | K52: =MAX(OFFSET(WWTF_Dunka!$C$10,12*($A52-1),4*(PlotControl!$C$4-1),12,1)) -> 10461 | L52: =MAX(OFFSET(WWTF_Dunka!$D$10,12*($A52-1),4*(PlotControl!$C$4-1),12,1)) -> 11263 | M52: =MAX(OFFSET(WWTF_Dunka!$E$10,12*($A52-1),4*(PlotControl!$C$4-1),12,1)) -> 12386 | N52: =MAX(OFFSET(OSLA_Dunka!$C$10,12*($A52-1),4*(PlotControl!$C$4-1),12,1)) -> 21490 | O52: =MAX(OFFSET(OSLA_Dunka!$D$10,12*($A52-1),4*(PlotControl!$C$4-1),12,1)) -> 26855 | P52: =MAX(OFFSET(OSLA_Dunka!$E$10,12*($A52-1),4*(PlotControl!$C$4-1),12,1)) -> 36387 | Q52: =MAX(OFFSET(WPsurf_Dunka!$C$10,12*($A52-1),4*(PlotControl!$C$4-1),12,1)) -> 9136 | R52: =MAX(OFFSET(WPsurf_Dunka!$D$10,12*($A52-1),4*(PlotControl!$C$4-1),12,1)) -> 9617.1 | S52: =MAX(OFFSET(WPsurf_Dunka!$E$10,12*($A52-1),4*(PlotControl!$C$4-1),12,1)) -> 10189 | AB52: 48 | AC52: =MAX(OFFSET(EPCat23_Prop!$C$10,12*($AB52-1),4*(PlotControl!$C$4-1),12,1)) -> 9373.5 | AD52: =MAX(OFFSET(EPCat23_Prop!$D$10,12*($AB52-1),4*(PlotControl!$C$4-1),12,1)) -> 10150 | AE52: =MAX(OFFSET(EPCat23_Prop!$E$10,12*($AB52-1),4*(PlotControl!$C$4-1),12,1)) -> 12258 | AF52: =MAX(OFFSET(EPbed_Prop!$C$10,12*($AB52-1),4*(PlotControl!$C$4-1),12,1)) -> 20929 | AG52: =MAX(OFFSET(EPbed_Prop!$D$10,12*($AB52-1),4*(PlotControl!$C$4-1),12,1)) -> 24964 | AH52: =MAX(OFFSET(EPbed_Prop!$E$10,12*($AB52-1),4*(PlotControl!$C$4-1),12,1)) -> 29770 | AL52: =MAX(OFFSET(WWTF_Prop!$C$10,12*($AB52-1),4*(PlotControl!$C$4-1),12,1)) -> 9110.6 | AM52: =MAX(OFFSET(WWTF_Prop!$D$10,12*($AB52-1),4*(PlotControl!$C$4-1),12,1)) -> 9581.1 | AN52: =MAX(OFFSET(WWTF_Prop!$E$10,12*($AB52-1),4*(PlotControl!$C$4-1),12,1)) -> 10077 | AO52: =MAX(OFFSET(OSLA_Prop!$C$10,12*($AB52-1),4*(PlotControl!$C$4-1),12,1)) -> 21411 | AP52: =MAX(OFFSET(OSLA_Prop!$D$10,12*($AB52-1),4*(PlotControl!$C$4-1),12,1)) -> 25952 | AQ52: =MAX(OFFSET(OSLA_Prop!$E$10,12*($AB52-1),4*(PlotControl!$C$4-1),12,1)) -> 33078 | AR52: =MAX(OFFSET(WPsurf_Prop!$C$10,12*($AB52-1),4*(PlotControl!$C$4-1),12,1)) -> 9110.4 | AS52: =MAX(OFFSET(WPsurf_Prop!$D$10,12*($AB52-1),4*(PlotControl!$C$4-1),12,1)) -> 9581.1 | AT52: =MAX(OFFSET(WPsurf_Prop!$E$10,12*($AB52-1),4*(PlotControl!$C$4-1),12,1)) -> 10077 | AU52: =MAX(OFFSET(WPbed4_Prop!$C$10,12*($AB52-1),4*(PlotControl!$C$4-1),12,1)) -> 20929 | AV52: =MAX(OFFSET(WPbed4_Prop!$D$10,12*($AB52-1),4*(PlotControl!$C$4-1),12,1)) -> 24964 | AW52: =MAX(OFFSET(WPbed4_Prop!$E$10,12*($AB52-1),4*(PlotControl!$C$4-1),12,1)) -> 29770 | AX52: =MAX(OFFSET(WPbed4a_Prop!$C$10,12*($AB52-1),4*(PlotControl!$C$4-1),12,1)) -> 20929 | AY52: =MAX(OFFSET(WPbed4a_Prop!$D$10,12*($AB52-1),4*(PlotControl!$C$4-1),12,1)) -> 24964 | AZ52: =MAX(OFFSET(WPbed4a_Prop!$E$10,12*($AB52-1),4*(PlotControl!$C$4-1),12,1)) -> 29770 | BB52: 48 | BC52: =MAX(OFFSET(EPCat23_Part!$C$10,12*($BB52-1),4*(PlotControl!$C$4-1),12,1)) -> 9369.1 | BD52: =MAX(OFFSET(EPCat23_Part!$D$10,12*($BB52-1),4*(PlotControl!$C$4-1),12,1)) -> 10080 | BE52: =MAX(OFFSET(EPCat23_Part!$E$10,12*($BB52-1),4*(PlotControl!$C$4-1),12,1)) -> 11886 | BI52: =MAX(OFFSET(OSP_Part1!$C$10,12*($BB52-1),4*(PlotControl!$C$4-1),12,1)) -> 9110.4 | BJ52: =MAX(OFFSET(OSP_Part1!$D$10,12*($BB52-1),4*(PlotControl!$C$4-1),12,1)) -> 9581.1 | BK52: =MAX(OFFSET(OSP_Part1!$E$10,12*($BB52-1),4*(PlotControl!$C$4-1),12,1)) -> 10077 | BL52: =MAX(OFFSET(WWTF_Part!$C$10,12*($BB52-1),4*(PlotControl!$C$4-1),12,1)) -> 9110.4 | BM52: =MAX(OFFSET(WWTF_Part!$D$10,12*($BB52-1),4*(PlotControl!$C$4-1),12,1)) -> 9581.1 | BN52: =MAX(OFFSET(WWTF_Part!$E$10,12*($BB52-1),4*(PlotControl!$C$4-1),12,1)) -> 10077 | BO52: =MAX(OFFSET(OSLA_Part!$C$10,12*($BB52-1),4*(PlotControl!$C$4-1),12,1)) -> 9859 | BP52: =MAX(OFFSET(OSLA_Part!$D$10,12*($BB52-1),4*(PlotControl!$C$4-1),12,1)) -> 14886 | BQ52: =MAX(OFFSET(OSLA_Part!$E$10,12*($BB52-1),4*(PlotControl!$C$4-1),12,1)) -> 18285 | BR52: =MAX(OFFSET(WPsurf_Part!$C$10,12*($BB52-1),4*(PlotControl!$C$4-1),12,1)) -> 9110.4 | BS52: =MAX(OFFSET(WPsurf_Part!$D$10,12*($BB52-1),4*(PlotControl!$C$4-1),12,1)) -> 9581.1 | BT52: =MAX(OFFSET(WPsurf_Part!$E$10,12*($BB52-1),4*(PlotControl!$C$4-1),12,1)) -> 10077
A53: 49 | B53: =MAX(OFFSET(EPCat23_Dunka!$C$10,12*($A53-1),4*(PlotControl!$C$4-1),12,1)) -> 9291.6 | C53: =MAX(OFFSET(EPCat23_Dunka!$D$10,12*($A53-1),4*(PlotControl!$C$4-1),12,1)) -> 9850.3 | D53: =MAX(OFFSET(EPCat23_Dunka!$E$10,12*($A53-1),4*(PlotControl!$C$4-1),12,1)) -> 11268 | H53: =MAX(OFFSET(OSP_Dunka!$C$10,12*($A53-1),4*(PlotControl!$C$4-1),12,1)) -> 9683.3 | I53: =MAX(OFFSET(OSP_Dunka!$D$10,12*($A53-1),4*(PlotControl!$C$4-1),12,1)) -> 10561 | J53: =MAX(OFFSET(OSP_Dunka!$E$10,12*($A53-1),4*(PlotControl!$C$4-1),12,1)) -> 12301 | K53: =MAX(OFFSET(WWTF_Dunka!$C$10,12*($A53-1),4*(PlotControl!$C$4-1),12,1)) -> 10457 | L53: =MAX(OFFSET(WWTF_Dunka!$D$10,12*($A53-1),4*(PlotControl!$C$4-1),12,1)) -> 11259 | M53: =MAX(OFFSET(WWTF_Dunka!$E$10,12*($A53-1),4*(PlotControl!$C$4-1),12,1)) -> 12398 | N53: =MAX(OFFSET(OSLA_Dunka!$C$10,12*($A53-1),4*(PlotControl!$C$4-1),12,1)) -> 21158 | O53: =MAX(OFFSET(OSLA_Dunka!$D$10,12*($A53-1),4*(PlotControl!$C$4-1),12,1)) -> 26401 | P53: =MAX(OFFSET(OSLA_Dunka!$E$10,12*($A53-1),4*(PlotControl!$C$4-1),12,1)) -> 36215 | Q53: =MAX(OFFSET(WPsurf_Dunka!$C$10,12*($A53-1),4*(PlotControl!$C$4-1),12,1)) -> 9167.9 | R53: =MAX(OFFSET(WPsurf_Dunka!$D$10,12*($A53-1),4*(PlotControl!$C$4-1),12,1)) -> 9665.3 | S53: =MAX(OFFSET(WPsurf_Dunka!$E$10,12*($A53-1),4*(PlotControl!$C$4-1),12,1)) -> 10390 | AB53: 49 | AC53: =MAX(OFFSET(EPCat23_Prop!$C$10,12*($AB53-1),4*(PlotControl!$C$4-1),12,1)) -> 9360.7 | AD53: =MAX(OFFSET(EPCat23_Prop!$D$10,12*($AB53-1),4*(PlotControl!$C$4-1),12,1)) -> 10094 | AE53: =MAX(OFFSET(EPCat23_Prop!$E$10,12*($AB53-1),4*(PlotControl!$C$4-1),12,1)) -> 12071 | AF53: =MAX(OFFSET(EPbed_Prop!$C$10,12*($AB53-1),4*(PlotControl!$C$4-1),12,1)) -> 20929 | AG53: =MAX(OFFSET(EPbed_Prop!$D$10,12*($AB53-1),4*(PlotControl!$C$4-1),12,1)) -> 24964 | AH53: =MAX(OFFSET(EPbed_Prop!$E$10,12*($AB53-1),4*(PlotControl!$C$4-1),12,1)) -> 29770 | AL53: =MAX(OFFSET(WWTF_Prop!$C$10,12*($AB53-1),4*(PlotControl!$C$4-1),12,1)) -> 9110.6 | AM53: =MAX(OFFSET(WWTF_Prop!$D$10,12*($AB53-1),4*(PlotControl!$C$4-1),12,1)) -> 9581.1 | AN53: =MAX(OFFSET(WWTF_Prop!$E$10,12*($AB53-1),4*(PlotControl!$C$4-1),12,1)) -> 10077 | AO53: =MAX(OFFSET(OSLA_Prop!$C$10,12*($AB53-1),4*(PlotControl!$C$4-1),12,1)) -> 21083 | AP53: =MAX(OFFSET(OSLA_Prop!$D$10,12*($AB53-1),4*(PlotControl!$C$4-1),12,1)) -> 25806 | AQ53: =MAX(OFFSET(OSLA_Prop!$E$10,12*($AB53-1),4*(PlotControl!$C$4-1),12,1)) -> 32978 | AR53: =MAX(OFFSET(WPsurf_Prop!$C$10,12*($AB53-1),4*(PlotControl!$C$4-1),12,1)) -> 9110.4 | AS53: =MAX(OFFSET(WPsurf_Prop!$D$10,12*($AB53-1),4*(PlotControl!$C$4-1),12,1)) -> 9581.1 | AT53: =MAX(OFFSET(WPsurf_Prop!$E$10,12*($AB53-1),4*(PlotControl!$C$4-1),12,1)) -> 10077 | AU53: =MAX(OFFSET(WPbed4_Prop!$C$10,12*($AB53-1),4*(PlotControl!$C$4-1),12,1)) -> 20929 | AV53: =MAX(OFFSET(WPbed4_Prop!$D$10,12*($AB53-1),4*(PlotControl!$C$4-1),12,1)) -> 24964 | AW53: =MAX(OFFSET(WPbed4_Prop!$E$10,12*($AB53-1),4*(PlotControl!$C$4-1),12,1)) -> 29770 | AX53: =MAX(OFFSET(WPbed4a_Prop!$C$10,12*($AB53-1),4*(PlotControl!$C$4-1),12,1)) -> 20929 | AY53: =MAX(OFFSET(WPbed4a_Prop!$D$10,12*($AB53-1),4*(PlotControl!$C$4-1),12,1)) -> 24964 | AZ53: =MAX(OFFSET(WPbed4a_Prop!$E$10,12*($AB53-1),4*(PlotControl!$C$4-1),12,1)) -> 29770 | BB53: 49 | BC53: =MAX(OFFSET(EPCat23_Part!$C$10,12*($BB53-1),4*(PlotControl!$C$4-1),12,1)) -> 9372.2 | BD53: =MAX(OFFSET(EPCat23_Part!$D$10,12*($BB53-1),4*(PlotControl!$C$4-1),12,1)) -> 10099 | BE53: =MAX(OFFSET(EPCat23_Part!$E$10,12*($BB53-1),4*(PlotControl!$C$4-1),12,1)) -> 11937 | BI53: =MAX(OFFSET(OSP_Part1!$C$10,12*($BB53-1),4*(PlotControl!$C$4-1),12,1)) -> 9110.4 | BJ53: =MAX(OFFSET(OSP_Part1!$D$10,12*($BB53-1),4*(PlotControl!$C$4-1),12,1)) -> 9581.1 | BK53: =MAX(OFFSET(OSP_Part1!$E$10,12*($BB53-1),4*(PlotControl!$C$4-1),12,1)) -> 10077 | BL53: =MAX(OFFSET(WWTF_Part!$C$10,12*($BB53-1),4*(PlotControl!$C$4-1),12,1)) -> 9110.4 | BM53: =MAX(OFFSET(WWTF_Part!$D$10,12*($BB53-1),4*(PlotControl!$C$4-1),12,1)) -> 9581.1 | BN53: =MAX(OFFSET(WWTF_Part!$E$10,12*($BB53-1),4*(PlotControl!$C$4-1),12,1)) -> 10077 | BO53: =MAX(OFFSET(OSLA_Part!$C$10,12*($BB53-1),4*(PlotControl!$C$4-1),12,1)) -> 9894.8 | BP53: =MAX(OFFSET(OSLA_Part!$D$10,12*($BB53-1),4*(PlotControl!$C$4-1),12,1)) -> 15094 | BQ53: =MAX(OFFSET(OSLA_Part!$E$10,12*($BB53-1),4*(PlotControl!$C$4-1),12,1)) -> 18330 | BR53: =MAX(OFFSET(WPsurf_Part!$C$10,12*($BB53-1),4*(PlotControl!$C$4-1),12,1)) -> 9110.4 | BS53: =MAX(OFFSET(WPsurf_Part!$D$10,12*($BB53-1),4*(PlotControl!$C$4-1),12,1)) -> 9581.1 | BT53: =MAX(OFFSET(WPsurf_Part!$E$10,12*($BB53-1),4*(PlotControl!$C$4-1),12,1)) -> 10077
A54: 50 | B54: =MAX(OFFSET(EPCat23_Dunka!$C$10,12*($A54-1),4*(PlotControl!$C$4-1),12,1)) -> 9285.6 | C54: =MAX(OFFSET(EPCat23_Dunka!$D$10,12*($A54-1),4*(PlotControl!$C$4-1),12,1)) -> 9836.9 | D54: =MAX(OFFSET(EPCat23_Dunka!$E$10,12*($A54-1),4*(PlotControl!$C$4-1),12,1)) -> 11156 | H54: =MAX(OFFSET(OSP_Dunka!$C$10,12*($A54-1),4*(PlotControl!$C$4-1),12,1)) -> 9679.8 | I54: =MAX(OFFSET(OSP_Dunka!$D$10,12*($A54-1),4*(PlotControl!$C$4-1),12,1)) -> 10561 | J54: =MAX(OFFSET(OSP_Dunka!$E$10,12*($A54-1),4*(PlotControl!$C$4-1),12,1)) -> 12286 | K54: =MAX(OFFSET(WWTF_Dunka!$C$10,12*($A54-1),4*(PlotControl!$C$4-1),12,1)) -> 10444 | L54: =MAX(OFFSET(WWTF_Dunka!$D$10,12*($A54-1),4*(PlotControl!$C$4-1),12,1)) -> 11252 | M54: =MAX(OFFSET(WWTF_Dunka!$E$10,12*($A54-1),4*(PlotControl!$C$4-1),12,1)) -> 12401 | N54: =MAX(OFFSET(OSLA_Dunka!$C$10,12*($A54-1),4*(PlotControl!$C$4-1),12,1)) -> 20803 | O54: =MAX(OFFSET(OSLA_Dunka!$D$10,12*($A54-1),4*(PlotControl!$C$4-1),12,1)) -> 26043 | P54: =MAX(OFFSET(OSLA_Dunka!$E$10,12*($A54-1),4*(PlotControl!$C$4-1),12,1)) -> 36029 | Q54: =MAX(OFFSET(WPsurf_Dunka!$C$10,12*($A54-1),4*(PlotControl!$C$4-1),12,1)) -> 9211.9 | R54: =MAX(OFFSET(WPsurf_Dunka!$D$10,12*($A54-1),4*(PlotControl!$C$4-1),12,1)) -> 9771.6 | S54: =MAX(OFFSET(WPsurf_Dunka!$E$10,12*($A54-1),4*(PlotControl!$C$4-1),12,1)) -> 11529 | AB54: 50 | AC54: =MAX(OFFSET(EPCat23_Prop!$C$10,12*($AB54-1),4*(PlotControl!$C$4-1),12,1)) -> 9340.6 | AD54: =MAX(OFFSET(EPCat23_Prop!$D$10,12*($AB54-1),4*(PlotControl!$C$4-1),12,1)) -> 10048 | AE54: =MAX(OFFSET(EPCat23_Prop!$E$10,12*($AB54-1),4*(PlotControl!$C$4-1),12,1)) -> 12024 | AF54: =MAX(OFFSET(EPbed_Prop!$C$10,12*($AB54-1),4*(PlotControl!$C$4-1),12,1)) -> 20929 | AG54: =MAX(OFFSET(EPbed_Prop!$D$10,12*($AB54-1),4*(PlotControl!$C$4-1),12,1)) -> 24964 | AH54: =MAX(OFFSET(EPbed_Prop!$E$10,12*($AB54-1),4*(PlotControl!$C$4-1),12,1)) -> 29770 | AL54: =MAX(OFFSET(WWTF_Prop!$C$10,12*($AB54-1),4*(PlotControl!$C$4-1),12,1)) -> 9110.7 | AM54: =MAX(OFFSET(WWTF_Prop!$D$10,12*($AB54-1),4*(PlotControl!$C$4-1),12,1)) -> 9581.8 | AN54: =MAX(OFFSET(WWTF_Prop!$E$10,12*($AB54-1),4*(PlotControl!$C$4-1),12,1)) -> 10077 | AO54: =MAX(OFFSET(OSLA_Prop!$C$10,12*($AB54-1),4*(PlotControl!$C$4-1),12,1)) -> 20772 | AP54: =MAX(OFFSET(OSLA_Prop!$D$10,12*($AB54-1),4*(PlotControl!$C$4-1),12,1)) -> 25551 | AQ54: =MAX(OFFSET(OSLA_Prop!$E$10,12*($AB54-1),4*(PlotControl!$C$4-1),12,1)) -> 32870 | AR54: =MAX(OFFSET(WPsurf_Prop!$C$10,12*($AB54-1),4*(PlotControl!$C$4-1),12,1)) -> 9110.4 | AS54: =MAX(OFFSET(WPsurf_Prop!$D$10,12*($AB54-1),4*(PlotControl!$C$4-1),12,1)) -> 9581.1 | AT54: =MAX(OFFSET(WPsurf_Prop!$E$10,12*($AB54-1),4*(PlotControl!$C$4-1),12,1)) -> 10077 | AU54: =MAX(OFFSET(WPbed4_Prop!$C$10,12*($AB54-1),4*(PlotControl!$C$4-1),12,1)) -> 20929 | AV54: =MAX(OFFSET(WPbed4_Prop!$D$10,12*($AB54-1),4*(PlotControl!$C$4-1),12,1)) -> 24964 | AW54: =MAX(OFFSET(WPbed4_Prop!$E$10,12*($AB54-1),4*(PlotControl!$C$4-1),12,1)) -> 29770 | AX54: =MAX(OFFSET(WPbed4a_Prop!$C$10,12*($AB54-1),4*(PlotControl!$C$4-1),12,1)) -> 20929 | AY54: =MAX(OFFSET(WPbed4a_Prop!$D$10,12*($AB54-1),4*(PlotControl!$C$4-1),12,1)) -> 24964 | AZ54: =MAX(OFFSET(WPbed4a_Prop!$E$10,12*($AB54-1),4*(PlotControl!$C$4-1),12,1)) -> 29770 | BB54: 50 | BC54: =MAX(OFFSET(EPCat23_Part!$C$10,12*($BB54-1),4*(PlotControl!$C$4-1),12,1)) -> 9373.5 | BD54: =MAX(OFFSET(EPCat23_Part!$D$10,12*($BB54-1),4*(PlotControl!$C$4-1),12,1)) -> 10091 | BE54: =MAX(OFFSET(EPCat23_Part!$E$10,12*($BB54-1),4*(PlotControl!$C$4-1),12,1)) -> 12030 | BI54: =MAX(OFFSET(OSP_Part1!$C$10,12*($BB54-1),4*(PlotControl!$C$4-1),12,1)) -> 9110.4 | BJ54: =MAX(OFFSET(OSP_Part1!$D$10,12*($BB54-1),4*(PlotControl!$C$4-1),12,1)) -> 9581.1 | BK54: =MAX(OFFSET(OSP_Part1!$E$10,12*($BB54-1),4*(PlotControl!$C$4-1),12,1)) -> 10077 | BL54: =MAX(OFFSET(WWTF_Part!$C$10,12*($BB54-1),4*(PlotControl!$C$4-1),12,1)) -> 9110.4 | BM54: =MAX(OFFSET(WWTF_Part!$D$10,12*($BB54-1),4*(PlotControl!$C$4-1),12,1)) -> 9581.1 | BN54: =MAX(OFFSET(WWTF_Part!$E$10,12*($BB54-1),4*(PlotControl!$C$4-1),12,1)) -> 10077 | BO54: =MAX(OFFSET(OSLA_Part!$C$10,12*($BB54-1),4*(PlotControl!$C$4-1),12,1)) -> 9931.1 | BP54: =MAX(OFFSET(OSLA_Part!$D$10,12*($BB54-1),4*(PlotControl!$C$4-1),12,1)) -> 15235 | BQ54: =MAX(OFFSET(OSLA_Part!$E$10,12*($BB54-1),4*(PlotControl!$C$4-1),12,1)) -> 18364 | BR54: =MAX(OFFSET(WPsurf_Part!$C$10,12*($BB54-1),4*(PlotControl!$C$4-1),12,1)) -> 9110.4 | BS54: =MAX(OFFSET(WPsurf_Part!$D$10,12*($BB54-1),4*(PlotControl!$C$4-1),12,1)) -> 9581.1 | BT54: =MAX(OFFSET(WPsurf_Part!$E$10,12*($BB54-1),4*(PlotControl!$C$4-1),12,1)) -> 10077
A55: 51 | B55: =MAX(OFFSET(EPCat23_Dunka!$C$10,12*($A55-1),4*(PlotControl!$C$4-1),12,1)) -> 9283.2 | C55: =MAX(OFFSET(EPCat23_Dunka!$D$10,12*($A55-1),4*(PlotControl!$C$4-1),12,1)) -> 9819.4 | D55: =MAX(OFFSET(EPCat23_Dunka!$E$10,12*($A55-1),4*(PlotControl!$C$4-1),12,1)) -> 11007 | H55: =MAX(OFFSET(OSP_Dunka!$C$10,12*($A55-1),4*(PlotControl!$C$4-1),12,1)) -> 9676.3 | I55: =MAX(OFFSET(OSP_Dunka!$D$10,12*($A55-1),4*(PlotControl!$C$4-1),12,1)) -> 10553 | J55: =MAX(OFFSET(OSP_Dunka!$E$10,12*($A55-1),4*(PlotControl!$C$4-1),12,1)) -> 12252 | K55: =MAX(OFFSET(WWTF_Dunka!$C$10,12*($A55-1),4*(PlotControl!$C$4-1),12,1)) -> 10434 | L55: =MAX(OFFSET(WWTF_Dunka!$D$10,12*($A55-1),4*(PlotControl!$C$4-1),12,1)) -> 11243 | M55: =MAX(OFFSET(WWTF_Dunka!$E$10,12*($A55-1),4*(PlotControl!$C$4-1),12,1)) -> 12412 | N55: =MAX(OFFSET(OSLA_Dunka!$C$10,12*($A55-1),4*(PlotControl!$C$4-1),12,1)) -> 20455 | O55: =MAX(OFFSET(OSLA_Dunka!$D$10,12*($A55-1),4*(PlotControl!$C$4-1),12,1)) -> 25695 | P55: =MAX(OFFSET(OSLA_Dunka!$E$10,12*($A55-1),4*(PlotControl!$C$4-1),12,1)) -> 35847 | Q55: =MAX(OFFSET(WPsurf_Dunka!$C$10,12*($A55-1),4*(PlotControl!$C$4-1),12,1)) -> 9248.1 | R55: =MAX(OFFSET(WPsurf_Dunka!$D$10,12*($A55-1),4*(PlotControl!$C$4-1),12,1)) -> 9900.2 | S55: =MAX(OFFSET(WPsurf_Dunka!$E$10,12*($A55-1),4*(PlotControl!$C$4-1),12,1)) -> 14286 | AB55: 51 | AC55: =MAX(OFFSET(EPCat23_Prop!$C$10,12*($AB55-1),4*(PlotControl!$C$4-1),12,1)) -> 9341 | AD55: =MAX(OFFSET(EPCat23_Prop!$D$10,12*($AB55-1),4*(PlotControl!$C$4-1),12,1)) -> 9999.4 | AE55: =MAX(OFFSET(EPCat23_Prop!$E$10,12*($AB55-1),4*(PlotControl!$C$4-1),12,1)) -> 11942 | AF55: =MAX(OFFSET(EPbed_Prop!$C$10,12*($AB55-1),4*(PlotControl!$C$4-1),12,1)) -> 20929 | AG55: =MAX(OFFSET(EPbed_Prop!$D$10,12*($AB55-1),4*(PlotControl!$C$4-1),12,1)) -> 24964 | AH55: =MAX(OFFSET(EPbed_Prop!$E$10,12*($AB55-1),4*(PlotControl!$C$4-1),12,1)) -> 29770 | AL55: =MAX(OFFSET(WWTF_Prop!$C$10,12*($AB55-1),4*(PlotControl!$C$4-1),12,1)) -> 9110.8 | AM55: =MAX(OFFSET(WWTF_Prop!$D$10,12*($AB55-1),4*(PlotControl!$C$4-1),12,1)) -> 9583 | AN55: =MAX(OFFSET(WWTF_Prop!$E$10,12*($AB55-1),4*(PlotControl!$C$4-1),12,1)) -> 10077 | AO55: =MAX(OFFSET(OSLA_Prop!$C$10,12*($AB55-1),4*(PlotControl!$C$4-1),12,1)) -> 20435 | AP55: =MAX(OFFSET(OSLA_Prop!$D$10,12*($AB55-1),4*(PlotControl!$C$4-1),12,1)) -> 25222 | AQ55: =MAX(OFFSET(OSLA_Prop!$E$10,12*($AB55-1),4*(PlotControl!$C$4-1),12,1)) -> 32768 | AR55: =MAX(OFFSET(WPsurf_Prop!$C$10,12*($AB55-1),4*(PlotControl!$C$4-1),12,1)) -> 9110.4 | AS55: =MAX(OFFSET(WPsurf_Prop!$D$10,12*($AB55-1),4*(PlotControl!$C$4-1),12,1)) -> 9581.1 | AT55: =MAX(OFFSET(WPsurf_Prop!$E$10,12*($AB55-1),4*(PlotControl!$C$4-1),12,1)) -> 10077 | AU55: =MAX(OFFSET(WPbed4_Prop!$C$10,12*($AB55-1),4*(PlotControl!$C$4-1),12,1)) -> 20929 | AV55: =MAX(OFFSET(WPbed4_Prop!$D$10,12*($AB55-1),4*(PlotControl!$C$4-1),12,1)) -> 24964 | AW55: =MAX(OFFSET(WPbed4_Prop!$E$10,12*($AB55-1),4*(PlotControl!$C$4-1),12,1)) -> 29770 | AX55: =MAX(OFFSET(WPbed4a_Prop!$C$10,12*($AB55-1),4*(PlotControl!$C$4-1),12,1)) -> 20929 | AY55: =MAX(OFFSET(WPbed4a_Prop!$D$10,12*($AB55-1),4*(PlotControl!$C$4-1),12,1)) -> 24964 | AZ55: =MAX(OFFSET(WPbed4a_Prop!$E$10,12*($AB55-1),4*(PlotControl!$C$4-1),12,1)) -> 29770 | BB55: 51 | BC55: =MAX(OFFSET(EPCat23_Part!$C$10,12*($BB55-1),4*(PlotControl!$C$4-1),12,1)) -> 9374.4 | BD55: =MAX(OFFSET(EPCat23_Part!$D$10,12*($BB55-1),4*(PlotControl!$C$4-1),12,1)) -> 10117 | BE55: =MAX(OFFSET(EPCat23_Part!$E$10,12*($BB55-1),4*(PlotControl!$C$4-1),12,1)) -> 12006 | BI55: =MAX(OFFSET(OSP_Part1!$C$10,12*($BB55-1),4*(PlotControl!$C$4-1),12,1)) -> 9110.4 | BJ55: =MAX(OFFSET(OSP_Part1!$D$10,12*($BB55-1),4*(PlotControl!$C$4-1),12,1)) -> 9581.1 | BK55: =MAX(OFFSET(OSP_Part1!$E$10,12*($BB55-1),4*(PlotControl!$C$4-1),12,1)) -> 10077 | BL55: =MAX(OFFSET(WWTF_Part!$C$10,12*($BB55-1),4*(PlotControl!$C$4-1),12,1)) -> 9110.5 | BM55: =MAX(OFFSET(WWTF_Part!$D$10,12*($BB55-1),4*(PlotControl!$C$4-1),12,1)) -> 9581.1 | BN55: =MAX(OFFSET(WWTF_Part!$E$10,12*($BB55-1),4*(PlotControl!$C$4-1),12,1)) -> 10077 | BO55: =MAX(OFFSET(OSLA_Part!$C$10,12*($BB55-1),4*(PlotControl!$C$4-1),12,1)) -> 9950.2 | BP55: =MAX(OFFSET(OSLA_Part!$D$10,12*($BB55-1),4*(PlotControl!$C$4-1),12,1)) -> 15409 | BQ55: =MAX(OFFSET(OSLA_Part!$E$10,12*($BB55-1),4*(PlotControl!$C$4-1),12,1)) -> 18375 | BR55: =MAX(OFFSET(WPsurf_Part!$C$10,12*($BB55-1),4*(PlotControl!$C$4-1),12,1)) -> 9110.4 | BS55: =MAX(OFFSET(WPsurf_Part!$D$10,12*($BB55-1),4*(PlotControl!$C$4-1),12,1)) -> 9581.1 | BT55: =MAX(OFFSET(WPsurf_Part!$E$10,12*($BB55-1),4*(PlotControl!$C$4-1),12,1)) -> 10077
A56: 52 | B56: =MAX(OFFSET(EPCat23_Dunka!$C$10,12*($A56-1),4*(PlotControl!$C$4-1),12,1)) -> 9277 | C56: =MAX(OFFSET(EPCat23_Dunka!$D$10,12*($A56-1),4*(PlotControl!$C$4-1),12,1)) -> 9801 | D56: =MAX(OFFSET(EPCat23_Dunka!$E$10,12*($A56-1),4*(PlotControl!$C$4-1),12,1)) -> 10889 | H56: =MAX(OFFSET(OSP_Dunka!$C$10,12*($A56-1),4*(PlotControl!$C$4-1),12,1)) -> 9672.8 | I56: =MAX(OFFSET(OSP_Dunka!$D$10,12*($A56-1),4*(PlotControl!$C$4-1),12,1)) -> 10547 | J56: =MAX(OFFSET(OSP_Dunka!$E$10,12*($A56-1),4*(PlotControl!$C$4-1),12,1)) -> 12217 | K56: =MAX(OFFSET(WWTF_Dunka!$C$10,12*($A56-1),4*(PlotControl!$C$4-1),12,1)) -> 10423 | L56: =MAX(OFFSET(WWTF_Dunka!$D$10,12*($A56-1),4*(PlotControl!$C$4-1),12,1)) -> 11236 | M56: =MAX(OFFSET(WWTF_Dunka!$E$10,12*($A56-1),4*(PlotControl!$C$4-1),12,1)) -> 12417 | N56: =MAX(OFFSET(OSLA_Dunka!$C$10,12*($A56-1),4*(PlotControl!$C$4-1),12,1)) -> 20130 | O56: =MAX(OFFSET(OSLA_Dunka!$D$10,12*($A56-1),4*(PlotControl!$C$4-1),12,1)) -> 25396 | P56: =MAX(OFFSET(OSLA_Dunka!$E$10,12*($A56-1),4*(PlotControl!$C$4-1),12,1)) -> 35689 | Q56: =MAX(OFFSET(WPsurf_Dunka!$C$10,12*($A56-1),4*(PlotControl!$C$4-1),12,1)) -> 9335 | R56: =MAX(OFFSET(WPsurf_Dunka!$D$10,12*($A56-1),4*(PlotControl!$C$4-1),12,1)) -> 10156 | S56: =MAX(OFFSET(WPsurf_Dunka!$E$10,12*($A56-1),4*(PlotControl!$C$4-1),12,1)) -> 18824 | AB56: 52 | AC56: =MAX(OFFSET(EPCat23_Prop!$C$10,12*($AB56-1),4*(PlotControl!$C$4-1),12,1)) -> 9325.5 | AD56: =MAX(OFFSET(EPCat23_Prop!$D$10,12*($AB56-1),4*(PlotControl!$C$4-1),12,1)) -> 9960.2 | AE56: =MAX(OFFSET(EPCat23_Prop!$E$10,12*($AB56-1),4*(PlotControl!$C$4-1),12,1)) -> 11854 | AF56: =MAX(OFFSET(EPbed_Prop!$C$10,12*($AB56-1),4*(PlotControl!$C$4-1),12,1)) -> 20929 | AG56: =MAX(OFFSET(EPbed_Prop!$D$10,12*($AB56-1),4*(PlotControl!$C$4-1),12,1)) -> 24964 | AH56: =MAX(OFFSET(EPbed_Prop!$E$10,12*($AB56-1),4*(PlotControl!$C$4-1),12,1)) -> 29770 | AL56: =MAX(OFFSET(WWTF_Prop!$C$10,12*($AB56-1),4*(PlotControl!$C$4-1),12,1)) -> 9110.9 | AM56: =MAX(OFFSET(WWTF_Prop!$D$10,12*($AB56-1),4*(PlotControl!$C$4-1),12,1)) -> 9583 | AN56: =MAX(OFFSET(WWTF_Prop!$E$10,12*($AB56-1),4*(PlotControl!$C$4-1),12,1)) -> 10077 | AO56: =MAX(OFFSET(OSLA_Prop!$C$10,12*($AB56-1),4*(PlotControl!$C$4-1),12,1)) -> 20106 | AP56: =MAX(OFFSET(OSLA_Prop!$D$10,12*($AB56-1),4*(PlotControl!$C$4-1),12,1)) -> 25009 | AQ56: =MAX(OFFSET(OSLA_Prop!$E$10,12*($AB56-1),4*(PlotControl!$C$4-1),12,1)) -> 32698 | AR56: =MAX(OFFSET(WPsurf_Prop!$C$10,12*($AB56-1),4*(PlotControl!$C$4-1),12,1)) -> 9110.4 | AS56: =MAX(OFFSET(WPsurf_Prop!$D$10,12*($AB56-1),4*(PlotControl!$C$4-1),12,1)) -> 9581.1 | AT56: =MAX(OFFSET(WPsurf_Prop!$E$10,12*($AB56-1),4*(PlotControl!$C$4-1),12,1)) -> 10077 | AU56: =MAX(OFFSET(WPbed4_Prop!$C$10,12*($AB56-1),4*(PlotControl!$C$4-1),12,1)) -> 20929 | AV56: =MAX(OFFSET(WPbed4_Prop!$D$10,12*($AB56-1),4*(PlotControl!$C$4-1),12,1)) -> 24964 | AW56: =MAX(OFFSET(WPbed4_Prop!$E$10,12*($AB56-1),4*(PlotControl!$C$4-1),12,1)) -> 29770 | AX56: =MAX(OFFSET(WPbed4a_Prop!$C$10,12*($AB56-1),4*(PlotControl!$C$4-1),12,1)) -> 20929 | AY56: =MAX(OFFSET(WPbed4a_Prop!$D$10,12*($AB56-1),4*(PlotControl!$C$4-1),12,1)) -> 24964 | AZ56: =MAX(OFFSET(WPbed4a_Prop!$E$10,12*($AB56-1),4*(PlotControl!$C$4-1),12,1)) -> 29770 | BB56: 52 | BC56: =MAX(OFFSET(EPCat23_Part!$C$10,12*($BB56-1),4*(PlotControl!$C$4-1),12,1)) -> 9376.3 | BD56: =MAX(OFFSET(EPCat23_Part!$D$10,12*($BB56-1),4*(PlotControl!$C$4-1),12,1)) -> 10139 | BE56: =MAX(OFFSET(EPCat23_Part!$E$10,12*($BB56-1),4*(PlotControl!$C$4-1),12,1)) -> 11955 | BI56: =MAX(OFFSET(OSP_Part1!$C$10,12*($BB56-1),4*(PlotControl!$C$4-1),12,1)) -> 9110.4 | BJ56: =MAX(OFFSET(OSP_Part1!$D$10,12*($BB56-1),4*(PlotControl!$C$4-1),12,1)) -> 9581.1 | BK56: =MAX(OFFSET(OSP_Part1!$E$10,12*($BB56-1),4*(PlotControl!$C$4-1),12,1)) -> 10077 | BL56: =MAX(OFFSET(WWTF_Part!$C$10,12*($BB56-1),4*(PlotControl!$C$4-1),12,1)) -> 9110.5 | BM56: =MAX(OFFSET(WWTF_Part!$D$10,12*($BB56-1),4*(PlotControl!$C$4-1),12,1)) -> 9581.1 | BN56: =MAX(OFFSET(WWTF_Part!$E$10,12*($BB56-1),4*(PlotControl!$C$4-1),12,1)) -> 10077 | BO56: =MAX(OFFSET(OSLA_Part!$C$10,12*($BB56-1),4*(PlotControl!$C$4-1),12,1)) -> 9998.1 | BP56: =MAX(OFFSET(OSLA_Part!$D$10,12*($BB56-1),4*(PlotControl!$C$4-1),12,1)) -> 15520 | BQ56: =MAX(OFFSET(OSLA_Part!$E$10,12*($BB56-1),4*(PlotControl!$C$4-1),12,1)) -> 18373 | BR56: =MAX(OFFSET(WPsurf_Part!$C$10,12*($BB56-1),4*(PlotControl!$C$4-1),12,1)) -> 9110.4 | BS56: =MAX(OFFSET(WPsurf_Part!$D$10,12*($BB56-1),4*(PlotControl!$C$4-1),12,1)) -> 9581.1 | BT56: =MAX(OFFSET(WPsurf_Part!$E$10,12*($BB56-1),4*(PlotControl!$C$4-1),12,1)) -> 10077
